Workbook

Sheet Rates (hidden)
A1: PAYG Withholding Rates from 01/07/2017
H3: Test Data | W3: Test Data
A4: Scale 2 - With Tax Free Threshold | H4: Claim Tax Free Threshold | P4: Scale 1 - No Tax Free Threshold | W4: Do Not Claim Tax Free Threshold
A5: My Columns | C5: ATO Columns | P5: My Columns | R5: ATO Columns
A6: net from | B6: net to | C6: x | D6: a | E6: b | F6: tax | H6: Test Brackets | J6: ATO Calcs | L6: My Calcs | N6: Result | P6: net from | Q6: net to | R6: x | S6: a | T6: b | U6: tax | W6: Test Brackets | Y6: ATO Calcs | AA6: My Calcs | AC6: Result
A7: 0 | B7: 354 | C7: 355 | D7: 0 | E7: 0 | F7: =ROUND(((C7+0.99)*D7)-E7,0) -> 0 | H7: Annual | I7: Weekly | J7: Tax | K7: Net | L7: Gross | M7: Tax | N7: Diff | P7: 0 | Q7: 65 | R7: 66 | S7: 0.19 | T7: 0.19 | U7: =ROUND(((R7+0.99)*S7)-T7,0) -> 13 | W7: Annual | X7: Weekly | Y7: Tax | Z7: Net | AA7: Gross | AB7: Tax | AC7: Diff
A8: =B7+1 -> 355 | B8: =C8-1-F8 -> 403 | C8: 416 | D8: 0.19 | E8: 67.4635 | F8: =ROUND(((C8+0.99)*D8)-E8,0) -> 12 | H8: 4000 | I8: =ROUND(H8/52,0) -> 77 | J8: 0 | K8: =I8-J8 -> 77 | L8: =IF($H$4<>"Select",ROUND((K8+(0.99*VLOOKUP(K8,IF($H$4="Claim Tax Free Threshold",NEWPAYGW.TFT,PAYGW.NOTFT),4))-VLOOKUP(K8,IF($H$4="Claim Tax Free Threshold",NEWPAYGW.TFT,PAYGW.NOTFT),5))/(1-VLOOKUP(K8,IF($H$4="Claim Tax Free Threshold",NEWPAYGW.TFT,PAYGW.NOTFT),4)),0),0) -> 77 | M8: =L8-K8 -> 0 | N8: =M8-J8 -> 0 | P8: =Q7+1 -> 66 | Q8: =R8-1-U8 -> 278 | R8: 361 | S8: 0.2337 | T8: 2.9035 | U8: =ROUND(((R8+0.99)*S8)-T8,0) -> 82 | W8: 2000 | X8: =ROUND(W8/52,0) -> 38 | Y8: 7 | Z8: =X8-Y8 -> 31 | AA8: =IF($W$4<>"Select",ROUND((Z8+(0.99*VLOOKUP(Z8,IF($W$4="Claim Tax Free Threshold",NEWPAYGW.TFT,NEWPAYGW.NOTFT),4))-VLOOKUP(Z8,IF($W$4="Claim Tax Free Threshold",NEWPAYGW.TFT,NEWPAYGW.NOTFT),5))/(1-VLOOKUP(Z8,IF($W$4="Claim Tax Free Threshold",NEWPAYGW.TFT,NEWPAYGW.NOTFT),4)),0),0) -> 38 | AB8: =AA8-Z8 -> 7 | AC8: =AB8-Y8 -> 0
A9: =B8+1 -> 404 | B9: =C9-1-F9 -> 477 | C9: 520 | D9: 0.29 | E9: 109.1077 | F9: 42 | H9: 17000 | I9: =ROUND(H9/52,0) -> 327 | J9: 0 | K9: 327 | L9: 327 | M9: =L9-K9 -> 0 | N9: =M9-J9 -> 0 | P9: =Q8+1 -> 279 | Q9: =R9-1-U9 -> 651 | R9: 932 | S9: 0.3477 | T9: 44.1189 | U9: 280 | W9: 3000 | X9: =ROUND(W9/52,0) -> 58 | Y9: 11 | Z9: 47 | AA9: 58 | AB9: =AA9-Z9 -> 11 | AC9: =AB9-Y9 -> 0
A10: 478 | B10: 628 | C10: 711 | D10: 0.21 | E10: 67.4646 | F10: 82 | H10: =370*52 -> 19240 | I10: 370 | J10: 3 | K10: 367 | L10: 370 | M10: 3 | N10: 0 | P10: 652 | Q10: 907 | R10: 1323 | S10: 0.345 | T10: 41.6024 | U10: 415 | W10: 15000 | X10: 288 | Y10: 65 | Z10: 223 | AA10: 288 | AB10: 65 | AC10: 0
A11: 629 | B11: 1000 | C11: 1282 | D11: 0.3477 | E11: 165.4435 | F11: 281 | H11: =430*52 -> 22360 | I11: 430 | J11: 16 | K11: 414 | L11: 430 | M11: 16 | N11: 0 | P11: 908 | Q11: 1997 | R11: 3111 | S11: 0.39 | T11: 101.1408 | U11: 1113 | W11: 18000 | X11: 346 | Y11: 78 | Z11: 268 | AA11: 346 | AB11: 78 | AC11: 0
A12: 1001 | B12: 1256 | C12: 1673 | D12: 0.345 | E12: 161.9819 | F12: 416 | H12: =550*52 -> 28600 | I12: 550 | J12: 48 | K12: 502 | L12: 550 | M12: 48 | N12: 0 | P12: 1998 | Q12: 1060349 | R12: 2000000 | S12: 0.47 | T12: 350.0639 | U12: 939650 | W12: 30000 | X12: 577 | Y12: 157 | Z12: 420 | AA12: 577 | AB12: 157 | AC12: 0
A13: 1257 | B13: 2347 | C13: 3461 | D13: 0.39 | E13: 237.2704 | F13: 1113 | H13: 37000 | I13: 712 | J13: 82 | K13: 630 | L13: 713 | M13: 83 | N13: 1 | W13: 40000 | X13: 769 | Y13: 224 | Z13: 545 | AA13: 768 | AB13: 223 | AC13: -1
A14: 2348 | B14: 1060513 | C14: 2000000 | D14: 0.47 | E14: 514.1935 | F14: 939486 | H14: 49000 | I14: 942 | J14: 162 | K14: 780 | L14: 943 | M14: 163 | N14: 1 | W14: 50000 | X14: 962 | Y14: 291 | Z14: 671 | AA14: 961 | AB14: 290 | AC14: -1
H15: 75000 | I15: 1442 | J15: 336 | K15: 1106 | L15: 1442 | M15: 336 | N15: 0 | W15: 65000 | X15: 1250 | Y15: 390 | Z15: 860 | AA15: 1250 | AB15: 390 | AC15: 0
A16: FORMULA | H16: 80000 | I16: 1538 | J16: 369 | K16: 1169 | L16: 1538 | M16: 369 | N16: 0 | W16: 80000 | X16: 1538 | Y16: 499 | Z16: 1039 | AA16: 1538 | AB16: 499 | AC16: 0
A17: y = ax - b | H17: 95000 | I17: 1827 | J17: 476 | K17: 1351 | L17: 1826 | M17: 475 | N17: -1 | W17: 95000 | X17: 1827 | Y17: 612 | Z17: 1215 | AA17: 1827 | AB17: 612 | AC17: 0
A18: y is the weekly withholding amount expressed in dollars | H18: 165000 | I18: 3173 | J18: 1001 | K18: 2172 | L18: 3172 | M18: 1000 | N18: -1 | W18: 120000 | X18: 2308 | Y18: 799 | Z18: 1509 | AA18: 2309 | AB18: 800 | AC18: 1
A19: x is the number of whole dollars in the weekly earnings plus 99 cents | H19: =3350*52 -> 174200 | I19: 3350 | J19: =1040+((I19-3275)*0.39) -> 1069.25 | K19: 2280.75 | L19: 3351 | M19: 1070.25 | N19: 1 | W19: 170000 | X19: 3269 | Y19: 1187 | Z19: 2082 | AA19: 3269 | AB19: 1187 | AC19: 0
H20: 200000 | I20: 3846 | J20: =1113+((I20-3460)*0.47) -> 1294.42 | K20: 2551.58 | L20: 3845 | M20: 1293.42 | N20: -1 | W20: 200000 | X20: 3846 | Y20: =1190+(X20-3275)*0.47 -> 1458.37 | Z20: 2387.63 | AA20: 3845 | AB20: 1457.37 | AC20: -1
A21: a and b are the values of the coefficients for each set of formulas for each range of weekly earnings (or, in the case of fortnightly, monthly or quarterly earnings, the weekly equivalent of these amounts). | H21: 300000 | I21: 5769 | J21: =1113+((I21-3460)*0.47) -> 2198.23 | K21: 3570.77 | L21: 5768 | M21: 2197.23 | N21: -1 | W21: 300000 | X21: 5769 | Y21: =1190+(X21-3275)*0.47 -> 2362.18 | Z21: 3406.82 | AA21: 5768 | AB21: 2361.18 | AC21: -1
H22: 500000 | I22: 9615 | J22: =1113+((I22-3460)*0.47) -> 4005.85 | K22: 5609.15 | L22: 9614 | M22: 4004.85 | N22: -1 | W22: 500000 | X22: 9615 | Y22: 4169.8 | Z22: 5445.2 | AA22: 9614 | AB22: 4168.8 | AC22: -1
A25: Update 1 for This Tab | H25: Update 2 for This Tab | P25: Update 3 for This Tab | W25: Update 4 for This Tab
A26: Update above scale and check formula name parameters | H26: Make sure each bracket is represented in the testiing data above by calibrating annual amounts. My calculation above uses the formula from the Calculations worksheet. | P26: Update above scale and check formula name parameters | W26: Make sure each bracket is represented in the testiing data above by calibrating annual amounts. My calculation above uses the formula from the Calculations worksheet.

Sheet ATO Statement of Formulas (hidden)
A1: Coefficients for calculation of amounts to be withheld (withholding amounts) from weekly payments
A2: Where the tax-free threshold | D2: Where the employee claimed | G2: Foreign residents | J2: Where a tax file number
A3: is not claimed in | D3: the tax-free threshold in | J3: was not provided by employee
A4: Tax file number declaration | D4: Tax file number declaration
A5: Scale 1 | D5: Scale 2 | G5: Scale 3 | J5: Scale 4
A6: Weekly earnings | D6: Weekly earnings | G6: Weekly earnings
A7: (x) less than | D7: (x) less than | G7: (x) less than
A8: $ | B8: a | C8: b | D8: $ | E8: a | F8: b | G8: $ | H8: a | I8: b | J8: Earnings | L8: Tax rate
A9: 66 | B9: 0.19 | C9: 0.19 | D9: 355 | E9: 0 | F9: 0 | G9: 1673 | H9: 0.325 | I9: 0.325 | J9: Resident
A10: 361 | B10: 0.2337 | C10: 2.9035 | D10: 416 | E10: 0.19 | F10: 67.4635 | G10: 3461 | H10: 0.37 | I10: 75.2885 | J10: $1 & over | L10: 0.47
A11: 932 | B11: 0.3477 | C11: 44.1189 | D11: 520 | E11: 0.29 | F11: 109.1077 | G11: 3461 & over | H11: 0.45 | I11: 352.2115
A12: 1323 | B12: 0.345 | C12: 41.6024 | D12: 711 | E12: 0.21 | F12: 67.4646
A13: 3111 | B13: 0.39 | C13: 101.1408 | D13: 1282 | E13: 0.3477 | F13: 165.4435 | J13: Foreign resident
A14: 3111 & over | B14: 0.47 | C14: 350.0639 | D14: 1673 | E14: 0.345 | F14: 161.9819 | J14: $1 & over | L14: 0.45
D15: 3461 | E15: 0.39 | F15: 237.2704
D16: 3461 & over | E16: 0.47 | F16: 514.1935
A19: Where the employee claimed the FULL | D19: Where the employee claimed the
A20: exemption from Medicare levy in | D20: HALF exemption from Medicare levy in
A21: Medicare levy variation declaration | D21: Medicare levy variation declaration | J21: This worksheet has been downloaded from the ATO Developers Site for the year commencing 1 July 2017
A22: Scale 5 | D22: Scale 6
A23: Weekly earnings | D23: Weekly earnings
A24: (x) less than | D24: (x) less than
A25: $ | B25: a | C25: b | D25: $ | E25: a | F25: b
A26: 355 | B26: 0 | C26: 0 | D26: 355 | E26: 0 | F26: 0
A27: 711 | B27: 0.19 | C27: 67.4635 | D27: 702 | E27: 0.19 | F27: 67.4635
A28: 1282 | B28: 0.3277 | C28: 165.4423 | D28: 711 | E28: 0.24 | F28: 102.599
A29: 1673 | B29: 0.325 | C29: 161.9808 | D29: 878 | E29: 0.3777 | F29: 200.5779
A30: 3461 | B30: 0.37 | C30: 237.2692 | D30: 1282 | E30: 0.3377 | F30: 165.4425
A31: 3461 & over | B31: 0.45 | C31: 514.1923 | D31: 1673 | E31: 0.335 | F31: 161.981
D32: 3461 | E32: 0.38 | F32: 237.2694
D33: 3461 & over | E33: 0.46 | F33: 514.1925
A36: Notes:
A37: 1. If you have 27 fortnightly, or 53 weekly pays in a financial year additional withholding are necessary
A38: from employee earnings
A39: 2. Scales 1, 2, 3, 5 and 6 may be applied only where employees have provided their TFN.
A40: 3. For scale 4 no coefficents are necessary. To calculate withholding, apply the tax rate to earnings, ignoring any cents in earnings and in the
A41: withholding result.
A42: 4. Scales 1 and 2 apply whether or not the employee is entitled to any leave loading.
A43: 5. Tax offsets may be allowed only where scales 2, 5 or 6 are applied.
A44: 6. Scales 1, 2, 4 and 6 incorporate the Medicare levy. Scale 4 incorporates the Medicare levy for residents only.
A45: 7. For scale 2 no Medicare levy is payable by a person whose taxable income for the year is $21,655 ($416 per week) or less. Where the
A46: taxable income exceeds $21,655 but is less than $27,068 ($520 per week), the levy is shaded in at the rate of 10% of the
A47: excess over $21,655. Where a person's taxable income is $27,068 ($520 per week) or more, Medicare is levied at the rate of
A48: 2.00% of total taxable income.
A49: 8. The Medicare levy is also shaded in for Scale 6. The Medicare levy parameters for Scales 2 and 6 are as follows:
A51: Medicare Levy Parameters
E52: Scale 2 | H52: Scale 6
F53: NEW | I53: NEW
A54: Weekly earnings threshold | F54: 416 | I54: 702
A55: Weekly earnings shade-in threshold | F55: 520 | I55: 878
A56: Medicare levy family threshold | F56: 36541 | I56: 36541
A57: Weekly family threshold divisor | F57: 52 | I57: 52
A58: Additional child | F58: 3356 | I58: 3356
A59: Shading out point multiplier | F59: 0.1 | I59: 0.05
A60: Shading out point divisor | F60: 0.08 | I60: 0.04
A61: Weekly levy adjustment factor | F61: 416.44 | I61: 702.71
A62: Medicare levy | F62: 0.02 | I62: 0.01

Sheet Summary
E2: Gross Pay Estimate - Fortnightly Wages | O2: Entity Name | V2: HIDE
E3: =CONCATENATE("Annual & Quarterly Summary for the Year Ended ",TEXT(Month12End,"mmmm yyyy")) -> Annual & Quarterly Summary for the Year Ended June 2018 | O3: Preparer Name | V3: Rolling Forward
V4: ATO link all tabs | W4: Done2018
V6: First day of year | W6: 2017-07-01
G7: Jul | H7: Aug | I7: Sep | K7: Oct | L7: Nov | M7: Dec | O7: Jan | P7: Feb | Q7: Mar | V7: Update rates tab | W7: Done2018
G8: =CONCATENATE("Quarter Ended ",TEXT(Month3End,"dd mmmm yyyy")) -> Quarter Ended 30 September 2017 | K8: =CONCATENATE("Quarter Ended ",TEXT(Month6End,"dd mmmm yyyy")) -> Quarter Ended 31 December 2017 | O8: =CONCATENATE("Quarter Ended ",TEXT(Month9End,"dd mmmm yyyy")) -> Quarter Ended 31 March 2018 | V8: DO NOT CHECK MONTHLY SHEETS
V9: Date Control
G10: Gross | H10: Tax | I10: Net | K10: Gross | L10: Tax | M10: Net | O10: Gross | P10: Tax | Q10: Net | V10: =W6 -> 2017-07-01 | W10: =EOMONTH(V10,0) -> 2017-07-31
E11: Employee 1 Name | G11: =Jul!K14+Aug!K14+Sep!K14 -> 0 | H11: =Jul!K13+Aug!K13+Sep!K13 -> 0 | I11: =G11-H11 -> 0 | K11: =Oct!K14+Nov!K14+Dec!K14 -> 0 | L11: =Oct!K13+Nov!K13+Dec!K13 -> 0 | M11: =K11-L11 -> 0 | O11: =Jan!K14+Feb!K14+Mar!K14 -> 0 | P11: =Jan!K13+Feb!K13+Mar!K13 -> 0 | Q11: =O11-P11 -> 0 | V11: =W10+1 -> 2017-08-01 | W11: =EOMONTH(V11,0) -> 2017-08-31
E12: Employee 2 Name | G12: =Jul!K22+Aug!K22+Sep!K22 -> 0 | H12: =Jul!K21+Aug!K21+Sep!K21 -> 0 | I12: =G12-H12 -> 0 | K12: =Oct!K22+Nov!K22+Dec!K22 -> 0 | L12: =Oct!K21+Nov!K21+Dec!K21 -> 0 | M12: =K12-L12 -> 0 | O12: =Jan!K22+Feb!K22+Mar!K22 -> 0 | P12: =Jan!K21+Feb!K21+Mar!K21 -> 0 | Q12: =O12-P12 -> 0 | V12: =W11+1 -> 2017-09-01 | W12: =EOMONTH(V12,0) -> 2017-09-30
E13: Employee 3 Name | G13: =Jul!K30+Aug!K30+Sep!K30 -> 0 | H13: =Jul!K29+Aug!K29+Sep!K29 -> 0 | I13: 0 | K13: =Oct!K30+Nov!K30+Dec!K30 -> 0 | L13: =Oct!K29+Nov!K29+Dec!K29 -> 0 | M13: 0 | O13: =Jan!K30+Feb!K30+Mar!K30 -> 0 | P13: =Jan!K29+Feb!K29+Mar!K29 -> 0 | Q13: 0 | V13: 2017-10-01 | W13: 2017-10-31
E14: Employee 4 Name | G14: =Jul!K38+Aug!K38+Sep!K38 -> 0 | H14: =Jul!K37+Aug!K37+Sep!K37 -> 0 | I14: 0 | K14: =Oct!K38+Nov!K38+Dec!K38 -> 0 | L14: =Oct!K37+Nov!K37+Dec!K37 -> 0 | M14: 0 | O14: =Jan!K38+Feb!K38+Mar!K38 -> 0 | P14: =Jan!K37+Feb!K37+Mar!K37 -> 0 | Q14: 0 | V14: 2017-11-01 | W14: 2017-11-30
E15: Employee 5 Name | G15: =Jul!K46+Aug!K46+Sep!K46 -> 0 | H15: =Jul!K45+Aug!K45+Sep!K45 -> 0 | I15: 0 | K15: =Oct!K46+Nov!K46+Dec!K46 -> 0 | L15: =Oct!K45+Nov!K45+Dec!K45 -> 0 | M15: 0 | O15: =Jan!K46+Feb!K46+Mar!K46 -> 0 | P15: =Jan!K45+Feb!K45+Mar!K45 -> 0 | Q15: 0 | V15: 2017-12-01 | W15: 2017-12-31
E16: Employee 6 Name | G16: =Jul!K54+Aug!K54+Sep!K54 -> 0 | H16: =Jul!K53+Aug!K53+Sep!K53 -> 0 | I16: 0 | K16: =Oct!K54+Nov!K54+Dec!K54 -> 0 | L16: =Oct!K53+Nov!K53+Dec!K53 -> 0 | M16: 0 | O16: =Jan!K54+Feb!K54+Mar!K54 -> 0 | P16: =Jan!K53+Feb!K53+Mar!K53 -> 0 | Q16: 0 | V16: =W15+1 -> 2018-01-01 | W16: 2018-01-31
E17: Employee 7 Name | G17: =Jul!K62+Aug!K62+Sep!K62 -> 0 | H17: =Jul!K61+Aug!K61+Sep!K61 -> 0 | I17: 0 | K17: =Oct!K62+Nov!K62+Dec!K62 -> 0 | L17: =Oct!K61+Nov!K61+Dec!K61 -> 0 | M17: 0 | O17: =Jan!K62+Feb!K62+Mar!K62 -> 0 | P17: =Jan!K61+Feb!K61+Mar!K61 -> 0 | Q17: 0 | V17: 2018-02-01 | W17: 2018-02-28
E18: Employee 8 Name | G18: =Jul!K70+Aug!K70+Sep!K70 -> 0 | H18: =Jul!K69+Aug!K69+Sep!K69 -> 0 | I18: 0 | K18: =Oct!K70+Nov!K70+Dec!K70 -> 0 | L18: =Oct!K69+Nov!K69+Dec!K69 -> 0 | M18: 0 | O18: =Jan!K70+Feb!K70+Mar!K70 -> 0 | P18: =Jan!K69+Feb!K69+Mar!K69 -> 0 | Q18: 0 | V18: 2018-03-01 | W18: 2018-03-31
E19: Employee 9 Name | G19: =Jul!K78+Aug!K78+Sep!K78 -> 0 | H19: =Jul!K77+Aug!K77+Sep!K77 -> 0 | I19: 0 | K19: =Oct!K78+Nov!K78+Dec!K78 -> 0 | L19: =Oct!K77+Nov!K77+Dec!K77 -> 0 | M19: 0 | O19: =Jan!K78+Feb!K78+Mar!K78 -> 0 | P19: =Jan!K77+Feb!K77+Mar!K77 -> 0 | Q19: 0 | V19: 2018-04-01 | W19: 2018-04-30
E20: Employee 10 Name | G20: =Jul!K86+Aug!K86+Sep!K86 -> 0 | H20: =Jul!K85+Aug!K85+Sep!K85 -> 0 | I20: 0 | K20: =Oct!K86+Nov!K86+Dec!K86 -> 0 | L20: =Oct!K85+Nov!K85+Dec!K85 -> 0 | M20: 0 | O20: =Jan!K86+Feb!K86+Mar!K86 -> 0 | P20: =Jan!K85+Feb!K85+Mar!K85 -> 0 | Q20: 0 | V20: 2018-05-01 | W20: 2018-05-31
E21: Totals | G21: =SUM(G11:G20) -> 0 | H21: =SUM(H11:H20) -> 0 | I21: =SUM(I11:I20) -> 0 | K21: =SUM(K11:K20) -> 0 | L21: =SUM(L11:L20) -> 0 | M21: =SUM(M11:M20) -> 0 | O21: =SUM(O11:O20) -> 0 | P21: =SUM(P11:P20) -> 0 | Q21: =SUM(Q11:Q20) -> 0 | V21: 2018-06-01 | W21: 2018-06-30
G24: Apr | H24: May | I24: Jun
G25: =CONCATENATE("Quarter Ended ",TEXT(Month12End,"dd mmmm yyyy")) -> Quarter Ended 30 June 2018 | K25: =CONCATENATE("Year Ended ",TEXT(Month12End,"dd mmmm yyyy")) -> Year Ended 30 June 2018
G27: Gross | H27: Tax | I27: Net | K27: Gross | L27: Tax | M27: Net
E28: =E11 -> Employee 1 Name | G28: =Apr!K14+May!K14+Jun!K14 -> 0 | H28: =Apr!K13+May!K13+Jun!K13 -> 0 | I28: =G28-+H28 -> 0 | K28: =G11+K11+O11+G28 -> 0 | L28: =H11+L11+P11+H28 -> 0 | M28: =K28-L28 -> 0 | O28: PAYG withholding calculations are for payments of fortnightly wages to resident individuals who have quoted their TFN and are not claiming any Medicare Levy exemption or reduction
E29: Employee 2 Name | G29: =Apr!K22+May!K22+Jun!K22 -> 0 | H29: =Apr!K21+May!K21+Jun!K21 -> 0 | I29: =G29-+H29 -> 0 | K29: =G12+K12+O12+G29 -> 0 | L29: =H12+L12+P12+H29 -> 0 | M29: =K29-L29 -> 0
E30: Employee 3 Name | G30: =Apr!K30+May!K30+Jun!K30 -> 0 | H30: =Apr!K29+May!K29+Jun!K29 -> 0 | I30: 0 | K30: 0 | L30: 0 | M30: 0
E31: Employee 4 Name | G31: =Apr!K38+May!K38+Jun!K38 -> 0 | H31: =Apr!K37+May!K37+Jun!K37 -> 0 | I31: 0 | K31: 0 | L31: 0 | M31: 0
E32: Employee 5 Name | G32: =Apr!K46+May!K46+Jun!K46 -> 0 | H32: =Apr!K45+May!K45+Jun!K45 -> 0 | I32: 0 | K32: 0 | L32: 0 | M32: 0
E33: Employee 6 Name | G33: =Apr!K54+May!K54+Jun!K54 -> 0 | H33: =Apr!K53+May!K53+Jun!K53 -> 0 | I33: 0 | K33: 0 | L33: 0 | M33: 0
E34: Employee 7 Name | G34: =Apr!K62+May!K62+Jun!K62 -> 0 | H34: =Apr!K61+May!K61+Jun!K61 -> 0 | I34: 0 | K34: 0 | L34: 0 | M34: 0
E35: Employee 8 Name | G35: =Apr!K70+May!K70+Jun!K70 -> 0 | H35: =Apr!K69+May!K69+Jun!K69 -> 0 | I35: 0 | K35: 0 | L35: 0 | M35: 0
E36: Employee 9 Name | G36: =Apr!K78+May!K78+Jun!K78 -> 0 | H36: =Apr!K77+May!K77+Jun!K77 -> 0 | I36: 0 | K36: 0 | L36: 0 | M36: 0
E37: Employee 10 Name | G37: =Apr!K86+May!K86+Jun!K86 -> 0 | H37: =Apr!K85+May!K85+Jun!K85 -> 0 | I37: 0 | K37: 0 | L37: 0 | M37: 0
E38: Totals | G38: =SUM(G28:G37) -> 0 | H38: =SUM(H28:H37) -> 0 | I38: =SUM(I28:I37) -> 0 | K38: =SUM(K28:K37) -> 0 | L38: =SUM(L28:L37) -> 0 | M38: =SUM(M28:M37) -> 0

Sheet Jul
E1: Claim Tax Free Threshold | K1: =Summary!O2 -> Entity Name | O1: HIDE
E2: =CONCATENATE("Wages for ",TEXT(Month1End,"mmmm yyyy")) -> Wages for July 2017 | K2: =Summary!O3 -> Preparer Name
F5: Wages for Fortnight Ended
K7: Total
C8: 1 | E8: =Summary!E11 -> Employee 1 Name | O8: =IF(OR(K10<>0,K11<>0,K12<>0,K13<>0,K14<>0),0,"blank") -> blank
E9: Select | O9: =O8 -> blank
E10: Wages Paid from Accounting Records | K10: =SUM(F10:J10) -> 0 | O10: =O9 -> blank
E11: Less PAYG Withholding Payments to the ATO (if incl above) | K11: =SUM(F11:J11) -> 0 | O11: blank
E12: Net Wages | F12: =F10-F11 -> 0 | G12: =G10-G11 -> 0 | H12: 0 | I12: 0 | J12: 0 | K12: =SUM(F12:J12) -> 0 | O12: blank
E13: Add PAYG Withholding | F13: =IF(E9<>"Select",F14-F12,0) -> 0 | G13: =IF(E9<>"Select",G14-G12,0) -> 0 | H13: =IF(E9<>"Select",H14-H12,0) -> 0 | I13: =IF(E9<>"Select",I14-I12,0) -> 0 | J13: =IF(E9<>"Select",J14-J12,0) -> 0 | K13: =SUM(F13:J13) -> 0 | O13: blank
E14: Gross Wages | F14: =IF(E9<>"Select",(ROUND((ROUNDDOWN(F12/2,0)+(0.99*VLOOKUP(ROUNDDOWN(F12/2,0),IF(E9="Claim Tax Free Threshold",NEWPAYGW.TFT,NEWPAYGW.NOTFT),4))-VLOOKUP(ROUNDDOWN(F12/2,0),IF(E9="Claim Tax Free Threshold",NEWPAYGW.TFT,NEWPAYGW.NOTFT),5))/(1-VLOOKUP(ROUNDDOWN(F12/2,0),IF(E9="Claim Tax Free Threshold",NEWPAYGW.TFT,NEWPAYGW.NOTFT),4)),0))*2,0) -> 0 | G14: =IF(E9<>"Select",(ROUND((ROUNDDOWN(G12/2,0)+(0.99*VLOOKUP(ROUNDDOWN(G12/2,0),IF(E9="Claim Tax Free Threshold",NEWPAYGW.TFT,NEWPAYGW.NOTFT),4))-VLOOKUP(ROUNDDOWN(G12/2,0),IF(E9="Claim Tax Free Threshold",NEWPAYGW.TFT,NEWPAYGW.NOTFT),5))/(1-VLOOKUP(ROUNDDOWN(G12/2,0),IF(E9="Claim Tax Free Threshold",NEWPAYGW.TFT,NEWPAYGW.NOTFT),4)),0))*2,0) -> 0 | H14: =IF(E9<>"Select",(ROUND((ROUNDDOWN(H12/2,0)+(0.99*VLOOKUP(ROUNDDOWN(H12/2,0),IF(E9="Claim Tax Free Threshold",NEWPAYGW.TFT,NEWPAYGW.NOTFT),4))-VLOOKUP(ROUNDDOWN(H12/2,0),IF(E9="Claim Tax Free Threshold",NEWPAYGW.TFT,NEWPAYGW.NOTFT),5))/(1-VLOOKUP(ROUNDDOWN(H12/2,0),IF(E9="Claim Tax Free Threshold",NEWPAYGW.TFT,NEWPAYGW.NOTFT),4)),0))*2,0) -> 0 | I14: =IF(E9<>"Select",(ROUND((ROUNDDOWN(I12/2,0)+(0.99*VLOOKUP(ROUNDDOWN(I12/2,0),IF(E9="Claim Tax Free Threshold",NEWPAYGW.TFT,NEWPAYGW.NOTFT),4))-VLOOKUP(ROUNDDOWN(I12/2,0),IF(E9="Claim Tax Free Threshold",NEWPAYGW.TFT,NEWPAYGW.NOTFT),5))/(1-VLOOKUP(ROUNDDOWN(I12/2,0),IF(E9="Claim Tax Free Threshold",NEWPAYGW.TFT,NEWPAYGW.NOTFT),4)),0))*2,0) -> 0 | J14: =IF(E9<>"Select",(ROUND((ROUNDDOWN(J12/2,0)+(0.99*VLOOKUP(ROUNDDOWN(J12/2,0),IF(E9="Claim Tax Free Threshold",NEWPAYGW.TFT,NEWPAYGW.NOTFT),4))-VLOOKUP(ROUNDDOWN(J12/2,0),IF(E9="Claim Tax Free Threshold",NEWPAYGW.TFT,NEWPAYGW.NOTFT),5))/(1-VLOOKUP(ROUNDDOWN(J12/2,0),IF(E9="Claim Tax Free Threshold",NEWPAYGW.TFT,NEWPAYGW.NOTFT),4)),0))*2,0) -> 0 | K14: =SUM(F14:J14) -> 0 | O14: blank
O15: blank
C16: 2 | E16: =Summary!E12 -> Employee 2 Name | O16: =IF(OR(K18<>0,K19<>0,K20<>0,K21<>0,K22<>0),0,"blank") -> blank
E17: Select | O17: =O16 -> blank
E18: Wages Paid from Accounting Records | K18: =SUM(F18:J18) -> 0 | O18: =O17 -> blank
E19: Less PAYG Withholding Payments to the ATO (if incl above) | K19: =SUM(F19:J19) -> 0 | O19: blank
E20: Net Wages | F20: =F18-F19 -> 0 | G20: =G18-G19 -> 0 | H20: =H18-H19 -> 0 | I20: =I18-I19 -> 0 | J20: =J18-J19 -> 0 | K20: =SUM(F20:J20) -> 0 | O20: blank
E21: Add PAYG Withholding | F21: =IF(E17<>"Select",F22-F20,0) -> 0 | G21: =IF(E17<>"Select",G22-G20,0) -> 0 | H21: =IF(E17<>"Select",H22-H20,0) -> 0 | I21: =IF(E17<>"Select",I22-I20,0) -> 0 | J21: =IF(E17<>"Select",J22-J20,0) -> 0 | K21: =SUM(F21:J21) -> 0 | O21: blank
E22: Gross Wages | F22: =IF(E17<>"Select",(ROUND((ROUNDDOWN(F20/2,0)+(0.99*VLOOKUP(ROUNDDOWN(F20/2,0),IF(E17="Claim Tax Free Threshold",NEWPAYGW.TFT,NEWPAYGW.NOTFT),4))-VLOOKUP(ROUNDDOWN(F20/2,0),IF(E17="Claim Tax Free Threshold",NEWPAYGW.TFT,NEWPAYGW.NOTFT),5))/(1-VLOOKUP(ROUNDDOWN(F20/2,0),IF(E17="Claim Tax Free Threshold",NEWPAYGW.TFT,NEWPAYGW.NOTFT),4)),0))*2,0) -> 0 | G22: =IF(E17<>"Select",(ROUND((ROUNDDOWN(G20/2,0)+(0.99*VLOOKUP(ROUNDDOWN(G20/2,0),IF(E17="Claim Tax Free Threshold",NEWPAYGW.TFT,NEWPAYGW.NOTFT),4))-VLOOKUP(ROUNDDOWN(G20/2,0),IF(E17="Claim Tax Free Threshold",NEWPAYGW.TFT,NEWPAYGW.NOTFT),5))/(1-VLOOKUP(ROUNDDOWN(G20/2,0),IF(E17="Claim Tax Free Threshold",NEWPAYGW.TFT,NEWPAYGW.NOTFT),4)),0))*2,0) -> 0 | H22: =IF(E17<>"Select",(ROUND((ROUNDDOWN(H20/2,0)+(0.99*VLOOKUP(ROUNDDOWN(H20/2,0),IF(E17="Claim Tax Free Threshold",NEWPAYGW.TFT,NEWPAYGW.NOTFT),4))-VLOOKUP(ROUNDDOWN(H20/2,0),IF(E17="Claim Tax Free Threshold",NEWPAYGW.TFT,NEWPAYGW.NOTFT),5))/(1-VLOOKUP(ROUNDDOWN(H20/2,0),IF(E17="Claim Tax Free Threshold",NEWPAYGW.TFT,NEWPAYGW.NOTFT),4)),0))*2,0) -> 0 | I22: =IF(E17<>"Select",(ROUND((ROUNDDOWN(I20/2,0)+(0.99*VLOOKUP(ROUNDDOWN(I20/2,0),IF(E17="Claim Tax Free Threshold",NEWPAYGW.TFT,NEWPAYGW.NOTFT),4))-VLOOKUP(ROUNDDOWN(I20/2,0),IF(E17="Claim Tax Free Threshold",NEWPAYGW.TFT,NEWPAYGW.NOTFT),5))/(1-VLOOKUP(ROUNDDOWN(I20/2,0),IF(E17="Claim Tax Free Threshold",NEWPAYGW.TFT,NEWPAYGW.NOTFT),4)),0))*2,0) -> 0 | J22: =IF(E17<>"Select",(ROUND((ROUNDDOWN(J20/2,0)+(0.99*VLOOKUP(ROUNDDOWN(J20/2,0),IF(E17="Claim Tax Free Threshold",NEWPAYGW.TFT,NEWPAYGW.NOTFT),4))-VLOOKUP(ROUNDDOWN(J20/2,0),IF(E17="Claim Tax Free Threshold",NEWPAYGW.TFT,NEWPAYGW.NOTFT),5))/(1-VLOOKUP(ROUNDDOWN(J20/2,0),IF(E17="Claim Tax Free Threshold",NEWPAYGW.TFT,NEWPAYGW.NOTFT),4)),0))*2,0) -> 0 | K22: =SUM(F22:J22) -> 0 | O22: blank
O23: blank
C24: 3 | E24: =Summary!E13 -> Employee 3 Name | O24: =IF(OR(K26<>0,K27<>0,K28<>0,K29<>0,K30<>0),0,"blank") -> blank
E25: Select | O25: =O24 -> blank
E26: Wages Paid from Accounting Records | K26: =SUM(F26:J26) -> 0 | O26: =O25 -> blank
E27: Less PAYG Withholding Payments to the ATO (if incl above) | K27: =SUM(F27:J27) -> 0 | O27: blank
E28: Net Wages | F28: =F26-F27 -> 0 | G28: =G26-G27 -> 0 | H28: =H26-H27 -> 0 | I28: =I26-I27 -> 0 | J28: =J26-J27 -> 0 | K28: =SUM(F28:J28) -> 0 | O28: blank
E29: Add PAYG Withholding | F29: =IF(E25<>"Select",F30-F28,0) -> 0 | G29: =IF(E25<>"Select",G30-G28,0) -> 0 | H29: =IF(E25<>"Select",H30-H28,0) -> 0 | I29: =IF(E25<>"Select",I30-I28,0) -> 0 | J29: =IF(E25<>"Select",J30-J28,0) -> 0 | K29: =SUM(F29:J29) -> 0 | O29: blank
E30: Gross Wages | F30: =IF(E25<>"Select",(ROUND((ROUNDDOWN(F28/2,0)+(0.99*VLOOKUP(ROUNDDOWN(F28/2,0),IF(E25="Claim Tax Free Threshold",NEWPAYGW.TFT,NEWPAYGW.NOTFT),4))-VLOOKUP(ROUNDDOWN(F28/2,0),IF(E25="Claim Tax Free Threshold",NEWPAYGW.TFT,NEWPAYGW.NOTFT),5))/(1-VLOOKUP(ROUNDDOWN(F28/2,0),IF(E25="Claim Tax Free Threshold",NEWPAYGW.TFT,NEWPAYGW.NOTFT),4)),0))*2,0) -> 0 | G30: =IF(E25<>"Select",(ROUND((ROUNDDOWN(G28/2,0)+(0.99*VLOOKUP(ROUNDDOWN(G28/2,0),IF(E25="Claim Tax Free Threshold",NEWPAYGW.TFT,NEWPAYGW.NOTFT),4))-VLOOKUP(ROUNDDOWN(G28/2,0),IF(E25="Claim Tax Free Threshold",NEWPAYGW.TFT,NEWPAYGW.NOTFT),5))/(1-VLOOKUP(ROUNDDOWN(G28/2,0),IF(E25="Claim Tax Free Threshold",NEWPAYGW.TFT,NEWPAYGW.NOTFT),4)),0))*2,0) -> 0 | H30: =IF(E25<>"Select",(ROUND((ROUNDDOWN(H28/2,0)+(0.99*VLOOKUP(ROUNDDOWN(H28/2,0),IF(E25="Claim Tax Free Threshold",NEWPAYGW.TFT,NEWPAYGW.NOTFT),4))-VLOOKUP(ROUNDDOWN(H28/2,0),IF(E25="Claim Tax Free Threshold",NEWPAYGW.TFT,NEWPAYGW.NOTFT),5))/(1-VLOOKUP(ROUNDDOWN(H28/2,0),IF(E25="Claim Tax Free Threshold",NEWPAYGW.TFT,NEWPAYGW.NOTFT),4)),0))*2,0) -> 0 | I30: =IF(E25<>"Select",(ROUND((ROUNDDOWN(I28/2,0)+(0.99*VLOOKUP(ROUNDDOWN(I28/2,0),IF(E25="Claim Tax Free Threshold",NEWPAYGW.TFT,NEWPAYGW.NOTFT),4))-VLOOKUP(ROUNDDOWN(I28/2,0),IF(E25="Claim Tax Free Threshold",NEWPAYGW.TFT,NEWPAYGW.NOTFT),5))/(1-VLOOKUP(ROUNDDOWN(I28/2,0),IF(E25="Claim Tax Free Threshold",NEWPAYGW.TFT,NEWPAYGW.NOTFT),4)),0))*2,0) -> 0 | J30: =IF(E25<>"Select",(ROUND((ROUNDDOWN(J28/2,0)+(0.99*VLOOKUP(ROUNDDOWN(J28/2,0),IF(E25="Claim Tax Free Threshold",NEWPAYGW.TFT,NEWPAYGW.NOTFT),4))-VLOOKUP(ROUNDDOWN(J28/2,0),IF(E25="Claim Tax Free Threshold",NEWPAYGW.TFT,NEWPAYGW.NOTFT),5))/(1-VLOOKUP(ROUNDDOWN(J28/2,0),IF(E25="Claim Tax Free Threshold",NEWPAYGW.TFT,NEWPAYGW.NOTFT),4)),0))*2,0) -> 0 | K30: =SUM(F30:J30) -> 0 | O30: blank
O31: blank
C32: 4 | E32: =Summary!E14 -> Employee 4 Name | O32: =IF(OR(K34<>0,K35<>0,K36<>0,K37<>0,K38<>0),0,"blank") -> blank
E33: Select | O33: =O32 -> blank
E34: Wages Paid from Accounting Records | K34: =SUM(F34:J34) -> 0 | O34: =O33 -> blank
E35: Less PAYG Withholding Payments to the ATO (if incl above) | K35: =SUM(F35:J35) -> 0 | O35: blank
E36: Net Wages | F36: =F34-F35 -> 0 | G36: =G34-G35 -> 0 | H36: =H34-H35 -> 0 | I36: =I34-I35 -> 0 | J36: =J34-J35 -> 0 | K36: =SUM(F36:J36) -> 0 | O36: blank
E37: Add PAYG Withholding | F37: =IF(E33<>"Select",F38-F36,0) -> 0 | G37: =IF(E33<>"Select",G38-G36,0) -> 0 | H37: =IF(E33<>"Select",H38-H36,0) -> 0 | I37: =IF(E33<>"Select",I38-I36,0) -> 0 | J37: =IF(E33<>"Select",J38-J36,0) -> 0 | K37: =SUM(F37:J37) -> 0 | O37: blank
E38: Gross Wages | F38: =IF(E33<>"Select",(ROUND((ROUNDDOWN(F36/2,0)+(0.99*VLOOKUP(ROUNDDOWN(F36/2,0),IF(E33="Claim Tax Free Threshold",NEWPAYGW.TFT,NEWPAYGW.NOTFT),4))-VLOOKUP(ROUNDDOWN(F36/2,0),IF(E33="Claim Tax Free Threshold",NEWPAYGW.TFT,NEWPAYGW.NOTFT),5))/(1-VLOOKUP(ROUNDDOWN(F36/2,0),IF(E33="Claim Tax Free Threshold",NEWPAYGW.TFT,NEWPAYGW.NOTFT),4)),0))*2,0) -> 0 | G38: =IF(E33<>"Select",(ROUND((ROUNDDOWN(G36/2,0)+(0.99*VLOOKUP(ROUNDDOWN(G36/2,0),IF(E33="Claim Tax Free Threshold",NEWPAYGW.TFT,NEWPAYGW.NOTFT),4))-VLOOKUP(ROUNDDOWN(G36/2,0),IF(E33="Claim Tax Free Threshold",NEWPAYGW.TFT,NEWPAYGW.NOTFT),5))/(1-VLOOKUP(ROUNDDOWN(G36/2,0),IF(E33="Claim Tax Free Threshold",NEWPAYGW.TFT,NEWPAYGW.NOTFT),4)),0))*2,0) -> 0 | H38: =IF(E33<>"Select",(ROUND((ROUNDDOWN(H36/2,0)+(0.99*VLOOKUP(ROUNDDOWN(H36/2,0),IF(E33="Claim Tax Free Threshold",NEWPAYGW.TFT,NEWPAYGW.NOTFT),4))-VLOOKUP(ROUNDDOWN(H36/2,0),IF(E33="Claim Tax Free Threshold",NEWPAYGW.TFT,NEWPAYGW.NOTFT),5))/(1-VLOOKUP(ROUNDDOWN(H36/2,0),IF(E33="Claim Tax Free Threshold",NEWPAYGW.TFT,NEWPAYGW.NOTFT),4)),0))*2,0) -> 0 | I38: =IF(E33<>"Select",(ROUND((ROUNDDOWN(I36/2,0)+(0.99*VLOOKUP(ROUNDDOWN(I36/2,0),IF(E33="Claim Tax Free Threshold",NEWPAYGW.TFT,NEWPAYGW.NOTFT),4))-VLOOKUP(ROUNDDOWN(I36/2,0),IF(E33="Claim Tax Free Threshold",NEWPAYGW.TFT,NEWPAYGW.NOTFT),5))/(1-VLOOKUP(ROUNDDOWN(I36/2,0),IF(E33="Claim Tax Free Threshold",NEWPAYGW.TFT,NEWPAYGW.NOTFT),4)),0))*2,0) -> 0 | J38: =IF(E33<>"Select",(ROUND((ROUNDDOWN(J36/2,0)+(0.99*VLOOKUP(ROUNDDOWN(J36/2,0),IF(E33="Claim Tax Free Threshold",NEWPAYGW.TFT,NEWPAYGW.NOTFT),4))-VLOOKUP(ROUNDDOWN(J36/2,0),IF(E33="Claim Tax Free Threshold",NEWPAYGW.TFT,NEWPAYGW.NOTFT),5))/(1-VLOOKUP(ROUNDDOWN(J36/2,0),IF(E33="Claim Tax Free Threshold",NEWPAYGW.TFT,NEWPAYGW.NOTFT),4)),0))*2,0) -> 0 | K38: =SUM(F38:J38) -> 0 | O38: blank
O39: blank
C40: 5 | E40: =Summary!E15 -> Employee 5 Name | O40: =IF(OR(K42<>0,K43<>0,K44<>0,K45<>0,K46<>0),0,"blank") -> blank
E41: Select | O41: =O40 -> blank
E42: Wages Paid from Accounting Records | K42: =SUM(F42:J42) -> 0 | O42: =O41 -> blank
E43: Less PAYG Withholding Payments to the ATO (if incl above) | K43: =SUM(F43:J43) -> 0 | O43: blank
E44: Net Wages | F44: =F42-F43 -> 0 | G44: =G42-G43 -> 0 | H44: =H42-H43 -> 0 | I44: =I42-I43 -> 0 | J44: =J42-J43 -> 0 | K44: =SUM(F44:J44) -> 0 | O44: blank
E45: Add PAYG Withholding | F45: =IF(E41<>"Select",F46-F44,0) -> 0 | G45: =IF(E41<>"Select",G46-G44,0) -> 0 | H45: =IF(E41<>"Select",H46-H44,0) -> 0 | I45: =IF(E41<>"Select",I46-I44,0) -> 0 | J45: =IF(E41<>"Select",J46-J44,0) -> 0 | K45: =SUM(F45:J45) -> 0 | O45: blank
E46: Gross Wages | F46: =IF(E41<>"Select",(ROUND((ROUNDDOWN(F44/2,0)+(0.99*VLOOKUP(ROUNDDOWN(F44/2,0),IF(E41="Claim Tax Free Threshold",NEWPAYGW.TFT,NEWPAYGW.NOTFT),4))-VLOOKUP(ROUNDDOWN(F44/2,0),IF(E41="Claim Tax Free Threshold",NEWPAYGW.TFT,NEWPAYGW.NOTFT),5))/(1-VLOOKUP(ROUNDDOWN(F44/2,0),IF(E41="Claim Tax Free Threshold",NEWPAYGW.TFT,NEWPAYGW.NOTFT),4)),0))*2,0) -> 0 | G46: =IF(E41<>"Select",(ROUND((ROUNDDOWN(G44/2,0)+(0.99*VLOOKUP(ROUNDDOWN(G44/2,0),IF(E41="Claim Tax Free Threshold",NEWPAYGW.TFT,NEWPAYGW.NOTFT),4))-VLOOKUP(ROUNDDOWN(G44/2,0),IF(E41="Claim Tax Free Threshold",NEWPAYGW.TFT,NEWPAYGW.NOTFT),5))/(1-VLOOKUP(ROUNDDOWN(G44/2,0),IF(E41="Claim Tax Free Threshold",NEWPAYGW.TFT,NEWPAYGW.NOTFT),4)),0))*2,0) -> 0 | H46: =IF(E41<>"Select",(ROUND((ROUNDDOWN(H44/2,0)+(0.99*VLOOKUP(ROUNDDOWN(H44/2,0),IF(E41="Claim Tax Free Threshold",NEWPAYGW.TFT,NEWPAYGW.NOTFT),4))-VLOOKUP(ROUNDDOWN(H44/2,0),IF(E41="Claim Tax Free Threshold",NEWPAYGW.TFT,NEWPAYGW.NOTFT),5))/(1-VLOOKUP(ROUNDDOWN(H44/2,0),IF(E41="Claim Tax Free Threshold",NEWPAYGW.TFT,NEWPAYGW.NOTFT),4)),0))*2,0) -> 0 | I46: =IF(E41<>"Select",(ROUND((ROUNDDOWN(I44/2,0)+(0.99*VLOOKUP(ROUNDDOWN(I44/2,0),IF(E41="Claim Tax Free Threshold",NEWPAYGW.TFT,NEWPAYGW.NOTFT),4))-VLOOKUP(ROUNDDOWN(I44/2,0),IF(E41="Claim Tax Free Threshold",NEWPAYGW.TFT,NEWPAYGW.NOTFT),5))/(1-VLOOKUP(ROUNDDOWN(I44/2,0),IF(E41="Claim Tax Free Threshold",NEWPAYGW.TFT,NEWPAYGW.NOTFT),4)),0))*2,0) -> 0 | J46: =IF(E41<>"Select",(ROUND((ROUNDDOWN(J44/2,0)+(0.99*VLOOKUP(ROUNDDOWN(J44/2,0),IF(E41="Claim Tax Free Threshold",NEWPAYGW.TFT,NEWPAYGW.NOTFT),4))-VLOOKUP(ROUNDDOWN(J44/2,0),IF(E41="Claim Tax Free Threshold",NEWPAYGW.TFT,NEWPAYGW.NOTFT),5))/(1-VLOOKUP(ROUNDDOWN(J44/2,0),IF(E41="Claim Tax Free Threshold",NEWPAYGW.TFT,NEWPAYGW.NOTFT),4)),0))*2,0) -> 0 | K46: =SUM(F46:J46) -> 0 | O46: blank
O47: blank
C48: 6 | E48: =Summary!E16 -> Employee 6 Name | O48: =IF(OR(K50<>0,K51<>0,K52<>0,K53<>0,K54<>0),0,"blank") -> blank
E49: Select | O49: =O48 -> blank
E50: Wages Paid from Accounting Records | K50: =SUM(F50:J50) -> 0 | O50: =O49 -> blank
E51: Less PAYG Withholding Payments to the ATO (if incl above) | K51: =SUM(F51:J51) -> 0 | O51: blank
E52: Net Wages | F52: =F50-F51 -> 0 | G52: =G50-G51 -> 0 | H52: =H50-H51 -> 0 | I52: =I50-I51 -> 0 | J52: =J50-J51 -> 0 | K52: =SUM(F52:J52) -> 0 | O52: blank
E53: Add PAYG Withholding | F53: =IF(E49<>"Select",F54-F52,0) -> 0 | G53: =IF(E49<>"Select",G54-G52,0) -> 0 | H53: =IF(E49<>"Select",H54-H52,0) -> 0 | I53: =IF(E49<>"Select",I54-I52,0) -> 0 | J53: =IF(E49<>"Select",J54-J52,0) -> 0 | K53: =SUM(F53:J53) -> 0 | O53: blank
E54: Gross Wages | F54: =IF(E49<>"Select",(ROUND((ROUNDDOWN(F52/2,0)+(0.99*VLOOKUP(ROUNDDOWN(F52/2,0),IF(E49="Claim Tax Free Threshold",NEWPAYGW.TFT,NEWPAYGW.NOTFT),4))-VLOOKUP(ROUNDDOWN(F52/2,0),IF(E49="Claim Tax Free Threshold",NEWPAYGW.TFT,NEWPAYGW.NOTFT),5))/(1-VLOOKUP(ROUNDDOWN(F52/2,0),IF(E49="Claim Tax Free Threshold",NEWPAYGW.TFT,NEWPAYGW.NOTFT),4)),0))*2,0) -> 0 | G54: =IF(E49<>"Select",(ROUND((ROUNDDOWN(G52/2,0)+(0.99*VLOOKUP(ROUNDDOWN(G52/2,0),IF(E49="Claim Tax Free Threshold",NEWPAYGW.TFT,NEWPAYGW.NOTFT),4))-VLOOKUP(ROUNDDOWN(G52/2,0),IF(E49="Claim Tax Free Threshold",NEWPAYGW.TFT,NEWPAYGW.NOTFT),5))/(1-VLOOKUP(ROUNDDOWN(G52/2,0),IF(E49="Claim Tax Free Threshold",NEWPAYGW.TFT,NEWPAYGW.NOTFT),4)),0))*2,0) -> 0 | H54: =IF(E49<>"Select",(ROUND((ROUNDDOWN(H52/2,0)+(0.99*VLOOKUP(ROUNDDOWN(H52/2,0),IF(E49="Claim Tax Free Threshold",NEWPAYGW.TFT,NEWPAYGW.NOTFT),4))-VLOOKUP(ROUNDDOWN(H52/2,0),IF(E49="Claim Tax Free Threshold",NEWPAYGW.TFT,NEWPAYGW.NOTFT),5))/(1-VLOOKUP(ROUNDDOWN(H52/2,0),IF(E49="Claim Tax Free Threshold",NEWPAYGW.TFT,NEWPAYGW.NOTFT),4)),0))*2,0) -> 0 | I54: =IF(E49<>"Select",(ROUND((ROUNDDOWN(I52/2,0)+(0.99*VLOOKUP(ROUNDDOWN(I52/2,0),IF(E49="Claim Tax Free Threshold",NEWPAYGW.TFT,NEWPAYGW.NOTFT),4))-VLOOKUP(ROUNDDOWN(I52/2,0),IF(E49="Claim Tax Free Threshold",NEWPAYGW.TFT,NEWPAYGW.NOTFT),5))/(1-VLOOKUP(ROUNDDOWN(I52/2,0),IF(E49="Claim Tax Free Threshold",NEWPAYGW.TFT,NEWPAYGW.NOTFT),4)),0))*2,0) -> 0 | J54: =IF(E49<>"Select",(ROUND((ROUNDDOWN(J52/2,0)+(0.99*VLOOKUP(ROUNDDOWN(J52/2,0),IF(E49="Claim Tax Free Threshold",NEWPAYGW.TFT,NEWPAYGW.NOTFT),4))-VLOOKUP(ROUNDDOWN(J52/2,0),IF(E49="Claim Tax Free Threshold",NEWPAYGW.TFT,NEWPAYGW.NOTFT),5))/(1-VLOOKUP(ROUNDDOWN(J52/2,0),IF(E49="Claim Tax Free Threshold",NEWPAYGW.TFT,NEWPAYGW.NOTFT),4)),0))*2,0) -> 0 | K54: =SUM(F54:J54) -> 0 | O54: blank
O55: blank
C56: 7 | E56: =Summary!E17 -> Employee 7 Name | O56: =IF(OR(K58<>0,K59<>0,K60<>0,K61<>0,K62<>0),0,"blank") -> blank
E57: Select | O57: =O56 -> blank
E58: Wages Paid from Accounting Records | K58: =SUM(F58:J58) -> 0 | O58: =O57 -> blank
E59: Less PAYG Withholding Payments to the ATO (if incl above) | K59: =SUM(F59:J59) -> 0 | O59: blank
E60: Net Wages | F60: =F58-F59 -> 0 | G60: =G58-G59 -> 0 | H60: =H58-H59 -> 0 | I60: =I58-I59 -> 0 | J60: =J58-J59 -> 0 | K60: =SUM(F60:J60) -> 0 | O60: blank
E61: Add PAYG Withholding | F61: =IF(E57<>"Select",F62-F60,0) -> 0 | G61: =IF(E57<>"Select",G62-G60,0) -> 0 | H61: =IF(E57<>"Select",H62-H60,0) -> 0 | I61: =IF(E57<>"Select",I62-I60,0) -> 0 | J61: =IF(E57<>"Select",J62-J60,0) -> 0 | K61: =SUM(F61:J61) -> 0 | O61: blank
E62: Gross Wages | F62: =IF(E57<>"Select",(ROUND((ROUNDDOWN(F60/2,0)+(0.99*VLOOKUP(ROUNDDOWN(F60/2,0),IF(E57="Claim Tax Free Threshold",NEWPAYGW.TFT,NEWPAYGW.NOTFT),4))-VLOOKUP(ROUNDDOWN(F60/2,0),IF(E57="Claim Tax Free Threshold",NEWPAYGW.TFT,NEWPAYGW.NOTFT),5))/(1-VLOOKUP(ROUNDDOWN(F60/2,0),IF(E57="Claim Tax Free Threshold",NEWPAYGW.TFT,NEWPAYGW.NOTFT),4)),0))*2,0) -> 0 | G62: =IF(E57<>"Select",(ROUND((ROUNDDOWN(G60/2,0)+(0.99*VLOOKUP(ROUNDDOWN(G60/2,0),IF(E57="Claim Tax Free Threshold",NEWPAYGW.TFT,NEWPAYGW.NOTFT),4))-VLOOKUP(ROUNDDOWN(G60/2,0),IF(E57="Claim Tax Free Threshold",NEWPAYGW.TFT,NEWPAYGW.NOTFT),5))/(1-VLOOKUP(ROUNDDOWN(G60/2,0),IF(E57="Claim Tax Free Threshold",NEWPAYGW.TFT,NEWPAYGW.NOTFT),4)),0))*2,0) -> 0 | H62: =IF(E57<>"Select",(ROUND((ROUNDDOWN(H60/2,0)+(0.99*VLOOKUP(ROUNDDOWN(H60/2,0),IF(E57="Claim Tax Free Threshold",NEWPAYGW.TFT,NEWPAYGW.NOTFT),4))-VLOOKUP(ROUNDDOWN(H60/2,0),IF(E57="Claim Tax Free Threshold",NEWPAYGW.TFT,NEWPAYGW.NOTFT),5))/(1-VLOOKUP(ROUNDDOWN(H60/2,0),IF(E57="Claim Tax Free Threshold",NEWPAYGW.TFT,NEWPAYGW.NOTFT),4)),0))*2,0) -> 0 | I62: =IF(E57<>"Select",(ROUND((ROUNDDOWN(I60/2,0)+(0.99*VLOOKUP(ROUNDDOWN(I60/2,0),IF(E57="Claim Tax Free Threshold",NEWPAYGW.TFT,NEWPAYGW.NOTFT),4))-VLOOKUP(ROUNDDOWN(I60/2,0),IF(E57="Claim Tax Free Threshold",NEWPAYGW.TFT,NEWPAYGW.NOTFT),5))/(1-VLOOKUP(ROUNDDOWN(I60/2,0),IF(E57="Claim Tax Free Threshold",NEWPAYGW.TFT,NEWPAYGW.NOTFT),4)),0))*2,0) -> 0 | J62: =IF(E57<>"Select",(ROUND((ROUNDDOWN(J60/2,0)+(0.99*VLOOKUP(ROUNDDOWN(J60/2,0),IF(E57="Claim Tax Free Threshold",NEWPAYGW.TFT,NEWPAYGW.NOTFT),4))-VLOOKUP(ROUNDDOWN(J60/2,0),IF(E57="Claim Tax Free Threshold",NEWPAYGW.TFT,NEWPAYGW.NOTFT),5))/(1-VLOOKUP(ROUNDDOWN(J60/2,0),IF(E57="Claim Tax Free Threshold",NEWPAYGW.TFT,NEWPAYGW.NOTFT),4)),0))*2,0) -> 0 | K62: =SUM(F62:J62) -> 0 | O62: blank
O63: blank
C64: 8 | E64: =Summary!E18 -> Employee 8 Name | O64: =IF(OR(K66<>0,K67<>0,K68<>0,K69<>0,K70<>0),0,"blank") -> blank
E65: Select | O65: =O64 -> blank
E66: Wages Paid from Accounting Records | K66: =SUM(F66:J66) -> 0 | O66: =O65 -> blank
E67: Less PAYG Withholding Payments to the ATO (if incl above) | K67: =SUM(F67:J67) -> 0 | O67: blank
E68: Net Wages | F68: =F66-F67 -> 0 | G68: =G66-G67 -> 0 | H68: =H66-H67 -> 0 | I68: =I66-I67 -> 0 | J68: =J66-J67 -> 0 | K68: =SUM(F68:J68) -> 0 | O68: blank
E69: Add PAYG Withholding | F69: =IF(E65<>"Select",F70-F68,0) -> 0 | G69: =IF(E65<>"Select",G70-G68,0) -> 0 | H69: =IF(E65<>"Select",H70-H68,0) -> 0 | I69: =IF(E65<>"Select",I70-I68,0) -> 0 | J69: =IF(E65<>"Select",J70-J68,0) -> 0 | K69: =SUM(F69:J69) -> 0 | O69: blank
E70: Gross Wages | F70: =IF(E65<>"Select",(ROUND((ROUNDDOWN(F68/2,0)+(0.99*VLOOKUP(ROUNDDOWN(F68/2,0),IF(E65="Claim Tax Free Threshold",NEWPAYGW.TFT,NEWPAYGW.NOTFT),4))-VLOOKUP(ROUNDDOWN(F68/2,0),IF(E65="Claim Tax Free Threshold",NEWPAYGW.TFT,NEWPAYGW.NOTFT),5))/(1-VLOOKUP(ROUNDDOWN(F68/2,0),IF(E65="Claim Tax Free Threshold",NEWPAYGW.TFT,NEWPAYGW.NOTFT),4)),0))*2,0) -> 0 | G70: =IF(E65<>"Select",(ROUND((ROUNDDOWN(G68/2,0)+(0.99*VLOOKUP(ROUNDDOWN(G68/2,0),IF(E65="Claim Tax Free Threshold",NEWPAYGW.TFT,NEWPAYGW.NOTFT),4))-VLOOKUP(ROUNDDOWN(G68/2,0),IF(E65="Claim Tax Free Threshold",NEWPAYGW.TFT,NEWPAYGW.NOTFT),5))/(1-VLOOKUP(ROUNDDOWN(G68/2,0),IF(E65="Claim Tax Free Threshold",NEWPAYGW.TFT,NEWPAYGW.NOTFT),4)),0))*2,0) -> 0 | H70: =IF(E65<>"Select",(ROUND((ROUNDDOWN(H68/2,0)+(0.99*VLOOKUP(ROUNDDOWN(H68/2,0),IF(E65="Claim Tax Free Threshold",NEWPAYGW.TFT,NEWPAYGW.NOTFT),4))-VLOOKUP(ROUNDDOWN(H68/2,0),IF(E65="Claim Tax Free Threshold",NEWPAYGW.TFT,NEWPAYGW.NOTFT),5))/(1-VLOOKUP(ROUNDDOWN(H68/2,0),IF(E65="Claim Tax Free Threshold",NEWPAYGW.TFT,NEWPAYGW.NOTFT),4)),0))*2,0) -> 0 | I70: =IF(E65<>"Select",(ROUND((ROUNDDOWN(I68/2,0)+(0.99*VLOOKUP(ROUNDDOWN(I68/2,0),IF(E65="Claim Tax Free Threshold",NEWPAYGW.TFT,NEWPAYGW.NOTFT),4))-VLOOKUP(ROUNDDOWN(I68/2,0),IF(E65="Claim Tax Free Threshold",NEWPAYGW.TFT,NEWPAYGW.NOTFT),5))/(1-VLOOKUP(ROUNDDOWN(I68/2,0),IF(E65="Claim Tax Free Threshold",NEWPAYGW.TFT,NEWPAYGW.NOTFT),4)),0))*2,0) -> 0 | J70: =IF(E65<>"Select",(ROUND((ROUNDDOWN(J68/2,0)+(0.99*VLOOKUP(ROUNDDOWN(J68/2,0),IF(E65="Claim Tax Free Threshold",NEWPAYGW.TFT,NEWPAYGW.NOTFT),4))-VLOOKUP(ROUNDDOWN(J68/2,0),IF(E65="Claim Tax Free Threshold",NEWPAYGW.TFT,NEWPAYGW.NOTFT),5))/(1-VLOOKUP(ROUNDDOWN(J68/2,0),IF(E65="Claim Tax Free Threshold",NEWPAYGW.TFT,NEWPAYGW.NOTFT),4)),0))*2,0) -> 0 | K70: =SUM(F70:J70) -> 0 | O70: blank
O71: blank
C72: 9 | E72: =Summary!E19 -> Employee 9 Name | O72: =IF(OR(K74<>0,K75<>0,K76<>0,K77<>0,K78<>0),0,"blank") -> blank
E73: Select | O73: =O72 -> blank
E74: Wages Paid from Accounting Records | K74: =SUM(F74:J74) -> 0 | O74: =O73 -> blank
E75: Less PAYG Withholding Payments to the ATO (if incl above) | K75: =SUM(F75:J75) -> 0 | O75: blank
E76: Net Wages | F76: =F74-F75 -> 0 | G76: =G74-G75 -> 0 | H76: =H74-H75 -> 0 | I76: =I74-I75 -> 0 | J76: =J74-J75 -> 0 | K76: =SUM(F76:J76) -> 0 | O76: blank
E77: Add PAYG Withholding | F77: =IF(E73<>"Select",F78-F76,0) -> 0 | G77: =IF(E73<>"Select",G78-G76,0) -> 0 | H77: =IF(E73<>"Select",H78-H76,0) -> 0 | I77: =IF(E73<>"Select",I78-I76,0) -> 0 | J77: =IF(E73<>"Select",J78-J76,0) -> 0 | K77: =SUM(F77:J77) -> 0 | O77: blank
E78: Gross Wages | F78: =IF(E73<>"Select",(ROUND((ROUNDDOWN(F76/2,0)+(0.99*VLOOKUP(ROUNDDOWN(F76/2,0),IF(E73="Claim Tax Free Threshold",NEWPAYGW.TFT,NEWPAYGW.NOTFT),4))-VLOOKUP(ROUNDDOWN(F76/2,0),IF(E73="Claim Tax Free Threshold",NEWPAYGW.TFT,NEWPAYGW.NOTFT),5))/(1-VLOOKUP(ROUNDDOWN(F76/2,0),IF(E73="Claim Tax Free Threshold",NEWPAYGW.TFT,NEWPAYGW.NOTFT),4)),0))*2,0) -> 0 | G78: =IF(E73<>"Select",(ROUND((ROUNDDOWN(G76/2,0)+(0.99*VLOOKUP(ROUNDDOWN(G76/2,0),IF(E73="Claim Tax Free Threshold",NEWPAYGW.TFT,NEWPAYGW.NOTFT),4))-VLOOKUP(ROUNDDOWN(G76/2,0),IF(E73="Claim Tax Free Threshold",NEWPAYGW.TFT,NEWPAYGW.NOTFT),5))/(1-VLOOKUP(ROUNDDOWN(G76/2,0),IF(E73="Claim Tax Free Threshold",NEWPAYGW.TFT,NEWPAYGW.NOTFT),4)),0))*2,0) -> 0 | H78: =IF(E73<>"Select",(ROUND((ROUNDDOWN(H76/2,0)+(0.99*VLOOKUP(ROUNDDOWN(H76/2,0),IF(E73="Claim Tax Free Threshold",NEWPAYGW.TFT,NEWPAYGW.NOTFT),4))-VLOOKUP(ROUNDDOWN(H76/2,0),IF(E73="Claim Tax Free Threshold",NEWPAYGW.TFT,NEWPAYGW.NOTFT),5))/(1-VLOOKUP(ROUNDDOWN(H76/2,0),IF(E73="Claim Tax Free Threshold",NEWPAYGW.TFT,NEWPAYGW.NOTFT),4)),0))*2,0) -> 0 | I78: =IF(E73<>"Select",(ROUND((ROUNDDOWN(I76/2,0)+(0.99*VLOOKUP(ROUNDDOWN(I76/2,0),IF(E73="Claim Tax Free Threshold",NEWPAYGW.TFT,NEWPAYGW.NOTFT),4))-VLOOKUP(ROUNDDOWN(I76/2,0),IF(E73="Claim Tax Free Threshold",NEWPAYGW.TFT,NEWPAYGW.NOTFT),5))/(1-VLOOKUP(ROUNDDOWN(I76/2,0),IF(E73="Claim Tax Free Threshold",NEWPAYGW.TFT,NEWPAYGW.NOTFT),4)),0))*2,0) -> 0 | J78: =IF(E73<>"Select",(ROUND((ROUNDDOWN(J76/2,0)+(0.99*VLOOKUP(ROUNDDOWN(J76/2,0),IF(E73="Claim Tax Free Threshold",NEWPAYGW.TFT,NEWPAYGW.NOTFT),4))-VLOOKUP(ROUNDDOWN(J76/2,0),IF(E73="Claim Tax Free Threshold",NEWPAYGW.TFT,NEWPAYGW.NOTFT),5))/(1-VLOOKUP(ROUNDDOWN(J76/2,0),IF(E73="Claim Tax Free Threshold",NEWPAYGW.TFT,NEWPAYGW.NOTFT),4)),0))*2,0) -> 0 | K78: =SUM(F78:J78) -> 0 | O78: blank
O79: blank
C80: 10 | E80: =Summary!E20 -> Employee 10 Name | O80: =IF(OR(K82<>0,K83<>0,K84<>0,K85<>0,K86<>0),0,"blank") -> blank
E81: Select | O81: =O80 -> blank
E82: Wages Paid from Accounting Records | K82: =SUM(F82:J82) -> 0 | O82: =O81 -> blank
E83: Less PAYG Withholding Payments to the ATO (if incl above) | K83: =SUM(F83:J83) -> 0 | O83: blank
E84: Net Wages | F84: =F82-F83 -> 0 | G84: =G82-G83 -> 0 | H84: =H82-H83 -> 0 | I84: =I82-I83 -> 0 | J84: =J82-J83 -> 0 | K84: =SUM(F84:J84) -> 0 | O84: blank
E85: Add PAYG Withholding | F85: =IF(E81<>"Select",F86-F84,0) -> 0 | G85: =IF(E81<>"Select",G86-G84,0) -> 0 | H85: =IF(E81<>"Select",H86-H84,0) -> 0 | I85: =IF(E81<>"Select",I86-I84,0) -> 0 | J85: =IF(E81<>"Select",J86-J84,0) -> 0 | K85: =SUM(F85:J85) -> 0 | O85: blank
E86: Gross Wages | F86: =IF(E81<>"Select",(ROUND((ROUNDDOWN(F84/2,0)+(0.99*VLOOKUP(ROUNDDOWN(F84/2,0),IF(E81="Claim Tax Free Threshold",NEWPAYGW.TFT,NEWPAYGW.NOTFT),4))-VLOOKUP(ROUNDDOWN(F84/2,0),IF(E81="Claim Tax Free Threshold",NEWPAYGW.TFT,NEWPAYGW.NOTFT),5))/(1-VLOOKUP(ROUNDDOWN(F84/2,0),IF(E81="Claim Tax Free Threshold",NEWPAYGW.TFT,NEWPAYGW.NOTFT),4)),0))*2,0) -> 0 | G86: =IF(E81<>"Select",(ROUND((ROUNDDOWN(G84/2,0)+(0.99*VLOOKUP(ROUNDDOWN(G84/2,0),IF(E81="Claim Tax Free Threshold",NEWPAYGW.TFT,NEWPAYGW.NOTFT),4))-VLOOKUP(ROUNDDOWN(G84/2,0),IF(E81="Claim Tax Free Threshold",NEWPAYGW.TFT,NEWPAYGW.NOTFT),5))/(1-VLOOKUP(ROUNDDOWN(G84/2,0),IF(E81="Claim Tax Free Threshold",NEWPAYGW.TFT,NEWPAYGW.NOTFT),4)),0))*2,0) -> 0 | H86: =IF(E81<>"Select",(ROUND((ROUNDDOWN(H84/2,0)+(0.99*VLOOKUP(ROUNDDOWN(H84/2,0),IF(E81="Claim Tax Free Threshold",NEWPAYGW.TFT,NEWPAYGW.NOTFT),4))-VLOOKUP(ROUNDDOWN(H84/2,0),IF(E81="Claim Tax Free Threshold",NEWPAYGW.TFT,NEWPAYGW.NOTFT),5))/(1-VLOOKUP(ROUNDDOWN(H84/2,0),IF(E81="Claim Tax Free Threshold",NEWPAYGW.TFT,NEWPAYGW.NOTFT),4)),0))*2,0) -> 0 | I86: =IF(E81<>"Select",(ROUND((ROUNDDOWN(I84/2,0)+(0.99*VLOOKUP(ROUNDDOWN(I84/2,0),IF(E81="Claim Tax Free Threshold",NEWPAYGW.TFT,NEWPAYGW.NOTFT),4))-VLOOKUP(ROUNDDOWN(I84/2,0),IF(E81="Claim Tax Free Threshold",NEWPAYGW.TFT,NEWPAYGW.NOTFT),5))/(1-VLOOKUP(ROUNDDOWN(I84/2,0),IF(E81="Claim Tax Free Threshold",NEWPAYGW.TFT,NEWPAYGW.NOTFT),4)),0))*2,0) -> 0 | J86: =IF(E81<>"Select",(ROUND((ROUNDDOWN(J84/2,0)+(0.99*VLOOKUP(ROUNDDOWN(J84/2,0),IF(E81="Claim Tax Free Threshold",NEWPAYGW.TFT,NEWPAYGW.NOTFT),4))-VLOOKUP(ROUNDDOWN(J84/2,0),IF(E81="Claim Tax Free Threshold",NEWPAYGW.TFT,NEWPAYGW.NOTFT),5))/(1-VLOOKUP(ROUNDDOWN(J84/2,0),IF(E81="Claim Tax Free Threshold",NEWPAYGW.TFT,NEWPAYGW.NOTFT),4)),0))*2,0) -> 0 | K86: =SUM(F86:J86) -> 0 | O86: blank
O87: blank
E89: Monthly Summary
E90: Gross Wages | F90: =F14+F22+F30+F38+F46+F54+F62+F70+F78+F86 -> 0 | G90: =G14+G22+G30+G38+G46+G54+G62+G70+G78+G86 -> 0 | H90: 0 | I90: 0 | J90: 0 | K90: =SUM(F90:J90) -> 0
E91: PAYG Withholding | F91: =F13+F21+F29+F37+F45+F53+F61+F69+F77+F85 -> 0 | G91: =G13+G21+G29+G37+G45+G53+G61+G69+G77+G85 -> 0 | H91: 0 | I91: 0 | J91: 0 | K91: =SUM(F91:J91) -> 0
E92: Net Wages | F92: =F90-F91 -> 0 | G92: =G90-G91 -> 0 | H92: 0 | I92: 0 | J92: 0 | K92: 0
E95: PAYG withholding calculations are for payments of fortnightly wages to resident individuals who have quoted their TFN and are not claiming any Medicare Levy reduction
O96: ="blank" -> blank

Sheet Aug
E1: Gross Pay Estimate - Weekly Wages | K1: =Summary!O2 -> Entity Name | O1: HIDE
E2: =CONCATENATE("Wages for ",TEXT(Month2End,"mmmm yyyy")) -> Wages for August 2017 | K2: =Summary!O3 -> Preparer Name
F5: Wages for Fortnight Ended
K7: Total
C8: 1 | E8: =Summary!E11 -> Employee 1 Name | O8: =IF(OR(K10<>0,K11<>0,K12<>0,K13<>0,K14<>0),0,"blank") -> blank
E9: Select | O9: =O8 -> blank
E10: Wages Paid from Accounting Records | K10: =SUM(F10:J10) -> 0 | O10: =O9 -> blank
E11: Less PAYG Withholding Payments to the ATO (if incl above) | K11: =SUM(F11:J11) -> 0 | O11: blank
E12: Net Wages | F12: =F10-F11 -> 0 | G12: =G10-G11 -> 0 | H12: 0 | I12: 0 | J12: 0 | K12: =SUM(F12:J12) -> 0 | O12: blank
E13: Add PAYG Withholding | F13: =IF(E9<>"Select",F14-F12,0) -> 0 | G13: =IF(E9<>"Select",G14-G12,0) -> 0 | H13: =IF(E9<>"Select",H14-H12,0) -> 0 | I13: =IF(E9<>"Select",I14-I12,0) -> 0 | J13: =IF(E9<>"Select",J14-J12,0) -> 0 | K13: =SUM(F13:J13) -> 0 | O13: blank
E14: Gross Wages | F14: =IF(E9<>"Select",(ROUND((ROUNDDOWN(F12/2,0)+(0.99*VLOOKUP(ROUNDDOWN(F12/2,0),IF(E9="Claim Tax Free Threshold",NEWPAYGW.TFT,NEWPAYGW.NOTFT),4))-VLOOKUP(ROUNDDOWN(F12/2,0),IF(E9="Claim Tax Free Threshold",NEWPAYGW.TFT,NEWPAYGW.NOTFT),5))/(1-VLOOKUP(ROUNDDOWN(F12/2,0),IF(E9="Claim Tax Free Threshold",NEWPAYGW.TFT,NEWPAYGW.NOTFT),4)),0))*2,0) -> 0 | G14: =IF(E9<>"Select",(ROUND((ROUNDDOWN(G12/2,0)+(0.99*VLOOKUP(ROUNDDOWN(G12/2,0),IF(E9="Claim Tax Free Threshold",NEWPAYGW.TFT,NEWPAYGW.NOTFT),4))-VLOOKUP(ROUNDDOWN(G12/2,0),IF(E9="Claim Tax Free Threshold",NEWPAYGW.TFT,NEWPAYGW.NOTFT),5))/(1-VLOOKUP(ROUNDDOWN(G12/2,0),IF(E9="Claim Tax Free Threshold",NEWPAYGW.TFT,NEWPAYGW.NOTFT),4)),0))*2,0) -> 0 | H14: =IF(E9<>"Select",(ROUND((ROUNDDOWN(H12/2,0)+(0.99*VLOOKUP(ROUNDDOWN(H12/2,0),IF(E9="Claim Tax Free Threshold",NEWPAYGW.TFT,NEWPAYGW.NOTFT),4))-VLOOKUP(ROUNDDOWN(H12/2,0),IF(E9="Claim Tax Free Threshold",NEWPAYGW.TFT,NEWPAYGW.NOTFT),5))/(1-VLOOKUP(ROUNDDOWN(H12/2,0),IF(E9="Claim Tax Free Threshold",NEWPAYGW.TFT,NEWPAYGW.NOTFT),4)),0))*2,0) -> 0 | I14: =IF(E9<>"Select",(ROUND((ROUNDDOWN(I12/2,0)+(0.99*VLOOKUP(ROUNDDOWN(I12/2,0),IF(E9="Claim Tax Free Threshold",NEWPAYGW.TFT,NEWPAYGW.NOTFT),4))-VLOOKUP(ROUNDDOWN(I12/2,0),IF(E9="Claim Tax Free Threshold",NEWPAYGW.TFT,NEWPAYGW.NOTFT),5))/(1-VLOOKUP(ROUNDDOWN(I12/2,0),IF(E9="Claim Tax Free Threshold",NEWPAYGW.TFT,NEWPAYGW.NOTFT),4)),0))*2,0) -> 0 | J14: =IF(E9<>"Select",(ROUND((ROUNDDOWN(J12/2,0)+(0.99*VLOOKUP(ROUNDDOWN(J12/2,0),IF(E9="Claim Tax Free Threshold",NEWPAYGW.TFT,NEWPAYGW.NOTFT),4))-VLOOKUP(ROUNDDOWN(J12/2,0),IF(E9="Claim Tax Free Threshold",NEWPAYGW.TFT,NEWPAYGW.NOTFT),5))/(1-VLOOKUP(ROUNDDOWN(J12/2,0),IF(E9="Claim Tax Free Threshold",NEWPAYGW.TFT,NEWPAYGW.NOTFT),4)),0))*2,0) -> 0 | K14: =SUM(F14:J14) -> 0 | O14: blank
O15: blank
C16: 2 | E16: =Summary!E12 -> Employee 2 Name | O16: =IF(OR(K18<>0,K19<>0,K20<>0,K21<>0,K22<>0),0,"blank") -> blank
E17: Select | O17: =O16 -> blank
E18: Wages Paid from Accounting Records | K18: =SUM(F18:J18) -> 0 | O18: =O17 -> blank
E19: Less PAYG Withholding Payments to the ATO (if incl above) | K19: =SUM(F19:J19) -> 0 | O19: blank
E20: Net Wages | F20: =F18-F19 -> 0 | G20: =G18-G19 -> 0 | H20: 0 | I20: 0 | J20: 0 | K20: =SUM(F20:J20) -> 0 | O20: blank
E21: Add PAYG Withholding | F21: =IF(E17<>"Select",F22-F20,0) -> 0 | G21: =IF(E17<>"Select",G22-G20,0) -> 0 | H21: =IF(E17<>"Select",H22-H20,0) -> 0 | I21: =IF(E17<>"Select",I22-I20,0) -> 0 | J21: =IF(E17<>"Select",J22-J20,0) -> 0 | K21: =SUM(F21:J21) -> 0 | O21: blank
E22: Gross Wages | F22: =IF(E17<>"Select",(ROUND((ROUNDDOWN(F20/2,0)+(0.99*VLOOKUP(ROUNDDOWN(F20/2,0),IF(E17="Claim Tax Free Threshold",NEWPAYGW.TFT,NEWPAYGW.NOTFT),4))-VLOOKUP(ROUNDDOWN(F20/2,0),IF(E17="Claim Tax Free Threshold",NEWPAYGW.TFT,NEWPAYGW.NOTFT),5))/(1-VLOOKUP(ROUNDDOWN(F20/2,0),IF(E17="Claim Tax Free Threshold",NEWPAYGW.TFT,NEWPAYGW.NOTFT),4)),0))*2,0) -> 0 | G22: =IF(E17<>"Select",(ROUND((ROUNDDOWN(G20/2,0)+(0.99*VLOOKUP(ROUNDDOWN(G20/2,0),IF(E17="Claim Tax Free Threshold",NEWPAYGW.TFT,NEWPAYGW.NOTFT),4))-VLOOKUP(ROUNDDOWN(G20/2,0),IF(E17="Claim Tax Free Threshold",NEWPAYGW.TFT,NEWPAYGW.NOTFT),5))/(1-VLOOKUP(ROUNDDOWN(G20/2,0),IF(E17="Claim Tax Free Threshold",NEWPAYGW.TFT,NEWPAYGW.NOTFT),4)),0))*2,0) -> 0 | H22: =IF(E17<>"Select",(ROUND((ROUNDDOWN(H20/2,0)+(0.99*VLOOKUP(ROUNDDOWN(H20/2,0),IF(E17="Claim Tax Free Threshold",NEWPAYGW.TFT,NEWPAYGW.NOTFT),4))-VLOOKUP(ROUNDDOWN(H20/2,0),IF(E17="Claim Tax Free Threshold",NEWPAYGW.TFT,NEWPAYGW.NOTFT),5))/(1-VLOOKUP(ROUNDDOWN(H20/2,0),IF(E17="Claim Tax Free Threshold",NEWPAYGW.TFT,NEWPAYGW.NOTFT),4)),0))*2,0) -> 0 | I22: =IF(E17<>"Select",(ROUND((ROUNDDOWN(I20/2,0)+(0.99*VLOOKUP(ROUNDDOWN(I20/2,0),IF(E17="Claim Tax Free Threshold",NEWPAYGW.TFT,NEWPAYGW.NOTFT),4))-VLOOKUP(ROUNDDOWN(I20/2,0),IF(E17="Claim Tax Free Threshold",NEWPAYGW.TFT,NEWPAYGW.NOTFT),5))/(1-VLOOKUP(ROUNDDOWN(I20/2,0),IF(E17="Claim Tax Free Threshold",NEWPAYGW.TFT,NEWPAYGW.NOTFT),4)),0))*2,0) -> 0 | J22: =IF(E17<>"Select",(ROUND((ROUNDDOWN(J20/2,0)+(0.99*VLOOKUP(ROUNDDOWN(J20/2,0),IF(E17="Claim Tax Free Threshold",NEWPAYGW.TFT,NEWPAYGW.NOTFT),4))-VLOOKUP(ROUNDDOWN(J20/2,0),IF(E17="Claim Tax Free Threshold",NEWPAYGW.TFT,NEWPAYGW.NOTFT),5))/(1-VLOOKUP(ROUNDDOWN(J20/2,0),IF(E17="Claim Tax Free Threshold",NEWPAYGW.TFT,NEWPAYGW.NOTFT),4)),0))*2,0) -> 0 | K22: =SUM(F22:J22) -> 0 | O22: blank
O23: blank
C24: 3 | E24: =Summary!E13 -> Employee 3 Name | O24: =IF(OR(K26<>0,K27<>0,K28<>0,K29<>0,K30<>0),0,"blank") -> blank
E25: Select | O25: =O24 -> blank
E26: Wages Paid from Accounting Records | K26: =SUM(F26:J26) -> 0 | O26: =O25 -> blank
E27: Less PAYG Withholding Payments to the ATO (if incl above) | K27: =SUM(F27:J27) -> 0 | O27: blank
E28: Net Wages | F28: =F26-F27 -> 0 | G28: =G26-G27 -> 0 | H28: 0 | I28: 0 | J28: 0 | K28: =SUM(F28:J28) -> 0 | O28: blank
E29: Add PAYG Withholding | F29: =IF(E25<>"Select",F30-F28,0) -> 0 | G29: =IF(E25<>"Select",G30-G28,0) -> 0 | H29: =IF(E25<>"Select",H30-H28,0) -> 0 | I29: =IF(E25<>"Select",I30-I28,0) -> 0 | J29: =IF(E25<>"Select",J30-J28,0) -> 0 | K29: =SUM(F29:J29) -> 0 | O29: blank
E30: Gross Wages | F30: =IF(E25<>"Select",(ROUND((ROUNDDOWN(F28/2,0)+(0.99*VLOOKUP(ROUNDDOWN(F28/2,0),IF(E25="Claim Tax Free Threshold",NEWPAYGW.TFT,NEWPAYGW.NOTFT),4))-VLOOKUP(ROUNDDOWN(F28/2,0),IF(E25="Claim Tax Free Threshold",NEWPAYGW.TFT,NEWPAYGW.NOTFT),5))/(1-VLOOKUP(ROUNDDOWN(F28/2,0),IF(E25="Claim Tax Free Threshold",NEWPAYGW.TFT,NEWPAYGW.NOTFT),4)),0))*2,0) -> 0 | G30: =IF(E25<>"Select",(ROUND((ROUNDDOWN(G28/2,0)+(0.99*VLOOKUP(ROUNDDOWN(G28/2,0),IF(E25="Claim Tax Free Threshold",NEWPAYGW.TFT,NEWPAYGW.NOTFT),4))-VLOOKUP(ROUNDDOWN(G28/2,0),IF(E25="Claim Tax Free Threshold",NEWPAYGW.TFT,NEWPAYGW.NOTFT),5))/(1-VLOOKUP(ROUNDDOWN(G28/2,0),IF(E25="Claim Tax Free Threshold",NEWPAYGW.TFT,NEWPAYGW.NOTFT),4)),0))*2,0) -> 0 | H30: =IF(E25<>"Select",(ROUND((ROUNDDOWN(H28/2,0)+(0.99*VLOOKUP(ROUNDDOWN(H28/2,0),IF(E25="Claim Tax Free Threshold",NEWPAYGW.TFT,NEWPAYGW.NOTFT),4))-VLOOKUP(ROUNDDOWN(H28/2,0),IF(E25="Claim Tax Free Threshold",NEWPAYGW.TFT,NEWPAYGW.NOTFT),5))/(1-VLOOKUP(ROUNDDOWN(H28/2,0),IF(E25="Claim Tax Free Threshold",NEWPAYGW.TFT,NEWPAYGW.NOTFT),4)),0))*2,0) -> 0 | I30: =IF(E25<>"Select",(ROUND((ROUNDDOWN(I28/2,0)+(0.99*VLOOKUP(ROUNDDOWN(I28/2,0),IF(E25="Claim Tax Free Threshold",NEWPAYGW.TFT,NEWPAYGW.NOTFT),4))-VLOOKUP(ROUNDDOWN(I28/2,0),IF(E25="Claim Tax Free Threshold",NEWPAYGW.TFT,NEWPAYGW.NOTFT),5))/(1-VLOOKUP(ROUNDDOWN(I28/2,0),IF(E25="Claim Tax Free Threshold",NEWPAYGW.TFT,NEWPAYGW.NOTFT),4)),0))*2,0) -> 0 | J30: =IF(E25<>"Select",(ROUND((ROUNDDOWN(J28/2,0)+(0.99*VLOOKUP(ROUNDDOWN(J28/2,0),IF(E25="Claim Tax Free Threshold",NEWPAYGW.TFT,NEWPAYGW.NOTFT),4))-VLOOKUP(ROUNDDOWN(J28/2,0),IF(E25="Claim Tax Free Threshold",NEWPAYGW.TFT,NEWPAYGW.NOTFT),5))/(1-VLOOKUP(ROUNDDOWN(J28/2,0),IF(E25="Claim Tax Free Threshold",NEWPAYGW.TFT,NEWPAYGW.NOTFT),4)),0))*2,0) -> 0 | K30: =SUM(F30:J30) -> 0 | O30: blank
O31: blank
C32: 4 | E32: =Summary!E14 -> Employee 4 Name | O32: =IF(OR(K34<>0,K35<>0,K36<>0,K37<>0,K38<>0),0,"blank") -> blank
E33: Select | O33: =O32 -> blank
E34: Wages Paid from Accounting Records | K34: =SUM(F34:J34) -> 0 | O34: =O33 -> blank
E35: Less PAYG Withholding Payments to the ATO (if incl above) | K35: =SUM(F35:J35) -> 0 | O35: blank
E36: Net Wages | F36: =F34-F35 -> 0 | G36: =G34-G35 -> 0 | H36: 0 | I36: 0 | J36: 0 | K36: =SUM(F36:J36) -> 0 | O36: blank
E37: Add PAYG Withholding | F37: =IF(E33<>"Select",F38-F36,0) -> 0 | G37: =IF(E33<>"Select",G38-G36,0) -> 0 | H37: =IF(E33<>"Select",H38-H36,0) -> 0 | I37: =IF(E33<>"Select",I38-I36,0) -> 0 | J37: =IF(E33<>"Select",J38-J36,0) -> 0 | K37: =SUM(F37:J37) -> 0 | O37: blank
E38: Gross Wages | F38: =IF(E33<>"Select",(ROUND((ROUNDDOWN(F36/2,0)+(0.99*VLOOKUP(ROUNDDOWN(F36/2,0),IF(E33="Claim Tax Free Threshold",NEWPAYGW.TFT,NEWPAYGW.NOTFT),4))-VLOOKUP(ROUNDDOWN(F36/2,0),IF(E33="Claim Tax Free Threshold",NEWPAYGW.TFT,NEWPAYGW.NOTFT),5))/(1-VLOOKUP(ROUNDDOWN(F36/2,0),IF(E33="Claim Tax Free Threshold",NEWPAYGW.TFT,NEWPAYGW.NOTFT),4)),0))*2,0) -> 0 | G38: =IF(E33<>"Select",(ROUND((ROUNDDOWN(G36/2,0)+(0.99*VLOOKUP(ROUNDDOWN(G36/2,0),IF(E33="Claim Tax Free Threshold",NEWPAYGW.TFT,NEWPAYGW.NOTFT),4))-VLOOKUP(ROUNDDOWN(G36/2,0),IF(E33="Claim Tax Free Threshold",NEWPAYGW.TFT,NEWPAYGW.NOTFT),5))/(1-VLOOKUP(ROUNDDOWN(G36/2,0),IF(E33="Claim Tax Free Threshold",NEWPAYGW.TFT,NEWPAYGW.NOTFT),4)),0))*2,0) -> 0 | H38: =IF(E33<>"Select",(ROUND((ROUNDDOWN(H36/2,0)+(0.99*VLOOKUP(ROUNDDOWN(H36/2,0),IF(E33="Claim Tax Free Threshold",NEWPAYGW.TFT,NEWPAYGW.NOTFT),4))-VLOOKUP(ROUNDDOWN(H36/2,0),IF(E33="Claim Tax Free Threshold",NEWPAYGW.TFT,NEWPAYGW.NOTFT),5))/(1-VLOOKUP(ROUNDDOWN(H36/2,0),IF(E33="Claim Tax Free Threshold",NEWPAYGW.TFT,NEWPAYGW.NOTFT),4)),0))*2,0) -> 0 | I38: =IF(E33<>"Select",(ROUND((ROUNDDOWN(I36/2,0)+(0.99*VLOOKUP(ROUNDDOWN(I36/2,0),IF(E33="Claim Tax Free Threshold",NEWPAYGW.TFT,NEWPAYGW.NOTFT),4))-VLOOKUP(ROUNDDOWN(I36/2,0),IF(E33="Claim Tax Free Threshold",NEWPAYGW.TFT,NEWPAYGW.NOTFT),5))/(1-VLOOKUP(ROUNDDOWN(I36/2,0),IF(E33="Claim Tax Free Threshold",NEWPAYGW.TFT,NEWPAYGW.NOTFT),4)),0))*2,0) -> 0 | J38: =IF(E33<>"Select",(ROUND((ROUNDDOWN(J36/2,0)+(0.99*VLOOKUP(ROUNDDOWN(J36/2,0),IF(E33="Claim Tax Free Threshold",NEWPAYGW.TFT,NEWPAYGW.NOTFT),4))-VLOOKUP(ROUNDDOWN(J36/2,0),IF(E33="Claim Tax Free Threshold",NEWPAYGW.TFT,NEWPAYGW.NOTFT),5))/(1-VLOOKUP(ROUNDDOWN(J36/2,0),IF(E33="Claim Tax Free Threshold",NEWPAYGW.TFT,NEWPAYGW.NOTFT),4)),0))*2,0) -> 0 | K38: =SUM(F38:J38) -> 0 | O38: blank
O39: blank
C40: 5 | E40: =Summary!E15 -> Employee 5 Name | O40: =IF(OR(K42<>0,K43<>0,K44<>0,K45<>0,K46<>0),0,"blank") -> blank
E41: Select | O41: =O40 -> blank
E42: Wages Paid from Accounting Records | K42: =SUM(F42:J42) -> 0 | O42: =O41 -> blank
E43: Less PAYG Withholding Payments to the ATO (if incl above) | K43: =SUM(F43:J43) -> 0 | O43: blank
E44: Net Wages | F44: =F42-F43 -> 0 | G44: =G42-G43 -> 0 | H44: 0 | I44: 0 | J44: 0 | K44: =SUM(F44:J44) -> 0 | O44: blank
E45: Add PAYG Withholding | F45: =IF(E41<>"Select",F46-F44,0) -> 0 | G45: =IF(E41<>"Select",G46-G44,0) -> 0 | H45: =IF(E41<>"Select",H46-H44,0) -> 0 | I45: =IF(E41<>"Select",I46-I44,0) -> 0 | J45: =IF(E41<>"Select",J46-J44,0) -> 0 | K45: =SUM(F45:J45) -> 0 | O45: blank
E46: Gross Wages | F46: =IF(E41<>"Select",(ROUND((ROUNDDOWN(F44/2,0)+(0.99*VLOOKUP(ROUNDDOWN(F44/2,0),IF(E41="Claim Tax Free Threshold",NEWPAYGW.TFT,NEWPAYGW.NOTFT),4))-VLOOKUP(ROUNDDOWN(F44/2,0),IF(E41="Claim Tax Free Threshold",NEWPAYGW.TFT,NEWPAYGW.NOTFT),5))/(1-VLOOKUP(ROUNDDOWN(F44/2,0),IF(E41="Claim Tax Free Threshold",NEWPAYGW.TFT,NEWPAYGW.NOTFT),4)),0))*2,0) -> 0 | G46: =IF(E41<>"Select",(ROUND((ROUNDDOWN(G44/2,0)+(0.99*VLOOKUP(ROUNDDOWN(G44/2,0),IF(E41="Claim Tax Free Threshold",NEWPAYGW.TFT,NEWPAYGW.NOTFT),4))-VLOOKUP(ROUNDDOWN(G44/2,0),IF(E41="Claim Tax Free Threshold",NEWPAYGW.TFT,NEWPAYGW.NOTFT),5))/(1-VLOOKUP(ROUNDDOWN(G44/2,0),IF(E41="Claim Tax Free Threshold",NEWPAYGW.TFT,NEWPAYGW.NOTFT),4)),0))*2,0) -> 0 | H46: =IF(E41<>"Select",(ROUND((ROUNDDOWN(H44/2,0)+(0.99*VLOOKUP(ROUNDDOWN(H44/2,0),IF(E41="Claim Tax Free Threshold",NEWPAYGW.TFT,NEWPAYGW.NOTFT),4))-VLOOKUP(ROUNDDOWN(H44/2,0),IF(E41="Claim Tax Free Threshold",NEWPAYGW.TFT,NEWPAYGW.NOTFT),5))/(1-VLOOKUP(ROUNDDOWN(H44/2,0),IF(E41="Claim Tax Free Threshold",NEWPAYGW.TFT,NEWPAYGW.NOTFT),4)),0))*2,0) -> 0 | I46: =IF(E41<>"Select",(ROUND((ROUNDDOWN(I44/2,0)+(0.99*VLOOKUP(ROUNDDOWN(I44/2,0),IF(E41="Claim Tax Free Threshold",NEWPAYGW.TFT,NEWPAYGW.NOTFT),4))-VLOOKUP(ROUNDDOWN(I44/2,0),IF(E41="Claim Tax Free Threshold",NEWPAYGW.TFT,NEWPAYGW.NOTFT),5))/(1-VLOOKUP(ROUNDDOWN(I44/2,0),IF(E41="Claim Tax Free Threshold",NEWPAYGW.TFT,NEWPAYGW.NOTFT),4)),0))*2,0) -> 0 | J46: =IF(E41<>"Select",(ROUND((ROUNDDOWN(J44/2,0)+(0.99*VLOOKUP(ROUNDDOWN(J44/2,0),IF(E41="Claim Tax Free Threshold",NEWPAYGW.TFT,NEWPAYGW.NOTFT),4))-VLOOKUP(ROUNDDOWN(J44/2,0),IF(E41="Claim Tax Free Threshold",NEWPAYGW.TFT,NEWPAYGW.NOTFT),5))/(1-VLOOKUP(ROUNDDOWN(J44/2,0),IF(E41="Claim Tax Free Threshold",NEWPAYGW.TFT,NEWPAYGW.NOTFT),4)),0))*2,0) -> 0 | K46: =SUM(F46:J46) -> 0 | O46: blank
O47: blank
C48: 6 | E48: =Summary!E16 -> Employee 6 Name | O48: =IF(OR(K50<>0,K51<>0,K52<>0,K53<>0,K54<>0),0,"blank") -> blank
E49: Select | O49: =O48 -> blank
E50: Wages Paid from Accounting Records | K50: =SUM(F50:J50) -> 0 | O50: =O49 -> blank
E51: Less PAYG Withholding Payments to the ATO (if incl above) | K51: =SUM(F51:J51) -> 0 | O51: blank
E52: Net Wages | F52: =F50-F51 -> 0 | G52: =G50-G51 -> 0 | H52: 0 | I52: 0 | J52: 0 | K52: =SUM(F52:J52) -> 0 | O52: blank
E53: Add PAYG Withholding | F53: =IF(E49<>"Select",F54-F52,0) -> 0 | G53: =IF(E49<>"Select",G54-G52,0) -> 0 | H53: =IF(E49<>"Select",H54-H52,0) -> 0 | I53: =IF(E49<>"Select",I54-I52,0) -> 0 | J53: =IF(E49<>"Select",J54-J52,0) -> 0 | K53: =SUM(F53:J53) -> 0 | O53: blank
E54: Gross Wages | F54: =IF(E49<>"Select",(ROUND((ROUNDDOWN(F52/2,0)+(0.99*VLOOKUP(ROUNDDOWN(F52/2,0),IF(E49="Claim Tax Free Threshold",NEWPAYGW.TFT,NEWPAYGW.NOTFT),4))-VLOOKUP(ROUNDDOWN(F52/2,0),IF(E49="Claim Tax Free Threshold",NEWPAYGW.TFT,NEWPAYGW.NOTFT),5))/(1-VLOOKUP(ROUNDDOWN(F52/2,0),IF(E49="Claim Tax Free Threshold",NEWPAYGW.TFT,NEWPAYGW.NOTFT),4)),0))*2,0) -> 0 | G54: =IF(E49<>"Select",(ROUND((ROUNDDOWN(G52/2,0)+(0.99*VLOOKUP(ROUNDDOWN(G52/2,0),IF(E49="Claim Tax Free Threshold",NEWPAYGW.TFT,NEWPAYGW.NOTFT),4))-VLOOKUP(ROUNDDOWN(G52/2,0),IF(E49="Claim Tax Free Threshold",NEWPAYGW.TFT,NEWPAYGW.NOTFT),5))/(1-VLOOKUP(ROUNDDOWN(G52/2,0),IF(E49="Claim Tax Free Threshold",NEWPAYGW.TFT,NEWPAYGW.NOTFT),4)),0))*2,0) -> 0 | H54: =IF(E49<>"Select",(ROUND((ROUNDDOWN(H52/2,0)+(0.99*VLOOKUP(ROUNDDOWN(H52/2,0),IF(E49="Claim Tax Free Threshold",NEWPAYGW.TFT,NEWPAYGW.NOTFT),4))-VLOOKUP(ROUNDDOWN(H52/2,0),IF(E49="Claim Tax Free Threshold",NEWPAYGW.TFT,NEWPAYGW.NOTFT),5))/(1-VLOOKUP(ROUNDDOWN(H52/2,0),IF(E49="Claim Tax Free Threshold",NEWPAYGW.TFT,NEWPAYGW.NOTFT),4)),0))*2,0) -> 0 | I54: =IF(E49<>"Select",(ROUND((ROUNDDOWN(I52/2,0)+(0.99*VLOOKUP(ROUNDDOWN(I52/2,0),IF(E49="Claim Tax Free Threshold",NEWPAYGW.TFT,NEWPAYGW.NOTFT),4))-VLOOKUP(ROUNDDOWN(I52/2,0),IF(E49="Claim Tax Free Threshold",NEWPAYGW.TFT,NEWPAYGW.NOTFT),5))/(1-VLOOKUP(ROUNDDOWN(I52/2,0),IF(E49="Claim Tax Free Threshold",NEWPAYGW.TFT,NEWPAYGW.NOTFT),4)),0))*2,0) -> 0 | J54: =IF(E49<>"Select",(ROUND((ROUNDDOWN(J52/2,0)+(0.99*VLOOKUP(ROUNDDOWN(J52/2,0),IF(E49="Claim Tax Free Threshold",NEWPAYGW.TFT,NEWPAYGW.NOTFT),4))-VLOOKUP(ROUNDDOWN(J52/2,0),IF(E49="Claim Tax Free Threshold",NEWPAYGW.TFT,NEWPAYGW.NOTFT),5))/(1-VLOOKUP(ROUNDDOWN(J52/2,0),IF(E49="Claim Tax Free Threshold",NEWPAYGW.TFT,NEWPAYGW.NOTFT),4)),0))*2,0) -> 0 | K54: =SUM(F54:J54) -> 0 | O54: blank
O55: blank
C56: 7 | E56: =Summary!E17 -> Employee 7 Name | O56: =IF(OR(K58<>0,K59<>0,K60<>0,K61<>0,K62<>0),0,"blank") -> blank
E57: Select | O57: =O56 -> blank
E58: Wages Paid from Accounting Records | K58: =SUM(F58:J58) -> 0 | O58: =O57 -> blank
E59: Less PAYG Withholding Payments to the ATO (if incl above) | K59: =SUM(F59:J59) -> 0 | O59: blank
E60: Net Wages | F60: =F58-F59 -> 0 | G60: =G58-G59 -> 0 | H60: 0 | I60: 0 | J60: 0 | K60: =SUM(F60:J60) -> 0 | O60: blank
E61: Add PAYG Withholding | F61: =IF(E57<>"Select",F62-F60,0) -> 0 | G61: =IF(E57<>"Select",G62-G60,0) -> 0 | H61: =IF(E57<>"Select",H62-H60,0) -> 0 | I61: =IF(E57<>"Select",I62-I60,0) -> 0 | J61: =IF(E57<>"Select",J62-J60,0) -> 0 | K61: =SUM(F61:J61) -> 0 | O61: blank
E62: Gross Wages | F62: =IF(E57<>"Select",(ROUND((ROUNDDOWN(F60/2,0)+(0.99*VLOOKUP(ROUNDDOWN(F60/2,0),IF(E57="Claim Tax Free Threshold",NEWPAYGW.TFT,NEWPAYGW.NOTFT),4))-VLOOKUP(ROUNDDOWN(F60/2,0),IF(E57="Claim Tax Free Threshold",NEWPAYGW.TFT,NEWPAYGW.NOTFT),5))/(1-VLOOKUP(ROUNDDOWN(F60/2,0),IF(E57="Claim Tax Free Threshold",NEWPAYGW.TFT,NEWPAYGW.NOTFT),4)),0))*2,0) -> 0 | G62: =IF(E57<>"Select",(ROUND((ROUNDDOWN(G60/2,0)+(0.99*VLOOKUP(ROUNDDOWN(G60/2,0),IF(E57="Claim Tax Free Threshold",NEWPAYGW.TFT,NEWPAYGW.NOTFT),4))-VLOOKUP(ROUNDDOWN(G60/2,0),IF(E57="Claim Tax Free Threshold",NEWPAYGW.TFT,NEWPAYGW.NOTFT),5))/(1-VLOOKUP(ROUNDDOWN(G60/2,0),IF(E57="Claim Tax Free Threshold",NEWPAYGW.TFT,NEWPAYGW.NOTFT),4)),0))*2,0) -> 0 | H62: =IF(E57<>"Select",(ROUND((ROUNDDOWN(H60/2,0)+(0.99*VLOOKUP(ROUNDDOWN(H60/2,0),IF(E57="Claim Tax Free Threshold",NEWPAYGW.TFT,NEWPAYGW.NOTFT),4))-VLOOKUP(ROUNDDOWN(H60/2,0),IF(E57="Claim Tax Free Threshold",NEWPAYGW.TFT,NEWPAYGW.NOTFT),5))/(1-VLOOKUP(ROUNDDOWN(H60/2,0),IF(E57="Claim Tax Free Threshold",NEWPAYGW.TFT,NEWPAYGW.NOTFT),4)),0))*2,0) -> 0 | I62: =IF(E57<>"Select",(ROUND((ROUNDDOWN(I60/2,0)+(0.99*VLOOKUP(ROUNDDOWN(I60/2,0),IF(E57="Claim Tax Free Threshold",NEWPAYGW.TFT,NEWPAYGW.NOTFT),4))-VLOOKUP(ROUNDDOWN(I60/2,0),IF(E57="Claim Tax Free Threshold",NEWPAYGW.TFT,NEWPAYGW.NOTFT),5))/(1-VLOOKUP(ROUNDDOWN(I60/2,0),IF(E57="Claim Tax Free Threshold",NEWPAYGW.TFT,NEWPAYGW.NOTFT),4)),0))*2,0) -> 0 | J62: =IF(E57<>"Select",(ROUND((ROUNDDOWN(J60/2,0)+(0.99*VLOOKUP(ROUNDDOWN(J60/2,0),IF(E57="Claim Tax Free Threshold",NEWPAYGW.TFT,NEWPAYGW.NOTFT),4))-VLOOKUP(ROUNDDOWN(J60/2,0),IF(E57="Claim Tax Free Threshold",NEWPAYGW.TFT,NEWPAYGW.NOTFT),5))/(1-VLOOKUP(ROUNDDOWN(J60/2,0),IF(E57="Claim Tax Free Threshold",NEWPAYGW.TFT,NEWPAYGW.NOTFT),4)),0))*2,0) -> 0 | K62: =SUM(F62:J62) -> 0 | O62: blank
O63: blank
C64: 8 | E64: =Summary!E18 -> Employee 8 Name | O64: =IF(OR(K66<>0,K67<>0,K68<>0,K69<>0,K70<>0),0,"blank") -> blank
E65: Select | O65: =O64 -> blank
E66: Wages Paid from Accounting Records | K66: =SUM(F66:J66) -> 0 | O66: =O65 -> blank
E67: Less PAYG Withholding Payments to the ATO (if incl above) | K67: =SUM(F67:J67) -> 0 | O67: blank
E68: Net Wages | F68: =F66-F67 -> 0 | G68: =G66-G67 -> 0 | H68: 0 | I68: 0 | J68: 0 | K68: =SUM(F68:J68) -> 0 | O68: blank
E69: Add PAYG Withholding | F69: =IF(E65<>"Select",F70-F68,0) -> 0 | G69: =IF(E65<>"Select",G70-G68,0) -> 0 | H69: =IF(E65<>"Select",H70-H68,0) -> 0 | I69: =IF(E65<>"Select",I70-I68,0) -> 0 | J69: =IF(E65<>"Select",J70-J68,0) -> 0 | K69: =SUM(F69:J69) -> 0 | O69: blank
E70: Gross Wages | F70: =IF(E65<>"Select",(ROUND((ROUNDDOWN(F68/2,0)+(0.99*VLOOKUP(ROUNDDOWN(F68/2,0),IF(E65="Claim Tax Free Threshold",NEWPAYGW.TFT,NEWPAYGW.NOTFT),4))-VLOOKUP(ROUNDDOWN(F68/2,0),IF(E65="Claim Tax Free Threshold",NEWPAYGW.TFT,NEWPAYGW.NOTFT),5))/(1-VLOOKUP(ROUNDDOWN(F68/2,0),IF(E65="Claim Tax Free Threshold",NEWPAYGW.TFT,NEWPAYGW.NOTFT),4)),0))*2,0) -> 0 | G70: =IF(E65<>"Select",(ROUND((ROUNDDOWN(G68/2,0)+(0.99*VLOOKUP(ROUNDDOWN(G68/2,0),IF(E65="Claim Tax Free Threshold",NEWPAYGW.TFT,NEWPAYGW.NOTFT),4))-VLOOKUP(ROUNDDOWN(G68/2,0),IF(E65="Claim Tax Free Threshold",NEWPAYGW.TFT,NEWPAYGW.NOTFT),5))/(1-VLOOKUP(ROUNDDOWN(G68/2,0),IF(E65="Claim Tax Free Threshold",NEWPAYGW.TFT,NEWPAYGW.NOTFT),4)),0))*2,0) -> 0 | H70: =IF(E65<>"Select",(ROUND((ROUNDDOWN(H68/2,0)+(0.99*VLOOKUP(ROUNDDOWN(H68/2,0),IF(E65="Claim Tax Free Threshold",NEWPAYGW.TFT,NEWPAYGW.NOTFT),4))-VLOOKUP(ROUNDDOWN(H68/2,0),IF(E65="Claim Tax Free Threshold",NEWPAYGW.TFT,NEWPAYGW.NOTFT),5))/(1-VLOOKUP(ROUNDDOWN(H68/2,0),IF(E65="Claim Tax Free Threshold",NEWPAYGW.TFT,NEWPAYGW.NOTFT),4)),0))*2,0) -> 0 | I70: =IF(E65<>"Select",(ROUND((ROUNDDOWN(I68/2,0)+(0.99*VLOOKUP(ROUNDDOWN(I68/2,0),IF(E65="Claim Tax Free Threshold",NEWPAYGW.TFT,NEWPAYGW.NOTFT),4))-VLOOKUP(ROUNDDOWN(I68/2,0),IF(E65="Claim Tax Free Threshold",NEWPAYGW.TFT,NEWPAYGW.NOTFT),5))/(1-VLOOKUP(ROUNDDOWN(I68/2,0),IF(E65="Claim Tax Free Threshold",NEWPAYGW.TFT,NEWPAYGW.NOTFT),4)),0))*2,0) -> 0 | J70: =IF(E65<>"Select",(ROUND((ROUNDDOWN(J68/2,0)+(0.99*VLOOKUP(ROUNDDOWN(J68/2,0),IF(E65="Claim Tax Free Threshold",NEWPAYGW.TFT,NEWPAYGW.NOTFT),4))-VLOOKUP(ROUNDDOWN(J68/2,0),IF(E65="Claim Tax Free Threshold",NEWPAYGW.TFT,NEWPAYGW.NOTFT),5))/(1-VLOOKUP(ROUNDDOWN(J68/2,0),IF(E65="Claim Tax Free Threshold",NEWPAYGW.TFT,NEWPAYGW.NOTFT),4)),0))*2,0) -> 0 | K70: =SUM(F70:J70) -> 0 | O70: blank
O71: blank
C72: 9 | E72: =Summary!E19 -> Employee 9 Name | O72: =IF(OR(K74<>0,K75<>0,K76<>0,K77<>0,K78<>0),0,"blank") -> blank
E73: Select | O73: =O72 -> blank
E74: Wages Paid from Accounting Records | K74: =SUM(F74:J74) -> 0 | O74: =O73 -> blank
E75: Less PAYG Withholding Payments to the ATO (if incl above) | K75: =SUM(F75:J75) -> 0 | O75: blank
E76: Net Wages | F76: =F74-F75 -> 0 | G76: =G74-G75 -> 0 | H76: 0 | I76: 0 | J76: 0 | K76: =SUM(F76:J76) -> 0 | O76: blank
E77: Add PAYG Withholding | F77: =IF(E73<>"Select",F78-F76,0) -> 0 | G77: =IF(E73<>"Select",G78-G76,0) -> 0 | H77: =IF(E73<>"Select",H78-H76,0) -> 0 | I77: =IF(E73<>"Select",I78-I76,0) -> 0 | J77: =IF(E73<>"Select",J78-J76,0) -> 0 | K77: =SUM(F77:J77) -> 0 | O77: blank
E78: Gross Wages | F78: =IF(E73<>"Select",(ROUND((ROUNDDOWN(F76/2,0)+(0.99*VLOOKUP(ROUNDDOWN(F76/2,0),IF(E73="Claim Tax Free Threshold",NEWPAYGW.TFT,NEWPAYGW.NOTFT),4))-VLOOKUP(ROUNDDOWN(F76/2,0),IF(E73="Claim Tax Free Threshold",NEWPAYGW.TFT,NEWPAYGW.NOTFT),5))/(1-VLOOKUP(ROUNDDOWN(F76/2,0),IF(E73="Claim Tax Free Threshold",NEWPAYGW.TFT,NEWPAYGW.NOTFT),4)),0))*2,0) -> 0 | G78: =IF(E73<>"Select",(ROUND((ROUNDDOWN(G76/2,0)+(0.99*VLOOKUP(ROUNDDOWN(G76/2,0),IF(E73="Claim Tax Free Threshold",NEWPAYGW.TFT,NEWPAYGW.NOTFT),4))-VLOOKUP(ROUNDDOWN(G76/2,0),IF(E73="Claim Tax Free Threshold",NEWPAYGW.TFT,NEWPAYGW.NOTFT),5))/(1-VLOOKUP(ROUNDDOWN(G76/2,0),IF(E73="Claim Tax Free Threshold",NEWPAYGW.TFT,NEWPAYGW.NOTFT),4)),0))*2,0) -> 0 | H78: =IF(E73<>"Select",(ROUND((ROUNDDOWN(H76/2,0)+(0.99*VLOOKUP(ROUNDDOWN(H76/2,0),IF(E73="Claim Tax Free Threshold",NEWPAYGW.TFT,NEWPAYGW.NOTFT),4))-VLOOKUP(ROUNDDOWN(H76/2,0),IF(E73="Claim Tax Free Threshold",NEWPAYGW.TFT,NEWPAYGW.NOTFT),5))/(1-VLOOKUP(ROUNDDOWN(H76/2,0),IF(E73="Claim Tax Free Threshold",NEWPAYGW.TFT,NEWPAYGW.NOTFT),4)),0))*2,0) -> 0 | I78: =IF(E73<>"Select",(ROUND((ROUNDDOWN(I76/2,0)+(0.99*VLOOKUP(ROUNDDOWN(I76/2,0),IF(E73="Claim Tax Free Threshold",NEWPAYGW.TFT,NEWPAYGW.NOTFT),4))-VLOOKUP(ROUNDDOWN(I76/2,0),IF(E73="Claim Tax Free Threshold",NEWPAYGW.TFT,NEWPAYGW.NOTFT),5))/(1-VLOOKUP(ROUNDDOWN(I76/2,0),IF(E73="Claim Tax Free Threshold",NEWPAYGW.TFT,NEWPAYGW.NOTFT),4)),0))*2,0) -> 0 | J78: =IF(E73<>"Select",(ROUND((ROUNDDOWN(J76/2,0)+(0.99*VLOOKUP(ROUNDDOWN(J76/2,0),IF(E73="Claim Tax Free Threshold",NEWPAYGW.TFT,NEWPAYGW.NOTFT),4))-VLOOKUP(ROUNDDOWN(J76/2,0),IF(E73="Claim Tax Free Threshold",NEWPAYGW.TFT,NEWPAYGW.NOTFT),5))/(1-VLOOKUP(ROUNDDOWN(J76/2,0),IF(E73="Claim Tax Free Threshold",NEWPAYGW.TFT,NEWPAYGW.NOTFT),4)),0))*2,0) -> 0 | K78: =SUM(F78:J78) -> 0 | O78: blank
O79: blank
C80: 10 | E80: =Summary!E20 -> Employee 10 Name | O80: =IF(OR(K82<>0,K83<>0,K84<>0,K85<>0,K86<>0),0,"blank") -> blank
E81: Select | O81: =O80 -> blank
E82: Wages Paid from Accounting Records | K82: =SUM(F82:J82) -> 0 | O82: =O81 -> blank
E83: Less PAYG Withholding Payments to the ATO (if incl above) | K83: =SUM(F83:J83) -> 0 | O83: blank
E84: Net Wages | F84: =F82-F83 -> 0 | G84: =G82-G83 -> 0 | H84: 0 | I84: 0 | J84: 0 | K84: =SUM(F84:J84) -> 0 | O84: blank
E85: Add PAYG Withholding | F85: =IF(E81<>"Select",F86-F84,0) -> 0 | G85: =IF(E81<>"Select",G86-G84,0) -> 0 | H85: =IF(E81<>"Select",H86-H84,0) -> 0 | I85: =IF(E81<>"Select",I86-I84,0) -> 0 | J85: =IF(E81<>"Select",J86-J84,0) -> 0 | K85: =SUM(F85:J85) -> 0 | O85: blank
E86: Gross Wages | F86: =IF(E81<>"Select",(ROUND((ROUNDDOWN(F84/2,0)+(0.99*VLOOKUP(ROUNDDOWN(F84/2,0),IF(E81="Claim Tax Free Threshold",NEWPAYGW.TFT,NEWPAYGW.NOTFT),4))-VLOOKUP(ROUNDDOWN(F84/2,0),IF(E81="Claim Tax Free Threshold",NEWPAYGW.TFT,NEWPAYGW.NOTFT),5))/(1-VLOOKUP(ROUNDDOWN(F84/2,0),IF(E81="Claim Tax Free Threshold",NEWPAYGW.TFT,NEWPAYGW.NOTFT),4)),0))*2,0) -> 0 | G86: =IF(E81<>"Select",(ROUND((ROUNDDOWN(G84/2,0)+(0.99*VLOOKUP(ROUNDDOWN(G84/2,0),IF(E81="Claim Tax Free Threshold",NEWPAYGW.TFT,NEWPAYGW.NOTFT),4))-VLOOKUP(ROUNDDOWN(G84/2,0),IF(E81="Claim Tax Free Threshold",NEWPAYGW.TFT,NEWPAYGW.NOTFT),5))/(1-VLOOKUP(ROUNDDOWN(G84/2,0),IF(E81="Claim Tax Free Threshold",NEWPAYGW.TFT,NEWPAYGW.NOTFT),4)),0))*2,0) -> 0 | H86: =IF(E81<>"Select",(ROUND((ROUNDDOWN(H84/2,0)+(0.99*VLOOKUP(ROUNDDOWN(H84/2,0),IF(E81="Claim Tax Free Threshold",NEWPAYGW.TFT,NEWPAYGW.NOTFT),4))-VLOOKUP(ROUNDDOWN(H84/2,0),IF(E81="Claim Tax Free Threshold",NEWPAYGW.TFT,NEWPAYGW.NOTFT),5))/(1-VLOOKUP(ROUNDDOWN(H84/2,0),IF(E81="Claim Tax Free Threshold",NEWPAYGW.TFT,NEWPAYGW.NOTFT),4)),0))*2,0) -> 0 | I86: =IF(E81<>"Select",(ROUND((ROUNDDOWN(I84/2,0)+(0.99*VLOOKUP(ROUNDDOWN(I84/2,0),IF(E81="Claim Tax Free Threshold",NEWPAYGW.TFT,NEWPAYGW.NOTFT),4))-VLOOKUP(ROUNDDOWN(I84/2,0),IF(E81="Claim Tax Free Threshold",NEWPAYGW.TFT,NEWPAYGW.NOTFT),5))/(1-VLOOKUP(ROUNDDOWN(I84/2,0),IF(E81="Claim Tax Free Threshold",NEWPAYGW.TFT,NEWPAYGW.NOTFT),4)),0))*2,0) -> 0 | J86: =IF(E81<>"Select",(ROUND((ROUNDDOWN(J84/2,0)+(0.99*VLOOKUP(ROUNDDOWN(J84/2,0),IF(E81="Claim Tax Free Threshold",NEWPAYGW.TFT,NEWPAYGW.NOTFT),4))-VLOOKUP(ROUNDDOWN(J84/2,0),IF(E81="Claim Tax Free Threshold",NEWPAYGW.TFT,NEWPAYGW.NOTFT),5))/(1-VLOOKUP(ROUNDDOWN(J84/2,0),IF(E81="Claim Tax Free Threshold",NEWPAYGW.TFT,NEWPAYGW.NOTFT),4)),0))*2,0) -> 0 | K86: =SUM(F86:J86) -> 0 | O86: blank
O87: blank
E89: Monthly Summary
E90: Gross Wages | F90: =F14+F22+F30+F38+F46+F54+F62+F70+F78+F86 -> 0 | G90: =G14+G22+G30+G38+G46+G54+G62+G70+G78+G86 -> 0 | H90: 0 | I90: 0 | J90: 0 | K90: =SUM(F90:J90) -> 0
E91: PAYG Withholding | F91: =F13+F21+F29+F37+F45+F53+F61+F69+F77+F85 -> 0 | G91: =G13+G21+G29+G37+G45+G53+G61+G69+G77+G85 -> 0 | H91: 0 | I91: 0 | J91: 0 | K91: =SUM(F91:J91) -> 0
E92: Net Wages | F92: =F90-F91 -> 0 | G92: =G90-G91 -> 0 | H92: 0 | I92: 0 | J92: 0 | K92: 0
E95: PAYG withholding calculations are for payments of fortnightly wages to resident individuals who have quoted their TFN and are not claiming any Medicare Levy reduction
O96: ="blank" -> blank

Sheet Sep
E1: Gross Pay Estimate - Weekly Wages | K1: =Summary!O2 -> Entity Name | O1: HIDE
E2: =CONCATENATE("Wages for ",TEXT(Month3End,"mmmm yyyy")) -> Wages for September 2017 | K2: =Summary!O3 -> Preparer Name
F5: Wages for Fortnight Ended
K7: Total
C8: 1 | E8: =Summary!E11 -> Employee 1 Name | O8: =IF(OR(K10<>0,K11<>0,K12<>0,K13<>0,K14<>0),0,"blank") -> blank
E9: Select | O9: =O8 -> blank
E10: Wages Paid from Accounting Records | K10: =SUM(F10:J10) -> 0 | O10: =O9 -> blank
E11: Less PAYG Withholding Payments to the ATO (if incl above) | K11: =SUM(F11:J11) -> 0 | O11: blank
E12: Net Wages | F12: =F10-F11 -> 0 | G12: =G10-G11 -> 0 | H12: 0 | I12: 0 | J12: 0 | K12: =SUM(F12:J12) -> 0 | O12: blank
E13: Add PAYG Withholding | F13: =IF(E9<>"Select",F14-F12,0) -> 0 | G13: =IF(E9<>"Select",G14-G12,0) -> 0 | H13: =IF(E9<>"Select",H14-H12,0) -> 0 | I13: =IF(E9<>"Select",I14-I12,0) -> 0 | J13: =IF(E9<>"Select",J14-J12,0) -> 0 | K13: =SUM(F13:J13) -> 0 | O13: blank
E14: Gross Wages | F14: =IF(E9<>"Select",(ROUND((ROUNDDOWN(F12/2,0)+(0.99*VLOOKUP(ROUNDDOWN(F12/2,0),IF(E9="Claim Tax Free Threshold",NEWPAYGW.TFT,NEWPAYGW.NOTFT),4))-VLOOKUP(ROUNDDOWN(F12/2,0),IF(E9="Claim Tax Free Threshold",NEWPAYGW.TFT,NEWPAYGW.NOTFT),5))/(1-VLOOKUP(ROUNDDOWN(F12/2,0),IF(E9="Claim Tax Free Threshold",NEWPAYGW.TFT,NEWPAYGW.NOTFT),4)),0))*2,0) -> 0 | G14: =IF(E9<>"Select",(ROUND((ROUNDDOWN(G12/2,0)+(0.99*VLOOKUP(ROUNDDOWN(G12/2,0),IF(E9="Claim Tax Free Threshold",NEWPAYGW.TFT,NEWPAYGW.NOTFT),4))-VLOOKUP(ROUNDDOWN(G12/2,0),IF(E9="Claim Tax Free Threshold",NEWPAYGW.TFT,NEWPAYGW.NOTFT),5))/(1-VLOOKUP(ROUNDDOWN(G12/2,0),IF(E9="Claim Tax Free Threshold",NEWPAYGW.TFT,NEWPAYGW.NOTFT),4)),0))*2,0) -> 0 | H14: =IF(E9<>"Select",(ROUND((ROUNDDOWN(H12/2,0)+(0.99*VLOOKUP(ROUNDDOWN(H12/2,0),IF(E9="Claim Tax Free Threshold",NEWPAYGW.TFT,NEWPAYGW.NOTFT),4))-VLOOKUP(ROUNDDOWN(H12/2,0),IF(E9="Claim Tax Free Threshold",NEWPAYGW.TFT,NEWPAYGW.NOTFT),5))/(1-VLOOKUP(ROUNDDOWN(H12/2,0),IF(E9="Claim Tax Free Threshold",NEWPAYGW.TFT,NEWPAYGW.NOTFT),4)),0))*2,0) -> 0 | I14: =IF(E9<>"Select",(ROUND((ROUNDDOWN(I12/2,0)+(0.99*VLOOKUP(ROUNDDOWN(I12/2,0),IF(E9="Claim Tax Free Threshold",NEWPAYGW.TFT,NEWPAYGW.NOTFT),4))-VLOOKUP(ROUNDDOWN(I12/2,0),IF(E9="Claim Tax Free Threshold",NEWPAYGW.TFT,NEWPAYGW.NOTFT),5))/(1-VLOOKUP(ROUNDDOWN(I12/2,0),IF(E9="Claim Tax Free Threshold",NEWPAYGW.TFT,NEWPAYGW.NOTFT),4)),0))*2,0) -> 0 | J14: =IF(E9<>"Select",(ROUND((ROUNDDOWN(J12/2,0)+(0.99*VLOOKUP(ROUNDDOWN(J12/2,0),IF(E9="Claim Tax Free Threshold",NEWPAYGW.TFT,NEWPAYGW.NOTFT),4))-VLOOKUP(ROUNDDOWN(J12/2,0),IF(E9="Claim Tax Free Threshold",NEWPAYGW.TFT,NEWPAYGW.NOTFT),5))/(1-VLOOKUP(ROUNDDOWN(J12/2,0),IF(E9="Claim Tax Free Threshold",NEWPAYGW.TFT,NEWPAYGW.NOTFT),4)),0))*2,0) -> 0 | K14: =SUM(F14:J14) -> 0 | O14: blank
O15: blank
C16: 2 | E16: =Summary!E12 -> Employee 2 Name | O16: =IF(OR(K18<>0,K19<>0,K20<>0,K21<>0,K22<>0),0,"blank") -> blank
E17: Select | O17: =O16 -> blank
E18: Wages Paid from Accounting Records | K18: =SUM(F18:J18) -> 0 | O18: =O17 -> blank
E19: Less PAYG Withholding Payments to the ATO (if incl above) | K19: =SUM(F19:J19) -> 0 | O19: blank
E20: Net Wages | F20: =F18-F19 -> 0 | G20: =G18-G19 -> 0 | H20: 0 | I20: 0 | J20: 0 | K20: =SUM(F20:J20) -> 0 | O20: blank
E21: Add PAYG Withholding | F21: =IF(E17<>"Select",F22-F20,0) -> 0 | G21: =IF(E17<>"Select",G22-G20,0) -> 0 | H21: =IF(E17<>"Select",H22-H20,0) -> 0 | I21: =IF(E17<>"Select",I22-I20,0) -> 0 | J21: =IF(E17<>"Select",J22-J20,0) -> 0 | K21: =SUM(F21:J21) -> 0 | O21: blank
E22: Gross Wages | F22: =IF(E17<>"Select",(ROUND((ROUNDDOWN(F20/2,0)+(0.99*VLOOKUP(ROUNDDOWN(F20/2,0),IF(E17="Claim Tax Free Threshold",NEWPAYGW.TFT,NEWPAYGW.NOTFT),4))-VLOOKUP(ROUNDDOWN(F20/2,0),IF(E17="Claim Tax Free Threshold",NEWPAYGW.TFT,NEWPAYGW.NOTFT),5))/(1-VLOOKUP(ROUNDDOWN(F20/2,0),IF(E17="Claim Tax Free Threshold",NEWPAYGW.TFT,NEWPAYGW.NOTFT),4)),0))*2,0) -> 0 | G22: =IF(E17<>"Select",(ROUND((ROUNDDOWN(G20/2,0)+(0.99*VLOOKUP(ROUNDDOWN(G20/2,0),IF(E17="Claim Tax Free Threshold",NEWPAYGW.TFT,NEWPAYGW.NOTFT),4))-VLOOKUP(ROUNDDOWN(G20/2,0),IF(E17="Claim Tax Free Threshold",NEWPAYGW.TFT,NEWPAYGW.NOTFT),5))/(1-VLOOKUP(ROUNDDOWN(G20/2,0),IF(E17="Claim Tax Free Threshold",NEWPAYGW.TFT,NEWPAYGW.NOTFT),4)),0))*2,0) -> 0 | H22: =IF(E17<>"Select",(ROUND((ROUNDDOWN(H20/2,0)+(0.99*VLOOKUP(ROUNDDOWN(H20/2,0),IF(E17="Claim Tax Free Threshold",NEWPAYGW.TFT,NEWPAYGW.NOTFT),4))-VLOOKUP(ROUNDDOWN(H20/2,0),IF(E17="Claim Tax Free Threshold",NEWPAYGW.TFT,NEWPAYGW.NOTFT),5))/(1-VLOOKUP(ROUNDDOWN(H20/2,0),IF(E17="Claim Tax Free Threshold",NEWPAYGW.TFT,NEWPAYGW.NOTFT),4)),0))*2,0) -> 0 | I22: =IF(E17<>"Select",(ROUND((ROUNDDOWN(I20/2,0)+(0.99*VLOOKUP(ROUNDDOWN(I20/2,0),IF(E17="Claim Tax Free Threshold",NEWPAYGW.TFT,NEWPAYGW.NOTFT),4))-VLOOKUP(ROUNDDOWN(I20/2,0),IF(E17="Claim Tax Free Threshold",NEWPAYGW.TFT,NEWPAYGW.NOTFT),5))/(1-VLOOKUP(ROUNDDOWN(I20/2,0),IF(E17="Claim Tax Free Threshold",NEWPAYGW.TFT,NEWPAYGW.NOTFT),4)),0))*2,0) -> 0 | J22: =IF(E17<>"Select",(ROUND((ROUNDDOWN(J20/2,0)+(0.99*VLOOKUP(ROUNDDOWN(J20/2,0),IF(E17="Claim Tax Free Threshold",NEWPAYGW.TFT,NEWPAYGW.NOTFT),4))-VLOOKUP(ROUNDDOWN(J20/2,0),IF(E17="Claim Tax Free Threshold",NEWPAYGW.TFT,NEWPAYGW.NOTFT),5))/(1-VLOOKUP(ROUNDDOWN(J20/2,0),IF(E17="Claim Tax Free Threshold",NEWPAYGW.TFT,NEWPAYGW.NOTFT),4)),0))*2,0) -> 0 | K22: =SUM(F22:J22) -> 0 | O22: blank
O23: blank
C24: 3 | E24: =Summary!E13 -> Employee 3 Name | O24: =IF(OR(K26<>0,K27<>0,K28<>0,K29<>0,K30<>0),0,"blank") -> blank
E25: Select | O25: =O24 -> blank
E26: Wages Paid from Accounting Records | K26: =SUM(F26:J26) -> 0 | O26: =O25 -> blank
E27: Less PAYG Withholding Payments to the ATO (if incl above) | K27: =SUM(F27:J27) -> 0 | O27: blank
E28: Net Wages | F28: =F26-F27 -> 0 | G28: =G26-G27 -> 0 | H28: 0 | I28: 0 | J28: 0 | K28: =SUM(F28:J28) -> 0 | O28: blank
E29: Add PAYG Withholding | F29: =IF(E25<>"Select",F30-F28,0) -> 0 | G29: =IF(E25<>"Select",G30-G28,0) -> 0 | H29: =IF(E25<>"Select",H30-H28,0) -> 0 | I29: =IF(E25<>"Select",I30-I28,0) -> 0 | J29: =IF(E25<>"Select",J30-J28,0) -> 0 | K29: =SUM(F29:J29) -> 0 | O29: blank
E30: Gross Wages | F30: =IF(E25<>"Select",(ROUND((ROUNDDOWN(F28/2,0)+(0.99*VLOOKUP(ROUNDDOWN(F28/2,0),IF(E25="Claim Tax Free Threshold",NEWPAYGW.TFT,NEWPAYGW.NOTFT),4))-VLOOKUP(ROUNDDOWN(F28/2,0),IF(E25="Claim Tax Free Threshold",NEWPAYGW.TFT,NEWPAYGW.NOTFT),5))/(1-VLOOKUP(ROUNDDOWN(F28/2,0),IF(E25="Claim Tax Free Threshold",NEWPAYGW.TFT,NEWPAYGW.NOTFT),4)),0))*2,0) -> 0 | G30: =IF(E25<>"Select",(ROUND((ROUNDDOWN(G28/2,0)+(0.99*VLOOKUP(ROUNDDOWN(G28/2,0),IF(E25="Claim Tax Free Threshold",NEWPAYGW.TFT,NEWPAYGW.NOTFT),4))-VLOOKUP(ROUNDDOWN(G28/2,0),IF(E25="Claim Tax Free Threshold",NEWPAYGW.TFT,NEWPAYGW.NOTFT),5))/(1-VLOOKUP(ROUNDDOWN(G28/2,0),IF(E25="Claim Tax Free Threshold",NEWPAYGW.TFT,NEWPAYGW.NOTFT),4)),0))*2,0) -> 0 | H30: =IF(E25<>"Select",(ROUND((ROUNDDOWN(H28/2,0)+(0.99*VLOOKUP(ROUNDDOWN(H28/2,0),IF(E25="Claim Tax Free Threshold",NEWPAYGW.TFT,NEWPAYGW.NOTFT),4))-VLOOKUP(ROUNDDOWN(H28/2,0),IF(E25="Claim Tax Free Threshold",NEWPAYGW.TFT,NEWPAYGW.NOTFT),5))/(1-VLOOKUP(ROUNDDOWN(H28/2,0),IF(E25="Claim Tax Free Threshold",NEWPAYGW.TFT,NEWPAYGW.NOTFT),4)),0))*2,0) -> 0 | I30: =IF(E25<>"Select",(ROUND((ROUNDDOWN(I28/2,0)+(0.99*VLOOKUP(ROUNDDOWN(I28/2,0),IF(E25="Claim Tax Free Threshold",NEWPAYGW.TFT,NEWPAYGW.NOTFT),4))-VLOOKUP(ROUNDDOWN(I28/2,0),IF(E25="Claim Tax Free Threshold",NEWPAYGW.TFT,NEWPAYGW.NOTFT),5))/(1-VLOOKUP(ROUNDDOWN(I28/2,0),IF(E25="Claim Tax Free Threshold",NEWPAYGW.TFT,NEWPAYGW.NOTFT),4)),0))*2,0) -> 0 | J30: =IF(E25<>"Select",(ROUND((ROUNDDOWN(J28/2,0)+(0.99*VLOOKUP(ROUNDDOWN(J28/2,0),IF(E25="Claim Tax Free Threshold",NEWPAYGW.TFT,NEWPAYGW.NOTFT),4))-VLOOKUP(ROUNDDOWN(J28/2,0),IF(E25="Claim Tax Free Threshold",NEWPAYGW.TFT,NEWPAYGW.NOTFT),5))/(1-VLOOKUP(ROUNDDOWN(J28/2,0),IF(E25="Claim Tax Free Threshold",NEWPAYGW.TFT,NEWPAYGW.NOTFT),4)),0))*2,0) -> 0 | K30: =SUM(F30:J30) -> 0 | O30: blank
O31: blank
C32: 4 | E32: =Summary!E14 -> Employee 4 Name | O32: =IF(OR(K34<>0,K35<>0,K36<>0,K37<>0,K38<>0),0,"blank") -> blank
E33: Select | O33: =O32 -> blank
E34: Wages Paid from Accounting Records | K34: =SUM(F34:J34) -> 0 | O34: =O33 -> blank
E35: Less PAYG Withholding Payments to the ATO (if incl above) | K35: =SUM(F35:J35) -> 0 | O35: blank
E36: Net Wages | F36: =F34-F35 -> 0 | G36: =G34-G35 -> 0 | H36: 0 | I36: 0 | J36: 0 | K36: =SUM(F36:J36) -> 0 | O36: blank
E37: Add PAYG Withholding | F37: =IF(E33<>"Select",F38-F36,0) -> 0 | G37: =IF(E33<>"Select",G38-G36,0) -> 0 | H37: =IF(E33<>"Select",H38-H36,0) -> 0 | I37: =IF(E33<>"Select",I38-I36,0) -> 0 | J37: =IF(E33<>"Select",J38-J36,0) -> 0 | K37: =SUM(F37:J37) -> 0 | O37: blank
E38: Gross Wages | F38: =IF(E33<>"Select",(ROUND((ROUNDDOWN(F36/2,0)+(0.99*VLOOKUP(ROUNDDOWN(F36/2,0),IF(E33="Claim Tax Free Threshold",NEWPAYGW.TFT,NEWPAYGW.NOTFT),4))-VLOOKUP(ROUNDDOWN(F36/2,0),IF(E33="Claim Tax Free Threshold",NEWPAYGW.TFT,NEWPAYGW.NOTFT),5))/(1-VLOOKUP(ROUNDDOWN(F36/2,0),IF(E33="Claim Tax Free Threshold",NEWPAYGW.TFT,NEWPAYGW.NOTFT),4)),0))*2,0) -> 0 | G38: =IF(E33<>"Select",(ROUND((ROUNDDOWN(G36/2,0)+(0.99*VLOOKUP(ROUNDDOWN(G36/2,0),IF(E33="Claim Tax Free Threshold",NEWPAYGW.TFT,NEWPAYGW.NOTFT),4))-VLOOKUP(ROUNDDOWN(G36/2,0),IF(E33="Claim Tax Free Threshold",NEWPAYGW.TFT,NEWPAYGW.NOTFT),5))/(1-VLOOKUP(ROUNDDOWN(G36/2,0),IF(E33="Claim Tax Free Threshold",NEWPAYGW.TFT,NEWPAYGW.NOTFT),4)),0))*2,0) -> 0 | H38: =IF(E33<>"Select",(ROUND((ROUNDDOWN(H36/2,0)+(0.99*VLOOKUP(ROUNDDOWN(H36/2,0),IF(E33="Claim Tax Free Threshold",NEWPAYGW.TFT,NEWPAYGW.NOTFT),4))-VLOOKUP(ROUNDDOWN(H36/2,0),IF(E33="Claim Tax Free Threshold",NEWPAYGW.TFT,NEWPAYGW.NOTFT),5))/(1-VLOOKUP(ROUNDDOWN(H36/2,0),IF(E33="Claim Tax Free Threshold",NEWPAYGW.TFT,NEWPAYGW.NOTFT),4)),0))*2,0) -> 0 | I38: =IF(E33<>"Select",(ROUND((ROUNDDOWN(I36/2,0)+(0.99*VLOOKUP(ROUNDDOWN(I36/2,0),IF(E33="Claim Tax Free Threshold",NEWPAYGW.TFT,NEWPAYGW.NOTFT),4))-VLOOKUP(ROUNDDOWN(I36/2,0),IF(E33="Claim Tax Free Threshold",NEWPAYGW.TFT,NEWPAYGW.NOTFT),5))/(1-VLOOKUP(ROUNDDOWN(I36/2,0),IF(E33="Claim Tax Free Threshold",NEWPAYGW.TFT,NEWPAYGW.NOTFT),4)),0))*2,0) -> 0 | J38: =IF(E33<>"Select",(ROUND((ROUNDDOWN(J36/2,0)+(0.99*VLOOKUP(ROUNDDOWN(J36/2,0),IF(E33="Claim Tax Free Threshold",NEWPAYGW.TFT,NEWPAYGW.NOTFT),4))-VLOOKUP(ROUNDDOWN(J36/2,0),IF(E33="Claim Tax Free Threshold",NEWPAYGW.TFT,NEWPAYGW.NOTFT),5))/(1-VLOOKUP(ROUNDDOWN(J36/2,0),IF(E33="Claim Tax Free Threshold",NEWPAYGW.TFT,NEWPAYGW.NOTFT),4)),0))*2,0) -> 0 | K38: =SUM(F38:J38) -> 0 | O38: blank
O39: blank
C40: 5 | E40: =Summary!E15 -> Employee 5 Name | O40: =IF(OR(K42<>0,K43<>0,K44<>0,K45<>0,K46<>0),0,"blank") -> blank
E41: Select | O41: =O40 -> blank
E42: Wages Paid from Accounting Records | K42: =SUM(F42:J42) -> 0 | O42: =O41 -> blank
E43: Less PAYG Withholding Payments to the ATO (if incl above) | K43: =SUM(F43:J43) -> 0 | O43: blank
E44: Net Wages | F44: =F42-F43 -> 0 | G44: =G42-G43 -> 0 | H44: 0 | I44: 0 | J44: 0 | K44: =SUM(F44:J44) -> 0 | O44: blank
E45: Add PAYG Withholding | F45: =IF(E41<>"Select",F46-F44,0) -> 0 | G45: =IF(E41<>"Select",G46-G44,0) -> 0 | H45: =IF(E41<>"Select",H46-H44,0) -> 0 | I45: =IF(E41<>"Select",I46-I44,0) -> 0 | J45: =IF(E41<>"Select",J46-J44,0) -> 0 | K45: =SUM(F45:J45) -> 0 | O45: blank
E46: Gross Wages | F46: =IF(E41<>"Select",(ROUND((ROUNDDOWN(F44/2,0)+(0.99*VLOOKUP(ROUNDDOWN(F44/2,0),IF(E41="Claim Tax Free Threshold",NEWPAYGW.TFT,NEWPAYGW.NOTFT),4))-VLOOKUP(ROUNDDOWN(F44/2,0),IF(E41="Claim Tax Free Threshold",NEWPAYGW.TFT,NEWPAYGW.NOTFT),5))/(1-VLOOKUP(ROUNDDOWN(F44/2,0),IF(E41="Claim Tax Free Threshold",NEWPAYGW.TFT,NEWPAYGW.NOTFT),4)),0))*2,0) -> 0 | G46: =IF(E41<>"Select",(ROUND((ROUNDDOWN(G44/2,0)+(0.99*VLOOKUP(ROUNDDOWN(G44/2,0),IF(E41="Claim Tax Free Threshold",NEWPAYGW.TFT,NEWPAYGW.NOTFT),4))-VLOOKUP(ROUNDDOWN(G44/2,0),IF(E41="Claim Tax Free Threshold",NEWPAYGW.TFT,NEWPAYGW.NOTFT),5))/(1-VLOOKUP(ROUNDDOWN(G44/2,0),IF(E41="Claim Tax Free Threshold",NEWPAYGW.TFT,NEWPAYGW.NOTFT),4)),0))*2,0) -> 0 | H46: =IF(E41<>"Select",(ROUND((ROUNDDOWN(H44/2,0)+(0.99*VLOOKUP(ROUNDDOWN(H44/2,0),IF(E41="Claim Tax Free Threshold",NEWPAYGW.TFT,NEWPAYGW.NOTFT),4))-VLOOKUP(ROUNDDOWN(H44/2,0),IF(E41="Claim Tax Free Threshold",NEWPAYGW.TFT,NEWPAYGW.NOTFT),5))/(1-VLOOKUP(ROUNDDOWN(H44/2,0),IF(E41="Claim Tax Free Threshold",NEWPAYGW.TFT,NEWPAYGW.NOTFT),4)),0))*2,0) -> 0 | I46: =IF(E41<>"Select",(ROUND((ROUNDDOWN(I44/2,0)+(0.99*VLOOKUP(ROUNDDOWN(I44/2,0),IF(E41="Claim Tax Free Threshold",NEWPAYGW.TFT,NEWPAYGW.NOTFT),4))-VLOOKUP(ROUNDDOWN(I44/2,0),IF(E41="Claim Tax Free Threshold",NEWPAYGW.TFT,NEWPAYGW.NOTFT),5))/(1-VLOOKUP(ROUNDDOWN(I44/2,0),IF(E41="Claim Tax Free Threshold",NEWPAYGW.TFT,NEWPAYGW.NOTFT),4)),0))*2,0) -> 0 | J46: =IF(E41<>"Select",(ROUND((ROUNDDOWN(J44/2,0)+(0.99*VLOOKUP(ROUNDDOWN(J44/2,0),IF(E41="Claim Tax Free Threshold",NEWPAYGW.TFT,NEWPAYGW.NOTFT),4))-VLOOKUP(ROUNDDOWN(J44/2,0),IF(E41="Claim Tax Free Threshold",NEWPAYGW.TFT,NEWPAYGW.NOTFT),5))/(1-VLOOKUP(ROUNDDOWN(J44/2,0),IF(E41="Claim Tax Free Threshold",NEWPAYGW.TFT,NEWPAYGW.NOTFT),4)),0))*2,0) -> 0 | K46: =SUM(F46:J46) -> 0 | O46: blank
O47: blank
C48: 6 | E48: =Summary!E16 -> Employee 6 Name | O48: =IF(OR(K50<>0,K51<>0,K52<>0,K53<>0,K54<>0),0,"blank") -> blank
E49: Select | O49: =O48 -> blank
E50: Wages Paid from Accounting Records | K50: =SUM(F50:J50) -> 0 | O50: =O49 -> blank
E51: Less PAYG Withholding Payments to the ATO (if incl above) | K51: =SUM(F51:J51) -> 0 | O51: blank
E52: Net Wages | F52: =F50-F51 -> 0 | G52: =G50-G51 -> 0 | H52: 0 | I52: 0 | J52: 0 | K52: =SUM(F52:J52) -> 0 | O52: blank
E53: Add PAYG Withholding | F53: =IF(E49<>"Select",F54-F52,0) -> 0 | G53: =IF(E49<>"Select",G54-G52,0) -> 0 | H53: =IF(E49<>"Select",H54-H52,0) -> 0 | I53: =IF(E49<>"Select",I54-I52,0) -> 0 | J53: =IF(E49<>"Select",J54-J52,0) -> 0 | K53: =SUM(F53:J53) -> 0 | O53: blank
E54: Gross Wages | F54: =IF(E49<>"Select",(ROUND((ROUNDDOWN(F52/2,0)+(0.99*VLOOKUP(ROUNDDOWN(F52/2,0),IF(E49="Claim Tax Free Threshold",NEWPAYGW.TFT,NEWPAYGW.NOTFT),4))-VLOOKUP(ROUNDDOWN(F52/2,0),IF(E49="Claim Tax Free Threshold",NEWPAYGW.TFT,NEWPAYGW.NOTFT),5))/(1-VLOOKUP(ROUNDDOWN(F52/2,0),IF(E49="Claim Tax Free Threshold",NEWPAYGW.TFT,NEWPAYGW.NOTFT),4)),0))*2,0) -> 0 | G54: =IF(E49<>"Select",(ROUND((ROUNDDOWN(G52/2,0)+(0.99*VLOOKUP(ROUNDDOWN(G52/2,0),IF(E49="Claim Tax Free Threshold",NEWPAYGW.TFT,NEWPAYGW.NOTFT),4))-VLOOKUP(ROUNDDOWN(G52/2,0),IF(E49="Claim Tax Free Threshold",NEWPAYGW.TFT,NEWPAYGW.NOTFT),5))/(1-VLOOKUP(ROUNDDOWN(G52/2,0),IF(E49="Claim Tax Free Threshold",NEWPAYGW.TFT,NEWPAYGW.NOTFT),4)),0))*2,0) -> 0 | H54: =IF(E49<>"Select",(ROUND((ROUNDDOWN(H52/2,0)+(0.99*VLOOKUP(ROUNDDOWN(H52/2,0),IF(E49="Claim Tax Free Threshold",NEWPAYGW.TFT,NEWPAYGW.NOTFT),4))-VLOOKUP(ROUNDDOWN(H52/2,0),IF(E49="Claim Tax Free Threshold",NEWPAYGW.TFT,NEWPAYGW.NOTFT),5))/(1-VLOOKUP(ROUNDDOWN(H52/2,0),IF(E49="Claim Tax Free Threshold",NEWPAYGW.TFT,NEWPAYGW.NOTFT),4)),0))*2,0) -> 0 | I54: =IF(E49<>"Select",(ROUND((ROUNDDOWN(I52/2,0)+(0.99*VLOOKUP(ROUNDDOWN(I52/2,0),IF(E49="Claim Tax Free Threshold",NEWPAYGW.TFT,NEWPAYGW.NOTFT),4))-VLOOKUP(ROUNDDOWN(I52/2,0),IF(E49="Claim Tax Free Threshold",NEWPAYGW.TFT,NEWPAYGW.NOTFT),5))/(1-VLOOKUP(ROUNDDOWN(I52/2,0),IF(E49="Claim Tax Free Threshold",NEWPAYGW.TFT,NEWPAYGW.NOTFT),4)),0))*2,0) -> 0 | J54: =IF(E49<>"Select",(ROUND((ROUNDDOWN(J52/2,0)+(0.99*VLOOKUP(ROUNDDOWN(J52/2,0),IF(E49="Claim Tax Free Threshold",NEWPAYGW.TFT,NEWPAYGW.NOTFT),4))-VLOOKUP(ROUNDDOWN(J52/2,0),IF(E49="Claim Tax Free Threshold",NEWPAYGW.TFT,NEWPAYGW.NOTFT),5))/(1-VLOOKUP(ROUNDDOWN(J52/2,0),IF(E49="Claim Tax Free Threshold",NEWPAYGW.TFT,NEWPAYGW.NOTFT),4)),0))*2,0) -> 0 | K54: =SUM(F54:J54) -> 0 | O54: blank
O55: blank
C56: 7 | E56: =Summary!E17 -> Employee 7 Name | O56: =IF(OR(K58<>0,K59<>0,K60<>0,K61<>0,K62<>0),0,"blank") -> blank
E57: Select | O57: =O56 -> blank
E58: Wages Paid from Accounting Records | K58: =SUM(F58:J58) -> 0 | O58: =O57 -> blank
E59: Less PAYG Withholding Payments to the ATO (if incl above) | K59: =SUM(F59:J59) -> 0 | O59: blank
E60: Net Wages | F60: =F58-F59 -> 0 | G60: =G58-G59 -> 0 | H60: 0 | I60: 0 | J60: 0 | K60: =SUM(F60:J60) -> 0 | O60: blank
E61: Add PAYG Withholding | F61: =IF(E57<>"Select",F62-F60,0) -> 0 | G61: =IF(E57<>"Select",G62-G60,0) -> 0 | H61: =IF(E57<>"Select",H62-H60,0) -> 0 | I61: =IF(E57<>"Select",I62-I60,0) -> 0 | J61: =IF(E57<>"Select",J62-J60,0) -> 0 | K61: =SUM(F61:J61) -> 0 | O61: blank
E62: Gross Wages | F62: =IF(E57<>"Select",(ROUND((ROUNDDOWN(F60/2,0)+(0.99*VLOOKUP(ROUNDDOWN(F60/2,0),IF(E57="Claim Tax Free Threshold",NEWPAYGW.TFT,NEWPAYGW.NOTFT),4))-VLOOKUP(ROUNDDOWN(F60/2,0),IF(E57="Claim Tax Free Threshold",NEWPAYGW.TFT,NEWPAYGW.NOTFT),5))/(1-VLOOKUP(ROUNDDOWN(F60/2,0),IF(E57="Claim Tax Free Threshold",NEWPAYGW.TFT,NEWPAYGW.NOTFT),4)),0))*2,0) -> 0 | G62: =IF(E57<>"Select",(ROUND((ROUNDDOWN(G60/2,0)+(0.99*VLOOKUP(ROUNDDOWN(G60/2,0),IF(E57="Claim Tax Free Threshold",NEWPAYGW.TFT,NEWPAYGW.NOTFT),4))-VLOOKUP(ROUNDDOWN(G60/2,0),IF(E57="Claim Tax Free Threshold",NEWPAYGW.TFT,NEWPAYGW.NOTFT),5))/(1-VLOOKUP(ROUNDDOWN(G60/2,0),IF(E57="Claim Tax Free Threshold",NEWPAYGW.TFT,NEWPAYGW.NOTFT),4)),0))*2,0) -> 0 | H62: =IF(E57<>"Select",(ROUND((ROUNDDOWN(H60/2,0)+(0.99*VLOOKUP(ROUNDDOWN(H60/2,0),IF(E57="Claim Tax Free Threshold",NEWPAYGW.TFT,NEWPAYGW.NOTFT),4))-VLOOKUP(ROUNDDOWN(H60/2,0),IF(E57="Claim Tax Free Threshold",NEWPAYGW.TFT,NEWPAYGW.NOTFT),5))/(1-VLOOKUP(ROUNDDOWN(H60/2,0),IF(E57="Claim Tax Free Threshold",NEWPAYGW.TFT,NEWPAYGW.NOTFT),4)),0))*2,0) -> 0 | I62: =IF(E57<>"Select",(ROUND((ROUNDDOWN(I60/2,0)+(0.99*VLOOKUP(ROUNDDOWN(I60/2,0),IF(E57="Claim Tax Free Threshold",NEWPAYGW.TFT,NEWPAYGW.NOTFT),4))-VLOOKUP(ROUNDDOWN(I60/2,0),IF(E57="Claim Tax Free Threshold",NEWPAYGW.TFT,NEWPAYGW.NOTFT),5))/(1-VLOOKUP(ROUNDDOWN(I60/2,0),IF(E57="Claim Tax Free Threshold",NEWPAYGW.TFT,NEWPAYGW.NOTFT),4)),0))*2,0) -> 0 | J62: =IF(E57<>"Select",(ROUND((ROUNDDOWN(J60/2,0)+(0.99*VLOOKUP(ROUNDDOWN(J60/2,0),IF(E57="Claim Tax Free Threshold",NEWPAYGW.TFT,NEWPAYGW.NOTFT),4))-VLOOKUP(ROUNDDOWN(J60/2,0),IF(E57="Claim Tax Free Threshold",NEWPAYGW.TFT,NEWPAYGW.NOTFT),5))/(1-VLOOKUP(ROUNDDOWN(J60/2,0),IF(E57="Claim Tax Free Threshold",NEWPAYGW.TFT,NEWPAYGW.NOTFT),4)),0))*2,0) -> 0 | K62: =SUM(F62:J62) -> 0 | O62: blank
O63: blank
C64: 8 | E64: =Summary!E18 -> Employee 8 Name | O64: =IF(OR(K66<>0,K67<>0,K68<>0,K69<>0,K70<>0),0,"blank") -> blank
E65: Select | O65: =O64 -> blank
E66: Wages Paid from Accounting Records | K66: =SUM(F66:J66) -> 0 | O66: =O65 -> blank
E67: Less PAYG Withholding Payments to the ATO (if incl above) | K67: =SUM(F67:J67) -> 0 | O67: blank
E68: Net Wages | F68: =F66-F67 -> 0 | G68: =G66-G67 -> 0 | H68: 0 | I68: 0 | J68: 0 | K68: =SUM(F68:J68) -> 0 | O68: blank
E69: Add PAYG Withholding | F69: =IF(E65<>"Select",F70-F68,0) -> 0 | G69: =IF(E65<>"Select",G70-G68,0) -> 0 | H69: =IF(E65<>"Select",H70-H68,0) -> 0 | I69: =IF(E65<>"Select",I70-I68,0) -> 0 | J69: =IF(E65<>"Select",J70-J68,0) -> 0 | K69: =SUM(F69:J69) -> 0 | O69: blank
E70: Gross Wages | F70: =IF(E65<>"Select",(ROUND((ROUNDDOWN(F68/2,0)+(0.99*VLOOKUP(ROUNDDOWN(F68/2,0),IF(E65="Claim Tax Free Threshold",NEWPAYGW.TFT,NEWPAYGW.NOTFT),4))-VLOOKUP(ROUNDDOWN(F68/2,0),IF(E65="Claim Tax Free Threshold",NEWPAYGW.TFT,NEWPAYGW.NOTFT),5))/(1-VLOOKUP(ROUNDDOWN(F68/2,0),IF(E65="Claim Tax Free Threshold",NEWPAYGW.TFT,NEWPAYGW.NOTFT),4)),0))*2,0) -> 0 | G70: =IF(E65<>"Select",(ROUND((ROUNDDOWN(G68/2,0)+(0.99*VLOOKUP(ROUNDDOWN(G68/2,0),IF(E65="Claim Tax Free Threshold",NEWPAYGW.TFT,NEWPAYGW.NOTFT),4))-VLOOKUP(ROUNDDOWN(G68/2,0),IF(E65="Claim Tax Free Threshold",NEWPAYGW.TFT,NEWPAYGW.NOTFT),5))/(1-VLOOKUP(ROUNDDOWN(G68/2,0),IF(E65="Claim Tax Free Threshold",NEWPAYGW.TFT,NEWPAYGW.NOTFT),4)),0))*2,0) -> 0 | H70: =IF(E65<>"Select",(ROUND((ROUNDDOWN(H68/2,0)+(0.99*VLOOKUP(ROUNDDOWN(H68/2,0),IF(E65="Claim Tax Free Threshold",NEWPAYGW.TFT,NEWPAYGW.NOTFT),4))-VLOOKUP(ROUNDDOWN(H68/2,0),IF(E65="Claim Tax Free Threshold",NEWPAYGW.TFT,NEWPAYGW.NOTFT),5))/(1-VLOOKUP(ROUNDDOWN(H68/2,0),IF(E65="Claim Tax Free Threshold",NEWPAYGW.TFT,NEWPAYGW.NOTFT),4)),0))*2,0) -> 0 | I70: =IF(E65<>"Select",(ROUND((ROUNDDOWN(I68/2,0)+(0.99*VLOOKUP(ROUNDDOWN(I68/2,0),IF(E65="Claim Tax Free Threshold",NEWPAYGW.TFT,NEWPAYGW.NOTFT),4))-VLOOKUP(ROUNDDOWN(I68/2,0),IF(E65="Claim Tax Free Threshold",NEWPAYGW.TFT,NEWPAYGW.NOTFT),5))/(1-VLOOKUP(ROUNDDOWN(I68/2,0),IF(E65="Claim Tax Free Threshold",NEWPAYGW.TFT,NEWPAYGW.NOTFT),4)),0))*2,0) -> 0 | J70: =IF(E65<>"Select",(ROUND((ROUNDDOWN(J68/2,0)+(0.99*VLOOKUP(ROUNDDOWN(J68/2,0),IF(E65="Claim Tax Free Threshold",NEWPAYGW.TFT,NEWPAYGW.NOTFT),4))-VLOOKUP(ROUNDDOWN(J68/2,0),IF(E65="Claim Tax Free Threshold",NEWPAYGW.TFT,NEWPAYGW.NOTFT),5))/(1-VLOOKUP(ROUNDDOWN(J68/2,0),IF(E65="Claim Tax Free Threshold",NEWPAYGW.TFT,NEWPAYGW.NOTFT),4)),0))*2,0) -> 0 | K70: =SUM(F70:J70) -> 0 | O70: blank
O71: blank
C72: 9 | E72: =Summary!E19 -> Employee 9 Name | O72: =IF(OR(K74<>0,K75<>0,K76<>0,K77<>0,K78<>0),0,"blank") -> blank
E73: Select | O73: =O72 -> blank
E74: Wages Paid from Accounting Records | K74: =SUM(F74:J74) -> 0 | O74: =O73 -> blank
E75: Less PAYG Withholding Payments to the ATO (if incl above) | K75: =SUM(F75:J75) -> 0 | O75: blank
E76: Net Wages | F76: =F74-F75 -> 0 | G76: =G74-G75 -> 0 | H76: 0 | I76: 0 | J76: 0 | K76: =SUM(F76:J76) -> 0 | O76: blank
E77: Add PAYG Withholding | F77: =IF(E73<>"Select",F78-F76,0) -> 0 | G77: =IF(E73<>"Select",G78-G76,0) -> 0 | H77: =IF(E73<>"Select",H78-H76,0) -> 0 | I77: =IF(E73<>"Select",I78-I76,0) -> 0 | J77: =IF(E73<>"Select",J78-J76,0) -> 0 | K77: =SUM(F77:J77) -> 0 | O77: blank
E78: Gross Wages | F78: =IF(E73<>"Select",(ROUND((ROUNDDOWN(F76/2,0)+(0.99*VLOOKUP(ROUNDDOWN(F76/2,0),IF(E73="Claim Tax Free Threshold",NEWPAYGW.TFT,NEWPAYGW.NOTFT),4))-VLOOKUP(ROUNDDOWN(F76/2,0),IF(E73="Claim Tax Free Threshold",NEWPAYGW.TFT,NEWPAYGW.NOTFT),5))/(1-VLOOKUP(ROUNDDOWN(F76/2,0),IF(E73="Claim Tax Free Threshold",NEWPAYGW.TFT,NEWPAYGW.NOTFT),4)),0))*2,0) -> 0 | G78: =IF(E73<>"Select",(ROUND((ROUNDDOWN(G76/2,0)+(0.99*VLOOKUP(ROUNDDOWN(G76/2,0),IF(E73="Claim Tax Free Threshold",NEWPAYGW.TFT,NEWPAYGW.NOTFT),4))-VLOOKUP(ROUNDDOWN(G76/2,0),IF(E73="Claim Tax Free Threshold",NEWPAYGW.TFT,NEWPAYGW.NOTFT),5))/(1-VLOOKUP(ROUNDDOWN(G76/2,0),IF(E73="Claim Tax Free Threshold",NEWPAYGW.TFT,NEWPAYGW.NOTFT),4)),0))*2,0) -> 0 | H78: =IF(E73<>"Select",(ROUND((ROUNDDOWN(H76/2,0)+(0.99*VLOOKUP(ROUNDDOWN(H76/2,0),IF(E73="Claim Tax Free Threshold",NEWPAYGW.TFT,NEWPAYGW.NOTFT),4))-VLOOKUP(ROUNDDOWN(H76/2,0),IF(E73="Claim Tax Free Threshold",NEWPAYGW.TFT,NEWPAYGW.NOTFT),5))/(1-VLOOKUP(ROUNDDOWN(H76/2,0),IF(E73="Claim Tax Free Threshold",NEWPAYGW.TFT,NEWPAYGW.NOTFT),4)),0))*2,0) -> 0 | I78: =IF(E73<>"Select",(ROUND((ROUNDDOWN(I76/2,0)+(0.99*VLOOKUP(ROUNDDOWN(I76/2,0),IF(E73="Claim Tax Free Threshold",NEWPAYGW.TFT,NEWPAYGW.NOTFT),4))-VLOOKUP(ROUNDDOWN(I76/2,0),IF(E73="Claim Tax Free Threshold",NEWPAYGW.TFT,NEWPAYGW.NOTFT),5))/(1-VLOOKUP(ROUNDDOWN(I76/2,0),IF(E73="Claim Tax Free Threshold",NEWPAYGW.TFT,NEWPAYGW.NOTFT),4)),0))*2,0) -> 0 | J78: =IF(E73<>"Select",(ROUND((ROUNDDOWN(J76/2,0)+(0.99*VLOOKUP(ROUNDDOWN(J76/2,0),IF(E73="Claim Tax Free Threshold",NEWPAYGW.TFT,NEWPAYGW.NOTFT),4))-VLOOKUP(ROUNDDOWN(J76/2,0),IF(E73="Claim Tax Free Threshold",NEWPAYGW.TFT,NEWPAYGW.NOTFT),5))/(1-VLOOKUP(ROUNDDOWN(J76/2,0),IF(E73="Claim Tax Free Threshold",NEWPAYGW.TFT,NEWPAYGW.NOTFT),4)),0))*2,0) -> 0 | K78: =SUM(F78:J78) -> 0 | O78: blank
O79: blank
C80: 10 | E80: =Summary!E20 -> Employee 10 Name | O80: =IF(OR(K82<>0,K83<>0,K84<>0,K85<>0,K86<>0),0,"blank") -> blank
E81: Select | O81: =O80 -> blank
E82: Wages Paid from Accounting Records | K82: =SUM(F82:J82) -> 0 | O82: =O81 -> blank
E83: Less PAYG Withholding Payments to the ATO (if incl above) | K83: =SUM(F83:J83) -> 0 | O83: blank
E84: Net Wages | F84: =F82-F83 -> 0 | G84: =G82-G83 -> 0 | H84: 0 | I84: 0 | J84: 0 | K84: =SUM(F84:J84) -> 0 | O84: blank
E85: Add PAYG Withholding | F85: =IF(E81<>"Select",F86-F84,0) -> 0 | G85: =IF(E81<>"Select",G86-G84,0) -> 0 | H85: =IF(E81<>"Select",H86-H84,0) -> 0 | I85: =IF(E81<>"Select",I86-I84,0) -> 0 | J85: =IF(E81<>"Select",J86-J84,0) -> 0 | K85: =SUM(F85:J85) -> 0 | O85: blank
E86: Gross Wages | F86: =IF(E81<>"Select",(ROUND((ROUNDDOWN(F84/2,0)+(0.99*VLOOKUP(ROUNDDOWN(F84/2,0),IF(E81="Claim Tax Free Threshold",NEWPAYGW.TFT,NEWPAYGW.NOTFT),4))-VLOOKUP(ROUNDDOWN(F84/2,0),IF(E81="Claim Tax Free Threshold",NEWPAYGW.TFT,NEWPAYGW.NOTFT),5))/(1-VLOOKUP(ROUNDDOWN(F84/2,0),IF(E81="Claim Tax Free Threshold",NEWPAYGW.TFT,NEWPAYGW.NOTFT),4)),0))*2,0) -> 0 | G86: =IF(E81<>"Select",(ROUND((ROUNDDOWN(G84/2,0)+(0.99*VLOOKUP(ROUNDDOWN(G84/2,0),IF(E81="Claim Tax Free Threshold",NEWPAYGW.TFT,NEWPAYGW.NOTFT),4))-VLOOKUP(ROUNDDOWN(G84/2,0),IF(E81="Claim Tax Free Threshold",NEWPAYGW.TFT,NEWPAYGW.NOTFT),5))/(1-VLOOKUP(ROUNDDOWN(G84/2,0),IF(E81="Claim Tax Free Threshold",NEWPAYGW.TFT,NEWPAYGW.NOTFT),4)),0))*2,0) -> 0 | H86: =IF(E81<>"Select",(ROUND((ROUNDDOWN(H84/2,0)+(0.99*VLOOKUP(ROUNDDOWN(H84/2,0),IF(E81="Claim Tax Free Threshold",NEWPAYGW.TFT,NEWPAYGW.NOTFT),4))-VLOOKUP(ROUNDDOWN(H84/2,0),IF(E81="Claim Tax Free Threshold",NEWPAYGW.TFT,NEWPAYGW.NOTFT),5))/(1-VLOOKUP(ROUNDDOWN(H84/2,0),IF(E81="Claim Tax Free Threshold",NEWPAYGW.TFT,NEWPAYGW.NOTFT),4)),0))*2,0) -> 0 | I86: =IF(E81<>"Select",(ROUND((ROUNDDOWN(I84/2,0)+(0.99*VLOOKUP(ROUNDDOWN(I84/2,0),IF(E81="Claim Tax Free Threshold",NEWPAYGW.TFT,NEWPAYGW.NOTFT),4))-VLOOKUP(ROUNDDOWN(I84/2,0),IF(E81="Claim Tax Free Threshold",NEWPAYGW.TFT,NEWPAYGW.NOTFT),5))/(1-VLOOKUP(ROUNDDOWN(I84/2,0),IF(E81="Claim Tax Free Threshold",NEWPAYGW.TFT,NEWPAYGW.NOTFT),4)),0))*2,0) -> 0 | J86: =IF(E81<>"Select",(ROUND((ROUNDDOWN(J84/2,0)+(0.99*VLOOKUP(ROUNDDOWN(J84/2,0),IF(E81="Claim Tax Free Threshold",NEWPAYGW.TFT,NEWPAYGW.NOTFT),4))-VLOOKUP(ROUNDDOWN(J84/2,0),IF(E81="Claim Tax Free Threshold",NEWPAYGW.TFT,NEWPAYGW.NOTFT),5))/(1-VLOOKUP(ROUNDDOWN(J84/2,0),IF(E81="Claim Tax Free Threshold",NEWPAYGW.TFT,NEWPAYGW.NOTFT),4)),0))*2,0) -> 0 | K86: =SUM(F86:J86) -> 0 | O86: blank
O87: blank
E89: Monthly Summary
E90: Gross Wages | F90: =F14+F22+F30+F38+F46+F54+F62+F70+F78+F86 -> 0 | G90: =G14+G22+G30+G38+G46+G54+G62+G70+G78+G86 -> 0 | H90: 0 | I90: 0 | J90: 0 | K90: =SUM(F90:J90) -> 0
E91: PAYG Withholding | F91: =F13+F21+F29+F37+F45+F53+F61+F69+F77+F85 -> 0 | G91: =G13+G21+G29+G37+G45+G53+G61+G69+G77+G85 -> 0 | H91: 0 | I91: 0 | J91: 0 | K91: =SUM(F91:J91) -> 0
E92: Net Wages | F92: =F90-F91 -> 0 | G92: =G90-G91 -> 0 | H92: 0 | I92: 0 | J92: 0 | K92: 0
E95: PAYG withholding calculations are for payments of fortnightly wages to resident individuals who have quoted their TFN and are not claiming any Medicare Levy reduction
O96: ="blank" -> blank

Sheet Oct
E1: Gross Pay Estimate - Weekly Wages | K1: =Summary!O2 -> Entity Name | O1: HIDE
E2: =CONCATENATE("Wages for ",TEXT(Month4End,"mmmm yyyy")) -> Wages for October 2017 | K2: =Summary!O3 -> Preparer Name
F5: Wages for Fortnight Ended
K7: Total
C8: 1 | E8: =Summary!E11 -> Employee 1 Name | O8: =IF(OR(K10<>0,K11<>0,K12<>0,K13<>0,K14<>0),0,"blank") -> blank
E9: Select | O9: =O8 -> blank
E10: Wages Paid from Accounting Records | K10: =SUM(F10:J10) -> 0 | O10: =O9 -> blank
E11: Less PAYG Withholding Payments to the ATO (if incl above) | K11: =SUM(F11:J11) -> 0 | O11: blank
E12: Net Wages | F12: =F10-F11 -> 0 | G12: =G10-G11 -> 0 | H12: 0 | I12: 0 | J12: 0 | K12: =SUM(F12:J12) -> 0 | O12: blank
E13: Add PAYG Withholding | F13: =IF(E9<>"Select",F14-F12,0) -> 0 | G13: =IF(E9<>"Select",G14-G12,0) -> 0 | H13: =IF(E9<>"Select",H14-H12,0) -> 0 | I13: =IF(E9<>"Select",I14-I12,0) -> 0 | J13: =IF(E9<>"Select",J14-J12,0) -> 0 | K13: =SUM(F13:J13) -> 0 | O13: blank
E14: Gross Wages | F14: =IF(E9<>"Select",(ROUND((ROUNDDOWN(F12/2,0)+(0.99*VLOOKUP(ROUNDDOWN(F12/2,0),IF(E9="Claim Tax Free Threshold",NEWPAYGW.TFT,NEWPAYGW.NOTFT),4))-VLOOKUP(ROUNDDOWN(F12/2,0),IF(E9="Claim Tax Free Threshold",NEWPAYGW.TFT,NEWPAYGW.NOTFT),5))/(1-VLOOKUP(ROUNDDOWN(F12/2,0),IF(E9="Claim Tax Free Threshold",NEWPAYGW.TFT,NEWPAYGW.NOTFT),4)),0))*2,0) -> 0 | G14: =IF(E9<>"Select",(ROUND((ROUNDDOWN(G12/2,0)+(0.99*VLOOKUP(ROUNDDOWN(G12/2,0),IF(E9="Claim Tax Free Threshold",NEWPAYGW.TFT,NEWPAYGW.NOTFT),4))-VLOOKUP(ROUNDDOWN(G12/2,0),IF(E9="Claim Tax Free Threshold",NEWPAYGW.TFT,NEWPAYGW.NOTFT),5))/(1-VLOOKUP(ROUNDDOWN(G12/2,0),IF(E9="Claim Tax Free Threshold",NEWPAYGW.TFT,NEWPAYGW.NOTFT),4)),0))*2,0) -> 0 | H14: =IF(E9<>"Select",(ROUND((ROUNDDOWN(H12/2,0)+(0.99*VLOOKUP(ROUNDDOWN(H12/2,0),IF(E9="Claim Tax Free Threshold",NEWPAYGW.TFT,NEWPAYGW.NOTFT),4))-VLOOKUP(ROUNDDOWN(H12/2,0),IF(E9="Claim Tax Free Threshold",NEWPAYGW.TFT,NEWPAYGW.NOTFT),5))/(1-VLOOKUP(ROUNDDOWN(H12/2,0),IF(E9="Claim Tax Free Threshold",NEWPAYGW.TFT,NEWPAYGW.NOTFT),4)),0))*2,0) -> 0 | I14: =IF(E9<>"Select",(ROUND((ROUNDDOWN(I12/2,0)+(0.99*VLOOKUP(ROUNDDOWN(I12/2,0),IF(E9="Claim Tax Free Threshold",NEWPAYGW.TFT,NEWPAYGW.NOTFT),4))-VLOOKUP(ROUNDDOWN(I12/2,0),IF(E9="Claim Tax Free Threshold",NEWPAYGW.TFT,NEWPAYGW.NOTFT),5))/(1-VLOOKUP(ROUNDDOWN(I12/2,0),IF(E9="Claim Tax Free Threshold",NEWPAYGW.TFT,NEWPAYGW.NOTFT),4)),0))*2,0) -> 0 | J14: =IF(E9<>"Select",(ROUND((ROUNDDOWN(J12/2,0)+(0.99*VLOOKUP(ROUNDDOWN(J12/2,0),IF(E9="Claim Tax Free Threshold",NEWPAYGW.TFT,NEWPAYGW.NOTFT),4))-VLOOKUP(ROUNDDOWN(J12/2,0),IF(E9="Claim Tax Free Threshold",NEWPAYGW.TFT,NEWPAYGW.NOTFT),5))/(1-VLOOKUP(ROUNDDOWN(J12/2,0),IF(E9="Claim Tax Free Threshold",NEWPAYGW.TFT,NEWPAYGW.NOTFT),4)),0))*2,0) -> 0 | K14: =SUM(F14:J14) -> 0 | O14: blank
O15: blank
C16: 2 | E16: =Summary!E12 -> Employee 2 Name | O16: =IF(OR(K18<>0,K19<>0,K20<>0,K21<>0,K22<>0),0,"blank") -> blank
E17: Select | O17: =O16 -> blank
E18: Wages Paid from Accounting Records | K18: =SUM(F18:J18) -> 0 | O18: =O17 -> blank
E19: Less PAYG Withholding Payments to the ATO (if incl above) | K19: =SUM(F19:J19) -> 0 | O19: blank
E20: Net Wages | F20: =F18-F19 -> 0 | G20: =G18-G19 -> 0 | H20: 0 | I20: 0 | J20: 0 | K20: =SUM(F20:J20) -> 0 | O20: blank
E21: Add PAYG Withholding | F21: =IF(E17<>"Select",F22-F20,0) -> 0 | G21: =IF(E17<>"Select",G22-G20,0) -> 0 | H21: =IF(E17<>"Select",H22-H20,0) -> 0 | I21: =IF(E17<>"Select",I22-I20,0) -> 0 | J21: =IF(E17<>"Select",J22-J20,0) -> 0 | K21: =SUM(F21:J21) -> 0 | O21: blank
E22: Gross Wages | F22: =IF(E17<>"Select",(ROUND((ROUNDDOWN(F20/2,0)+(0.99*VLOOKUP(ROUNDDOWN(F20/2,0),IF(E17="Claim Tax Free Threshold",NEWPAYGW.TFT,NEWPAYGW.NOTFT),4))-VLOOKUP(ROUNDDOWN(F20/2,0),IF(E17="Claim Tax Free Threshold",NEWPAYGW.TFT,NEWPAYGW.NOTFT),5))/(1-VLOOKUP(ROUNDDOWN(F20/2,0),IF(E17="Claim Tax Free Threshold",NEWPAYGW.TFT,NEWPAYGW.NOTFT),4)),0))*2,0) -> 0 | G22: =IF(E17<>"Select",(ROUND((ROUNDDOWN(G20/2,0)+(0.99*VLOOKUP(ROUNDDOWN(G20/2,0),IF(E17="Claim Tax Free Threshold",NEWPAYGW.TFT,NEWPAYGW.NOTFT),4))-VLOOKUP(ROUNDDOWN(G20/2,0),IF(E17="Claim Tax Free Threshold",NEWPAYGW.TFT,NEWPAYGW.NOTFT),5))/(1-VLOOKUP(ROUNDDOWN(G20/2,0),IF(E17="Claim Tax Free Threshold",NEWPAYGW.TFT,NEWPAYGW.NOTFT),4)),0))*2,0) -> 0 | H22: =IF(E17<>"Select",(ROUND((ROUNDDOWN(H20/2,0)+(0.99*VLOOKUP(ROUNDDOWN(H20/2,0),IF(E17="Claim Tax Free Threshold",NEWPAYGW.TFT,NEWPAYGW.NOTFT),4))-VLOOKUP(ROUNDDOWN(H20/2,0),IF(E17="Claim Tax Free Threshold",NEWPAYGW.TFT,NEWPAYGW.NOTFT),5))/(1-VLOOKUP(ROUNDDOWN(H20/2,0),IF(E17="Claim Tax Free Threshold",NEWPAYGW.TFT,NEWPAYGW.NOTFT),4)),0))*2,0) -> 0 | I22: =IF(E17<>"Select",(ROUND((ROUNDDOWN(I20/2,0)+(0.99*VLOOKUP(ROUNDDOWN(I20/2,0),IF(E17="Claim Tax Free Threshold",NEWPAYGW.TFT,NEWPAYGW.NOTFT),4))-VLOOKUP(ROUNDDOWN(I20/2,0),IF(E17="Claim Tax Free Threshold",NEWPAYGW.TFT,NEWPAYGW.NOTFT),5))/(1-VLOOKUP(ROUNDDOWN(I20/2,0),IF(E17="Claim Tax Free Threshold",NEWPAYGW.TFT,NEWPAYGW.NOTFT),4)),0))*2,0) -> 0 | J22: =IF(E17<>"Select",(ROUND((ROUNDDOWN(J20/2,0)+(0.99*VLOOKUP(ROUNDDOWN(J20/2,0),IF(E17="Claim Tax Free Threshold",NEWPAYGW.TFT,NEWPAYGW.NOTFT),4))-VLOOKUP(ROUNDDOWN(J20/2,0),IF(E17="Claim Tax Free Threshold",NEWPAYGW.TFT,NEWPAYGW.NOTFT),5))/(1-VLOOKUP(ROUNDDOWN(J20/2,0),IF(E17="Claim Tax Free Threshold",NEWPAYGW.TFT,NEWPAYGW.NOTFT),4)),0))*2,0) -> 0 | K22: =SUM(F22:J22) -> 0 | O22: blank
O23: blank
C24: 3 | E24: =Summary!E13 -> Employee 3 Name | O24: =IF(OR(K26<>0,K27<>0,K28<>0,K29<>0,K30<>0),0,"blank") -> blank
E25: Select | O25: =O24 -> blank
E26: Wages Paid from Accounting Records | K26: =SUM(F26:J26) -> 0 | O26: =O25 -> blank
E27: Less PAYG Withholding Payments to the ATO (if incl above) | K27: =SUM(F27:J27) -> 0 | O27: blank
E28: Net Wages | F28: =F26-F27 -> 0 | G28: =G26-G27 -> 0 | H28: 0 | I28: 0 | J28: 0 | K28: =SUM(F28:J28) -> 0 | O28: blank
E29: Add PAYG Withholding | F29: =IF(E25<>"Select",F30-F28,0) -> 0 | G29: =IF(E25<>"Select",G30-G28,0) -> 0 | H29: =IF(E25<>"Select",H30-H28,0) -> 0 | I29: =IF(E25<>"Select",I30-I28,0) -> 0 | J29: =IF(E25<>"Select",J30-J28,0) -> 0 | K29: =SUM(F29:J29) -> 0 | O29: blank
E30: Gross Wages | F30: =IF(E25<>"Select",(ROUND((ROUNDDOWN(F28/2,0)+(0.99*VLOOKUP(ROUNDDOWN(F28/2,0),IF(E25="Claim Tax Free Threshold",NEWPAYGW.TFT,NEWPAYGW.NOTFT),4))-VLOOKUP(ROUNDDOWN(F28/2,0),IF(E25="Claim Tax Free Threshold",NEWPAYGW.TFT,NEWPAYGW.NOTFT),5))/(1-VLOOKUP(ROUNDDOWN(F28/2,0),IF(E25="Claim Tax Free Threshold",NEWPAYGW.TFT,NEWPAYGW.NOTFT),4)),0))*2,0) -> 0 | G30: =IF(E25<>"Select",(ROUND((ROUNDDOWN(G28/2,0)+(0.99*VLOOKUP(ROUNDDOWN(G28/2,0),IF(E25="Claim Tax Free Threshold",NEWPAYGW.TFT,NEWPAYGW.NOTFT),4))-VLOOKUP(ROUNDDOWN(G28/2,0),IF(E25="Claim Tax Free Threshold",NEWPAYGW.TFT,NEWPAYGW.NOTFT),5))/(1-VLOOKUP(ROUNDDOWN(G28/2,0),IF(E25="Claim Tax Free Threshold",NEWPAYGW.TFT,NEWPAYGW.NOTFT),4)),0))*2,0) -> 0 | H30: =IF(E25<>"Select",(ROUND((ROUNDDOWN(H28/2,0)+(0.99*VLOOKUP(ROUNDDOWN(H28/2,0),IF(E25="Claim Tax Free Threshold",NEWPAYGW.TFT,NEWPAYGW.NOTFT),4))-VLOOKUP(ROUNDDOWN(H28/2,0),IF(E25="Claim Tax Free Threshold",NEWPAYGW.TFT,NEWPAYGW.NOTFT),5))/(1-VLOOKUP(ROUNDDOWN(H28/2,0),IF(E25="Claim Tax Free Threshold",NEWPAYGW.TFT,NEWPAYGW.NOTFT),4)),0))*2,0) -> 0 | I30: =IF(E25<>"Select",(ROUND((ROUNDDOWN(I28/2,0)+(0.99*VLOOKUP(ROUNDDOWN(I28/2,0),IF(E25="Claim Tax Free Threshold",NEWPAYGW.TFT,NEWPAYGW.NOTFT),4))-VLOOKUP(ROUNDDOWN(I28/2,0),IF(E25="Claim Tax Free Threshold",NEWPAYGW.TFT,NEWPAYGW.NOTFT),5))/(1-VLOOKUP(ROUNDDOWN(I28/2,0),IF(E25="Claim Tax Free Threshold",NEWPAYGW.TFT,NEWPAYGW.NOTFT),4)),0))*2,0) -> 0 | J30: =IF(E25<>"Select",(ROUND((ROUNDDOWN(J28/2,0)+(0.99*VLOOKUP(ROUNDDOWN(J28/2,0),IF(E25="Claim Tax Free Threshold",NEWPAYGW.TFT,NEWPAYGW.NOTFT),4))-VLOOKUP(ROUNDDOWN(J28/2,0),IF(E25="Claim Tax Free Threshold",NEWPAYGW.TFT,NEWPAYGW.NOTFT),5))/(1-VLOOKUP(ROUNDDOWN(J28/2,0),IF(E25="Claim Tax Free Threshold",NEWPAYGW.TFT,NEWPAYGW.NOTFT),4)),0))*2,0) -> 0 | K30: =SUM(F30:J30) -> 0 | O30: blank
O31: blank
C32: 4 | E32: =Summary!E14 -> Employee 4 Name | O32: =IF(OR(K34<>0,K35<>0,K36<>0,K37<>0,K38<>0),0,"blank") -> blank
E33: Select | O33: =O32 -> blank
E34: Wages Paid from Accounting Records | K34: =SUM(F34:J34) -> 0 | O34: =O33 -> blank
E35: Less PAYG Withholding Payments to the ATO (if incl above) | K35: =SUM(F35:J35) -> 0 | O35: blank
E36: Net Wages | F36: =F34-F35 -> 0 | G36: =G34-G35 -> 0 | H36: 0 | I36: 0 | J36: 0 | K36: =SUM(F36:J36) -> 0 | O36: blank
E37: Add PAYG Withholding | F37: =IF(E33<>"Select",F38-F36,0) -> 0 | G37: =IF(E33<>"Select",G38-G36,0) -> 0 | H37: =IF(E33<>"Select",H38-H36,0) -> 0 | I37: =IF(E33<>"Select",I38-I36,0) -> 0 | J37: =IF(E33<>"Select",J38-J36,0) -> 0 | K37: =SUM(F37:J37) -> 0 | O37: blank
E38: Gross Wages | F38: =IF(E33<>"Select",(ROUND((ROUNDDOWN(F36/2,0)+(0.99*VLOOKUP(ROUNDDOWN(F36/2,0),IF(E33="Claim Tax Free Threshold",NEWPAYGW.TFT,NEWPAYGW.NOTFT),4))-VLOOKUP(ROUNDDOWN(F36/2,0),IF(E33="Claim Tax Free Threshold",NEWPAYGW.TFT,NEWPAYGW.NOTFT),5))/(1-VLOOKUP(ROUNDDOWN(F36/2,0),IF(E33="Claim Tax Free Threshold",NEWPAYGW.TFT,NEWPAYGW.NOTFT),4)),0))*2,0) -> 0 | G38: =IF(E33<>"Select",(ROUND((ROUNDDOWN(G36/2,0)+(0.99*VLOOKUP(ROUNDDOWN(G36/2,0),IF(E33="Claim Tax Free Threshold",NEWPAYGW.TFT,NEWPAYGW.NOTFT),4))-VLOOKUP(ROUNDDOWN(G36/2,0),IF(E33="Claim Tax Free Threshold",NEWPAYGW.TFT,NEWPAYGW.NOTFT),5))/(1-VLOOKUP(ROUNDDOWN(G36/2,0),IF(E33="Claim Tax Free Threshold",NEWPAYGW.TFT,NEWPAYGW.NOTFT),4)),0))*2,0) -> 0 | H38: =IF(E33<>"Select",(ROUND((ROUNDDOWN(H36/2,0)+(0.99*VLOOKUP(ROUNDDOWN(H36/2,0),IF(E33="Claim Tax Free Threshold",NEWPAYGW.TFT,NEWPAYGW.NOTFT),4))-VLOOKUP(ROUNDDOWN(H36/2,0),IF(E33="Claim Tax Free Threshold",NEWPAYGW.TFT,NEWPAYGW.NOTFT),5))/(1-VLOOKUP(ROUNDDOWN(H36/2,0),IF(E33="Claim Tax Free Threshold",NEWPAYGW.TFT,NEWPAYGW.NOTFT),4)),0))*2,0) -> 0 | I38: =IF(E33<>"Select",(ROUND((ROUNDDOWN(I36/2,0)+(0.99*VLOOKUP(ROUNDDOWN(I36/2,0),IF(E33="Claim Tax Free Threshold",NEWPAYGW.TFT,NEWPAYGW.NOTFT),4))-VLOOKUP(ROUNDDOWN(I36/2,0),IF(E33="Claim Tax Free Threshold",NEWPAYGW.TFT,NEWPAYGW.NOTFT),5))/(1-VLOOKUP(ROUNDDOWN(I36/2,0),IF(E33="Claim Tax Free Threshold",NEWPAYGW.TFT,NEWPAYGW.NOTFT),4)),0))*2,0) -> 0 | J38: =IF(E33<>"Select",(ROUND((ROUNDDOWN(J36/2,0)+(0.99*VLOOKUP(ROUNDDOWN(J36/2,0),IF(E33="Claim Tax Free Threshold",NEWPAYGW.TFT,NEWPAYGW.NOTFT),4))-VLOOKUP(ROUNDDOWN(J36/2,0),IF(E33="Claim Tax Free Threshold",NEWPAYGW.TFT,NEWPAYGW.NOTFT),5))/(1-VLOOKUP(ROUNDDOWN(J36/2,0),IF(E33="Claim Tax Free Threshold",NEWPAYGW.TFT,NEWPAYGW.NOTFT),4)),0))*2,0) -> 0 | K38: =SUM(F38:J38) -> 0 | O38: blank
O39: blank
C40: 5 | E40: =Summary!E15 -> Employee 5 Name | O40: =IF(OR(K42<>0,K43<>0,K44<>0,K45<>0,K46<>0),0,"blank") -> blank
E41: Select | O41: =O40 -> blank
E42: Wages Paid from Accounting Records | K42: =SUM(F42:J42) -> 0 | O42: =O41 -> blank
E43: Less PAYG Withholding Payments to the ATO (if incl above) | K43: =SUM(F43:J43) -> 0 | O43: blank
E44: Net Wages | F44: =F42-F43 -> 0 | G44: =G42-G43 -> 0 | H44: 0 | I44: 0 | J44: 0 | K44: =SUM(F44:J44) -> 0 | O44: blank
E45: Add PAYG Withholding | F45: =IF(E41<>"Select",F46-F44,0) -> 0 | G45: =IF(E41<>"Select",G46-G44,0) -> 0 | H45: =IF(E41<>"Select",H46-H44,0) -> 0 | I45: =IF(E41<>"Select",I46-I44,0) -> 0 | J45: =IF(E41<>"Select",J46-J44,0) -> 0 | K45: =SUM(F45:J45) -> 0 | O45: blank
E46: Gross Wages | F46: =IF(E41<>"Select",(ROUND((ROUNDDOWN(F44/2,0)+(0.99*VLOOKUP(ROUNDDOWN(F44/2,0),IF(E41="Claim Tax Free Threshold",NEWPAYGW.TFT,NEWPAYGW.NOTFT),4))-VLOOKUP(ROUNDDOWN(F44/2,0),IF(E41="Claim Tax Free Threshold",NEWPAYGW.TFT,NEWPAYGW.NOTFT),5))/(1-VLOOKUP(ROUNDDOWN(F44/2,0),IF(E41="Claim Tax Free Threshold",NEWPAYGW.TFT,NEWPAYGW.NOTFT),4)),0))*2,0) -> 0 | G46: =IF(E41<>"Select",(ROUND((ROUNDDOWN(G44/2,0)+(0.99*VLOOKUP(ROUNDDOWN(G44/2,0),IF(E41="Claim Tax Free Threshold",NEWPAYGW.TFT,NEWPAYGW.NOTFT),4))-VLOOKUP(ROUNDDOWN(G44/2,0),IF(E41="Claim Tax Free Threshold",NEWPAYGW.TFT,NEWPAYGW.NOTFT),5))/(1-VLOOKUP(ROUNDDOWN(G44/2,0),IF(E41="Claim Tax Free Threshold",NEWPAYGW.TFT,NEWPAYGW.NOTFT),4)),0))*2,0) -> 0 | H46: =IF(E41<>"Select",(ROUND((ROUNDDOWN(H44/2,0)+(0.99*VLOOKUP(ROUNDDOWN(H44/2,0),IF(E41="Claim Tax Free Threshold",NEWPAYGW.TFT,NEWPAYGW.NOTFT),4))-VLOOKUP(ROUNDDOWN(H44/2,0),IF(E41="Claim Tax Free Threshold",NEWPAYGW.TFT,NEWPAYGW.NOTFT),5))/(1-VLOOKUP(ROUNDDOWN(H44/2,0),IF(E41="Claim Tax Free Threshold",NEWPAYGW.TFT,NEWPAYGW.NOTFT),4)),0))*2,0) -> 0 | I46: =IF(E41<>"Select",(ROUND((ROUNDDOWN(I44/2,0)+(0.99*VLOOKUP(ROUNDDOWN(I44/2,0),IF(E41="Claim Tax Free Threshold",NEWPAYGW.TFT,NEWPAYGW.NOTFT),4))-VLOOKUP(ROUNDDOWN(I44/2,0),IF(E41="Claim Tax Free Threshold",NEWPAYGW.TFT,NEWPAYGW.NOTFT),5))/(1-VLOOKUP(ROUNDDOWN(I44/2,0),IF(E41="Claim Tax Free Threshold",NEWPAYGW.TFT,NEWPAYGW.NOTFT),4)),0))*2,0) -> 0 | J46: =IF(E41<>"Select",(ROUND((ROUNDDOWN(J44/2,0)+(0.99*VLOOKUP(ROUNDDOWN(J44/2,0),IF(E41="Claim Tax Free Threshold",NEWPAYGW.TFT,NEWPAYGW.NOTFT),4))-VLOOKUP(ROUNDDOWN(J44/2,0),IF(E41="Claim Tax Free Threshold",NEWPAYGW.TFT,NEWPAYGW.NOTFT),5))/(1-VLOOKUP(ROUNDDOWN(J44/2,0),IF(E41="Claim Tax Free Threshold",NEWPAYGW.TFT,NEWPAYGW.NOTFT),4)),0))*2,0) -> 0 | K46: =SUM(F46:J46) -> 0 | O46: blank
O47: blank
C48: 6 | E48: =Summary!E16 -> Employee 6 Name | O48: =IF(OR(K50<>0,K51<>0,K52<>0,K53<>0,K54<>0),0,"blank") -> blank
E49: Select | O49: =O48 -> blank
E50: Wages Paid from Accounting Records | K50: =SUM(F50:J50) -> 0 | O50: =O49 -> blank
E51: Less PAYG Withholding Payments to the ATO (if incl above) | K51: =SUM(F51:J51) -> 0 | O51: blank
E52: Net Wages | F52: =F50-F51 -> 0 | G52: =G50-G51 -> 0 | H52: 0 | I52: 0 | J52: 0 | K52: =SUM(F52:J52) -> 0 | O52: blank
E53: Add PAYG Withholding | F53: =IF(E49<>"Select",F54-F52,0) -> 0 | G53: =IF(E49<>"Select",G54-G52,0) -> 0 | H53: =IF(E49<>"Select",H54-H52,0) -> 0 | I53: =IF(E49<>"Select",I54-I52,0) -> 0 | J53: =IF(E49<>"Select",J54-J52,0) -> 0 | K53: =SUM(F53:J53) -> 0 | O53: blank
E54: Gross Wages | F54: =IF(E49<>"Select",(ROUND((ROUNDDOWN(F52/2,0)+(0.99*VLOOKUP(ROUNDDOWN(F52/2,0),IF(E49="Claim Tax Free Threshold",NEWPAYGW.TFT,NEWPAYGW.NOTFT),4))-VLOOKUP(ROUNDDOWN(F52/2,0),IF(E49="Claim Tax Free Threshold",NEWPAYGW.TFT,NEWPAYGW.NOTFT),5))/(1-VLOOKUP(ROUNDDOWN(F52/2,0),IF(E49="Claim Tax Free Threshold",NEWPAYGW.TFT,NEWPAYGW.NOTFT),4)),0))*2,0) -> 0 | G54: =IF(E49<>"Select",(ROUND((ROUNDDOWN(G52/2,0)+(0.99*VLOOKUP(ROUNDDOWN(G52/2,0),IF(E49="Claim Tax Free Threshold",NEWPAYGW.TFT,NEWPAYGW.NOTFT),4))-VLOOKUP(ROUNDDOWN(G52/2,0),IF(E49="Claim Tax Free Threshold",NEWPAYGW.TFT,NEWPAYGW.NOTFT),5))/(1-VLOOKUP(ROUNDDOWN(G52/2,0),IF(E49="Claim Tax Free Threshold",NEWPAYGW.TFT,NEWPAYGW.NOTFT),4)),0))*2,0) -> 0 | H54: =IF(E49<>"Select",(ROUND((ROUNDDOWN(H52/2,0)+(0.99*VLOOKUP(ROUNDDOWN(H52/2,0),IF(E49="Claim Tax Free Threshold",NEWPAYGW.TFT,NEWPAYGW.NOTFT),4))-VLOOKUP(ROUNDDOWN(H52/2,0),IF(E49="Claim Tax Free Threshold",NEWPAYGW.TFT,NEWPAYGW.NOTFT),5))/(1-VLOOKUP(ROUNDDOWN(H52/2,0),IF(E49="Claim Tax Free Threshold",NEWPAYGW.TFT,NEWPAYGW.NOTFT),4)),0))*2,0) -> 0 | I54: =IF(E49<>"Select",(ROUND((ROUNDDOWN(I52/2,0)+(0.99*VLOOKUP(ROUNDDOWN(I52/2,0),IF(E49="Claim Tax Free Threshold",NEWPAYGW.TFT,NEWPAYGW.NOTFT),4))-VLOOKUP(ROUNDDOWN(I52/2,0),IF(E49="Claim Tax Free Threshold",NEWPAYGW.TFT,NEWPAYGW.NOTFT),5))/(1-VLOOKUP(ROUNDDOWN(I52/2,0),IF(E49="Claim Tax Free Threshold",NEWPAYGW.TFT,NEWPAYGW.NOTFT),4)),0))*2,0) -> 0 | J54: =IF(E49<>"Select",(ROUND((ROUNDDOWN(J52/2,0)+(0.99*VLOOKUP(ROUNDDOWN(J52/2,0),IF(E49="Claim Tax Free Threshold",NEWPAYGW.TFT,NEWPAYGW.NOTFT),4))-VLOOKUP(ROUNDDOWN(J52/2,0),IF(E49="Claim Tax Free Threshold",NEWPAYGW.TFT,NEWPAYGW.NOTFT),5))/(1-VLOOKUP(ROUNDDOWN(J52/2,0),IF(E49="Claim Tax Free Threshold",NEWPAYGW.TFT,NEWPAYGW.NOTFT),4)),0))*2,0) -> 0 | K54: =SUM(F54:J54) -> 0 | O54: blank
O55: blank
C56: 7 | E56: =Summary!E17 -> Employee 7 Name | O56: =IF(OR(K58<>0,K59<>0,K60<>0,K61<>0,K62<>0),0,"blank") -> blank
E57: Select | O57: =O56 -> blank
E58: Wages Paid from Accounting Records | K58: =SUM(F58:J58) -> 0 | O58: =O57 -> blank
E59: Less PAYG Withholding Payments to the ATO (if incl above) | K59: =SUM(F59:J59) -> 0 | O59: blank
E60: Net Wages | F60: =F58-F59 -> 0 | G60: =G58-G59 -> 0 | H60: 0 | I60: 0 | J60: 0 | K60: =SUM(F60:J60) -> 0 | O60: blank
E61: Add PAYG Withholding | F61: =IF(E57<>"Select",F62-F60,0) -> 0 | G61: =IF(E57<>"Select",G62-G60,0) -> 0 | H61: =IF(E57<>"Select",H62-H60,0) -> 0 | I61: =IF(E57<>"Select",I62-I60,0) -> 0 | J61: =IF(E57<>"Select",J62-J60,0) -> 0 | K61: =SUM(F61:J61) -> 0 | O61: blank
E62: Gross Wages | F62: =IF(E57<>"Select",(ROUND((ROUNDDOWN(F60/2,0)+(0.99*VLOOKUP(ROUNDDOWN(F60/2,0),IF(E57="Claim Tax Free Threshold",NEWPAYGW.TFT,NEWPAYGW.NOTFT),4))-VLOOKUP(ROUNDDOWN(F60/2,0),IF(E57="Claim Tax Free Threshold",NEWPAYGW.TFT,NEWPAYGW.NOTFT),5))/(1-VLOOKUP(ROUNDDOWN(F60/2,0),IF(E57="Claim Tax Free Threshold",NEWPAYGW.TFT,NEWPAYGW.NOTFT),4)),0))*2,0) -> 0 | G62: =IF(E57<>"Select",(ROUND((ROUNDDOWN(G60/2,0)+(0.99*VLOOKUP(ROUNDDOWN(G60/2,0),IF(E57="Claim Tax Free Threshold",NEWPAYGW.TFT,NEWPAYGW.NOTFT),4))-VLOOKUP(ROUNDDOWN(G60/2,0),IF(E57="Claim Tax Free Threshold",NEWPAYGW.TFT,NEWPAYGW.NOTFT),5))/(1-VLOOKUP(ROUNDDOWN(G60/2,0),IF(E57="Claim Tax Free Threshold",NEWPAYGW.TFT,NEWPAYGW.NOTFT),4)),0))*2,0) -> 0 | H62: =IF(E57<>"Select",(ROUND((ROUNDDOWN(H60/2,0)+(0.99*VLOOKUP(ROUNDDOWN(H60/2,0),IF(E57="Claim Tax Free Threshold",NEWPAYGW.TFT,NEWPAYGW.NOTFT),4))-VLOOKUP(ROUNDDOWN(H60/2,0),IF(E57="Claim Tax Free Threshold",NEWPAYGW.TFT,NEWPAYGW.NOTFT),5))/(1-VLOOKUP(ROUNDDOWN(H60/2,0),IF(E57="Claim Tax Free Threshold",NEWPAYGW.TFT,NEWPAYGW.NOTFT),4)),0))*2,0) -> 0 | I62: =IF(E57<>"Select",(ROUND((ROUNDDOWN(I60/2,0)+(0.99*VLOOKUP(ROUNDDOWN(I60/2,0),IF(E57="Claim Tax Free Threshold",NEWPAYGW.TFT,NEWPAYGW.NOTFT),4))-VLOOKUP(ROUNDDOWN(I60/2,0),IF(E57="Claim Tax Free Threshold",NEWPAYGW.TFT,NEWPAYGW.NOTFT),5))/(1-VLOOKUP(ROUNDDOWN(I60/2,0),IF(E57="Claim Tax Free Threshold",NEWPAYGW.TFT,NEWPAYGW.NOTFT),4)),0))*2,0) -> 0 | J62: =IF(E57<>"Select",(ROUND((ROUNDDOWN(J60/2,0)+(0.99*VLOOKUP(ROUNDDOWN(J60/2,0),IF(E57="Claim Tax Free Threshold",NEWPAYGW.TFT,NEWPAYGW.NOTFT),4))-VLOOKUP(ROUNDDOWN(J60/2,0),IF(E57="Claim Tax Free Threshold",NEWPAYGW.TFT,NEWPAYGW.NOTFT),5))/(1-VLOOKUP(ROUNDDOWN(J60/2,0),IF(E57="Claim Tax Free Threshold",NEWPAYGW.TFT,NEWPAYGW.NOTFT),4)),0))*2,0) -> 0 | K62: =SUM(F62:J62) -> 0 | O62: blank
O63: blank
C64: 8 | E64: =Summary!E18 -> Employee 8 Name | O64: =IF(OR(K66<>0,K67<>0,K68<>0,K69<>0,K70<>0),0,"blank") -> blank
E65: Select | O65: =O64 -> blank
E66: Wages Paid from Accounting Records | K66: =SUM(F66:J66) -> 0 | O66: =O65 -> blank
E67: Less PAYG Withholding Payments to the ATO (if incl above) | K67: =SUM(F67:J67) -> 0 | O67: blank
E68: Net Wages | F68: =F66-F67 -> 0 | G68: =G66-G67 -> 0 | H68: 0 | I68: 0 | J68: 0 | K68: =SUM(F68:J68) -> 0 | O68: blank
E69: Add PAYG Withholding | F69: =IF(E65<>"Select",F70-F68,0) -> 0 | G69: =IF(E65<>"Select",G70-G68,0) -> 0 | H69: =IF(E65<>"Select",H70-H68,0) -> 0 | I69: =IF(E65<>"Select",I70-I68,0) -> 0 | J69: =IF(E65<>"Select",J70-J68,0) -> 0 | K69: =SUM(F69:J69) -> 0 | O69: blank
E70: Gross Wages | F70: =IF(E65<>"Select",(ROUND((ROUNDDOWN(F68/2,0)+(0.99*VLOOKUP(ROUNDDOWN(F68/2,0),IF(E65="Claim Tax Free Threshold",NEWPAYGW.TFT,NEWPAYGW.NOTFT),4))-VLOOKUP(ROUNDDOWN(F68/2,0),IF(E65="Claim Tax Free Threshold",NEWPAYGW.TFT,NEWPAYGW.NOTFT),5))/(1-VLOOKUP(ROUNDDOWN(F68/2,0),IF(E65="Claim Tax Free Threshold",NEWPAYGW.TFT,NEWPAYGW.NOTFT),4)),0))*2,0) -> 0 | G70: =IF(E65<>"Select",(ROUND((ROUNDDOWN(G68/2,0)+(0.99*VLOOKUP(ROUNDDOWN(G68/2,0),IF(E65="Claim Tax Free Threshold",NEWPAYGW.TFT,NEWPAYGW.NOTFT),4))-VLOOKUP(ROUNDDOWN(G68/2,0),IF(E65="Claim Tax Free Threshold",NEWPAYGW.TFT,NEWPAYGW.NOTFT),5))/(1-VLOOKUP(ROUNDDOWN(G68/2,0),IF(E65="Claim Tax Free Threshold",NEWPAYGW.TFT,NEWPAYGW.NOTFT),4)),0))*2,0) -> 0 | H70: =IF(E65<>"Select",(ROUND((ROUNDDOWN(H68/2,0)+(0.99*VLOOKUP(ROUNDDOWN(H68/2,0),IF(E65="Claim Tax Free Threshold",NEWPAYGW.TFT,NEWPAYGW.NOTFT),4))-VLOOKUP(ROUNDDOWN(H68/2,0),IF(E65="Claim Tax Free Threshold",NEWPAYGW.TFT,NEWPAYGW.NOTFT),5))/(1-VLOOKUP(ROUNDDOWN(H68/2,0),IF(E65="Claim Tax Free Threshold",NEWPAYGW.TFT,NEWPAYGW.NOTFT),4)),0))*2,0) -> 0 | I70: =IF(E65<>"Select",(ROUND((ROUNDDOWN(I68/2,0)+(0.99*VLOOKUP(ROUNDDOWN(I68/2,0),IF(E65="Claim Tax Free Threshold",NEWPAYGW.TFT,NEWPAYGW.NOTFT),4))-VLOOKUP(ROUNDDOWN(I68/2,0),IF(E65="Claim Tax Free Threshold",NEWPAYGW.TFT,NEWPAYGW.NOTFT),5))/(1-VLOOKUP(ROUNDDOWN(I68/2,0),IF(E65="Claim Tax Free Threshold",NEWPAYGW.TFT,NEWPAYGW.NOTFT),4)),0))*2,0) -> 0 | J70: =IF(E65<>"Select",(ROUND((ROUNDDOWN(J68/2,0)+(0.99*VLOOKUP(ROUNDDOWN(J68/2,0),IF(E65="Claim Tax Free Threshold",NEWPAYGW.TFT,NEWPAYGW.NOTFT),4))-VLOOKUP(ROUNDDOWN(J68/2,0),IF(E65="Claim Tax Free Threshold",NEWPAYGW.TFT,NEWPAYGW.NOTFT),5))/(1-VLOOKUP(ROUNDDOWN(J68/2,0),IF(E65="Claim Tax Free Threshold",NEWPAYGW.TFT,NEWPAYGW.NOTFT),4)),0))*2,0) -> 0 | K70: =SUM(F70:J70) -> 0 | O70: blank
O71: blank
C72: 9 | E72: =Summary!E19 -> Employee 9 Name | O72: =IF(OR(K74<>0,K75<>0,K76<>0,K77<>0,K78<>0),0,"blank") -> blank
E73: Select | O73: =O72 -> blank
E74: Wages Paid from Accounting Records | K74: =SUM(F74:J74) -> 0 | O74: =O73 -> blank
E75: Less PAYG Withholding Payments to the ATO (if incl above) | K75: =SUM(F75:J75) -> 0 | O75: blank
E76: Net Wages | F76: =F74-F75 -> 0 | G76: =G74-G75 -> 0 | H76: 0 | I76: 0 | J76: 0 | K76: =SUM(F76:J76) -> 0 | O76: blank
E77: Add PAYG Withholding | F77: =IF(E73<>"Select",F78-F76,0) -> 0 | G77: =IF(E73<>"Select",G78-G76,0) -> 0 | H77: =IF(E73<>"Select",H78-H76,0) -> 0 | I77: =IF(E73<>"Select",I78-I76,0) -> 0 | J77: =IF(E73<>"Select",J78-J76,0) -> 0 | K77: =SUM(F77:J77) -> 0 | O77: blank
E78: Gross Wages | F78: =IF(E73<>"Select",(ROUND((ROUNDDOWN(F76/2,0)+(0.99*VLOOKUP(ROUNDDOWN(F76/2,0),IF(E73="Claim Tax Free Threshold",NEWPAYGW.TFT,NEWPAYGW.NOTFT),4))-VLOOKUP(ROUNDDOWN(F76/2,0),IF(E73="Claim Tax Free Threshold",NEWPAYGW.TFT,NEWPAYGW.NOTFT),5))/(1-VLOOKUP(ROUNDDOWN(F76/2,0),IF(E73="Claim Tax Free Threshold",NEWPAYGW.TFT,NEWPAYGW.NOTFT),4)),0))*2,0) -> 0 | G78: =IF(E73<>"Select",(ROUND((ROUNDDOWN(G76/2,0)+(0.99*VLOOKUP(ROUNDDOWN(G76/2,0),IF(E73="Claim Tax Free Threshold",NEWPAYGW.TFT,NEWPAYGW.NOTFT),4))-VLOOKUP(ROUNDDOWN(G76/2,0),IF(E73="Claim Tax Free Threshold",NEWPAYGW.TFT,NEWPAYGW.NOTFT),5))/(1-VLOOKUP(ROUNDDOWN(G76/2,0),IF(E73="Claim Tax Free Threshold",NEWPAYGW.TFT,NEWPAYGW.NOTFT),4)),0))*2,0) -> 0 | H78: =IF(E73<>"Select",(ROUND((ROUNDDOWN(H76/2,0)+(0.99*VLOOKUP(ROUNDDOWN(H76/2,0),IF(E73="Claim Tax Free Threshold",NEWPAYGW.TFT,NEWPAYGW.NOTFT),4))-VLOOKUP(ROUNDDOWN(H76/2,0),IF(E73="Claim Tax Free Threshold",NEWPAYGW.TFT,NEWPAYGW.NOTFT),5))/(1-VLOOKUP(ROUNDDOWN(H76/2,0),IF(E73="Claim Tax Free Threshold",NEWPAYGW.TFT,NEWPAYGW.NOTFT),4)),0))*2,0) -> 0 | I78: =IF(E73<>"Select",(ROUND((ROUNDDOWN(I76/2,0)+(0.99*VLOOKUP(ROUNDDOWN(I76/2,0),IF(E73="Claim Tax Free Threshold",NEWPAYGW.TFT,NEWPAYGW.NOTFT),4))-VLOOKUP(ROUNDDOWN(I76/2,0),IF(E73="Claim Tax Free Threshold",NEWPAYGW.TFT,NEWPAYGW.NOTFT),5))/(1-VLOOKUP(ROUNDDOWN(I76/2,0),IF(E73="Claim Tax Free Threshold",NEWPAYGW.TFT,NEWPAYGW.NOTFT),4)),0))*2,0) -> 0 | J78: =IF(E73<>"Select",(ROUND((ROUNDDOWN(J76/2,0)+(0.99*VLOOKUP(ROUNDDOWN(J76/2,0),IF(E73="Claim Tax Free Threshold",NEWPAYGW.TFT,NEWPAYGW.NOTFT),4))-VLOOKUP(ROUNDDOWN(J76/2,0),IF(E73="Claim Tax Free Threshold",NEWPAYGW.TFT,NEWPAYGW.NOTFT),5))/(1-VLOOKUP(ROUNDDOWN(J76/2,0),IF(E73="Claim Tax Free Threshold",NEWPAYGW.TFT,NEWPAYGW.NOTFT),4)),0))*2,0) -> 0 | K78: =SUM(F78:J78) -> 0 | O78: blank
O79: blank
C80: 10 | E80: =Summary!E20 -> Employee 10 Name | O80: =IF(OR(K82<>0,K83<>0,K84<>0,K85<>0,K86<>0),0,"blank") -> blank
E81: Select | O81: =O80 -> blank
E82: Wages Paid from Accounting Records | K82: =SUM(F82:J82) -> 0 | O82: =O81 -> blank
E83: Less PAYG Withholding Payments to the ATO (if incl above) | K83: =SUM(F83:J83) -> 0 | O83: blank
E84: Net Wages | F84: =F82-F83 -> 0 | G84: =G82-G83 -> 0 | H84: 0 | I84: 0 | J84: 0 | K84: =SUM(F84:J84) -> 0 | O84: blank
E85: Add PAYG Withholding | F85: =IF(E81<>"Select",F86-F84,0) -> 0 | G85: =IF(E81<>"Select",G86-G84,0) -> 0 | H85: =IF(E81<>"Select",H86-H84,0) -> 0 | I85: =IF(E81<>"Select",I86-I84,0) -> 0 | J85: =IF(E81<>"Select",J86-J84,0) -> 0 | K85: =SUM(F85:J85) -> 0 | O85: blank
E86: Gross Wages | F86: =IF(E81<>"Select",(ROUND((ROUNDDOWN(F84/2,0)+(0.99*VLOOKUP(ROUNDDOWN(F84/2,0),IF(E81="Claim Tax Free Threshold",NEWPAYGW.TFT,NEWPAYGW.NOTFT),4))-VLOOKUP(ROUNDDOWN(F84/2,0),IF(E81="Claim Tax Free Threshold",NEWPAYGW.TFT,NEWPAYGW.NOTFT),5))/(1-VLOOKUP(ROUNDDOWN(F84/2,0),IF(E81="Claim Tax Free Threshold",NEWPAYGW.TFT,NEWPAYGW.NOTFT),4)),0))*2,0) -> 0 | G86: =IF(E81<>"Select",(ROUND((ROUNDDOWN(G84/2,0)+(0.99*VLOOKUP(ROUNDDOWN(G84/2,0),IF(E81="Claim Tax Free Threshold",NEWPAYGW.TFT,NEWPAYGW.NOTFT),4))-VLOOKUP(ROUNDDOWN(G84/2,0),IF(E81="Claim Tax Free Threshold",NEWPAYGW.TFT,NEWPAYGW.NOTFT),5))/(1-VLOOKUP(ROUNDDOWN(G84/2,0),IF(E81="Claim Tax Free Threshold",NEWPAYGW.TFT,NEWPAYGW.NOTFT),4)),0))*2,0) -> 0 | H86: =IF(E81<>"Select",(ROUND((ROUNDDOWN(H84/2,0)+(0.99*VLOOKUP(ROUNDDOWN(H84/2,0),IF(E81="Claim Tax Free Threshold",NEWPAYGW.TFT,NEWPAYGW.NOTFT),4))-VLOOKUP(ROUNDDOWN(H84/2,0),IF(E81="Claim Tax Free Threshold",NEWPAYGW.TFT,NEWPAYGW.NOTFT),5))/(1-VLOOKUP(ROUNDDOWN(H84/2,0),IF(E81="Claim Tax Free Threshold",NEWPAYGW.TFT,NEWPAYGW.NOTFT),4)),0))*2,0) -> 0 | I86: =IF(E81<>"Select",(ROUND((ROUNDDOWN(I84/2,0)+(0.99*VLOOKUP(ROUNDDOWN(I84/2,0),IF(E81="Claim Tax Free Threshold",NEWPAYGW.TFT,NEWPAYGW.NOTFT),4))-VLOOKUP(ROUNDDOWN(I84/2,0),IF(E81="Claim Tax Free Threshold",NEWPAYGW.TFT,NEWPAYGW.NOTFT),5))/(1-VLOOKUP(ROUNDDOWN(I84/2,0),IF(E81="Claim Tax Free Threshold",NEWPAYGW.TFT,NEWPAYGW.NOTFT),4)),0))*2,0) -> 0 | J86: =IF(E81<>"Select",(ROUND((ROUNDDOWN(J84/2,0)+(0.99*VLOOKUP(ROUNDDOWN(J84/2,0),IF(E81="Claim Tax Free Threshold",NEWPAYGW.TFT,NEWPAYGW.NOTFT),4))-VLOOKUP(ROUNDDOWN(J84/2,0),IF(E81="Claim Tax Free Threshold",NEWPAYGW.TFT,NEWPAYGW.NOTFT),5))/(1-VLOOKUP(ROUNDDOWN(J84/2,0),IF(E81="Claim Tax Free Threshold",NEWPAYGW.TFT,NEWPAYGW.NOTFT),4)),0))*2,0) -> 0 | K86: =SUM(F86:J86) -> 0 | O86: blank
O87: blank
E89: Monthly Summary
E90: Gross Wages | F90: =F14+F22+F30+F38+F46+F54+F62+F70+F78+F86 -> 0 | G90: =G14+G22+G30+G38+G46+G54+G62+G70+G78+G86 -> 0 | H90: 0 | I90: 0 | J90: 0 | K90: =SUM(F90:J90) -> 0
E91: PAYG Withholding | F91: =F13+F21+F29+F37+F45+F53+F61+F69+F77+F85 -> 0 | G91: =G13+G21+G29+G37+G45+G53+G61+G69+G77+G85 -> 0 | H91: 0 | I91: 0 | J91: 0 | K91: =SUM(F91:J91) -> 0
E92: Net Wages | F92: =F90-F91 -> 0 | G92: =G90-G91 -> 0 | H92: 0 | I92: 0 | J92: 0 | K92: 0
E95: PAYG withholding calculations are for payments of fortnightly wages to resident individuals who have quoted their TFN and are not claiming any Medicare Levy reduction
O96: ="blank" -> blank

Sheet Nov
E1: Gross Pay Estimate - Weekly Wages | K1: =Summary!O2 -> Entity Name | O1: HIDE
E2: =CONCATENATE("Wages for ",TEXT(Month5End,"mmmm yyyy")) -> Wages for November 2017 | K2: =Summary!O3 -> Preparer Name
F5: Wages for Fortnight Ended
K7: Total
C8: 1 | E8: =Summary!E11 -> Employee 1 Name | O8: =IF(OR(K10<>0,K11<>0,K12<>0,K13<>0,K14<>0),0,"blank") -> blank
E9: Select | O9: =O8 -> blank
E10: Wages Paid from Accounting Records | K10: =SUM(F10:J10) -> 0 | O10: =O9 -> blank
E11: Less PAYG Withholding Payments to the ATO (if incl above) | K11: =SUM(F11:J11) -> 0 | O11: blank
E12: Net Wages | F12: =F10-F11 -> 0 | G12: =G10-G11 -> 0 | H12: 0 | I12: 0 | J12: 0 | K12: =SUM(F12:J12) -> 0 | O12: blank
E13: Add PAYG Withholding | F13: =IF(E9<>"Select",F14-F12,0) -> 0 | G13: =IF(E9<>"Select",G14-G12,0) -> 0 | H13: =IF(E9<>"Select",H14-H12,0) -> 0 | I13: =IF(E9<>"Select",I14-I12,0) -> 0 | J13: =IF(E9<>"Select",J14-J12,0) -> 0 | K13: =SUM(F13:J13) -> 0 | O13: blank
E14: Gross Wages | F14: =IF(E9<>"Select",(ROUND((ROUNDDOWN(F12/2,0)+(0.99*VLOOKUP(ROUNDDOWN(F12/2,0),IF(E9="Claim Tax Free Threshold",NEWPAYGW.TFT,NEWPAYGW.NOTFT),4))-VLOOKUP(ROUNDDOWN(F12/2,0),IF(E9="Claim Tax Free Threshold",NEWPAYGW.TFT,NEWPAYGW.NOTFT),5))/(1-VLOOKUP(ROUNDDOWN(F12/2,0),IF(E9="Claim Tax Free Threshold",NEWPAYGW.TFT,NEWPAYGW.NOTFT),4)),0))*2,0) -> 0 | G14: =IF(E9<>"Select",(ROUND((ROUNDDOWN(G12/2,0)+(0.99*VLOOKUP(ROUNDDOWN(G12/2,0),IF(E9="Claim Tax Free Threshold",NEWPAYGW.TFT,NEWPAYGW.NOTFT),4))-VLOOKUP(ROUNDDOWN(G12/2,0),IF(E9="Claim Tax Free Threshold",NEWPAYGW.TFT,NEWPAYGW.NOTFT),5))/(1-VLOOKUP(ROUNDDOWN(G12/2,0),IF(E9="Claim Tax Free Threshold",NEWPAYGW.TFT,NEWPAYGW.NOTFT),4)),0))*2,0) -> 0 | H14: =IF(E9<>"Select",(ROUND((ROUNDDOWN(H12/2,0)+(0.99*VLOOKUP(ROUNDDOWN(H12/2,0),IF(E9="Claim Tax Free Threshold",NEWPAYGW.TFT,NEWPAYGW.NOTFT),4))-VLOOKUP(ROUNDDOWN(H12/2,0),IF(E9="Claim Tax Free Threshold",NEWPAYGW.TFT,NEWPAYGW.NOTFT),5))/(1-VLOOKUP(ROUNDDOWN(H12/2,0),IF(E9="Claim Tax Free Threshold",NEWPAYGW.TFT,NEWPAYGW.NOTFT),4)),0))*2,0) -> 0 | I14: =IF(E9<>"Select",(ROUND((ROUNDDOWN(I12/2,0)+(0.99*VLOOKUP(ROUNDDOWN(I12/2,0),IF(E9="Claim Tax Free Threshold",NEWPAYGW.TFT,NEWPAYGW.NOTFT),4))-VLOOKUP(ROUNDDOWN(I12/2,0),IF(E9="Claim Tax Free Threshold",NEWPAYGW.TFT,NEWPAYGW.NOTFT),5))/(1-VLOOKUP(ROUNDDOWN(I12/2,0),IF(E9="Claim Tax Free Threshold",NEWPAYGW.TFT,NEWPAYGW.NOTFT),4)),0))*2,0) -> 0 | J14: =IF(E9<>"Select",(ROUND((ROUNDDOWN(J12/2,0)+(0.99*VLOOKUP(ROUNDDOWN(J12/2,0),IF(E9="Claim Tax Free Threshold",NEWPAYGW.TFT,NEWPAYGW.NOTFT),4))-VLOOKUP(ROUNDDOWN(J12/2,0),IF(E9="Claim Tax Free Threshold",NEWPAYGW.TFT,NEWPAYGW.NOTFT),5))/(1-VLOOKUP(ROUNDDOWN(J12/2,0),IF(E9="Claim Tax Free Threshold",NEWPAYGW.TFT,NEWPAYGW.NOTFT),4)),0))*2,0) -> 0 | K14: =SUM(F14:J14) -> 0 | O14: blank
O15: blank
C16: 2 | E16: =Summary!E12 -> Employee 2 Name | O16: =IF(OR(K18<>0,K19<>0,K20<>0,K21<>0,K22<>0),0,"blank") -> blank
E17: Select | O17: =O16 -> blank
E18: Wages Paid from Accounting Records | K18: =SUM(F18:J18) -> 0 | O18: =O17 -> blank
E19: Less PAYG Withholding Payments to the ATO (if incl above) | K19: =SUM(F19:J19) -> 0 | O19: blank
E20: Net Wages | F20: =F18-F19 -> 0 | G20: =G18-G19 -> 0 | H20: 0 | I20: 0 | J20: 0 | K20: =SUM(F20:J20) -> 0 | O20: blank
E21: Add PAYG Withholding | F21: =IF(E17<>"Select",F22-F20,0) -> 0 | G21: =IF(E17<>"Select",G22-G20,0) -> 0 | H21: =IF(E17<>"Select",H22-H20,0) -> 0 | I21: =IF(E17<>"Select",I22-I20,0) -> 0 | J21: =IF(E17<>"Select",J22-J20,0) -> 0 | K21: =SUM(F21:J21) -> 0 | O21: blank
E22: Gross Wages | F22: =IF(E17<>"Select",(ROUND((ROUNDDOWN(F20/2,0)+(0.99*VLOOKUP(ROUNDDOWN(F20/2,0),IF(E17="Claim Tax Free Threshold",NEWPAYGW.TFT,NEWPAYGW.NOTFT),4))-VLOOKUP(ROUNDDOWN(F20/2,0),IF(E17="Claim Tax Free Threshold",NEWPAYGW.TFT,NEWPAYGW.NOTFT),5))/(1-VLOOKUP(ROUNDDOWN(F20/2,0),IF(E17="Claim Tax Free Threshold",NEWPAYGW.TFT,NEWPAYGW.NOTFT),4)),0))*2,0) -> 0 | G22: =IF(E17<>"Select",(ROUND((ROUNDDOWN(G20/2,0)+(0.99*VLOOKUP(ROUNDDOWN(G20/2,0),IF(E17="Claim Tax Free Threshold",NEWPAYGW.TFT,NEWPAYGW.NOTFT),4))-VLOOKUP(ROUNDDOWN(G20/2,0),IF(E17="Claim Tax Free Threshold",NEWPAYGW.TFT,NEWPAYGW.NOTFT),5))/(1-VLOOKUP(ROUNDDOWN(G20/2,0),IF(E17="Claim Tax Free Threshold",NEWPAYGW.TFT,NEWPAYGW.NOTFT),4)),0))*2,0) -> 0 | H22: =IF(E17<>"Select",(ROUND((ROUNDDOWN(H20/2,0)+(0.99*VLOOKUP(ROUNDDOWN(H20/2,0),IF(E17="Claim Tax Free Threshold",NEWPAYGW.TFT,NEWPAYGW.NOTFT),4))-VLOOKUP(ROUNDDOWN(H20/2,0),IF(E17="Claim Tax Free Threshold",NEWPAYGW.TFT,NEWPAYGW.NOTFT),5))/(1-VLOOKUP(ROUNDDOWN(H20/2,0),IF(E17="Claim Tax Free Threshold",NEWPAYGW.TFT,NEWPAYGW.NOTFT),4)),0))*2,0) -> 0 | I22: =IF(E17<>"Select",(ROUND((ROUNDDOWN(I20/2,0)+(0.99*VLOOKUP(ROUNDDOWN(I20/2,0),IF(E17="Claim Tax Free Threshold",NEWPAYGW.TFT,NEWPAYGW.NOTFT),4))-VLOOKUP(ROUNDDOWN(I20/2,0),IF(E17="Claim Tax Free Threshold",NEWPAYGW.TFT,NEWPAYGW.NOTFT),5))/(1-VLOOKUP(ROUNDDOWN(I20/2,0),IF(E17="Claim Tax Free Threshold",NEWPAYGW.TFT,NEWPAYGW.NOTFT),4)),0))*2,0) -> 0 | J22: =IF(E17<>"Select",(ROUND((ROUNDDOWN(J20/2,0)+(0.99*VLOOKUP(ROUNDDOWN(J20/2,0),IF(E17="Claim Tax Free Threshold",NEWPAYGW.TFT,NEWPAYGW.NOTFT),4))-VLOOKUP(ROUNDDOWN(J20/2,0),IF(E17="Claim Tax Free Threshold",NEWPAYGW.TFT,NEWPAYGW.NOTFT),5))/(1-VLOOKUP(ROUNDDOWN(J20/2,0),IF(E17="Claim Tax Free Threshold",NEWPAYGW.TFT,NEWPAYGW.NOTFT),4)),0))*2,0) -> 0 | K22: =SUM(F22:J22) -> 0 | O22: blank
O23: blank
C24: 3 | E24: =Summary!E13 -> Employee 3 Name | O24: =IF(OR(K26<>0,K27<>0,K28<>0,K29<>0,K30<>0),0,"blank") -> blank
E25: Select | O25: =O24 -> blank
E26: Wages Paid from Accounting Records | K26: =SUM(F26:J26) -> 0 | O26: =O25 -> blank
E27: Less PAYG Withholding Payments to the ATO (if incl above) | K27: =SUM(F27:J27) -> 0 | O27: blank
E28: Net Wages | F28: =F26-F27 -> 0 | G28: =G26-G27 -> 0 | H28: 0 | I28: 0 | J28: 0 | K28: =SUM(F28:J28) -> 0 | O28: blank
E29: Add PAYG Withholding | F29: =IF(E25<>"Select",F30-F28,0) -> 0 | G29: =IF(E25<>"Select",G30-G28,0) -> 0 | H29: =IF(E25<>"Select",H30-H28,0) -> 0 | I29: =IF(E25<>"Select",I30-I28,0) -> 0 | J29: =IF(E25<>"Select",J30-J28,0) -> 0 | K29: =SUM(F29:J29) -> 0 | O29: blank
E30: Gross Wages | F30: =IF(E25<>"Select",(ROUND((ROUNDDOWN(F28/2,0)+(0.99*VLOOKUP(ROUNDDOWN(F28/2,0),IF(E25="Claim Tax Free Threshold",NEWPAYGW.TFT,NEWPAYGW.NOTFT),4))-VLOOKUP(ROUNDDOWN(F28/2,0),IF(E25="Claim Tax Free Threshold",NEWPAYGW.TFT,NEWPAYGW.NOTFT),5))/(1-VLOOKUP(ROUNDDOWN(F28/2,0),IF(E25="Claim Tax Free Threshold",NEWPAYGW.TFT,NEWPAYGW.NOTFT),4)),0))*2,0) -> 0 | G30: =IF(E25<>"Select",(ROUND((ROUNDDOWN(G28/2,0)+(0.99*VLOOKUP(ROUNDDOWN(G28/2,0),IF(E25="Claim Tax Free Threshold",NEWPAYGW.TFT,NEWPAYGW.NOTFT),4))-VLOOKUP(ROUNDDOWN(G28/2,0),IF(E25="Claim Tax Free Threshold",NEWPAYGW.TFT,NEWPAYGW.NOTFT),5))/(1-VLOOKUP(ROUNDDOWN(G28/2,0),IF(E25="Claim Tax Free Threshold",NEWPAYGW.TFT,NEWPAYGW.NOTFT),4)),0))*2,0) -> 0 | H30: =IF(E25<>"Select",(ROUND((ROUNDDOWN(H28/2,0)+(0.99*VLOOKUP(ROUNDDOWN(H28/2,0),IF(E25="Claim Tax Free Threshold",NEWPAYGW.TFT,NEWPAYGW.NOTFT),4))-VLOOKUP(ROUNDDOWN(H28/2,0),IF(E25="Claim Tax Free Threshold",NEWPAYGW.TFT,NEWPAYGW.NOTFT),5))/(1-VLOOKUP(ROUNDDOWN(H28/2,0),IF(E25="Claim Tax Free Threshold",NEWPAYGW.TFT,NEWPAYGW.NOTFT),4)),0))*2,0) -> 0 | I30: =IF(E25<>"Select",(ROUND((ROUNDDOWN(I28/2,0)+(0.99*VLOOKUP(ROUNDDOWN(I28/2,0),IF(E25="Claim Tax Free Threshold",NEWPAYGW.TFT,NEWPAYGW.NOTFT),4))-VLOOKUP(ROUNDDOWN(I28/2,0),IF(E25="Claim Tax Free Threshold",NEWPAYGW.TFT,NEWPAYGW.NOTFT),5))/(1-VLOOKUP(ROUNDDOWN(I28/2,0),IF(E25="Claim Tax Free Threshold",NEWPAYGW.TFT,NEWPAYGW.NOTFT),4)),0))*2,0) -> 0 | J30: =IF(E25<>"Select",(ROUND((ROUNDDOWN(J28/2,0)+(0.99*VLOOKUP(ROUNDDOWN(J28/2,0),IF(E25="Claim Tax Free Threshold",NEWPAYGW.TFT,NEWPAYGW.NOTFT),4))-VLOOKUP(ROUNDDOWN(J28/2,0),IF(E25="Claim Tax Free Threshold",NEWPAYGW.TFT,NEWPAYGW.NOTFT),5))/(1-VLOOKUP(ROUNDDOWN(J28/2,0),IF(E25="Claim Tax Free Threshold",NEWPAYGW.TFT,NEWPAYGW.NOTFT),4)),0))*2,0) -> 0 | K30: =SUM(F30:J30) -> 0 | O30: blank
O31: blank
C32: 4 | E32: =Summary!E14 -> Employee 4 Name | O32: =IF(OR(K34<>0,K35<>0,K36<>0,K37<>0,K38<>0),0,"blank") -> blank
E33: Select | O33: =O32 -> blank
E34: Wages Paid from Accounting Records | K34: =SUM(F34:J34) -> 0 | O34: =O33 -> blank
E35: Less PAYG Withholding Payments to the ATO (if incl above) | K35: =SUM(F35:J35) -> 0 | O35: blank
E36: Net Wages | F36: =F34-F35 -> 0 | G36: =G34-G35 -> 0 | H36: 0 | I36: 0 | J36: 0 | K36: =SUM(F36:J36) -> 0 | O36: blank
E37: Add PAYG Withholding | F37: =IF(E33<>"Select",F38-F36,0) -> 0 | G37: =IF(E33<>"Select",G38-G36,0) -> 0 | H37: =IF(E33<>"Select",H38-H36,0) -> 0 | I37: =IF(E33<>"Select",I38-I36,0) -> 0 | J37: =IF(E33<>"Select",J38-J36,0) -> 0 | K37: =SUM(F37:J37) -> 0 | O37: blank
E38: Gross Wages | F38: =IF(E33<>"Select",(ROUND((ROUNDDOWN(F36/2,0)+(0.99*VLOOKUP(ROUNDDOWN(F36/2,0),IF(E33="Claim Tax Free Threshold",NEWPAYGW.TFT,NEWPAYGW.NOTFT),4))-VLOOKUP(ROUNDDOWN(F36/2,0),IF(E33="Claim Tax Free Threshold",NEWPAYGW.TFT,NEWPAYGW.NOTFT),5))/(1-VLOOKUP(ROUNDDOWN(F36/2,0),IF(E33="Claim Tax Free Threshold",NEWPAYGW.TFT,NEWPAYGW.NOTFT),4)),0))*2,0) -> 0 | G38: =IF(E33<>"Select",(ROUND((ROUNDDOWN(G36/2,0)+(0.99*VLOOKUP(ROUNDDOWN(G36/2,0),IF(E33="Claim Tax Free Threshold",NEWPAYGW.TFT,NEWPAYGW.NOTFT),4))-VLOOKUP(ROUNDDOWN(G36/2,0),IF(E33="Claim Tax Free Threshold",NEWPAYGW.TFT,NEWPAYGW.NOTFT),5))/(1-VLOOKUP(ROUNDDOWN(G36/2,0),IF(E33="Claim Tax Free Threshold",NEWPAYGW.TFT,NEWPAYGW.NOTFT),4)),0))*2,0) -> 0 | H38: =IF(E33<>"Select",(ROUND((ROUNDDOWN(H36/2,0)+(0.99*VLOOKUP(ROUNDDOWN(H36/2,0),IF(E33="Claim Tax Free Threshold",NEWPAYGW.TFT,NEWPAYGW.NOTFT),4))-VLOOKUP(ROUNDDOWN(H36/2,0),IF(E33="Claim Tax Free Threshold",NEWPAYGW.TFT,NEWPAYGW.NOTFT),5))/(1-VLOOKUP(ROUNDDOWN(H36/2,0),IF(E33="Claim Tax Free Threshold",NEWPAYGW.TFT,NEWPAYGW.NOTFT),4)),0))*2,0) -> 0 | I38: =IF(E33<>"Select",(ROUND((ROUNDDOWN(I36/2,0)+(0.99*VLOOKUP(ROUNDDOWN(I36/2,0),IF(E33="Claim Tax Free Threshold",NEWPAYGW.TFT,NEWPAYGW.NOTFT),4))-VLOOKUP(ROUNDDOWN(I36/2,0),IF(E33="Claim Tax Free Threshold",NEWPAYGW.TFT,NEWPAYGW.NOTFT),5))/(1-VLOOKUP(ROUNDDOWN(I36/2,0),IF(E33="Claim Tax Free Threshold",NEWPAYGW.TFT,NEWPAYGW.NOTFT),4)),0))*2,0) -> 0 | J38: =IF(E33<>"Select",(ROUND((ROUNDDOWN(J36/2,0)+(0.99*VLOOKUP(ROUNDDOWN(J36/2,0),IF(E33="Claim Tax Free Threshold",NEWPAYGW.TFT,NEWPAYGW.NOTFT),4))-VLOOKUP(ROUNDDOWN(J36/2,0),IF(E33="Claim Tax Free Threshold",NEWPAYGW.TFT,NEWPAYGW.NOTFT),5))/(1-VLOOKUP(ROUNDDOWN(J36/2,0),IF(E33="Claim Tax Free Threshold",NEWPAYGW.TFT,NEWPAYGW.NOTFT),4)),0))*2,0) -> 0 | K38: =SUM(F38:J38) -> 0 | O38: blank
O39: blank
C40: 5 | E40: =Summary!E15 -> Employee 5 Name | O40: =IF(OR(K42<>0,K43<>0,K44<>0,K45<>0,K46<>0),0,"blank") -> blank
E41: Select | O41: =O40 -> blank
E42: Wages Paid from Accounting Records | K42: =SUM(F42:J42) -> 0 | O42: =O41 -> blank
E43: Less PAYG Withholding Payments to the ATO (if incl above) | K43: =SUM(F43:J43) -> 0 | O43: blank
E44: Net Wages | F44: =F42-F43 -> 0 | G44: =G42-G43 -> 0 | H44: 0 | I44: 0 | J44: 0 | K44: =SUM(F44:J44) -> 0 | O44: blank
E45: Add PAYG Withholding | F45: =IF(E41<>"Select",F46-F44,0) -> 0 | G45: =IF(E41<>"Select",G46-G44,0) -> 0 | H45: =IF(E41<>"Select",H46-H44,0) -> 0 | I45: =IF(E41<>"Select",I46-I44,0) -> 0 | J45: =IF(E41<>"Select",J46-J44,0) -> 0 | K45: =SUM(F45:J45) -> 0 | O45: blank
E46: Gross Wages | F46: =IF(E41<>"Select",(ROUND((ROUNDDOWN(F44/2,0)+(0.99*VLOOKUP(ROUNDDOWN(F44/2,0),IF(E41="Claim Tax Free Threshold",NEWPAYGW.TFT,NEWPAYGW.NOTFT),4))-VLOOKUP(ROUNDDOWN(F44/2,0),IF(E41="Claim Tax Free Threshold",NEWPAYGW.TFT,NEWPAYGW.NOTFT),5))/(1-VLOOKUP(ROUNDDOWN(F44/2,0),IF(E41="Claim Tax Free Threshold",NEWPAYGW.TFT,NEWPAYGW.NOTFT),4)),0))*2,0) -> 0 | G46: =IF(E41<>"Select",(ROUND((ROUNDDOWN(G44/2,0)+(0.99*VLOOKUP(ROUNDDOWN(G44/2,0),IF(E41="Claim Tax Free Threshold",NEWPAYGW.TFT,NEWPAYGW.NOTFT),4))-VLOOKUP(ROUNDDOWN(G44/2,0),IF(E41="Claim Tax Free Threshold",NEWPAYGW.TFT,NEWPAYGW.NOTFT),5))/(1-VLOOKUP(ROUNDDOWN(G44/2,0),IF(E41="Claim Tax Free Threshold",NEWPAYGW.TFT,NEWPAYGW.NOTFT),4)),0))*2,0) -> 0 | H46: =IF(E41<>"Select",(ROUND((ROUNDDOWN(H44/2,0)+(0.99*VLOOKUP(ROUNDDOWN(H44/2,0),IF(E41="Claim Tax Free Threshold",NEWPAYGW.TFT,NEWPAYGW.NOTFT),4))-VLOOKUP(ROUNDDOWN(H44/2,0),IF(E41="Claim Tax Free Threshold",NEWPAYGW.TFT,NEWPAYGW.NOTFT),5))/(1-VLOOKUP(ROUNDDOWN(H44/2,0),IF(E41="Claim Tax Free Threshold",NEWPAYGW.TFT,NEWPAYGW.NOTFT),4)),0))*2,0) -> 0 | I46: =IF(E41<>"Select",(ROUND((ROUNDDOWN(I44/2,0)+(0.99*VLOOKUP(ROUNDDOWN(I44/2,0),IF(E41="Claim Tax Free Threshold",NEWPAYGW.TFT,NEWPAYGW.NOTFT),4))-VLOOKUP(ROUNDDOWN(I44/2,0),IF(E41="Claim Tax Free Threshold",NEWPAYGW.TFT,NEWPAYGW.NOTFT),5))/(1-VLOOKUP(ROUNDDOWN(I44/2,0),IF(E41="Claim Tax Free Threshold",NEWPAYGW.TFT,NEWPAYGW.NOTFT),4)),0))*2,0) -> 0 | J46: =IF(E41<>"Select",(ROUND((ROUNDDOWN(J44/2,0)+(0.99*VLOOKUP(ROUNDDOWN(J44/2,0),IF(E41="Claim Tax Free Threshold",NEWPAYGW.TFT,NEWPAYGW.NOTFT),4))-VLOOKUP(ROUNDDOWN(J44/2,0),IF(E41="Claim Tax Free Threshold",NEWPAYGW.TFT,NEWPAYGW.NOTFT),5))/(1-VLOOKUP(ROUNDDOWN(J44/2,0),IF(E41="Claim Tax Free Threshold",NEWPAYGW.TFT,NEWPAYGW.NOTFT),4)),0))*2,0) -> 0 | K46: =SUM(F46:J46) -> 0 | O46: blank
O47: blank
C48: 6 | E48: =Summary!E16 -> Employee 6 Name | O48: =IF(OR(K50<>0,K51<>0,K52<>0,K53<>0,K54<>0),0,"blank") -> blank
E49: Select | O49: =O48 -> blank
E50: Wages Paid from Accounting Records | K50: =SUM(F50:J50) -> 0 | O50: =O49 -> blank
E51: Less PAYG Withholding Payments to the ATO (if incl above) | K51: =SUM(F51:J51) -> 0 | O51: blank
E52: Net Wages | F52: =F50-F51 -> 0 | G52: =G50-G51 -> 0 | H52: 0 | I52: 0 | J52: 0 | K52: =SUM(F52:J52) -> 0 | O52: blank
E53: Add PAYG Withholding | F53: =IF(E49<>"Select",F54-F52,0) -> 0 | G53: =IF(E49<>"Select",G54-G52,0) -> 0 | H53: =IF(E49<>"Select",H54-H52,0) -> 0 | I53: =IF(E49<>"Select",I54-I52,0) -> 0 | J53: =IF(E49<>"Select",J54-J52,0) -> 0 | K53: =SUM(F53:J53) -> 0 | O53: blank
E54: Gross Wages | F54: =IF(E49<>"Select",(ROUND((ROUNDDOWN(F52/2,0)+(0.99*VLOOKUP(ROUNDDOWN(F52/2,0),IF(E49="Claim Tax Free Threshold",NEWPAYGW.TFT,NEWPAYGW.NOTFT),4))-VLOOKUP(ROUNDDOWN(F52/2,0),IF(E49="Claim Tax Free Threshold",NEWPAYGW.TFT,NEWPAYGW.NOTFT),5))/(1-VLOOKUP(ROUNDDOWN(F52/2,0),IF(E49="Claim Tax Free Threshold",NEWPAYGW.TFT,NEWPAYGW.NOTFT),4)),0))*2,0) -> 0 | G54: =IF(E49<>"Select",(ROUND((ROUNDDOWN(G52/2,0)+(0.99*VLOOKUP(ROUNDDOWN(G52/2,0),IF(E49="Claim Tax Free Threshold",NEWPAYGW.TFT,NEWPAYGW.NOTFT),4))-VLOOKUP(ROUNDDOWN(G52/2,0),IF(E49="Claim Tax Free Threshold",NEWPAYGW.TFT,NEWPAYGW.NOTFT),5))/(1-VLOOKUP(ROUNDDOWN(G52/2,0),IF(E49="Claim Tax Free Threshold",NEWPAYGW.TFT,NEWPAYGW.NOTFT),4)),0))*2,0) -> 0 | H54: =IF(E49<>"Select",(ROUND((ROUNDDOWN(H52/2,0)+(0.99*VLOOKUP(ROUNDDOWN(H52/2,0),IF(E49="Claim Tax Free Threshold",NEWPAYGW.TFT,NEWPAYGW.NOTFT),4))-VLOOKUP(ROUNDDOWN(H52/2,0),IF(E49="Claim Tax Free Threshold",NEWPAYGW.TFT,NEWPAYGW.NOTFT),5))/(1-VLOOKUP(ROUNDDOWN(H52/2,0),IF(E49="Claim Tax Free Threshold",NEWPAYGW.TFT,NEWPAYGW.NOTFT),4)),0))*2,0) -> 0 | I54: =IF(E49<>"Select",(ROUND((ROUNDDOWN(I52/2,0)+(0.99*VLOOKUP(ROUNDDOWN(I52/2,0),IF(E49="Claim Tax Free Threshold",NEWPAYGW.TFT,NEWPAYGW.NOTFT),4))-VLOOKUP(ROUNDDOWN(I52/2,0),IF(E49="Claim Tax Free Threshold",NEWPAYGW.TFT,NEWPAYGW.NOTFT),5))/(1-VLOOKUP(ROUNDDOWN(I52/2,0),IF(E49="Claim Tax Free Threshold",NEWPAYGW.TFT,NEWPAYGW.NOTFT),4)),0))*2,0) -> 0 | J54: =IF(E49<>"Select",(ROUND((ROUNDDOWN(J52/2,0)+(0.99*VLOOKUP(ROUNDDOWN(J52/2,0),IF(E49="Claim Tax Free Threshold",NEWPAYGW.TFT,NEWPAYGW.NOTFT),4))-VLOOKUP(ROUNDDOWN(J52/2,0),IF(E49="Claim Tax Free Threshold",NEWPAYGW.TFT,NEWPAYGW.NOTFT),5))/(1-VLOOKUP(ROUNDDOWN(J52/2,0),IF(E49="Claim Tax Free Threshold",NEWPAYGW.TFT,NEWPAYGW.NOTFT),4)),0))*2,0) -> 0 | K54: =SUM(F54:J54) -> 0 | O54: blank
O55: blank
C56: 7 | E56: =Summary!E17 -> Employee 7 Name | O56: =IF(OR(K58<>0,K59<>0,K60<>0,K61<>0,K62<>0),0,"blank") -> blank
E57: Select | O57: =O56 -> blank
E58: Wages Paid from Accounting Records | K58: =SUM(F58:J58) -> 0 | O58: =O57 -> blank
E59: Less PAYG Withholding Payments to the ATO (if incl above) | K59: =SUM(F59:J59) -> 0 | O59: blank
E60: Net Wages | F60: =F58-F59 -> 0 | G60: =G58-G59 -> 0 | H60: 0 | I60: 0 | J60: 0 | K60: =SUM(F60:J60) -> 0 | O60: blank
E61: Add PAYG Withholding | F61: =IF(E57<>"Select",F62-F60,0) -> 0 | G61: =IF(E57<>"Select",G62-G60,0) -> 0 | H61: =IF(E57<>"Select",H62-H60,0) -> 0 | I61: =IF(E57<>"Select",I62-I60,0) -> 0 | J61: =IF(E57<>"Select",J62-J60,0) -> 0 | K61: =SUM(F61:J61) -> 0 | O61: blank
E62: Gross Wages | F62: =IF(E57<>"Select",(ROUND((ROUNDDOWN(F60/2,0)+(0.99*VLOOKUP(ROUNDDOWN(F60/2,0),IF(E57="Claim Tax Free Threshold",NEWPAYGW.TFT,NEWPAYGW.NOTFT),4))-VLOOKUP(ROUNDDOWN(F60/2,0),IF(E57="Claim Tax Free Threshold",NEWPAYGW.TFT,NEWPAYGW.NOTFT),5))/(1-VLOOKUP(ROUNDDOWN(F60/2,0),IF(E57="Claim Tax Free Threshold",NEWPAYGW.TFT,NEWPAYGW.NOTFT),4)),0))*2,0) -> 0 | G62: =IF(E57<>"Select",(ROUND((ROUNDDOWN(G60/2,0)+(0.99*VLOOKUP(ROUNDDOWN(G60/2,0),IF(E57="Claim Tax Free Threshold",NEWPAYGW.TFT,NEWPAYGW.NOTFT),4))-VLOOKUP(ROUNDDOWN(G60/2,0),IF(E57="Claim Tax Free Threshold",NEWPAYGW.TFT,NEWPAYGW.NOTFT),5))/(1-VLOOKUP(ROUNDDOWN(G60/2,0),IF(E57="Claim Tax Free Threshold",NEWPAYGW.TFT,NEWPAYGW.NOTFT),4)),0))*2,0) -> 0 | H62: =IF(E57<>"Select",(ROUND((ROUNDDOWN(H60/2,0)+(0.99*VLOOKUP(ROUNDDOWN(H60/2,0),IF(E57="Claim Tax Free Threshold",NEWPAYGW.TFT,NEWPAYGW.NOTFT),4))-VLOOKUP(ROUNDDOWN(H60/2,0),IF(E57="Claim Tax Free Threshold",NEWPAYGW.TFT,NEWPAYGW.NOTFT),5))/(1-VLOOKUP(ROUNDDOWN(H60/2,0),IF(E57="Claim Tax Free Threshold",NEWPAYGW.TFT,NEWPAYGW.NOTFT),4)),0))*2,0) -> 0 | I62: =IF(E57<>"Select",(ROUND((ROUNDDOWN(I60/2,0)+(0.99*VLOOKUP(ROUNDDOWN(I60/2,0),IF(E57="Claim Tax Free Threshold",NEWPAYGW.TFT,NEWPAYGW.NOTFT),4))-VLOOKUP(ROUNDDOWN(I60/2,0),IF(E57="Claim Tax Free Threshold",NEWPAYGW.TFT,NEWPAYGW.NOTFT),5))/(1-VLOOKUP(ROUNDDOWN(I60/2,0),IF(E57="Claim Tax Free Threshold",NEWPAYGW.TFT,NEWPAYGW.NOTFT),4)),0))*2,0) -> 0 | J62: =IF(E57<>"Select",(ROUND((ROUNDDOWN(J60/2,0)+(0.99*VLOOKUP(ROUNDDOWN(J60/2,0),IF(E57="Claim Tax Free Threshold",NEWPAYGW.TFT,NEWPAYGW.NOTFT),4))-VLOOKUP(ROUNDDOWN(J60/2,0),IF(E57="Claim Tax Free Threshold",NEWPAYGW.TFT,NEWPAYGW.NOTFT),5))/(1-VLOOKUP(ROUNDDOWN(J60/2,0),IF(E57="Claim Tax Free Threshold",NEWPAYGW.TFT,NEWPAYGW.NOTFT),4)),0))*2,0) -> 0 | K62: =SUM(F62:J62) -> 0 | O62: blank
O63: blank
C64: 8 | E64: =Summary!E18 -> Employee 8 Name | O64: =IF(OR(K66<>0,K67<>0,K68<>0,K69<>0,K70<>0),0,"blank") -> blank
E65: Select | O65: =O64 -> blank
E66: Wages Paid from Accounting Records | K66: =SUM(F66:J66) -> 0 | O66: =O65 -> blank
E67: Less PAYG Withholding Payments to the ATO (if incl above) | K67: =SUM(F67:J67) -> 0 | O67: blank
E68: Net Wages | F68: =F66-F67 -> 0 | G68: =G66-G67 -> 0 | H68: 0 | I68: 0 | J68: 0 | K68: =SUM(F68:J68) -> 0 | O68: blank
E69: Add PAYG Withholding | F69: =IF(E65<>"Select",F70-F68,0) -> 0 | G69: =IF(E65<>"Select",G70-G68,0) -> 0 | H69: =IF(E65<>"Select",H70-H68,0) -> 0 | I69: =IF(E65<>"Select",I70-I68,0) -> 0 | J69: =IF(E65<>"Select",J70-J68,0) -> 0 | K69: =SUM(F69:J69) -> 0 | O69: blank
E70: Gross Wages | F70: =IF(E65<>"Select",(ROUND((ROUNDDOWN(F68/2,0)+(0.99*VLOOKUP(ROUNDDOWN(F68/2,0),IF(E65="Claim Tax Free Threshold",NEWPAYGW.TFT,NEWPAYGW.NOTFT),4))-VLOOKUP(ROUNDDOWN(F68/2,0),IF(E65="Claim Tax Free Threshold",NEWPAYGW.TFT,NEWPAYGW.NOTFT),5))/(1-VLOOKUP(ROUNDDOWN(F68/2,0),IF(E65="Claim Tax Free Threshold",NEWPAYGW.TFT,NEWPAYGW.NOTFT),4)),0))*2,0) -> 0 | G70: =IF(E65<>"Select",(ROUND((ROUNDDOWN(G68/2,0)+(0.99*VLOOKUP(ROUNDDOWN(G68/2,0),IF(E65="Claim Tax Free Threshold",NEWPAYGW.TFT,NEWPAYGW.NOTFT),4))-VLOOKUP(ROUNDDOWN(G68/2,0),IF(E65="Claim Tax Free Threshold",NEWPAYGW.TFT,NEWPAYGW.NOTFT),5))/(1-VLOOKUP(ROUNDDOWN(G68/2,0),IF(E65="Claim Tax Free Threshold",NEWPAYGW.TFT,NEWPAYGW.NOTFT),4)),0))*2,0) -> 0 | H70: =IF(E65<>"Select",(ROUND((ROUNDDOWN(H68/2,0)+(0.99*VLOOKUP(ROUNDDOWN(H68/2,0),IF(E65="Claim Tax Free Threshold",NEWPAYGW.TFT,NEWPAYGW.NOTFT),4))-VLOOKUP(ROUNDDOWN(H68/2,0),IF(E65="Claim Tax Free Threshold",NEWPAYGW.TFT,NEWPAYGW.NOTFT),5))/(1-VLOOKUP(ROUNDDOWN(H68/2,0),IF(E65="Claim Tax Free Threshold",NEWPAYGW.TFT,NEWPAYGW.NOTFT),4)),0))*2,0) -> 0 | I70: =IF(E65<>"Select",(ROUND((ROUNDDOWN(I68/2,0)+(0.99*VLOOKUP(ROUNDDOWN(I68/2,0),IF(E65="Claim Tax Free Threshold",NEWPAYGW.TFT,NEWPAYGW.NOTFT),4))-VLOOKUP(ROUNDDOWN(I68/2,0),IF(E65="Claim Tax Free Threshold",NEWPAYGW.TFT,NEWPAYGW.NOTFT),5))/(1-VLOOKUP(ROUNDDOWN(I68/2,0),IF(E65="Claim Tax Free Threshold",NEWPAYGW.TFT,NEWPAYGW.NOTFT),4)),0))*2,0) -> 0 | J70: =IF(E65<>"Select",(ROUND((ROUNDDOWN(J68/2,0)+(0.99*VLOOKUP(ROUNDDOWN(J68/2,0),IF(E65="Claim Tax Free Threshold",NEWPAYGW.TFT,NEWPAYGW.NOTFT),4))-VLOOKUP(ROUNDDOWN(J68/2,0),IF(E65="Claim Tax Free Threshold",NEWPAYGW.TFT,NEWPAYGW.NOTFT),5))/(1-VLOOKUP(ROUNDDOWN(J68/2,0),IF(E65="Claim Tax Free Threshold",NEWPAYGW.TFT,NEWPAYGW.NOTFT),4)),0))*2,0) -> 0 | K70: =SUM(F70:J70) -> 0 | O70: blank
O71: blank
C72: 9 | E72: =Summary!E19 -> Employee 9 Name | O72: =IF(OR(K74<>0,K75<>0,K76<>0,K77<>0,K78<>0),0,"blank") -> blank
E73: Select | O73: =O72 -> blank
E74: Wages Paid from Accounting Records | K74: =SUM(F74:J74) -> 0 | O74: =O73 -> blank
E75: Less PAYG Withholding Payments to the ATO (if incl above) | K75: =SUM(F75:J75) -> 0 | O75: blank
E76: Net Wages | F76: =F74-F75 -> 0 | G76: =G74-G75 -> 0 | H76: 0 | I76: 0 | J76: 0 | K76: =SUM(F76:J76) -> 0 | O76: blank
E77: Add PAYG Withholding | F77: =IF(E73<>"Select",F78-F76,0) -> 0 | G77: =IF(E73<>"Select",G78-G76,0) -> 0 | H77: =IF(E73<>"Select",H78-H76,0) -> 0 | I77: =IF(E73<>"Select",I78-I76,0) -> 0 | J77: =IF(E73<>"Select",J78-J76,0) -> 0 | K77: =SUM(F77:J77) -> 0 | O77: blank
E78: Gross Wages | F78: =IF(E73<>"Select",(ROUND((ROUNDDOWN(F76/2,0)+(0.99*VLOOKUP(ROUNDDOWN(F76/2,0),IF(E73="Claim Tax Free Threshold",NEWPAYGW.TFT,NEWPAYGW.NOTFT),4))-VLOOKUP(ROUNDDOWN(F76/2,0),IF(E73="Claim Tax Free Threshold",NEWPAYGW.TFT,NEWPAYGW.NOTFT),5))/(1-VLOOKUP(ROUNDDOWN(F76/2,0),IF(E73="Claim Tax Free Threshold",NEWPAYGW.TFT,NEWPAYGW.NOTFT),4)),0))*2,0) -> 0 | G78: =IF(E73<>"Select",(ROUND((ROUNDDOWN(G76/2,0)+(0.99*VLOOKUP(ROUNDDOWN(G76/2,0),IF(E73="Claim Tax Free Threshold",NEWPAYGW.TFT,NEWPAYGW.NOTFT),4))-VLOOKUP(ROUNDDOWN(G76/2,0),IF(E73="Claim Tax Free Threshold",NEWPAYGW.TFT,NEWPAYGW.NOTFT),5))/(1-VLOOKUP(ROUNDDOWN(G76/2,0),IF(E73="Claim Tax Free Threshold",NEWPAYGW.TFT,NEWPAYGW.NOTFT),4)),0))*2,0) -> 0 | H78: =IF(E73<>"Select",(ROUND((ROUNDDOWN(H76/2,0)+(0.99*VLOOKUP(ROUNDDOWN(H76/2,0),IF(E73="Claim Tax Free Threshold",NEWPAYGW.TFT,NEWPAYGW.NOTFT),4))-VLOOKUP(ROUNDDOWN(H76/2,0),IF(E73="Claim Tax Free Threshold",NEWPAYGW.TFT,NEWPAYGW.NOTFT),5))/(1-VLOOKUP(ROUNDDOWN(H76/2,0),IF(E73="Claim Tax Free Threshold",NEWPAYGW.TFT,NEWPAYGW.NOTFT),4)),0))*2,0) -> 0 | I78: =IF(E73<>"Select",(ROUND((ROUNDDOWN(I76/2,0)+(0.99*VLOOKUP(ROUNDDOWN(I76/2,0),IF(E73="Claim Tax Free Threshold",NEWPAYGW.TFT,NEWPAYGW.NOTFT),4))-VLOOKUP(ROUNDDOWN(I76/2,0),IF(E73="Claim Tax Free Threshold",NEWPAYGW.TFT,NEWPAYGW.NOTFT),5))/(1-VLOOKUP(ROUNDDOWN(I76/2,0),IF(E73="Claim Tax Free Threshold",NEWPAYGW.TFT,NEWPAYGW.NOTFT),4)),0))*2,0) -> 0 | J78: =IF(E73<>"Select",(ROUND((ROUNDDOWN(J76/2,0)+(0.99*VLOOKUP(ROUNDDOWN(J76/2,0),IF(E73="Claim Tax Free Threshold",NEWPAYGW.TFT,NEWPAYGW.NOTFT),4))-VLOOKUP(ROUNDDOWN(J76/2,0),IF(E73="Claim Tax Free Threshold",NEWPAYGW.TFT,NEWPAYGW.NOTFT),5))/(1-VLOOKUP(ROUNDDOWN(J76/2,0),IF(E73="Claim Tax Free Threshold",NEWPAYGW.TFT,NEWPAYGW.NOTFT),4)),0))*2,0) -> 0 | K78: =SUM(F78:J78) -> 0 | O78: blank
O79: blank
C80: 10 | E80: =Summary!E20 -> Employee 10 Name | O80: =IF(OR(K82<>0,K83<>0,K84<>0,K85<>0,K86<>0),0,"blank") -> blank
E81: Select | O81: =O80 -> blank
E82: Wages Paid from Accounting Records | K82: =SUM(F82:J82) -> 0 | O82: =O81 -> blank
E83: Less PAYG Withholding Payments to the ATO (if incl above) | K83: =SUM(F83:J83) -> 0 | O83: blank
E84: Net Wages | F84: =F82-F83 -> 0 | G84: =G82-G83 -> 0 | H84: 0 | I84: 0 | J84: 0 | K84: =SUM(F84:J84) -> 0 | O84: blank
E85: Add PAYG Withholding | F85: =IF(E81<>"Select",F86-F84,0) -> 0 | G85: =IF(E81<>"Select",G86-G84,0) -> 0 | H85: =IF(E81<>"Select",H86-H84,0) -> 0 | I85: =IF(E81<>"Select",I86-I84,0) -> 0 | J85: =IF(E81<>"Select",J86-J84,0) -> 0 | K85: =SUM(F85:J85) -> 0 | O85: blank
E86: Gross Wages | F86: =IF(E81<>"Select",(ROUND((ROUNDDOWN(F84/2,0)+(0.99*VLOOKUP(ROUNDDOWN(F84/2,0),IF(E81="Claim Tax Free Threshold",NEWPAYGW.TFT,NEWPAYGW.NOTFT),4))-VLOOKUP(ROUNDDOWN(F84/2,0),IF(E81="Claim Tax Free Threshold",NEWPAYGW.TFT,NEWPAYGW.NOTFT),5))/(1-VLOOKUP(ROUNDDOWN(F84/2,0),IF(E81="Claim Tax Free Threshold",NEWPAYGW.TFT,NEWPAYGW.NOTFT),4)),0))*2,0) -> 0 | G86: =IF(E81<>"Select",(ROUND((ROUNDDOWN(G84/2,0)+(0.99*VLOOKUP(ROUNDDOWN(G84/2,0),IF(E81="Claim Tax Free Threshold",NEWPAYGW.TFT,NEWPAYGW.NOTFT),4))-VLOOKUP(ROUNDDOWN(G84/2,0),IF(E81="Claim Tax Free Threshold",NEWPAYGW.TFT,NEWPAYGW.NOTFT),5))/(1-VLOOKUP(ROUNDDOWN(G84/2,0),IF(E81="Claim Tax Free Threshold",NEWPAYGW.TFT,NEWPAYGW.NOTFT),4)),0))*2,0) -> 0 | H86: =IF(E81<>"Select",(ROUND((ROUNDDOWN(H84/2,0)+(0.99*VLOOKUP(ROUNDDOWN(H84/2,0),IF(E81="Claim Tax Free Threshold",NEWPAYGW.TFT,NEWPAYGW.NOTFT),4))-VLOOKUP(ROUNDDOWN(H84/2,0),IF(E81="Claim Tax Free Threshold",NEWPAYGW.TFT,NEWPAYGW.NOTFT),5))/(1-VLOOKUP(ROUNDDOWN(H84/2,0),IF(E81="Claim Tax Free Threshold",NEWPAYGW.TFT,NEWPAYGW.NOTFT),4)),0))*2,0) -> 0 | I86: =IF(E81<>"Select",(ROUND((ROUNDDOWN(I84/2,0)+(0.99*VLOOKUP(ROUNDDOWN(I84/2,0),IF(E81="Claim Tax Free Threshold",NEWPAYGW.TFT,NEWPAYGW.NOTFT),4))-VLOOKUP(ROUNDDOWN(I84/2,0),IF(E81="Claim Tax Free Threshold",NEWPAYGW.TFT,NEWPAYGW.NOTFT),5))/(1-VLOOKUP(ROUNDDOWN(I84/2,0),IF(E81="Claim Tax Free Threshold",NEWPAYGW.TFT,NEWPAYGW.NOTFT),4)),0))*2,0) -> 0 | J86: =IF(E81<>"Select",(ROUND((ROUNDDOWN(J84/2,0)+(0.99*VLOOKUP(ROUNDDOWN(J84/2,0),IF(E81="Claim Tax Free Threshold",NEWPAYGW.TFT,NEWPAYGW.NOTFT),4))-VLOOKUP(ROUNDDOWN(J84/2,0),IF(E81="Claim Tax Free Threshold",NEWPAYGW.TFT,NEWPAYGW.NOTFT),5))/(1-VLOOKUP(ROUNDDOWN(J84/2,0),IF(E81="Claim Tax Free Threshold",NEWPAYGW.TFT,NEWPAYGW.NOTFT),4)),0))*2,0) -> 0 | K86: =SUM(F86:J86) -> 0 | O86: blank
O87: blank
E89: Monthly Summary
E90: Gross Wages | F90: =F14+F22+F30+F38+F46+F54+F62+F70+F78+F86 -> 0 | G90: =G14+G22+G30+G38+G46+G54+G62+G70+G78+G86 -> 0 | H90: 0 | I90: 0 | J90: 0 | K90: =SUM(F90:J90) -> 0
E91: PAYG Withholding | F91: =F13+F21+F29+F37+F45+F53+F61+F69+F77+F85 -> 0 | G91: =G13+G21+G29+G37+G45+G53+G61+G69+G77+G85 -> 0 | H91: 0 | I91: 0 | J91: 0 | K91: =SUM(F91:J91) -> 0
E92: Net Wages | F92: =F90-F91 -> 0 | G92: =G90-G91 -> 0 | H92: 0 | I92: 0 | J92: 0 | K92: 0
E95: PAYG withholding calculations are for payments of fortnightly wages to resident individuals who have quoted their TFN and are not claiming any Medicare Levy reduction
O96: ="blank" -> blank

Sheet Dec
E1: Gross Pay Estimate - Weekly Wages | K1: =Summary!O2 -> Entity Name | O1: HIDE
E2: =CONCATENATE("Wages for ",TEXT(Month6End,"mmmm yyyy")) -> Wages for December 2017 | K2: =Summary!O3 -> Preparer Name
F5: Wages for Fortnight Ended
K7: Total
C8: 1 | E8: =Summary!E11 -> Employee 1 Name | O8: =IF(OR(K10<>0,K11<>0,K12<>0,K13<>0,K14<>0),0,"blank") -> blank
E9: Select | O9: =O8 -> blank
E10: Wages Paid from Accounting Records | K10: =SUM(F10:J10) -> 0 | O10: =O9 -> blank
E11: Less PAYG Withholding Payments to the ATO (if incl above) | K11: =SUM(F11:J11) -> 0 | O11: blank
E12: Net Wages | F12: =F10-F11 -> 0 | G12: =G10-G11 -> 0 | H12: 0 | I12: 0 | J12: 0 | K12: =SUM(F12:J12) -> 0 | O12: blank
E13: Add PAYG Withholding | F13: =IF(E9<>"Select",F14-F12,0) -> 0 | G13: =IF(E9<>"Select",G14-G12,0) -> 0 | H13: =IF(E9<>"Select",H14-H12,0) -> 0 | I13: =IF(E9<>"Select",I14-I12,0) -> 0 | J13: =IF(E9<>"Select",J14-J12,0) -> 0 | K13: =SUM(F13:J13) -> 0 | O13: blank
E14: Gross Wages | F14: =IF(E9<>"Select",(ROUND((ROUNDDOWN(F12/2,0)+(0.99*VLOOKUP(ROUNDDOWN(F12/2,0),IF(E9="Claim Tax Free Threshold",NEWPAYGW.TFT,NEWPAYGW.NOTFT),4))-VLOOKUP(ROUNDDOWN(F12/2,0),IF(E9="Claim Tax Free Threshold",NEWPAYGW.TFT,NEWPAYGW.NOTFT),5))/(1-VLOOKUP(ROUNDDOWN(F12/2,0),IF(E9="Claim Tax Free Threshold",NEWPAYGW.TFT,NEWPAYGW.NOTFT),4)),0))*2,0) -> 0 | G14: =IF(E9<>"Select",(ROUND((ROUNDDOWN(G12/2,0)+(0.99*VLOOKUP(ROUNDDOWN(G12/2,0),IF(E9="Claim Tax Free Threshold",NEWPAYGW.TFT,NEWPAYGW.NOTFT),4))-VLOOKUP(ROUNDDOWN(G12/2,0),IF(E9="Claim Tax Free Threshold",NEWPAYGW.TFT,NEWPAYGW.NOTFT),5))/(1-VLOOKUP(ROUNDDOWN(G12/2,0),IF(E9="Claim Tax Free Threshold",NEWPAYGW.TFT,NEWPAYGW.NOTFT),4)),0))*2,0) -> 0 | H14: =IF(E9<>"Select",(ROUND((ROUNDDOWN(H12/2,0)+(0.99*VLOOKUP(ROUNDDOWN(H12/2,0),IF(E9="Claim Tax Free Threshold",NEWPAYGW.TFT,NEWPAYGW.NOTFT),4))-VLOOKUP(ROUNDDOWN(H12/2,0),IF(E9="Claim Tax Free Threshold",NEWPAYGW.TFT,NEWPAYGW.NOTFT),5))/(1-VLOOKUP(ROUNDDOWN(H12/2,0),IF(E9="Claim Tax Free Threshold",NEWPAYGW.TFT,NEWPAYGW.NOTFT),4)),0))*2,0) -> 0 | I14: =IF(E9<>"Select",(ROUND((ROUNDDOWN(I12/2,0)+(0.99*VLOOKUP(ROUNDDOWN(I12/2,0),IF(E9="Claim Tax Free Threshold",NEWPAYGW.TFT,NEWPAYGW.NOTFT),4))-VLOOKUP(ROUNDDOWN(I12/2,0),IF(E9="Claim Tax Free Threshold",NEWPAYGW.TFT,NEWPAYGW.NOTFT),5))/(1-VLOOKUP(ROUNDDOWN(I12/2,0),IF(E9="Claim Tax Free Threshold",NEWPAYGW.TFT,NEWPAYGW.NOTFT),4)),0))*2,0) -> 0 | J14: =IF(E9<>"Select",(ROUND((ROUNDDOWN(J12/2,0)+(0.99*VLOOKUP(ROUNDDOWN(J12/2,0),IF(E9="Claim Tax Free Threshold",NEWPAYGW.TFT,NEWPAYGW.NOTFT),4))-VLOOKUP(ROUNDDOWN(J12/2,0),IF(E9="Claim Tax Free Threshold",NEWPAYGW.TFT,NEWPAYGW.NOTFT),5))/(1-VLOOKUP(ROUNDDOWN(J12/2,0),IF(E9="Claim Tax Free Threshold",NEWPAYGW.TFT,NEWPAYGW.NOTFT),4)),0))*2,0) -> 0 | K14: =SUM(F14:J14) -> 0 | O14: blank
O15: blank
C16: 2 | E16: =Summary!E12 -> Employee 2 Name | O16: =IF(OR(K18<>0,K19<>0,K20<>0,K21<>0,K22<>0),0,"blank") -> blank
E17: Select | O17: =O16 -> blank
E18: Wages Paid from Accounting Records | K18: =SUM(F18:J18) -> 0 | O18: =O17 -> blank
E19: Less PAYG Withholding Payments to the ATO (if incl above) | K19: =SUM(F19:J19) -> 0 | O19: blank
E20: Net Wages | F20: =F18-F19 -> 0 | G20: =G18-G19 -> 0 | H20: 0 | I20: 0 | J20: 0 | K20: =SUM(F20:J20) -> 0 | O20: blank
E21: Add PAYG Withholding | F21: =IF(E17<>"Select",F22-F20,0) -> 0 | G21: =IF(E17<>"Select",G22-G20,0) -> 0 | H21: =IF(E17<>"Select",H22-H20,0) -> 0 | I21: =IF(E17<>"Select",I22-I20,0) -> 0 | J21: =IF(E17<>"Select",J22-J20,0) -> 0 | K21: =SUM(F21:J21) -> 0 | O21: blank
E22: Gross Wages | F22: =IF(E17<>"Select",(ROUND((ROUNDDOWN(F20/2,0)+(0.99*VLOOKUP(ROUNDDOWN(F20/2,0),IF(E17="Claim Tax Free Threshold",NEWPAYGW.TFT,NEWPAYGW.NOTFT),4))-VLOOKUP(ROUNDDOWN(F20/2,0),IF(E17="Claim Tax Free Threshold",NEWPAYGW.TFT,NEWPAYGW.NOTFT),5))/(1-VLOOKUP(ROUNDDOWN(F20/2,0),IF(E17="Claim Tax Free Threshold",NEWPAYGW.TFT,NEWPAYGW.NOTFT),4)),0))*2,0) -> 0 | G22: =IF(E17<>"Select",(ROUND((ROUNDDOWN(G20/2,0)+(0.99*VLOOKUP(ROUNDDOWN(G20/2,0),IF(E17="Claim Tax Free Threshold",NEWPAYGW.TFT,NEWPAYGW.NOTFT),4))-VLOOKUP(ROUNDDOWN(G20/2,0),IF(E17="Claim Tax Free Threshold",NEWPAYGW.TFT,NEWPAYGW.NOTFT),5))/(1-VLOOKUP(ROUNDDOWN(G20/2,0),IF(E17="Claim Tax Free Threshold",NEWPAYGW.TFT,NEWPAYGW.NOTFT),4)),0))*2,0) -> 0 | H22: =IF(E17<>"Select",(ROUND((ROUNDDOWN(H20/2,0)+(0.99*VLOOKUP(ROUNDDOWN(H20/2,0),IF(E17="Claim Tax Free Threshold",NEWPAYGW.TFT,NEWPAYGW.NOTFT),4))-VLOOKUP(ROUNDDOWN(H20/2,0),IF(E17="Claim Tax Free Threshold",NEWPAYGW.TFT,NEWPAYGW.NOTFT),5))/(1-VLOOKUP(ROUNDDOWN(H20/2,0),IF(E17="Claim Tax Free Threshold",NEWPAYGW.TFT,NEWPAYGW.NOTFT),4)),0))*2,0) -> 0 | I22: =IF(E17<>"Select",(ROUND((ROUNDDOWN(I20/2,0)+(0.99*VLOOKUP(ROUNDDOWN(I20/2,0),IF(E17="Claim Tax Free Threshold",NEWPAYGW.TFT,NEWPAYGW.NOTFT),4))-VLOOKUP(ROUNDDOWN(I20/2,0),IF(E17="Claim Tax Free Threshold",NEWPAYGW.TFT,NEWPAYGW.NOTFT),5))/(1-VLOOKUP(ROUNDDOWN(I20/2,0),IF(E17="Claim Tax Free Threshold",NEWPAYGW.TFT,NEWPAYGW.NOTFT),4)),0))*2,0) -> 0 | J22: =IF(E17<>"Select",(ROUND((ROUNDDOWN(J20/2,0)+(0.99*VLOOKUP(ROUNDDOWN(J20/2,0),IF(E17="Claim Tax Free Threshold",NEWPAYGW.TFT,NEWPAYGW.NOTFT),4))-VLOOKUP(ROUNDDOWN(J20/2,0),IF(E17="Claim Tax Free Threshold",NEWPAYGW.TFT,NEWPAYGW.NOTFT),5))/(1-VLOOKUP(ROUNDDOWN(J20/2,0),IF(E17="Claim Tax Free Threshold",NEWPAYGW.TFT,NEWPAYGW.NOTFT),4)),0))*2,0) -> 0 | K22: =SUM(F22:J22) -> 0 | O22: blank
O23: blank
C24: 3 | E24: =Summary!E13 -> Employee 3 Name | O24: =IF(OR(K26<>0,K27<>0,K28<>0,K29<>0,K30<>0),0,"blank") -> blank
E25: Select | O25: =O24 -> blank
E26: Wages Paid from Accounting Records | K26: =SUM(F26:J26) -> 0 | O26: =O25 -> blank
E27: Less PAYG Withholding Payments to the ATO (if incl above) | K27: =SUM(F27:J27) -> 0 | O27: blank
E28: Net Wages | F28: =F26-F27 -> 0 | G28: =G26-G27 -> 0 | H28: 0 | I28: 0 | J28: 0 | K28: =SUM(F28:J28) -> 0 | O28: blank
E29: Add PAYG Withholding | F29: =IF(E25<>"Select",F30-F28,0) -> 0 | G29: =IF(E25<>"Select",G30-G28,0) -> 0 | H29: =IF(E25<>"Select",H30-H28,0) -> 0 | I29: =IF(E25<>"Select",I30-I28,0) -> 0 | J29: =IF(E25<>"Select",J30-J28,0) -> 0 | K29: =SUM(F29:J29) -> 0 | O29: blank
E30: Gross Wages | F30: =IF(E25<>"Select",(ROUND((ROUNDDOWN(F28/2,0)+(0.99*VLOOKUP(ROUNDDOWN(F28/2,0),IF(E25="Claim Tax Free Threshold",NEWPAYGW.TFT,NEWPAYGW.NOTFT),4))-VLOOKUP(ROUNDDOWN(F28/2,0),IF(E25="Claim Tax Free Threshold",NEWPAYGW.TFT,NEWPAYGW.NOTFT),5))/(1-VLOOKUP(ROUNDDOWN(F28/2,0),IF(E25="Claim Tax Free Threshold",NEWPAYGW.TFT,NEWPAYGW.NOTFT),4)),0))*2,0) -> 0 | G30: =IF(E25<>"Select",(ROUND((ROUNDDOWN(G28/2,0)+(0.99*VLOOKUP(ROUNDDOWN(G28/2,0),IF(E25="Claim Tax Free Threshold",NEWPAYGW.TFT,NEWPAYGW.NOTFT),4))-VLOOKUP(ROUNDDOWN(G28/2,0),IF(E25="Claim Tax Free Threshold",NEWPAYGW.TFT,NEWPAYGW.NOTFT),5))/(1-VLOOKUP(ROUNDDOWN(G28/2,0),IF(E25="Claim Tax Free Threshold",NEWPAYGW.TFT,NEWPAYGW.NOTFT),4)),0))*2,0) -> 0 | H30: =IF(E25<>"Select",(ROUND((ROUNDDOWN(H28/2,0)+(0.99*VLOOKUP(ROUNDDOWN(H28/2,0),IF(E25="Claim Tax Free Threshold",NEWPAYGW.TFT,NEWPAYGW.NOTFT),4))-VLOOKUP(ROUNDDOWN(H28/2,0),IF(E25="Claim Tax Free Threshold",NEWPAYGW.TFT,NEWPAYGW.NOTFT),5))/(1-VLOOKUP(ROUNDDOWN(H28/2,0),IF(E25="Claim Tax Free Threshold",NEWPAYGW.TFT,NEWPAYGW.NOTFT),4)),0))*2,0) -> 0 | I30: =IF(E25<>"Select",(ROUND((ROUNDDOWN(I28/2,0)+(0.99*VLOOKUP(ROUNDDOWN(I28/2,0),IF(E25="Claim Tax Free Threshold",NEWPAYGW.TFT,NEWPAYGW.NOTFT),4))-VLOOKUP(ROUNDDOWN(I28/2,0),IF(E25="Claim Tax Free Threshold",NEWPAYGW.TFT,NEWPAYGW.NOTFT),5))/(1-VLOOKUP(ROUNDDOWN(I28/2,0),IF(E25="Claim Tax Free Threshold",NEWPAYGW.TFT,NEWPAYGW.NOTFT),4)),0))*2,0) -> 0 | J30: =IF(E25<>"Select",(ROUND((ROUNDDOWN(J28/2,0)+(0.99*VLOOKUP(ROUNDDOWN(J28/2,0),IF(E25="Claim Tax Free Threshold",NEWPAYGW.TFT,NEWPAYGW.NOTFT),4))-VLOOKUP(ROUNDDOWN(J28/2,0),IF(E25="Claim Tax Free Threshold",NEWPAYGW.TFT,NEWPAYGW.NOTFT),5))/(1-VLOOKUP(ROUNDDOWN(J28/2,0),IF(E25="Claim Tax Free Threshold",NEWPAYGW.TFT,NEWPAYGW.NOTFT),4)),0))*2,0) -> 0 | K30: =SUM(F30:J30) -> 0 | O30: blank
O31: blank
C32: 4 | E32: =Summary!E14 -> Employee 4 Name | O32: =IF(OR(K34<>0,K35<>0,K36<>0,K37<>0,K38<>0),0,"blank") -> blank
E33: Select | O33: =O32 -> blank
E34: Wages Paid from Accounting Records | K34: =SUM(F34:J34) -> 0 | O34: =O33 -> blank
E35: Less PAYG Withholding Payments to the ATO (if incl above) | K35: =SUM(F35:J35) -> 0 | O35: blank
E36: Net Wages | F36: =F34-F35 -> 0 | G36: =G34-G35 -> 0 | H36: 0 | I36: 0 | J36: 0 | K36: =SUM(F36:J36) -> 0 | O36: blank
E37: Add PAYG Withholding | F37: =IF(E33<>"Select",F38-F36,0) -> 0 | G37: =IF(E33<>"Select",G38-G36,0) -> 0 | H37: =IF(E33<>"Select",H38-H36,0) -> 0 | I37: =IF(E33<>"Select",I38-I36,0) -> 0 | J37: =IF(E33<>"Select",J38-J36,0) -> 0 | K37: =SUM(F37:J37) -> 0 | O37: blank
E38: Gross Wages | F38: =IF(E33<>"Select",(ROUND((ROUNDDOWN(F36/2,0)+(0.99*VLOOKUP(ROUNDDOWN(F36/2,0),IF(E33="Claim Tax Free Threshold",NEWPAYGW.TFT,NEWPAYGW.NOTFT),4))-VLOOKUP(ROUNDDOWN(F36/2,0),IF(E33="Claim Tax Free Threshold",NEWPAYGW.TFT,NEWPAYGW.NOTFT),5))/(1-VLOOKUP(ROUNDDOWN(F36/2,0),IF(E33="Claim Tax Free Threshold",NEWPAYGW.TFT,NEWPAYGW.NOTFT),4)),0))*2,0) -> 0 | G38: =IF(E33<>"Select",(ROUND((ROUNDDOWN(G36/2,0)+(0.99*VLOOKUP(ROUNDDOWN(G36/2,0),IF(E33="Claim Tax Free Threshold",NEWPAYGW.TFT,NEWPAYGW.NOTFT),4))-VLOOKUP(ROUNDDOWN(G36/2,0),IF(E33="Claim Tax Free Threshold",NEWPAYGW.TFT,NEWPAYGW.NOTFT),5))/(1-VLOOKUP(ROUNDDOWN(G36/2,0),IF(E33="Claim Tax Free Threshold",NEWPAYGW.TFT,NEWPAYGW.NOTFT),4)),0))*2,0) -> 0 | H38: =IF(E33<>"Select",(ROUND((ROUNDDOWN(H36/2,0)+(0.99*VLOOKUP(ROUNDDOWN(H36/2,0),IF(E33="Claim Tax Free Threshold",NEWPAYGW.TFT,NEWPAYGW.NOTFT),4))-VLOOKUP(ROUNDDOWN(H36/2,0),IF(E33="Claim Tax Free Threshold",NEWPAYGW.TFT,NEWPAYGW.NOTFT),5))/(1-VLOOKUP(ROUNDDOWN(H36/2,0),IF(E33="Claim Tax Free Threshold",NEWPAYGW.TFT,NEWPAYGW.NOTFT),4)),0))*2,0) -> 0 | I38: =IF(E33<>"Select",(ROUND((ROUNDDOWN(I36/2,0)+(0.99*VLOOKUP(ROUNDDOWN(I36/2,0),IF(E33="Claim Tax Free Threshold",NEWPAYGW.TFT,NEWPAYGW.NOTFT),4))-VLOOKUP(ROUNDDOWN(I36/2,0),IF(E33="Claim Tax Free Threshold",NEWPAYGW.TFT,NEWPAYGW.NOTFT),5))/(1-VLOOKUP(ROUNDDOWN(I36/2,0),IF(E33="Claim Tax Free Threshold",NEWPAYGW.TFT,NEWPAYGW.NOTFT),4)),0))*2,0) -> 0 | J38: =IF(E33<>"Select",(ROUND((ROUNDDOWN(J36/2,0)+(0.99*VLOOKUP(ROUNDDOWN(J36/2,0),IF(E33="Claim Tax Free Threshold",NEWPAYGW.TFT,NEWPAYGW.NOTFT),4))-VLOOKUP(ROUNDDOWN(J36/2,0),IF(E33="Claim Tax Free Threshold",NEWPAYGW.TFT,NEWPAYGW.NOTFT),5))/(1-VLOOKUP(ROUNDDOWN(J36/2,0),IF(E33="Claim Tax Free Threshold",NEWPAYGW.TFT,NEWPAYGW.NOTFT),4)),0))*2,0) -> 0 | K38: =SUM(F38:J38) -> 0 | O38: blank
O39: blank
C40: 5 | E40: =Summary!E15 -> Employee 5 Name | O40: =IF(OR(K42<>0,K43<>0,K44<>0,K45<>0,K46<>0),0,"blank") -> blank
E41: Select | O41: =O40 -> blank
E42: Wages Paid from Accounting Records | K42: =SUM(F42:J42) -> 0 | O42: =O41 -> blank
E43: Less PAYG Withholding Payments to the ATO (if incl above) | K43: =SUM(F43:J43) -> 0 | O43: blank
E44: Net Wages | F44: =F42-F43 -> 0 | G44: =G42-G43 -> 0 | H44: 0 | I44: 0 | J44: 0 | K44: =SUM(F44:J44) -> 0 | O44: blank
E45: Add PAYG Withholding | F45: =IF(E41<>"Select",F46-F44,0) -> 0 | G45: =IF(E41<>"Select",G46-G44,0) -> 0 | H45: =IF(E41<>"Select",H46-H44,0) -> 0 | I45: =IF(E41<>"Select",I46-I44,0) -> 0 | J45: =IF(E41<>"Select",J46-J44,0) -> 0 | K45: =SUM(F45:J45) -> 0 | O45: blank
E46: Gross Wages | F46: =IF(E41<>"Select",(ROUND((ROUNDDOWN(F44/2,0)+(0.99*VLOOKUP(ROUNDDOWN(F44/2,0),IF(E41="Claim Tax Free Threshold",NEWPAYGW.TFT,NEWPAYGW.NOTFT),4))-VLOOKUP(ROUNDDOWN(F44/2,0),IF(E41="Claim Tax Free Threshold",NEWPAYGW.TFT,NEWPAYGW.NOTFT),5))/(1-VLOOKUP(ROUNDDOWN(F44/2,0),IF(E41="Claim Tax Free Threshold",NEWPAYGW.TFT,NEWPAYGW.NOTFT),4)),0))*2,0) -> 0 | G46: =IF(E41<>"Select",(ROUND((ROUNDDOWN(G44/2,0)+(0.99*VLOOKUP(ROUNDDOWN(G44/2,0),IF(E41="Claim Tax Free Threshold",NEWPAYGW.TFT,NEWPAYGW.NOTFT),4))-VLOOKUP(ROUNDDOWN(G44/2,0),IF(E41="Claim Tax Free Threshold",NEWPAYGW.TFT,NEWPAYGW.NOTFT),5))/(1-VLOOKUP(ROUNDDOWN(G44/2,0),IF(E41="Claim Tax Free Threshold",NEWPAYGW.TFT,NEWPAYGW.NOTFT),4)),0))*2,0) -> 0 | H46: =IF(E41<>"Select",(ROUND((ROUNDDOWN(H44/2,0)+(0.99*VLOOKUP(ROUNDDOWN(H44/2,0),IF(E41="Claim Tax Free Threshold",NEWPAYGW.TFT,NEWPAYGW.NOTFT),4))-VLOOKUP(ROUNDDOWN(H44/2,0),IF(E41="Claim Tax Free Threshold",NEWPAYGW.TFT,NEWPAYGW.NOTFT),5))/(1-VLOOKUP(ROUNDDOWN(H44/2,0),IF(E41="Claim Tax Free Threshold",NEWPAYGW.TFT,NEWPAYGW.NOTFT),4)),0))*2,0) -> 0 | I46: =IF(E41<>"Select",(ROUND((ROUNDDOWN(I44/2,0)+(0.99*VLOOKUP(ROUNDDOWN(I44/2,0),IF(E41="Claim Tax Free Threshold",NEWPAYGW.TFT,NEWPAYGW.NOTFT),4))-VLOOKUP(ROUNDDOWN(I44/2,0),IF(E41="Claim Tax Free Threshold",NEWPAYGW.TFT,NEWPAYGW.NOTFT),5))/(1-VLOOKUP(ROUNDDOWN(I44/2,0),IF(E41="Claim Tax Free Threshold",NEWPAYGW.TFT,NEWPAYGW.NOTFT),4)),0))*2,0) -> 0 | J46: =IF(E41<>"Select",(ROUND((ROUNDDOWN(J44/2,0)+(0.99*VLOOKUP(ROUNDDOWN(J44/2,0),IF(E41="Claim Tax Free Threshold",NEWPAYGW.TFT,NEWPAYGW.NOTFT),4))-VLOOKUP(ROUNDDOWN(J44/2,0),IF(E41="Claim Tax Free Threshold",NEWPAYGW.TFT,NEWPAYGW.NOTFT),5))/(1-VLOOKUP(ROUNDDOWN(J44/2,0),IF(E41="Claim Tax Free Threshold",NEWPAYGW.TFT,NEWPAYGW.NOTFT),4)),0))*2,0) -> 0 | K46: =SUM(F46:J46) -> 0 | O46: blank
O47: blank
C48: 6 | E48: =Summary!E16 -> Employee 6 Name | O48: =IF(OR(K50<>0,K51<>0,K52<>0,K53<>0,K54<>0),0,"blank") -> blank
E49: Select | O49: =O48 -> blank
E50: Wages Paid from Accounting Records | K50: =SUM(F50:J50) -> 0 | O50: =O49 -> blank
E51: Less PAYG Withholding Payments to the ATO (if incl above) | K51: =SUM(F51:J51) -> 0 | O51: blank
E52: Net Wages | F52: =F50-F51 -> 0 | G52: =G50-G51 -> 0 | H52: 0 | I52: 0 | J52: 0 | K52: =SUM(F52:J52) -> 0 | O52: blank
E53: Add PAYG Withholding | F53: =IF(E49<>"Select",F54-F52,0) -> 0 | G53: =IF(E49<>"Select",G54-G52,0) -> 0 | H53: =IF(E49<>"Select",H54-H52,0) -> 0 | I53: =IF(E49<>"Select",I54-I52,0) -> 0 | J53: =IF(E49<>"Select",J54-J52,0) -> 0 | K53: =SUM(F53:J53) -> 0 | O53: blank
E54: Gross Wages | F54: =IF(E49<>"Select",(ROUND((ROUNDDOWN(F52/2,0)+(0.99*VLOOKUP(ROUNDDOWN(F52/2,0),IF(E49="Claim Tax Free Threshold",NEWPAYGW.TFT,NEWPAYGW.NOTFT),4))-VLOOKUP(ROUNDDOWN(F52/2,0),IF(E49="Claim Tax Free Threshold",NEWPAYGW.TFT,NEWPAYGW.NOTFT),5))/(1-VLOOKUP(ROUNDDOWN(F52/2,0),IF(E49="Claim Tax Free Threshold",NEWPAYGW.TFT,NEWPAYGW.NOTFT),4)),0))*2,0) -> 0 | G54: =IF(E49<>"Select",(ROUND((ROUNDDOWN(G52/2,0)+(0.99*VLOOKUP(ROUNDDOWN(G52/2,0),IF(E49="Claim Tax Free Threshold",NEWPAYGW.TFT,NEWPAYGW.NOTFT),4))-VLOOKUP(ROUNDDOWN(G52/2,0),IF(E49="Claim Tax Free Threshold",NEWPAYGW.TFT,NEWPAYGW.NOTFT),5))/(1-VLOOKUP(ROUNDDOWN(G52/2,0),IF(E49="Claim Tax Free Threshold",NEWPAYGW.TFT,NEWPAYGW.NOTFT),4)),0))*2,0) -> 0 | H54: =IF(E49<>"Select",(ROUND((ROUNDDOWN(H52/2,0)+(0.99*VLOOKUP(ROUNDDOWN(H52/2,0),IF(E49="Claim Tax Free Threshold",NEWPAYGW.TFT,NEWPAYGW.NOTFT),4))-VLOOKUP(ROUNDDOWN(H52/2,0),IF(E49="Claim Tax Free Threshold",NEWPAYGW.TFT,NEWPAYGW.NOTFT),5))/(1-VLOOKUP(ROUNDDOWN(H52/2,0),IF(E49="Claim Tax Free Threshold",NEWPAYGW.TFT,NEWPAYGW.NOTFT),4)),0))*2,0) -> 0 | I54: =IF(E49<>"Select",(ROUND((ROUNDDOWN(I52/2,0)+(0.99*VLOOKUP(ROUNDDOWN(I52/2,0),IF(E49="Claim Tax Free Threshold",NEWPAYGW.TFT,NEWPAYGW.NOTFT),4))-VLOOKUP(ROUNDDOWN(I52/2,0),IF(E49="Claim Tax Free Threshold",NEWPAYGW.TFT,NEWPAYGW.NOTFT),5))/(1-VLOOKUP(ROUNDDOWN(I52/2,0),IF(E49="Claim Tax Free Threshold",NEWPAYGW.TFT,NEWPAYGW.NOTFT),4)),0))*2,0) -> 0 | J54: =IF(E49<>"Select",(ROUND((ROUNDDOWN(J52/2,0)+(0.99*VLOOKUP(ROUNDDOWN(J52/2,0),IF(E49="Claim Tax Free Threshold",NEWPAYGW.TFT,NEWPAYGW.NOTFT),4))-VLOOKUP(ROUNDDOWN(J52/2,0),IF(E49="Claim Tax Free Threshold",NEWPAYGW.TFT,NEWPAYGW.NOTFT),5))/(1-VLOOKUP(ROUNDDOWN(J52/2,0),IF(E49="Claim Tax Free Threshold",NEWPAYGW.TFT,NEWPAYGW.NOTFT),4)),0))*2,0) -> 0 | K54: =SUM(F54:J54) -> 0 | O54: blank
O55: blank
C56: 7 | E56: =Summary!E17 -> Employee 7 Name | O56: =IF(OR(K58<>0,K59<>0,K60<>0,K61<>0,K62<>0),0,"blank") -> blank
E57: Select | O57: =O56 -> blank
E58: Wages Paid from Accounting Records | K58: =SUM(F58:J58) -> 0 | O58: =O57 -> blank
E59: Less PAYG Withholding Payments to the ATO (if incl above) | K59: =SUM(F59:J59) -> 0 | O59: blank
E60: Net Wages | F60: =F58-F59 -> 0 | G60: =G58-G59 -> 0 | H60: 0 | I60: 0 | J60: 0 | K60: =SUM(F60:J60) -> 0 | O60: blank
E61: Add PAYG Withholding | F61: =IF(E57<>"Select",F62-F60,0) -> 0 | G61: =IF(E57<>"Select",G62-G60,0) -> 0 | H61: =IF(E57<>"Select",H62-H60,0) -> 0 | I61: =IF(E57<>"Select",I62-I60,0) -> 0 | J61: =IF(E57<>"Select",J62-J60,0) -> 0 | K61: =SUM(F61:J61) -> 0 | O61: blank
E62: Gross Wages | F62: =IF(E57<>"Select",(ROUND((ROUNDDOWN(F60/2,0)+(0.99*VLOOKUP(ROUNDDOWN(F60/2,0),IF(E57="Claim Tax Free Threshold",NEWPAYGW.TFT,NEWPAYGW.NOTFT),4))-VLOOKUP(ROUNDDOWN(F60/2,0),IF(E57="Claim Tax Free Threshold",NEWPAYGW.TFT,NEWPAYGW.NOTFT),5))/(1-VLOOKUP(ROUNDDOWN(F60/2,0),IF(E57="Claim Tax Free Threshold",NEWPAYGW.TFT,NEWPAYGW.NOTFT),4)),0))*2,0) -> 0 | G62: =IF(E57<>"Select",(ROUND((ROUNDDOWN(G60/2,0)+(0.99*VLOOKUP(ROUNDDOWN(G60/2,0),IF(E57="Claim Tax Free Threshold",NEWPAYGW.TFT,NEWPAYGW.NOTFT),4))-VLOOKUP(ROUNDDOWN(G60/2,0),IF(E57="Claim Tax Free Threshold",NEWPAYGW.TFT,NEWPAYGW.NOTFT),5))/(1-VLOOKUP(ROUNDDOWN(G60/2,0),IF(E57="Claim Tax Free Threshold",NEWPAYGW.TFT,NEWPAYGW.NOTFT),4)),0))*2,0) -> 0 | H62: =IF(E57<>"Select",(ROUND((ROUNDDOWN(H60/2,0)+(0.99*VLOOKUP(ROUNDDOWN(H60/2,0),IF(E57="Claim Tax Free Threshold",NEWPAYGW.TFT,NEWPAYGW.NOTFT),4))-VLOOKUP(ROUNDDOWN(H60/2,0),IF(E57="Claim Tax Free Threshold",NEWPAYGW.TFT,NEWPAYGW.NOTFT),5))/(1-VLOOKUP(ROUNDDOWN(H60/2,0),IF(E57="Claim Tax Free Threshold",NEWPAYGW.TFT,NEWPAYGW.NOTFT),4)),0))*2,0) -> 0 | I62: =IF(E57<>"Select",(ROUND((ROUNDDOWN(I60/2,0)+(0.99*VLOOKUP(ROUNDDOWN(I60/2,0),IF(E57="Claim Tax Free Threshold",NEWPAYGW.TFT,NEWPAYGW.NOTFT),4))-VLOOKUP(ROUNDDOWN(I60/2,0),IF(E57="Claim Tax Free Threshold",NEWPAYGW.TFT,NEWPAYGW.NOTFT),5))/(1-VLOOKUP(ROUNDDOWN(I60/2,0),IF(E57="Claim Tax Free Threshold",NEWPAYGW.TFT,NEWPAYGW.NOTFT),4)),0))*2,0) -> 0 | J62: =IF(E57<>"Select",(ROUND((ROUNDDOWN(J60/2,0)+(0.99*VLOOKUP(ROUNDDOWN(J60/2,0),IF(E57="Claim Tax Free Threshold",NEWPAYGW.TFT,NEWPAYGW.NOTFT),4))-VLOOKUP(ROUNDDOWN(J60/2,0),IF(E57="Claim Tax Free Threshold",NEWPAYGW.TFT,NEWPAYGW.NOTFT),5))/(1-VLOOKUP(ROUNDDOWN(J60/2,0),IF(E57="Claim Tax Free Threshold",NEWPAYGW.TFT,NEWPAYGW.NOTFT),4)),0))*2,0) -> 0 | K62: =SUM(F62:J62) -> 0 | O62: blank
O63: blank
C64: 8 | E64: =Summary!E18 -> Employee 8 Name | O64: =IF(OR(K66<>0,K67<>0,K68<>0,K69<>0,K70<>0),0,"blank") -> blank
E65: Select | O65: =O64 -> blank
E66: Wages Paid from Accounting Records | K66: =SUM(F66:J66) -> 0 | O66: =O65 -> blank
E67: Less PAYG Withholding Payments to the ATO (if incl above) | K67: =SUM(F67:J67) -> 0 | O67: blank
E68: Net Wages | F68: =F66-F67 -> 0 | G68: =G66-G67 -> 0 | H68: 0 | I68: 0 | J68: 0 | K68: =SUM(F68:J68) -> 0 | O68: blank
E69: Add PAYG Withholding | F69: =IF(E65<>"Select",F70-F68,0) -> 0 | G69: =IF(E65<>"Select",G70-G68,0) -> 0 | H69: =IF(E65<>"Select",H70-H68,0) -> 0 | I69: =IF(E65<>"Select",I70-I68,0) -> 0 | J69: =IF(E65<>"Select",J70-J68,0) -> 0 | K69: =SUM(F69:J69) -> 0 | O69: blank
E70: Gross Wages | F70: =IF(E65<>"Select",(ROUND((ROUNDDOWN(F68/2,0)+(0.99*VLOOKUP(ROUNDDOWN(F68/2,0),IF(E65="Claim Tax Free Threshold",NEWPAYGW.TFT,NEWPAYGW.NOTFT),4))-VLOOKUP(ROUNDDOWN(F68/2,0),IF(E65="Claim Tax Free Threshold",NEWPAYGW.TFT,NEWPAYGW.NOTFT),5))/(1-VLOOKUP(ROUNDDOWN(F68/2,0),IF(E65="Claim Tax Free Threshold",NEWPAYGW.TFT,NEWPAYGW.NOTFT),4)),0))*2,0) -> 0 | G70: =IF(E65<>"Select",(ROUND((ROUNDDOWN(G68/2,0)+(0.99*VLOOKUP(ROUNDDOWN(G68/2,0),IF(E65="Claim Tax Free Threshold",NEWPAYGW.TFT,NEWPAYGW.NOTFT),4))-VLOOKUP(ROUNDDOWN(G68/2,0),IF(E65="Claim Tax Free Threshold",NEWPAYGW.TFT,NEWPAYGW.NOTFT),5))/(1-VLOOKUP(ROUNDDOWN(G68/2,0),IF(E65="Claim Tax Free Threshold",NEWPAYGW.TFT,NEWPAYGW.NOTFT),4)),0))*2,0) -> 0 | H70: =IF(E65<>"Select",(ROUND((ROUNDDOWN(H68/2,0)+(0.99*VLOOKUP(ROUNDDOWN(H68/2,0),IF(E65="Claim Tax Free Threshold",NEWPAYGW.TFT,NEWPAYGW.NOTFT),4))-VLOOKUP(ROUNDDOWN(H68/2,0),IF(E65="Claim Tax Free Threshold",NEWPAYGW.TFT,NEWPAYGW.NOTFT),5))/(1-VLOOKUP(ROUNDDOWN(H68/2,0),IF(E65="Claim Tax Free Threshold",NEWPAYGW.TFT,NEWPAYGW.NOTFT),4)),0))*2,0) -> 0 | I70: =IF(E65<>"Select",(ROUND((ROUNDDOWN(I68/2,0)+(0.99*VLOOKUP(ROUNDDOWN(I68/2,0),IF(E65="Claim Tax Free Threshold",NEWPAYGW.TFT,NEWPAYGW.NOTFT),4))-VLOOKUP(ROUNDDOWN(I68/2,0),IF(E65="Claim Tax Free Threshold",NEWPAYGW.TFT,NEWPAYGW.NOTFT),5))/(1-VLOOKUP(ROUNDDOWN(I68/2,0),IF(E65="Claim Tax Free Threshold",NEWPAYGW.TFT,NEWPAYGW.NOTFT),4)),0))*2,0) -> 0 | J70: =IF(E65<>"Select",(ROUND((ROUNDDOWN(J68/2,0)+(0.99*VLOOKUP(ROUNDDOWN(J68/2,0),IF(E65="Claim Tax Free Threshold",NEWPAYGW.TFT,NEWPAYGW.NOTFT),4))-VLOOKUP(ROUNDDOWN(J68/2,0),IF(E65="Claim Tax Free Threshold",NEWPAYGW.TFT,NEWPAYGW.NOTFT),5))/(1-VLOOKUP(ROUNDDOWN(J68/2,0),IF(E65="Claim Tax Free Threshold",NEWPAYGW.TFT,NEWPAYGW.NOTFT),4)),0))*2,0) -> 0 | K70: =SUM(F70:J70) -> 0 | O70: blank
O71: blank
C72: 9 | E72: =Summary!E19 -> Employee 9 Name | O72: =IF(OR(K74<>0,K75<>0,K76<>0,K77<>0,K78<>0),0,"blank") -> blank
E73: Select | O73: =O72 -> blank
E74: Wages Paid from Accounting Records | K74: =SUM(F74:J74) -> 0 | O74: =O73 -> blank
E75: Less PAYG Withholding Payments to the ATO (if incl above) | K75: =SUM(F75:J75) -> 0 | O75: blank
E76: Net Wages | F76: =F74-F75 -> 0 | G76: =G74-G75 -> 0 | H76: 0 | I76: 0 | J76: 0 | K76: =SUM(F76:J76) -> 0 | O76: blank
E77: Add PAYG Withholding | F77: =IF(E73<>"Select",F78-F76,0) -> 0 | G77: =IF(E73<>"Select",G78-G76,0) -> 0 | H77: =IF(E73<>"Select",H78-H76,0) -> 0 | I77: =IF(E73<>"Select",I78-I76,0) -> 0 | J77: =IF(E73<>"Select",J78-J76,0) -> 0 | K77: =SUM(F77:J77) -> 0 | O77: blank
E78: Gross Wages | F78: =IF(E73<>"Select",(ROUND((ROUNDDOWN(F76/2,0)+(0.99*VLOOKUP(ROUNDDOWN(F76/2,0),IF(E73="Claim Tax Free Threshold",NEWPAYGW.TFT,NEWPAYGW.NOTFT),4))-VLOOKUP(ROUNDDOWN(F76/2,0),IF(E73="Claim Tax Free Threshold",NEWPAYGW.TFT,NEWPAYGW.NOTFT),5))/(1-VLOOKUP(ROUNDDOWN(F76/2,0),IF(E73="Claim Tax Free Threshold",NEWPAYGW.TFT,NEWPAYGW.NOTFT),4)),0))*2,0) -> 0 | G78: =IF(E73<>"Select",(ROUND((ROUNDDOWN(G76/2,0)+(0.99*VLOOKUP(ROUNDDOWN(G76/2,0),IF(E73="Claim Tax Free Threshold",NEWPAYGW.TFT,NEWPAYGW.NOTFT),4))-VLOOKUP(ROUNDDOWN(G76/2,0),IF(E73="Claim Tax Free Threshold",NEWPAYGW.TFT,NEWPAYGW.NOTFT),5))/(1-VLOOKUP(ROUNDDOWN(G76/2,0),IF(E73="Claim Tax Free Threshold",NEWPAYGW.TFT,NEWPAYGW.NOTFT),4)),0))*2,0) -> 0 | H78: =IF(E73<>"Select",(ROUND((ROUNDDOWN(H76/2,0)+(0.99*VLOOKUP(ROUNDDOWN(H76/2,0),IF(E73="Claim Tax Free Threshold",NEWPAYGW.TFT,NEWPAYGW.NOTFT),4))-VLOOKUP(ROUNDDOWN(H76/2,0),IF(E73="Claim Tax Free Threshold",NEWPAYGW.TFT,NEWPAYGW.NOTFT),5))/(1-VLOOKUP(ROUNDDOWN(H76/2,0),IF(E73="Claim Tax Free Threshold",NEWPAYGW.TFT,NEWPAYGW.NOTFT),4)),0))*2,0) -> 0 | I78: =IF(E73<>"Select",(ROUND((ROUNDDOWN(I76/2,0)+(0.99*VLOOKUP(ROUNDDOWN(I76/2,0),IF(E73="Claim Tax Free Threshold",NEWPAYGW.TFT,NEWPAYGW.NOTFT),4))-VLOOKUP(ROUNDDOWN(I76/2,0),IF(E73="Claim Tax Free Threshold",NEWPAYGW.TFT,NEWPAYGW.NOTFT),5))/(1-VLOOKUP(ROUNDDOWN(I76/2,0),IF(E73="Claim Tax Free Threshold",NEWPAYGW.TFT,NEWPAYGW.NOTFT),4)),0))*2,0) -> 0 | J78: =IF(E73<>"Select",(ROUND((ROUNDDOWN(J76/2,0)+(0.99*VLOOKUP(ROUNDDOWN(J76/2,0),IF(E73="Claim Tax Free Threshold",NEWPAYGW.TFT,NEWPAYGW.NOTFT),4))-VLOOKUP(ROUNDDOWN(J76/2,0),IF(E73="Claim Tax Free Threshold",NEWPAYGW.TFT,NEWPAYGW.NOTFT),5))/(1-VLOOKUP(ROUNDDOWN(J76/2,0),IF(E73="Claim Tax Free Threshold",NEWPAYGW.TFT,NEWPAYGW.NOTFT),4)),0))*2,0) -> 0 | K78: =SUM(F78:J78) -> 0 | O78: blank
O79: blank
C80: 10 | E80: =Summary!E20 -> Employee 10 Name | O80: =IF(OR(K82<>0,K83<>0,K84<>0,K85<>0,K86<>0),0,"blank") -> blank
E81: Select | O81: =O80 -> blank
E82: Wages Paid from Accounting Records | K82: =SUM(F82:J82) -> 0 | O82: =O81 -> blank
E83: Less PAYG Withholding Payments to the ATO (if incl above) | K83: =SUM(F83:J83) -> 0 | O83: blank
E84: Net Wages | F84: =F82-F83 -> 0 | G84: =G82-G83 -> 0 | H84: 0 | I84: 0 | J84: 0 | K84: =SUM(F84:J84) -> 0 | O84: blank
E85: Add PAYG Withholding | F85: =IF(E81<>"Select",F86-F84,0) -> 0 | G85: =IF(E81<>"Select",G86-G84,0) -> 0 | H85: =IF(E81<>"Select",H86-H84,0) -> 0 | I85: =IF(E81<>"Select",I86-I84,0) -> 0 | J85: =IF(E81<>"Select",J86-J84,0) -> 0 | K85: =SUM(F85:J85) -> 0 | O85: blank
E86: Gross Wages | F86: =IF(E81<>"Select",(ROUND((ROUNDDOWN(F84/2,0)+(0.99*VLOOKUP(ROUNDDOWN(F84/2,0),IF(E81="Claim Tax Free Threshold",NEWPAYGW.TFT,NEWPAYGW.NOTFT),4))-VLOOKUP(ROUNDDOWN(F84/2,0),IF(E81="Claim Tax Free Threshold",NEWPAYGW.TFT,NEWPAYGW.NOTFT),5))/(1-VLOOKUP(ROUNDDOWN(F84/2,0),IF(E81="Claim Tax Free Threshold",NEWPAYGW.TFT,NEWPAYGW.NOTFT),4)),0))*2,0) -> 0 | G86: =IF(E81<>"Select",(ROUND((ROUNDDOWN(G84/2,0)+(0.99*VLOOKUP(ROUNDDOWN(G84/2,0),IF(E81="Claim Tax Free Threshold",NEWPAYGW.TFT,NEWPAYGW.NOTFT),4))-VLOOKUP(ROUNDDOWN(G84/2,0),IF(E81="Claim Tax Free Threshold",NEWPAYGW.TFT,NEWPAYGW.NOTFT),5))/(1-VLOOKUP(ROUNDDOWN(G84/2,0),IF(E81="Claim Tax Free Threshold",NEWPAYGW.TFT,NEWPAYGW.NOTFT),4)),0))*2,0) -> 0 | H86: =IF(E81<>"Select",(ROUND((ROUNDDOWN(H84/2,0)+(0.99*VLOOKUP(ROUNDDOWN(H84/2,0),IF(E81="Claim Tax Free Threshold",NEWPAYGW.TFT,NEWPAYGW.NOTFT),4))-VLOOKUP(ROUNDDOWN(H84/2,0),IF(E81="Claim Tax Free Threshold",NEWPAYGW.TFT,NEWPAYGW.NOTFT),5))/(1-VLOOKUP(ROUNDDOWN(H84/2,0),IF(E81="Claim Tax Free Threshold",NEWPAYGW.TFT,NEWPAYGW.NOTFT),4)),0))*2,0) -> 0 | I86: =IF(E81<>"Select",(ROUND((ROUNDDOWN(I84/2,0)+(0.99*VLOOKUP(ROUNDDOWN(I84/2,0),IF(E81="Claim Tax Free Threshold",NEWPAYGW.TFT,NEWPAYGW.NOTFT),4))-VLOOKUP(ROUNDDOWN(I84/2,0),IF(E81="Claim Tax Free Threshold",NEWPAYGW.TFT,NEWPAYGW.NOTFT),5))/(1-VLOOKUP(ROUNDDOWN(I84/2,0),IF(E81="Claim Tax Free Threshold",NEWPAYGW.TFT,NEWPAYGW.NOTFT),4)),0))*2,0) -> 0 | J86: =IF(E81<>"Select",(ROUND((ROUNDDOWN(J84/2,0)+(0.99*VLOOKUP(ROUNDDOWN(J84/2,0),IF(E81="Claim Tax Free Threshold",NEWPAYGW.TFT,NEWPAYGW.NOTFT),4))-VLOOKUP(ROUNDDOWN(J84/2,0),IF(E81="Claim Tax Free Threshold",NEWPAYGW.TFT,NEWPAYGW.NOTFT),5))/(1-VLOOKUP(ROUNDDOWN(J84/2,0),IF(E81="Claim Tax Free Threshold",NEWPAYGW.TFT,NEWPAYGW.NOTFT),4)),0))*2,0) -> 0 | K86: =SUM(F86:J86) -> 0 | O86: blank
O87: blank
E89: Monthly Summary
E90: Gross Wages | F90: =F14+F22+F30+F38+F46+F54+F62+F70+F78+F86 -> 0 | G90: =G14+G22+G30+G38+G46+G54+G62+G70+G78+G86 -> 0 | H90: 0 | I90: 0 | J90: 0 | K90: =SUM(F90:J90) -> 0
E91: PAYG Withholding | F91: =F13+F21+F29+F37+F45+F53+F61+F69+F77+F85 -> 0 | G91: =G13+G21+G29+G37+G45+G53+G61+G69+G77+G85 -> 0 | H91: 0 | I91: 0 | J91: 0 | K91: =SUM(F91:J91) -> 0
E92: Net Wages | F92: =F90-F91 -> 0 | G92: =G90-G91 -> 0 | H92: 0 | I92: 0 | J92: 0 | K92: 0
E95: PAYG withholding calculations are for payments of fortnightly wages to resident individuals who have quoted their TFN and are not claiming any Medicare Levy reduction
O96: ="blank" -> blank

Sheet Jan
E1: Gross Pay Estimate - Weekly Wages | K1: =Summary!O2 -> Entity Name | O1: HIDE
E2: =CONCATENATE("Wages for ",TEXT(Month7End,"mmmm yyyy")) -> Wages for January 2018 | K2: =Summary!O3 -> Preparer Name
F5: Wages for Fortnight Ended
K7: Total
C8: 1 | E8: =Summary!E11 -> Employee 1 Name | O8: =IF(OR(K10<>0,K11<>0,K12<>0,K13<>0,K14<>0),0,"blank") -> blank
E9: Select | O9: =O8 -> blank
E10: Wages Paid from Accounting Records | K10: =SUM(F10:J10) -> 0 | O10: =O9 -> blank
E11: Less PAYG Withholding Payments to the ATO (if incl above) | K11: =SUM(F11:J11) -> 0 | O11: blank
E12: Net Wages | F12: =F10-F11 -> 0 | G12: =G10-G11 -> 0 | H12: 0 | I12: 0 | J12: 0 | K12: =SUM(F12:J12) -> 0 | O12: blank
E13: Add PAYG Withholding | F13: =IF(E9<>"Select",F14-F12,0) -> 0 | G13: =IF(E9<>"Select",G14-G12,0) -> 0 | H13: =IF(E9<>"Select",H14-H12,0) -> 0 | I13: =IF(E9<>"Select",I14-I12,0) -> 0 | J13: =IF(E9<>"Select",J14-J12,0) -> 0 | K13: =SUM(F13:J13) -> 0 | O13: blank
E14: Gross Wages | F14: =IF(E9<>"Select",(ROUND((ROUNDDOWN(F12/2,0)+(0.99*VLOOKUP(ROUNDDOWN(F12/2,0),IF(E9="Claim Tax Free Threshold",NEWPAYGW.TFT,NEWPAYGW.NOTFT),4))-VLOOKUP(ROUNDDOWN(F12/2,0),IF(E9="Claim Tax Free Threshold",NEWPAYGW.TFT,NEWPAYGW.NOTFT),5))/(1-VLOOKUP(ROUNDDOWN(F12/2,0),IF(E9="Claim Tax Free Threshold",NEWPAYGW.TFT,NEWPAYGW.NOTFT),4)),0))*2,0) -> 0 | G14: =IF(E9<>"Select",(ROUND((ROUNDDOWN(G12/2,0)+(0.99*VLOOKUP(ROUNDDOWN(G12/2,0),IF(E9="Claim Tax Free Threshold",NEWPAYGW.TFT,NEWPAYGW.NOTFT),4))-VLOOKUP(ROUNDDOWN(G12/2,0),IF(E9="Claim Tax Free Threshold",NEWPAYGW.TFT,NEWPAYGW.NOTFT),5))/(1-VLOOKUP(ROUNDDOWN(G12/2,0),IF(E9="Claim Tax Free Threshold",NEWPAYGW.TFT,NEWPAYGW.NOTFT),4)),0))*2,0) -> 0 | H14: =IF(E9<>"Select",(ROUND((ROUNDDOWN(H12/2,0)+(0.99*VLOOKUP(ROUNDDOWN(H12/2,0),IF(E9="Claim Tax Free Threshold",NEWPAYGW.TFT,NEWPAYGW.NOTFT),4))-VLOOKUP(ROUNDDOWN(H12/2,0),IF(E9="Claim Tax Free Threshold",NEWPAYGW.TFT,NEWPAYGW.NOTFT),5))/(1-VLOOKUP(ROUNDDOWN(H12/2,0),IF(E9="Claim Tax Free Threshold",NEWPAYGW.TFT,NEWPAYGW.NOTFT),4)),0))*2,0) -> 0 | I14: =IF(E9<>"Select",(ROUND((ROUNDDOWN(I12/2,0)+(0.99*VLOOKUP(ROUNDDOWN(I12/2,0),IF(E9="Claim Tax Free Threshold",NEWPAYGW.TFT,NEWPAYGW.NOTFT),4))-VLOOKUP(ROUNDDOWN(I12/2,0),IF(E9="Claim Tax Free Threshold",NEWPAYGW.TFT,NEWPAYGW.NOTFT),5))/(1-VLOOKUP(ROUNDDOWN(I12/2,0),IF(E9="Claim Tax Free Threshold",NEWPAYGW.TFT,NEWPAYGW.NOTFT),4)),0))*2,0) -> 0 | J14: =IF(E9<>"Select",(ROUND((ROUNDDOWN(J12/2,0)+(0.99*VLOOKUP(ROUNDDOWN(J12/2,0),IF(E9="Claim Tax Free Threshold",NEWPAYGW.TFT,NEWPAYGW.NOTFT),4))-VLOOKUP(ROUNDDOWN(J12/2,0),IF(E9="Claim Tax Free Threshold",NEWPAYGW.TFT,NEWPAYGW.NOTFT),5))/(1-VLOOKUP(ROUNDDOWN(J12/2,0),IF(E9="Claim Tax Free Threshold",NEWPAYGW.TFT,NEWPAYGW.NOTFT),4)),0))*2,0) -> 0 | K14: =SUM(F14:J14) -> 0 | O14: blank
O15: blank
C16: 2 | E16: =Summary!E12 -> Employee 2 Name | O16: =IF(OR(K18<>0,K19<>0,K20<>0,K21<>0,K22<>0),0,"blank") -> blank
E17: Select | O17: =O16 -> blank
E18: Wages Paid from Accounting Records | K18: =SUM(F18:J18) -> 0 | O18: =O17 -> blank
E19: Less PAYG Withholding Payments to the ATO (if incl above) | K19: =SUM(F19:J19) -> 0 | O19: blank
E20: Net Wages | F20: =F18-F19 -> 0 | G20: =G18-G19 -> 0 | H20: 0 | I20: 0 | J20: 0 | K20: =SUM(F20:J20) -> 0 | O20: blank
E21: Add PAYG Withholding | F21: =IF(E17<>"Select",F22-F20,0) -> 0 | G21: =IF(E17<>"Select",G22-G20,0) -> 0 | H21: =IF(E17<>"Select",H22-H20,0) -> 0 | I21: =IF(E17<>"Select",I22-I20,0) -> 0 | J21: =IF(E17<>"Select",J22-J20,0) -> 0 | K21: =SUM(F21:J21) -> 0 | O21: blank
E22: Gross Wages | F22: =IF(E17<>"Select",(ROUND((ROUNDDOWN(F20/2,0)+(0.99*VLOOKUP(ROUNDDOWN(F20/2,0),IF(E17="Claim Tax Free Threshold",NEWPAYGW.TFT,NEWPAYGW.NOTFT),4))-VLOOKUP(ROUNDDOWN(F20/2,0),IF(E17="Claim Tax Free Threshold",NEWPAYGW.TFT,NEWPAYGW.NOTFT),5))/(1-VLOOKUP(ROUNDDOWN(F20/2,0),IF(E17="Claim Tax Free Threshold",NEWPAYGW.TFT,NEWPAYGW.NOTFT),4)),0))*2,0) -> 0 | G22: =IF(E17<>"Select",(ROUND((ROUNDDOWN(G20/2,0)+(0.99*VLOOKUP(ROUNDDOWN(G20/2,0),IF(E17="Claim Tax Free Threshold",NEWPAYGW.TFT,NEWPAYGW.NOTFT),4))-VLOOKUP(ROUNDDOWN(G20/2,0),IF(E17="Claim Tax Free Threshold",NEWPAYGW.TFT,NEWPAYGW.NOTFT),5))/(1-VLOOKUP(ROUNDDOWN(G20/2,0),IF(E17="Claim Tax Free Threshold",NEWPAYGW.TFT,NEWPAYGW.NOTFT),4)),0))*2,0) -> 0 | H22: =IF(E17<>"Select",(ROUND((ROUNDDOWN(H20/2,0)+(0.99*VLOOKUP(ROUNDDOWN(H20/2,0),IF(E17="Claim Tax Free Threshold",NEWPAYGW.TFT,NEWPAYGW.NOTFT),4))-VLOOKUP(ROUNDDOWN(H20/2,0),IF(E17="Claim Tax Free Threshold",NEWPAYGW.TFT,NEWPAYGW.NOTFT),5))/(1-VLOOKUP(ROUNDDOWN(H20/2,0),IF(E17="Claim Tax Free Threshold",NEWPAYGW.TFT,NEWPAYGW.NOTFT),4)),0))*2,0) -> 0 | I22: =IF(E17<>"Select",(ROUND((ROUNDDOWN(I20/2,0)+(0.99*VLOOKUP(ROUNDDOWN(I20/2,0),IF(E17="Claim Tax Free Threshold",NEWPAYGW.TFT,NEWPAYGW.NOTFT),4))-VLOOKUP(ROUNDDOWN(I20/2,0),IF(E17="Claim Tax Free Threshold",NEWPAYGW.TFT,NEWPAYGW.NOTFT),5))/(1-VLOOKUP(ROUNDDOWN(I20/2,0),IF(E17="Claim Tax Free Threshold",NEWPAYGW.TFT,NEWPAYGW.NOTFT),4)),0))*2,0) -> 0 | J22: =IF(E17<>"Select",(ROUND((ROUNDDOWN(J20/2,0)+(0.99*VLOOKUP(ROUNDDOWN(J20/2,0),IF(E17="Claim Tax Free Threshold",NEWPAYGW.TFT,NEWPAYGW.NOTFT),4))-VLOOKUP(ROUNDDOWN(J20/2,0),IF(E17="Claim Tax Free Threshold",NEWPAYGW.TFT,NEWPAYGW.NOTFT),5))/(1-VLOOKUP(ROUNDDOWN(J20/2,0),IF(E17="Claim Tax Free Threshold",NEWPAYGW.TFT,NEWPAYGW.NOTFT),4)),0))*2,0) -> 0 | K22: =SUM(F22:J22) -> 0 | O22: blank
O23: blank
C24: 3 | E24: =Summary!E13 -> Employee 3 Name | O24: =IF(OR(K26<>0,K27<>0,K28<>0,K29<>0,K30<>0),0,"blank") -> blank
E25: Select | O25: =O24 -> blank
E26: Wages Paid from Accounting Records | K26: =SUM(F26:J26) -> 0 | O26: =O25 -> blank
E27: Less PAYG Withholding Payments to the ATO (if incl above) | K27: =SUM(F27:J27) -> 0 | O27: blank
E28: Net Wages | F28: =F26-F27 -> 0 | G28: =G26-G27 -> 0 | H28: 0 | I28: 0 | J28: 0 | K28: =SUM(F28:J28) -> 0 | O28: blank
E29: Add PAYG Withholding | F29: =IF(E25<>"Select",F30-F28,0) -> 0 | G29: =IF(E25<>"Select",G30-G28,0) -> 0 | H29: =IF(E25<>"Select",H30-H28,0) -> 0 | I29: =IF(E25<>"Select",I30-I28,0) -> 0 | J29: =IF(E25<>"Select",J30-J28,0) -> 0 | K29: =SUM(F29:J29) -> 0 | O29: blank
E30: Gross Wages | F30: =IF(E25<>"Select",(ROUND((ROUNDDOWN(F28/2,0)+(0.99*VLOOKUP(ROUNDDOWN(F28/2,0),IF(E25="Claim Tax Free Threshold",NEWPAYGW.TFT,NEWPAYGW.NOTFT),4))-VLOOKUP(ROUNDDOWN(F28/2,0),IF(E25="Claim Tax Free Threshold",NEWPAYGW.TFT,NEWPAYGW.NOTFT),5))/(1-VLOOKUP(ROUNDDOWN(F28/2,0),IF(E25="Claim Tax Free Threshold",NEWPAYGW.TFT,NEWPAYGW.NOTFT),4)),0))*2,0) -> 0 | G30: =IF(E25<>"Select",(ROUND((ROUNDDOWN(G28/2,0)+(0.99*VLOOKUP(ROUNDDOWN(G28/2,0),IF(E25="Claim Tax Free Threshold",NEWPAYGW.TFT,NEWPAYGW.NOTFT),4))-VLOOKUP(ROUNDDOWN(G28/2,0),IF(E25="Claim Tax Free Threshold",NEWPAYGW.TFT,NEWPAYGW.NOTFT),5))/(1-VLOOKUP(ROUNDDOWN(G28/2,0),IF(E25="Claim Tax Free Threshold",NEWPAYGW.TFT,NEWPAYGW.NOTFT),4)),0))*2,0) -> 0 | H30: =IF(E25<>"Select",(ROUND((ROUNDDOWN(H28/2,0)+(0.99*VLOOKUP(ROUNDDOWN(H28/2,0),IF(E25="Claim Tax Free Threshold",NEWPAYGW.TFT,NEWPAYGW.NOTFT),4))-VLOOKUP(ROUNDDOWN(H28/2,0),IF(E25="Claim Tax Free Threshold",NEWPAYGW.TFT,NEWPAYGW.NOTFT),5))/(1-VLOOKUP(ROUNDDOWN(H28/2,0),IF(E25="Claim Tax Free Threshold",NEWPAYGW.TFT,NEWPAYGW.NOTFT),4)),0))*2,0) -> 0 | I30: =IF(E25<>"Select",(ROUND((ROUNDDOWN(I28/2,0)+(0.99*VLOOKUP(ROUNDDOWN(I28/2,0),IF(E25="Claim Tax Free Threshold",NEWPAYGW.TFT,NEWPAYGW.NOTFT),4))-VLOOKUP(ROUNDDOWN(I28/2,0),IF(E25="Claim Tax Free Threshold",NEWPAYGW.TFT,NEWPAYGW.NOTFT),5))/(1-VLOOKUP(ROUNDDOWN(I28/2,0),IF(E25="Claim Tax Free Threshold",NEWPAYGW.TFT,NEWPAYGW.NOTFT),4)),0))*2,0) -> 0 | J30: =IF(E25<>"Select",(ROUND((ROUNDDOWN(J28/2,0)+(0.99*VLOOKUP(ROUNDDOWN(J28/2,0),IF(E25="Claim Tax Free Threshold",NEWPAYGW.TFT,NEWPAYGW.NOTFT),4))-VLOOKUP(ROUNDDOWN(J28/2,0),IF(E25="Claim Tax Free Threshold",NEWPAYGW.TFT,NEWPAYGW.NOTFT),5))/(1-VLOOKUP(ROUNDDOWN(J28/2,0),IF(E25="Claim Tax Free Threshold",NEWPAYGW.TFT,NEWPAYGW.NOTFT),4)),0))*2,0) -> 0 | K30: =SUM(F30:J30) -> 0 | O30: blank
O31: blank
C32: 4 | E32: =Summary!E14 -> Employee 4 Name | O32: =IF(OR(K34<>0,K35<>0,K36<>0,K37<>0,K38<>0),0,"blank") -> blank
E33: Select | O33: =O32 -> blank
E34: Wages Paid from Accounting Records | K34: =SUM(F34:J34) -> 0 | O34: =O33 -> blank
E35: Less PAYG Withholding Payments to the ATO (if incl above) | K35: =SUM(F35:J35) -> 0 | O35: blank
E36: Net Wages | F36: =F34-F35 -> 0 | G36: =G34-G35 -> 0 | H36: 0 | I36: 0 | J36: 0 | K36: =SUM(F36:J36) -> 0 | O36: blank
E37: Add PAYG Withholding | F37: =IF(E33<>"Select",F38-F36,0) -> 0 | G37: =IF(E33<>"Select",G38-G36,0) -> 0 | H37: =IF(E33<>"Select",H38-H36,0) -> 0 | I37: =IF(E33<>"Select",I38-I36,0) -> 0 | J37: =IF(E33<>"Select",J38-J36,0) -> 0 | K37: =SUM(F37:J37) -> 0 | O37: blank
E38: Gross Wages | F38: =IF(E33<>"Select",(ROUND((ROUNDDOWN(F36/2,0)+(0.99*VLOOKUP(ROUNDDOWN(F36/2,0),IF(E33="Claim Tax Free Threshold",NEWPAYGW.TFT,NEWPAYGW.NOTFT),4))-VLOOKUP(ROUNDDOWN(F36/2,0),IF(E33="Claim Tax Free Threshold",NEWPAYGW.TFT,NEWPAYGW.NOTFT),5))/(1-VLOOKUP(ROUNDDOWN(F36/2,0),IF(E33="Claim Tax Free Threshold",NEWPAYGW.TFT,NEWPAYGW.NOTFT),4)),0))*2,0) -> 0 | G38: =IF(E33<>"Select",(ROUND((ROUNDDOWN(G36/2,0)+(0.99*VLOOKUP(ROUNDDOWN(G36/2,0),IF(E33="Claim Tax Free Threshold",NEWPAYGW.TFT,NEWPAYGW.NOTFT),4))-VLOOKUP(ROUNDDOWN(G36/2,0),IF(E33="Claim Tax Free Threshold",NEWPAYGW.TFT,NEWPAYGW.NOTFT),5))/(1-VLOOKUP(ROUNDDOWN(G36/2,0),IF(E33="Claim Tax Free Threshold",NEWPAYGW.TFT,NEWPAYGW.NOTFT),4)),0))*2,0) -> 0 | H38: =IF(E33<>"Select",(ROUND((ROUNDDOWN(H36/2,0)+(0.99*VLOOKUP(ROUNDDOWN(H36/2,0),IF(E33="Claim Tax Free Threshold",NEWPAYGW.TFT,NEWPAYGW.NOTFT),4))-VLOOKUP(ROUNDDOWN(H36/2,0),IF(E33="Claim Tax Free Threshold",NEWPAYGW.TFT,NEWPAYGW.NOTFT),5))/(1-VLOOKUP(ROUNDDOWN(H36/2,0),IF(E33="Claim Tax Free Threshold",NEWPAYGW.TFT,NEWPAYGW.NOTFT),4)),0))*2,0) -> 0 | I38: =IF(E33<>"Select",(ROUND((ROUNDDOWN(I36/2,0)+(0.99*VLOOKUP(ROUNDDOWN(I36/2,0),IF(E33="Claim Tax Free Threshold",NEWPAYGW.TFT,NEWPAYGW.NOTFT),4))-VLOOKUP(ROUNDDOWN(I36/2,0),IF(E33="Claim Tax Free Threshold",NEWPAYGW.TFT,NEWPAYGW.NOTFT),5))/(1-VLOOKUP(ROUNDDOWN(I36/2,0),IF(E33="Claim Tax Free Threshold",NEWPAYGW.TFT,NEWPAYGW.NOTFT),4)),0))*2,0) -> 0 | J38: =IF(E33<>"Select",(ROUND((ROUNDDOWN(J36/2,0)+(0.99*VLOOKUP(ROUNDDOWN(J36/2,0),IF(E33="Claim Tax Free Threshold",NEWPAYGW.TFT,NEWPAYGW.NOTFT),4))-VLOOKUP(ROUNDDOWN(J36/2,0),IF(E33="Claim Tax Free Threshold",NEWPAYGW.TFT,NEWPAYGW.NOTFT),5))/(1-VLOOKUP(ROUNDDOWN(J36/2,0),IF(E33="Claim Tax Free Threshold",NEWPAYGW.TFT,NEWPAYGW.NOTFT),4)),0))*2,0) -> 0 | K38: =SUM(F38:J38) -> 0 | O38: blank
O39: blank
C40: 5 | E40: =Summary!E15 -> Employee 5 Name | O40: =IF(OR(K42<>0,K43<>0,K44<>0,K45<>0,K46<>0),0,"blank") -> blank
E41: Select | O41: =O40 -> blank
E42: Wages Paid from Accounting Records | K42: =SUM(F42:J42) -> 0 | O42: =O41 -> blank
E43: Less PAYG Withholding Payments to the ATO (if incl above) | K43: =SUM(F43:J43) -> 0 | O43: blank
E44: Net Wages | F44: =F42-F43 -> 0 | G44: =G42-G43 -> 0 | H44: 0 | I44: 0 | J44: 0 | K44: =SUM(F44:J44) -> 0 | O44: blank
E45: Add PAYG Withholding | F45: =IF(E41<>"Select",F46-F44,0) -> 0 | G45: =IF(E41<>"Select",G46-G44,0) -> 0 | H45: =IF(E41<>"Select",H46-H44,0) -> 0 | I45: =IF(E41<>"Select",I46-I44,0) -> 0 | J45: =IF(E41<>"Select",J46-J44,0) -> 0 | K45: =SUM(F45:J45) -> 0 | O45: blank
E46: Gross Wages | F46: =IF(E41<>"Select",(ROUND((ROUNDDOWN(F44/2,0)+(0.99*VLOOKUP(ROUNDDOWN(F44/2,0),IF(E41="Claim Tax Free Threshold",NEWPAYGW.TFT,NEWPAYGW.NOTFT),4))-VLOOKUP(ROUNDDOWN(F44/2,0),IF(E41="Claim Tax Free Threshold",NEWPAYGW.TFT,NEWPAYGW.NOTFT),5))/(1-VLOOKUP(ROUNDDOWN(F44/2,0),IF(E41="Claim Tax Free Threshold",NEWPAYGW.TFT,NEWPAYGW.NOTFT),4)),0))*2,0) -> 0 | G46: =IF(E41<>"Select",(ROUND((ROUNDDOWN(G44/2,0)+(0.99*VLOOKUP(ROUNDDOWN(G44/2,0),IF(E41="Claim Tax Free Threshold",NEWPAYGW.TFT,NEWPAYGW.NOTFT),4))-VLOOKUP(ROUNDDOWN(G44/2,0),IF(E41="Claim Tax Free Threshold",NEWPAYGW.TFT,NEWPAYGW.NOTFT),5))/(1-VLOOKUP(ROUNDDOWN(G44/2,0),IF(E41="Claim Tax Free Threshold",NEWPAYGW.TFT,NEWPAYGW.NOTFT),4)),0))*2,0) -> 0 | H46: =IF(E41<>"Select",(ROUND((ROUNDDOWN(H44/2,0)+(0.99*VLOOKUP(ROUNDDOWN(H44/2,0),IF(E41="Claim Tax Free Threshold",NEWPAYGW.TFT,NEWPAYGW.NOTFT),4))-VLOOKUP(ROUNDDOWN(H44/2,0),IF(E41="Claim Tax Free Threshold",NEWPAYGW.TFT,NEWPAYGW.NOTFT),5))/(1-VLOOKUP(ROUNDDOWN(H44/2,0),IF(E41="Claim Tax Free Threshold",NEWPAYGW.TFT,NEWPAYGW.NOTFT),4)),0))*2,0) -> 0 | I46: =IF(E41<>"Select",(ROUND((ROUNDDOWN(I44/2,0)+(0.99*VLOOKUP(ROUNDDOWN(I44/2,0),IF(E41="Claim Tax Free Threshold",NEWPAYGW.TFT,NEWPAYGW.NOTFT),4))-VLOOKUP(ROUNDDOWN(I44/2,0),IF(E41="Claim Tax Free Threshold",NEWPAYGW.TFT,NEWPAYGW.NOTFT),5))/(1-VLOOKUP(ROUNDDOWN(I44/2,0),IF(E41="Claim Tax Free Threshold",NEWPAYGW.TFT,NEWPAYGW.NOTFT),4)),0))*2,0) -> 0 | J46: =IF(E41<>"Select",(ROUND((ROUNDDOWN(J44/2,0)+(0.99*VLOOKUP(ROUNDDOWN(J44/2,0),IF(E41="Claim Tax Free Threshold",NEWPAYGW.TFT,NEWPAYGW.NOTFT),4))-VLOOKUP(ROUNDDOWN(J44/2,0),IF(E41="Claim Tax Free Threshold",NEWPAYGW.TFT,NEWPAYGW.NOTFT),5))/(1-VLOOKUP(ROUNDDOWN(J44/2,0),IF(E41="Claim Tax Free Threshold",NEWPAYGW.TFT,NEWPAYGW.NOTFT),4)),0))*2,0) -> 0 | K46: =SUM(F46:J46) -> 0 | O46: blank
O47: blank
C48: 6 | E48: =Summary!E16 -> Employee 6 Name | O48: =IF(OR(K50<>0,K51<>0,K52<>0,K53<>0,K54<>0),0,"blank") -> blank
E49: Select | O49: =O48 -> blank
E50: Wages Paid from Accounting Records | K50: =SUM(F50:J50) -> 0 | O50: =O49 -> blank
E51: Less PAYG Withholding Payments to the ATO (if incl above) | K51: =SUM(F51:J51) -> 0 | O51: blank
E52: Net Wages | F52: =F50-F51 -> 0 | G52: =G50-G51 -> 0 | H52: 0 | I52: 0 | J52: 0 | K52: =SUM(F52:J52) -> 0 | O52: blank
E53: Add PAYG Withholding | F53: =IF(E49<>"Select",F54-F52,0) -> 0 | G53: =IF(E49<>"Select",G54-G52,0) -> 0 | H53: =IF(E49<>"Select",H54-H52,0) -> 0 | I53: =IF(E49<>"Select",I54-I52,0) -> 0 | J53: =IF(E49<>"Select",J54-J52,0) -> 0 | K53: =SUM(F53:J53) -> 0 | O53: blank
E54: Gross Wages | F54: =IF(E49<>"Select",(ROUND((ROUNDDOWN(F52/2,0)+(0.99*VLOOKUP(ROUNDDOWN(F52/2,0),IF(E49="Claim Tax Free Threshold",NEWPAYGW.TFT,NEWPAYGW.NOTFT),4))-VLOOKUP(ROUNDDOWN(F52/2,0),IF(E49="Claim Tax Free Threshold",NEWPAYGW.TFT,NEWPAYGW.NOTFT),5))/(1-VLOOKUP(ROUNDDOWN(F52/2,0),IF(E49="Claim Tax Free Threshold",NEWPAYGW.TFT,NEWPAYGW.NOTFT),4)),0))*2,0) -> 0 | G54: =IF(E49<>"Select",(ROUND((ROUNDDOWN(G52/2,0)+(0.99*VLOOKUP(ROUNDDOWN(G52/2,0),IF(E49="Claim Tax Free Threshold",NEWPAYGW.TFT,NEWPAYGW.NOTFT),4))-VLOOKUP(ROUNDDOWN(G52/2,0),IF(E49="Claim Tax Free Threshold",NEWPAYGW.TFT,NEWPAYGW.NOTFT),5))/(1-VLOOKUP(ROUNDDOWN(G52/2,0),IF(E49="Claim Tax Free Threshold",NEWPAYGW.TFT,NEWPAYGW.NOTFT),4)),0))*2,0) -> 0 | H54: =IF(E49<>"Select",(ROUND((ROUNDDOWN(H52/2,0)+(0.99*VLOOKUP(ROUNDDOWN(H52/2,0),IF(E49="Claim Tax Free Threshold",NEWPAYGW.TFT,NEWPAYGW.NOTFT),4))-VLOOKUP(ROUNDDOWN(H52/2,0),IF(E49="Claim Tax Free Threshold",NEWPAYGW.TFT,NEWPAYGW.NOTFT),5))/(1-VLOOKUP(ROUNDDOWN(H52/2,0),IF(E49="Claim Tax Free Threshold",NEWPAYGW.TFT,NEWPAYGW.NOTFT),4)),0))*2,0) -> 0 | I54: =IF(E49<>"Select",(ROUND((ROUNDDOWN(I52/2,0)+(0.99*VLOOKUP(ROUNDDOWN(I52/2,0),IF(E49="Claim Tax Free Threshold",NEWPAYGW.TFT,NEWPAYGW.NOTFT),4))-VLOOKUP(ROUNDDOWN(I52/2,0),IF(E49="Claim Tax Free Threshold",NEWPAYGW.TFT,NEWPAYGW.NOTFT),5))/(1-VLOOKUP(ROUNDDOWN(I52/2,0),IF(E49="Claim Tax Free Threshold",NEWPAYGW.TFT,NEWPAYGW.NOTFT),4)),0))*2,0) -> 0 | J54: =IF(E49<>"Select",(ROUND((ROUNDDOWN(J52/2,0)+(0.99*VLOOKUP(ROUNDDOWN(J52/2,0),IF(E49="Claim Tax Free Threshold",NEWPAYGW.TFT,NEWPAYGW.NOTFT),4))-VLOOKUP(ROUNDDOWN(J52/2,0),IF(E49="Claim Tax Free Threshold",NEWPAYGW.TFT,NEWPAYGW.NOTFT),5))/(1-VLOOKUP(ROUNDDOWN(J52/2,0),IF(E49="Claim Tax Free Threshold",NEWPAYGW.TFT,NEWPAYGW.NOTFT),4)),0))*2,0) -> 0 | K54: =SUM(F54:J54) -> 0 | O54: blank
O55: blank
C56: 7 | E56: =Summary!E17 -> Employee 7 Name | O56: =IF(OR(K58<>0,K59<>0,K60<>0,K61<>0,K62<>0),0,"blank") -> blank
E57: Select | O57: =O56 -> blank
E58: Wages Paid from Accounting Records | K58: =SUM(F58:J58) -> 0 | O58: =O57 -> blank
E59: Less PAYG Withholding Payments to the ATO (if incl above) | K59: =SUM(F59:J59) -> 0 | O59: blank
E60: Net Wages | F60: =F58-F59 -> 0 | G60: =G58-G59 -> 0 | H60: 0 | I60: 0 | J60: 0 | K60: =SUM(F60:J60) -> 0 | O60: blank
E61: Add PAYG Withholding | F61: =IF(E57<>"Select",F62-F60,0) -> 0 | G61: =IF(E57<>"Select",G62-G60,0) -> 0 | H61: =IF(E57<>"Select",H62-H60,0) -> 0 | I61: =IF(E57<>"Select",I62-I60,0) -> 0 | J61: =IF(E57<>"Select",J62-J60,0) -> 0 | K61: =SUM(F61:J61) -> 0 | O61: blank
E62: Gross Wages | F62: =IF(E57<>"Select",(ROUND((ROUNDDOWN(F60/2,0)+(0.99*VLOOKUP(ROUNDDOWN(F60/2,0),IF(E57="Claim Tax Free Threshold",NEWPAYGW.TFT,NEWPAYGW.NOTFT),4))-VLOOKUP(ROUNDDOWN(F60/2,0),IF(E57="Claim Tax Free Threshold",NEWPAYGW.TFT,NEWPAYGW.NOTFT),5))/(1-VLOOKUP(ROUNDDOWN(F60/2,0),IF(E57="Claim Tax Free Threshold",NEWPAYGW.TFT,NEWPAYGW.NOTFT),4)),0))*2,0) -> 0 | G62: =IF(E57<>"Select",(ROUND((ROUNDDOWN(G60/2,0)+(0.99*VLOOKUP(ROUNDDOWN(G60/2,0),IF(E57="Claim Tax Free Threshold",NEWPAYGW.TFT,NEWPAYGW.NOTFT),4))-VLOOKUP(ROUNDDOWN(G60/2,0),IF(E57="Claim Tax Free Threshold",NEWPAYGW.TFT,NEWPAYGW.NOTFT),5))/(1-VLOOKUP(ROUNDDOWN(G60/2,0),IF(E57="Claim Tax Free Threshold",NEWPAYGW.TFT,NEWPAYGW.NOTFT),4)),0))*2,0) -> 0 | H62: =IF(E57<>"Select",(ROUND((ROUNDDOWN(H60/2,0)+(0.99*VLOOKUP(ROUNDDOWN(H60/2,0),IF(E57="Claim Tax Free Threshold",NEWPAYGW.TFT,NEWPAYGW.NOTFT),4))-VLOOKUP(ROUNDDOWN(H60/2,0),IF(E57="Claim Tax Free Threshold",NEWPAYGW.TFT,NEWPAYGW.NOTFT),5))/(1-VLOOKUP(ROUNDDOWN(H60/2,0),IF(E57="Claim Tax Free Threshold",NEWPAYGW.TFT,NEWPAYGW.NOTFT),4)),0))*2,0) -> 0 | I62: =IF(E57<>"Select",(ROUND((ROUNDDOWN(I60/2,0)+(0.99*VLOOKUP(ROUNDDOWN(I60/2,0),IF(E57="Claim Tax Free Threshold",NEWPAYGW.TFT,NEWPAYGW.NOTFT),4))-VLOOKUP(ROUNDDOWN(I60/2,0),IF(E57="Claim Tax Free Threshold",NEWPAYGW.TFT,NEWPAYGW.NOTFT),5))/(1-VLOOKUP(ROUNDDOWN(I60/2,0),IF(E57="Claim Tax Free Threshold",NEWPAYGW.TFT,NEWPAYGW.NOTFT),4)),0))*2,0) -> 0 | J62: =IF(E57<>"Select",(ROUND((ROUNDDOWN(J60/2,0)+(0.99*VLOOKUP(ROUNDDOWN(J60/2,0),IF(E57="Claim Tax Free Threshold",NEWPAYGW.TFT,NEWPAYGW.NOTFT),4))-VLOOKUP(ROUNDDOWN(J60/2,0),IF(E57="Claim Tax Free Threshold",NEWPAYGW.TFT,NEWPAYGW.NOTFT),5))/(1-VLOOKUP(ROUNDDOWN(J60/2,0),IF(E57="Claim Tax Free Threshold",NEWPAYGW.TFT,NEWPAYGW.NOTFT),4)),0))*2,0) -> 0 | K62: =SUM(F62:J62) -> 0 | O62: blank
O63: blank
C64: 8 | E64: =Summary!E18 -> Employee 8 Name | O64: =IF(OR(K66<>0,K67<>0,K68<>0,K69<>0,K70<>0),0,"blank") -> blank
E65: Select | O65: =O64 -> blank
E66: Wages Paid from Accounting Records | K66: =SUM(F66:J66) -> 0 | O66: =O65 -> blank
E67: Less PAYG Withholding Payments to the ATO (if incl above) | K67: =SUM(F67:J67) -> 0 | O67: blank
E68: Net Wages | F68: =F66-F67 -> 0 | G68: =G66-G67 -> 0 | H68: 0 | I68: 0 | J68: 0 | K68: =SUM(F68:J68) -> 0 | O68: blank
E69: Add PAYG Withholding | F69: =IF(E65<>"Select",F70-F68,0) -> 0 | G69: =IF(E65<>"Select",G70-G68,0) -> 0 | H69: =IF(E65<>"Select",H70-H68,0) -> 0 | I69: =IF(E65<>"Select",I70-I68,0) -> 0 | J69: =IF(E65<>"Select",J70-J68,0) -> 0 | K69: =SUM(F69:J69) -> 0 | O69: blank
E70: Gross Wages | F70: =IF(E65<>"Select",(ROUND((ROUNDDOWN(F68/2,0)+(0.99*VLOOKUP(ROUNDDOWN(F68/2,0),IF(E65="Claim Tax Free Threshold",NEWPAYGW.TFT,NEWPAYGW.NOTFT),4))-VLOOKUP(ROUNDDOWN(F68/2,0),IF(E65="Claim Tax Free Threshold",NEWPAYGW.TFT,NEWPAYGW.NOTFT),5))/(1-VLOOKUP(ROUNDDOWN(F68/2,0),IF(E65="Claim Tax Free Threshold",NEWPAYGW.TFT,NEWPAYGW.NOTFT),4)),0))*2,0) -> 0 | G70: =IF(E65<>"Select",(ROUND((ROUNDDOWN(G68/2,0)+(0.99*VLOOKUP(ROUNDDOWN(G68/2,0),IF(E65="Claim Tax Free Threshold",NEWPAYGW.TFT,NEWPAYGW.NOTFT),4))-VLOOKUP(ROUNDDOWN(G68/2,0),IF(E65="Claim Tax Free Threshold",NEWPAYGW.TFT,NEWPAYGW.NOTFT),5))/(1-VLOOKUP(ROUNDDOWN(G68/2,0),IF(E65="Claim Tax Free Threshold",NEWPAYGW.TFT,NEWPAYGW.NOTFT),4)),0))*2,0) -> 0 | H70: =IF(E65<>"Select",(ROUND((ROUNDDOWN(H68/2,0)+(0.99*VLOOKUP(ROUNDDOWN(H68/2,0),IF(E65="Claim Tax Free Threshold",NEWPAYGW.TFT,NEWPAYGW.NOTFT),4))-VLOOKUP(ROUNDDOWN(H68/2,0),IF(E65="Claim Tax Free Threshold",NEWPAYGW.TFT,NEWPAYGW.NOTFT),5))/(1-VLOOKUP(ROUNDDOWN(H68/2,0),IF(E65="Claim Tax Free Threshold",NEWPAYGW.TFT,NEWPAYGW.NOTFT),4)),0))*2,0) -> 0 | I70: =IF(E65<>"Select",(ROUND((ROUNDDOWN(I68/2,0)+(0.99*VLOOKUP(ROUNDDOWN(I68/2,0),IF(E65="Claim Tax Free Threshold",NEWPAYGW.TFT,NEWPAYGW.NOTFT),4))-VLOOKUP(ROUNDDOWN(I68/2,0),IF(E65="Claim Tax Free Threshold",NEWPAYGW.TFT,NEWPAYGW.NOTFT),5))/(1-VLOOKUP(ROUNDDOWN(I68/2,0),IF(E65="Claim Tax Free Threshold",NEWPAYGW.TFT,NEWPAYGW.NOTFT),4)),0))*2,0) -> 0 | J70: =IF(E65<>"Select",(ROUND((ROUNDDOWN(J68/2,0)+(0.99*VLOOKUP(ROUNDDOWN(J68/2,0),IF(E65="Claim Tax Free Threshold",NEWPAYGW.TFT,NEWPAYGW.NOTFT),4))-VLOOKUP(ROUNDDOWN(J68/2,0),IF(E65="Claim Tax Free Threshold",NEWPAYGW.TFT,NEWPAYGW.NOTFT),5))/(1-VLOOKUP(ROUNDDOWN(J68/2,0),IF(E65="Claim Tax Free Threshold",NEWPAYGW.TFT,NEWPAYGW.NOTFT),4)),0))*2,0) -> 0 | K70: =SUM(F70:J70) -> 0 | O70: blank
O71: blank
C72: 9 | E72: =Summary!E19 -> Employee 9 Name | O72: =IF(OR(K74<>0,K75<>0,K76<>0,K77<>0,K78<>0),0,"blank") -> blank
E73: Select | O73: =O72 -> blank
E74: Wages Paid from Accounting Records | K74: =SUM(F74:J74) -> 0 | O74: =O73 -> blank
E75: Less PAYG Withholding Payments to the ATO (if incl above) | K75: =SUM(F75:J75) -> 0 | O75: blank
E76: Net Wages | F76: =F74-F75 -> 0 | G76: =G74-G75 -> 0 | H76: 0 | I76: 0 | J76: 0 | K76: =SUM(F76:J76) -> 0 | O76: blank
E77: Add PAYG Withholding | F77: =IF(E73<>"Select",F78-F76,0) -> 0 | G77: =IF(E73<>"Select",G78-G76,0) -> 0 | H77: =IF(E73<>"Select",H78-H76,0) -> 0 | I77: =IF(E73<>"Select",I78-I76,0) -> 0 | J77: =IF(E73<>"Select",J78-J76,0) -> 0 | K77: =SUM(F77:J77) -> 0 | O77: blank
E78: Gross Wages | F78: =IF(E73<>"Select",(ROUND((ROUNDDOWN(F76/2,0)+(0.99*VLOOKUP(ROUNDDOWN(F76/2,0),IF(E73="Claim Tax Free Threshold",NEWPAYGW.TFT,NEWPAYGW.NOTFT),4))-VLOOKUP(ROUNDDOWN(F76/2,0),IF(E73="Claim Tax Free Threshold",NEWPAYGW.TFT,NEWPAYGW.NOTFT),5))/(1-VLOOKUP(ROUNDDOWN(F76/2,0),IF(E73="Claim Tax Free Threshold",NEWPAYGW.TFT,NEWPAYGW.NOTFT),4)),0))*2,0) -> 0 | G78: =IF(E73<>"Select",(ROUND((ROUNDDOWN(G76/2,0)+(0.99*VLOOKUP(ROUNDDOWN(G76/2,0),IF(E73="Claim Tax Free Threshold",NEWPAYGW.TFT,NEWPAYGW.NOTFT),4))-VLOOKUP(ROUNDDOWN(G76/2,0),IF(E73="Claim Tax Free Threshold",NEWPAYGW.TFT,NEWPAYGW.NOTFT),5))/(1-VLOOKUP(ROUNDDOWN(G76/2,0),IF(E73="Claim Tax Free Threshold",NEWPAYGW.TFT,NEWPAYGW.NOTFT),4)),0))*2,0) -> 0 | H78: =IF(E73<>"Select",(ROUND((ROUNDDOWN(H76/2,0)+(0.99*VLOOKUP(ROUNDDOWN(H76/2,0),IF(E73="Claim Tax Free Threshold",NEWPAYGW.TFT,NEWPAYGW.NOTFT),4))-VLOOKUP(ROUNDDOWN(H76/2,0),IF(E73="Claim Tax Free Threshold",NEWPAYGW.TFT,NEWPAYGW.NOTFT),5))/(1-VLOOKUP(ROUNDDOWN(H76/2,0),IF(E73="Claim Tax Free Threshold",NEWPAYGW.TFT,NEWPAYGW.NOTFT),4)),0))*2,0) -> 0 | I78: =IF(E73<>"Select",(ROUND((ROUNDDOWN(I76/2,0)+(0.99*VLOOKUP(ROUNDDOWN(I76/2,0),IF(E73="Claim Tax Free Threshold",NEWPAYGW.TFT,NEWPAYGW.NOTFT),4))-VLOOKUP(ROUNDDOWN(I76/2,0),IF(E73="Claim Tax Free Threshold",NEWPAYGW.TFT,NEWPAYGW.NOTFT),5))/(1-VLOOKUP(ROUNDDOWN(I76/2,0),IF(E73="Claim Tax Free Threshold",NEWPAYGW.TFT,NEWPAYGW.NOTFT),4)),0))*2,0) -> 0 | J78: =IF(E73<>"Select",(ROUND((ROUNDDOWN(J76/2,0)+(0.99*VLOOKUP(ROUNDDOWN(J76/2,0),IF(E73="Claim Tax Free Threshold",NEWPAYGW.TFT,NEWPAYGW.NOTFT),4))-VLOOKUP(ROUNDDOWN(J76/2,0),IF(E73="Claim Tax Free Threshold",NEWPAYGW.TFT,NEWPAYGW.NOTFT),5))/(1-VLOOKUP(ROUNDDOWN(J76/2,0),IF(E73="Claim Tax Free Threshold",NEWPAYGW.TFT,NEWPAYGW.NOTFT),4)),0))*2,0) -> 0 | K78: =SUM(F78:J78) -> 0 | O78: blank
O79: blank
C80: 10 | E80: =Summary!E20 -> Employee 10 Name | O80: =IF(OR(K82<>0,K83<>0,K84<>0,K85<>0,K86<>0),0,"blank") -> blank
E81: Select | O81: =O80 -> blank
E82: Wages Paid from Accounting Records | K82: =SUM(F82:J82) -> 0 | O82: =O81 -> blank
E83: Less PAYG Withholding Payments to the ATO (if incl above) | K83: =SUM(F83:J83) -> 0 | O83: blank
E84: Net Wages | F84: =F82-F83 -> 0 | G84: =G82-G83 -> 0 | H84: 0 | I84: 0 | J84: 0 | K84: =SUM(F84:J84) -> 0 | O84: blank
E85: Add PAYG Withholding | F85: =IF(E81<>"Select",F86-F84,0) -> 0 | G85: =IF(E81<>"Select",G86-G84,0) -> 0 | H85: =IF(E81<>"Select",H86-H84,0) -> 0 | I85: =IF(E81<>"Select",I86-I84,0) -> 0 | J85: =IF(E81<>"Select",J86-J84,0) -> 0 | K85: =SUM(F85:J85) -> 0 | O85: blank
E86: Gross Wages | F86: =IF(E81<>"Select",(ROUND((ROUNDDOWN(F84/2,0)+(0.99*VLOOKUP(ROUNDDOWN(F84/2,0),IF(E81="Claim Tax Free Threshold",NEWPAYGW.TFT,NEWPAYGW.NOTFT),4))-VLOOKUP(ROUNDDOWN(F84/2,0),IF(E81="Claim Tax Free Threshold",NEWPAYGW.TFT,NEWPAYGW.NOTFT),5))/(1-VLOOKUP(ROUNDDOWN(F84/2,0),IF(E81="Claim Tax Free Threshold",NEWPAYGW.TFT,NEWPAYGW.NOTFT),4)),0))*2,0) -> 0 | G86: =IF(E81<>"Select",(ROUND((ROUNDDOWN(G84/2,0)+(0.99*VLOOKUP(ROUNDDOWN(G84/2,0),IF(E81="Claim Tax Free Threshold",NEWPAYGW.TFT,NEWPAYGW.NOTFT),4))-VLOOKUP(ROUNDDOWN(G84/2,0),IF(E81="Claim Tax Free Threshold",NEWPAYGW.TFT,NEWPAYGW.NOTFT),5))/(1-VLOOKUP(ROUNDDOWN(G84/2,0),IF(E81="Claim Tax Free Threshold",NEWPAYGW.TFT,NEWPAYGW.NOTFT),4)),0))*2,0) -> 0 | H86: =IF(E81<>"Select",(ROUND((ROUNDDOWN(H84/2,0)+(0.99*VLOOKUP(ROUNDDOWN(H84/2,0),IF(E81="Claim Tax Free Threshold",NEWPAYGW.TFT,NEWPAYGW.NOTFT),4))-VLOOKUP(ROUNDDOWN(H84/2,0),IF(E81="Claim Tax Free Threshold",NEWPAYGW.TFT,NEWPAYGW.NOTFT),5))/(1-VLOOKUP(ROUNDDOWN(H84/2,0),IF(E81="Claim Tax Free Threshold",NEWPAYGW.TFT,NEWPAYGW.NOTFT),4)),0))*2,0) -> 0 | I86: =IF(E81<>"Select",(ROUND((ROUNDDOWN(I84/2,0)+(0.99*VLOOKUP(ROUNDDOWN(I84/2,0),IF(E81="Claim Tax Free Threshold",NEWPAYGW.TFT,NEWPAYGW.NOTFT),4))-VLOOKUP(ROUNDDOWN(I84/2,0),IF(E81="Claim Tax Free Threshold",NEWPAYGW.TFT,NEWPAYGW.NOTFT),5))/(1-VLOOKUP(ROUNDDOWN(I84/2,0),IF(E81="Claim Tax Free Threshold",NEWPAYGW.TFT,NEWPAYGW.NOTFT),4)),0))*2,0) -> 0 | J86: =IF(E81<>"Select",(ROUND((ROUNDDOWN(J84/2,0)+(0.99*VLOOKUP(ROUNDDOWN(J84/2,0),IF(E81="Claim Tax Free Threshold",NEWPAYGW.TFT,NEWPAYGW.NOTFT),4))-VLOOKUP(ROUNDDOWN(J84/2,0),IF(E81="Claim Tax Free Threshold",NEWPAYGW.TFT,NEWPAYGW.NOTFT),5))/(1-VLOOKUP(ROUNDDOWN(J84/2,0),IF(E81="Claim Tax Free Threshold",NEWPAYGW.TFT,NEWPAYGW.NOTFT),4)),0))*2,0) -> 0 | K86: =SUM(F86:J86) -> 0 | O86: blank
O87: blank
E89: Monthly Summary
E90: Gross Wages | F90: =F14+F22+F30+F38+F46+F54+F62+F70+F78+F86 -> 0 | G90: =G14+G22+G30+G38+G46+G54+G62+G70+G78+G86 -> 0 | H90: 0 | I90: 0 | J90: 0 | K90: =SUM(F90:J90) -> 0
E91: PAYG Withholding | F91: =F13+F21+F29+F37+F45+F53+F61+F69+F77+F85 -> 0 | G91: =G13+G21+G29+G37+G45+G53+G61+G69+G77+G85 -> 0 | H91: 0 | I91: 0 | J91: 0 | K91: =SUM(F91:J91) -> 0
E92: Net Wages | F92: =F90-F91 -> 0 | G92: =G90-G91 -> 0 | H92: 0 | I92: 0 | J92: 0 | K92: 0
E95: PAYG withholding calculations are for payments of fortnightly wages to resident individuals who have quoted their TFN and are not claiming any Medicare Levy reduction
O96: ="blank" -> blank

Sheet Feb
E1: Gross Pay Estimate - Weekly Wages | K1: =Summary!O2 -> Entity Name | O1: HIDE
E2: =CONCATENATE("Wages for ",TEXT(Month8End,"mmmm yyyy")) -> Wages for February 2018 | K2: =Summary!O3 -> Preparer Name
F5: Wages for Fortnight Ended
K7: Total
C8: 1 | E8: =Summary!E11 -> Employee 1 Name | O8: =IF(OR(K10<>0,K11<>0,K12<>0,K13<>0,K14<>0),0,"blank") -> blank
E9: Select | O9: =O8 -> blank
E10: Wages Paid from Accounting Records | K10: =SUM(F10:J10) -> 0 | O10: =O9 -> blank
E11: Less PAYG Withholding Payments to the ATO (if incl above) | K11: =SUM(F11:J11) -> 0 | O11: blank
E12: Net Wages | F12: =F10-F11 -> 0 | G12: =G10-G11 -> 0 | H12: 0 | I12: 0 | J12: 0 | K12: =SUM(F12:J12) -> 0 | O12: blank
E13: Add PAYG Withholding | F13: =IF(E9<>"Select",F14-F12,0) -> 0 | G13: =IF(E9<>"Select",G14-G12,0) -> 0 | H13: =IF(E9<>"Select",H14-H12,0) -> 0 | I13: =IF(E9<>"Select",I14-I12,0) -> 0 | J13: =IF(E9<>"Select",J14-J12,0) -> 0 | K13: =SUM(F13:J13) -> 0 | O13: blank
E14: Gross Wages | F14: =IF(E9<>"Select",(ROUND((ROUNDDOWN(F12/2,0)+(0.99*VLOOKUP(ROUNDDOWN(F12/2,0),IF(E9="Claim Tax Free Threshold",NEWPAYGW.TFT,NEWPAYGW.NOTFT),4))-VLOOKUP(ROUNDDOWN(F12/2,0),IF(E9="Claim Tax Free Threshold",NEWPAYGW.TFT,NEWPAYGW.NOTFT),5))/(1-VLOOKUP(ROUNDDOWN(F12/2,0),IF(E9="Claim Tax Free Threshold",NEWPAYGW.TFT,NEWPAYGW.NOTFT),4)),0))*2,0) -> 0 | G14: =IF(E9<>"Select",(ROUND((ROUNDDOWN(G12/2,0)+(0.99*VLOOKUP(ROUNDDOWN(G12/2,0),IF(E9="Claim Tax Free Threshold",NEWPAYGW.TFT,NEWPAYGW.NOTFT),4))-VLOOKUP(ROUNDDOWN(G12/2,0),IF(E9="Claim Tax Free Threshold",NEWPAYGW.TFT,NEWPAYGW.NOTFT),5))/(1-VLOOKUP(ROUNDDOWN(G12/2,0),IF(E9="Claim Tax Free Threshold",NEWPAYGW.TFT,NEWPAYGW.NOTFT),4)),0))*2,0) -> 0 | H14: =IF(E9<>"Select",(ROUND((ROUNDDOWN(H12/2,0)+(0.99*VLOOKUP(ROUNDDOWN(H12/2,0),IF(E9="Claim Tax Free Threshold",NEWPAYGW.TFT,NEWPAYGW.NOTFT),4))-VLOOKUP(ROUNDDOWN(H12/2,0),IF(E9="Claim Tax Free Threshold",NEWPAYGW.TFT,NEWPAYGW.NOTFT),5))/(1-VLOOKUP(ROUNDDOWN(H12/2,0),IF(E9="Claim Tax Free Threshold",NEWPAYGW.TFT,NEWPAYGW.NOTFT),4)),0))*2,0) -> 0 | I14: =IF(E9<>"Select",(ROUND((ROUNDDOWN(I12/2,0)+(0.99*VLOOKUP(ROUNDDOWN(I12/2,0),IF(E9="Claim Tax Free Threshold",NEWPAYGW.TFT,NEWPAYGW.NOTFT),4))-VLOOKUP(ROUNDDOWN(I12/2,0),IF(E9="Claim Tax Free Threshold",NEWPAYGW.TFT,NEWPAYGW.NOTFT),5))/(1-VLOOKUP(ROUNDDOWN(I12/2,0),IF(E9="Claim Tax Free Threshold",NEWPAYGW.TFT,NEWPAYGW.NOTFT),4)),0))*2,0) -> 0 | J14: =IF(E9<>"Select",(ROUND((ROUNDDOWN(J12/2,0)+(0.99*VLOOKUP(ROUNDDOWN(J12/2,0),IF(E9="Claim Tax Free Threshold",NEWPAYGW.TFT,NEWPAYGW.NOTFT),4))-VLOOKUP(ROUNDDOWN(J12/2,0),IF(E9="Claim Tax Free Threshold",NEWPAYGW.TFT,NEWPAYGW.NOTFT),5))/(1-VLOOKUP(ROUNDDOWN(J12/2,0),IF(E9="Claim Tax Free Threshold",NEWPAYGW.TFT,NEWPAYGW.NOTFT),4)),0))*2,0) -> 0 | K14: =SUM(F14:J14) -> 0 | O14: blank
O15: blank
C16: 2 | E16: =Summary!E12 -> Employee 2 Name | O16: =IF(OR(K18<>0,K19<>0,K20<>0,K21<>0,K22<>0),0,"blank") -> blank
E17: Select | O17: =O16 -> blank
E18: Wages Paid from Accounting Records | K18: =SUM(F18:J18) -> 0 | O18: =O17 -> blank
E19: Less PAYG Withholding Payments to the ATO (if incl above) | K19: =SUM(F19:J19) -> 0 | O19: blank
E20: Net Wages | F20: =F18-F19 -> 0 | G20: =G18-G19 -> 0 | H20: 0 | I20: 0 | J20: 0 | K20: =SUM(F20:J20) -> 0 | O20: blank
E21: Add PAYG Withholding | F21: =IF(E17<>"Select",F22-F20,0) -> 0 | G21: =IF(E17<>"Select",G22-G20,0) -> 0 | H21: =IF(E17<>"Select",H22-H20,0) -> 0 | I21: =IF(E17<>"Select",I22-I20,0) -> 0 | J21: =IF(E17<>"Select",J22-J20,0) -> 0 | K21: =SUM(F21:J21) -> 0 | O21: blank
E22: Gross Wages | F22: =IF(E17<>"Select",(ROUND((ROUNDDOWN(F20/2,0)+(0.99*VLOOKUP(ROUNDDOWN(F20/2,0),IF(E17="Claim Tax Free Threshold",NEWPAYGW.TFT,NEWPAYGW.NOTFT),4))-VLOOKUP(ROUNDDOWN(F20/2,0),IF(E17="Claim Tax Free Threshold",NEWPAYGW.TFT,NEWPAYGW.NOTFT),5))/(1-VLOOKUP(ROUNDDOWN(F20/2,0),IF(E17="Claim Tax Free Threshold",NEWPAYGW.TFT,NEWPAYGW.NOTFT),4)),0))*2,0) -> 0 | G22: =IF(E17<>"Select",(ROUND((ROUNDDOWN(G20/2,0)+(0.99*VLOOKUP(ROUNDDOWN(G20/2,0),IF(E17="Claim Tax Free Threshold",NEWPAYGW.TFT,NEWPAYGW.NOTFT),4))-VLOOKUP(ROUNDDOWN(G20/2,0),IF(E17="Claim Tax Free Threshold",NEWPAYGW.TFT,NEWPAYGW.NOTFT),5))/(1-VLOOKUP(ROUNDDOWN(G20/2,0),IF(E17="Claim Tax Free Threshold",NEWPAYGW.TFT,NEWPAYGW.NOTFT),4)),0))*2,0) -> 0 | H22: =IF(E17<>"Select",(ROUND((ROUNDDOWN(H20/2,0)+(0.99*VLOOKUP(ROUNDDOWN(H20/2,0),IF(E17="Claim Tax Free Threshold",NEWPAYGW.TFT,NEWPAYGW.NOTFT),4))-VLOOKUP(ROUNDDOWN(H20/2,0),IF(E17="Claim Tax Free Threshold",NEWPAYGW.TFT,NEWPAYGW.NOTFT),5))/(1-VLOOKUP(ROUNDDOWN(H20/2,0),IF(E17="Claim Tax Free Threshold",NEWPAYGW.TFT,NEWPAYGW.NOTFT),4)),0))*2,0) -> 0 | I22: =IF(E17<>"Select",(ROUND((ROUNDDOWN(I20/2,0)+(0.99*VLOOKUP(ROUNDDOWN(I20/2,0),IF(E17="Claim Tax Free Threshold",NEWPAYGW.TFT,NEWPAYGW.NOTFT),4))-VLOOKUP(ROUNDDOWN(I20/2,0),IF(E17="Claim Tax Free Threshold",NEWPAYGW.TFT,NEWPAYGW.NOTFT),5))/(1-VLOOKUP(ROUNDDOWN(I20/2,0),IF(E17="Claim Tax Free Threshold",NEWPAYGW.TFT,NEWPAYGW.NOTFT),4)),0))*2,0) -> 0 | J22: =IF(E17<>"Select",(ROUND((ROUNDDOWN(J20/2,0)+(0.99*VLOOKUP(ROUNDDOWN(J20/2,0),IF(E17="Claim Tax Free Threshold",NEWPAYGW.TFT,NEWPAYGW.NOTFT),4))-VLOOKUP(ROUNDDOWN(J20/2,0),IF(E17="Claim Tax Free Threshold",NEWPAYGW.TFT,NEWPAYGW.NOTFT),5))/(1-VLOOKUP(ROUNDDOWN(J20/2,0),IF(E17="Claim Tax Free Threshold",NEWPAYGW.TFT,NEWPAYGW.NOTFT),4)),0))*2,0) -> 0 | K22: =SUM(F22:J22) -> 0 | O22: blank
O23: blank
C24: 3 | E24: =Summary!E13 -> Employee 3 Name | O24: =IF(OR(K26<>0,K27<>0,K28<>0,K29<>0,K30<>0),0,"blank") -> blank
E25: Select | O25: =O24 -> blank
E26: Wages Paid from Accounting Records | K26: =SUM(F26:J26) -> 0 | O26: =O25 -> blank
E27: Less PAYG Withholding Payments to the ATO (if incl above) | K27: =SUM(F27:J27) -> 0 | O27: blank
E28: Net Wages | F28: =F26-F27 -> 0 | G28: =G26-G27 -> 0 | H28: 0 | I28: 0 | J28: 0 | K28: =SUM(F28:J28) -> 0 | O28: blank
E29: Add PAYG Withholding | F29: =IF(E25<>"Select",F30-F28,0) -> 0 | G29: =IF(E25<>"Select",G30-G28,0) -> 0 | H29: =IF(E25<>"Select",H30-H28,0) -> 0 | I29: =IF(E25<>"Select",I30-I28,0) -> 0 | J29: =IF(E25<>"Select",J30-J28,0) -> 0 | K29: =SUM(F29:J29) -> 0 | O29: blank
E30: Gross Wages | F30: =IF(E25<>"Select",(ROUND((ROUNDDOWN(F28/2,0)+(0.99*VLOOKUP(ROUNDDOWN(F28/2,0),IF(E25="Claim Tax Free Threshold",NEWPAYGW.TFT,NEWPAYGW.NOTFT),4))-VLOOKUP(ROUNDDOWN(F28/2,0),IF(E25="Claim Tax Free Threshold",NEWPAYGW.TFT,NEWPAYGW.NOTFT),5))/(1-VLOOKUP(ROUNDDOWN(F28/2,0),IF(E25="Claim Tax Free Threshold",NEWPAYGW.TFT,NEWPAYGW.NOTFT),4)),0))*2,0) -> 0 | G30: =IF(E25<>"Select",(ROUND((ROUNDDOWN(G28/2,0)+(0.99*VLOOKUP(ROUNDDOWN(G28/2,0),IF(E25="Claim Tax Free Threshold",NEWPAYGW.TFT,NEWPAYGW.NOTFT),4))-VLOOKUP(ROUNDDOWN(G28/2,0),IF(E25="Claim Tax Free Threshold",NEWPAYGW.TFT,NEWPAYGW.NOTFT),5))/(1-VLOOKUP(ROUNDDOWN(G28/2,0),IF(E25="Claim Tax Free Threshold",NEWPAYGW.TFT,NEWPAYGW.NOTFT),4)),0))*2,0) -> 0 | H30: =IF(E25<>"Select",(ROUND((ROUNDDOWN(H28/2,0)+(0.99*VLOOKUP(ROUNDDOWN(H28/2,0),IF(E25="Claim Tax Free Threshold",NEWPAYGW.TFT,NEWPAYGW.NOTFT),4))-VLOOKUP(ROUNDDOWN(H28/2,0),IF(E25="Claim Tax Free Threshold",NEWPAYGW.TFT,NEWPAYGW.NOTFT),5))/(1-VLOOKUP(ROUNDDOWN(H28/2,0),IF(E25="Claim Tax Free Threshold",NEWPAYGW.TFT,NEWPAYGW.NOTFT),4)),0))*2,0) -> 0 | I30: =IF(E25<>"Select",(ROUND((ROUNDDOWN(I28/2,0)+(0.99*VLOOKUP(ROUNDDOWN(I28/2,0),IF(E25="Claim Tax Free Threshold",NEWPAYGW.TFT,NEWPAYGW.NOTFT),4))-VLOOKUP(ROUNDDOWN(I28/2,0),IF(E25="Claim Tax Free Threshold",NEWPAYGW.TFT,NEWPAYGW.NOTFT),5))/(1-VLOOKUP(ROUNDDOWN(I28/2,0),IF(E25="Claim Tax Free Threshold",NEWPAYGW.TFT,NEWPAYGW.NOTFT),4)),0))*2,0) -> 0 | J30: =IF(E25<>"Select",(ROUND((ROUNDDOWN(J28/2,0)+(0.99*VLOOKUP(ROUNDDOWN(J28/2,0),IF(E25="Claim Tax Free Threshold",NEWPAYGW.TFT,NEWPAYGW.NOTFT),4))-VLOOKUP(ROUNDDOWN(J28/2,0),IF(E25="Claim Tax Free Threshold",NEWPAYGW.TFT,NEWPAYGW.NOTFT),5))/(1-VLOOKUP(ROUNDDOWN(J28/2,0),IF(E25="Claim Tax Free Threshold",NEWPAYGW.TFT,NEWPAYGW.NOTFT),4)),0))*2,0) -> 0 | K30: =SUM(F30:J30) -> 0 | O30: blank
O31: blank
C32: 4 | E32: =Summary!E14 -> Employee 4 Name | O32: =IF(OR(K34<>0,K35<>0,K36<>0,K37<>0,K38<>0),0,"blank") -> blank
E33: Select | O33: =O32 -> blank
E34: Wages Paid from Accounting Records | K34: =SUM(F34:J34) -> 0 | O34: =O33 -> blank
E35: Less PAYG Withholding Payments to the ATO (if incl above) | K35: =SUM(F35:J35) -> 0 | O35: blank
E36: Net Wages | F36: =F34-F35 -> 0 | G36: =G34-G35 -> 0 | H36: 0 | I36: 0 | J36: 0 | K36: =SUM(F36:J36) -> 0 | O36: blank
E37: Add PAYG Withholding | F37: =IF(E33<>"Select",F38-F36,0) -> 0 | G37: =IF(E33<>"Select",G38-G36,0) -> 0 | H37: =IF(E33<>"Select",H38-H36,0) -> 0 | I37: =IF(E33<>"Select",I38-I36,0) -> 0 | J37: =IF(E33<>"Select",J38-J36,0) -> 0 | K37: =SUM(F37:J37) -> 0 | O37: blank
E38: Gross Wages | F38: =IF(E33<>"Select",(ROUND((ROUNDDOWN(F36/2,0)+(0.99*VLOOKUP(ROUNDDOWN(F36/2,0),IF(E33="Claim Tax Free Threshold",NEWPAYGW.TFT,NEWPAYGW.NOTFT),4))-VLOOKUP(ROUNDDOWN(F36/2,0),IF(E33="Claim Tax Free Threshold",NEWPAYGW.TFT,NEWPAYGW.NOTFT),5))/(1-VLOOKUP(ROUNDDOWN(F36/2,0),IF(E33="Claim Tax Free Threshold",NEWPAYGW.TFT,NEWPAYGW.NOTFT),4)),0))*2,0) -> 0 | G38: =IF(E33<>"Select",(ROUND((ROUNDDOWN(G36/2,0)+(0.99*VLOOKUP(ROUNDDOWN(G36/2,0),IF(E33="Claim Tax Free Threshold",NEWPAYGW.TFT,NEWPAYGW.NOTFT),4))-VLOOKUP(ROUNDDOWN(G36/2,0),IF(E33="Claim Tax Free Threshold",NEWPAYGW.TFT,NEWPAYGW.NOTFT),5))/(1-VLOOKUP(ROUNDDOWN(G36/2,0),IF(E33="Claim Tax Free Threshold",NEWPAYGW.TFT,NEWPAYGW.NOTFT),4)),0))*2,0) -> 0 | H38: =IF(E33<>"Select",(ROUND((ROUNDDOWN(H36/2,0)+(0.99*VLOOKUP(ROUNDDOWN(H36/2,0),IF(E33="Claim Tax Free Threshold",NEWPAYGW.TFT,NEWPAYGW.NOTFT),4))-VLOOKUP(ROUNDDOWN(H36/2,0),IF(E33="Claim Tax Free Threshold",NEWPAYGW.TFT,NEWPAYGW.NOTFT),5))/(1-VLOOKUP(ROUNDDOWN(H36/2,0),IF(E33="Claim Tax Free Threshold",NEWPAYGW.TFT,NEWPAYGW.NOTFT),4)),0))*2,0) -> 0 | I38: =IF(E33<>"Select",(ROUND((ROUNDDOWN(I36/2,0)+(0.99*VLOOKUP(ROUNDDOWN(I36/2,0),IF(E33="Claim Tax Free Threshold",NEWPAYGW.TFT,NEWPAYGW.NOTFT),4))-VLOOKUP(ROUNDDOWN(I36/2,0),IF(E33="Claim Tax Free Threshold",NEWPAYGW.TFT,NEWPAYGW.NOTFT),5))/(1-VLOOKUP(ROUNDDOWN(I36/2,0),IF(E33="Claim Tax Free Threshold",NEWPAYGW.TFT,NEWPAYGW.NOTFT),4)),0))*2,0) -> 0 | J38: =IF(E33<>"Select",(ROUND((ROUNDDOWN(J36/2,0)+(0.99*VLOOKUP(ROUNDDOWN(J36/2,0),IF(E33="Claim Tax Free Threshold",NEWPAYGW.TFT,NEWPAYGW.NOTFT),4))-VLOOKUP(ROUNDDOWN(J36/2,0),IF(E33="Claim Tax Free Threshold",NEWPAYGW.TFT,NEWPAYGW.NOTFT),5))/(1-VLOOKUP(ROUNDDOWN(J36/2,0),IF(E33="Claim Tax Free Threshold",NEWPAYGW.TFT,NEWPAYGW.NOTFT),4)),0))*2,0) -> 0 | K38: =SUM(F38:J38) -> 0 | O38: blank
O39: blank
C40: 5 | E40: =Summary!E15 -> Employee 5 Name | O40: =IF(OR(K42<>0,K43<>0,K44<>0,K45<>0,K46<>0),0,"blank") -> blank
E41: Select | O41: =O40 -> blank
E42: Wages Paid from Accounting Records | K42: =SUM(F42:J42) -> 0 | O42: =O41 -> blank
E43: Less PAYG Withholding Payments to the ATO (if incl above) | K43: =SUM(F43:J43) -> 0 | O43: blank
E44: Net Wages | F44: =F42-F43 -> 0 | G44: =G42-G43 -> 0 | H44: 0 | I44: 0 | J44: 0 | K44: =SUM(F44:J44) -> 0 | O44: blank
E45: Add PAYG Withholding | F45: =IF(E41<>"Select",F46-F44,0) -> 0 | G45: =IF(E41<>"Select",G46-G44,0) -> 0 | H45: =IF(E41<>"Select",H46-H44,0) -> 0 | I45: =IF(E41<>"Select",I46-I44,0) -> 0 | J45: =IF(E41<>"Select",J46-J44,0) -> 0 | K45: =SUM(F45:J45) -> 0 | O45: blank
E46: Gross Wages | F46: =IF(E41<>"Select",(ROUND((ROUNDDOWN(F44/2,0)+(0.99*VLOOKUP(ROUNDDOWN(F44/2,0),IF(E41="Claim Tax Free Threshold",NEWPAYGW.TFT,NEWPAYGW.NOTFT),4))-VLOOKUP(ROUNDDOWN(F44/2,0),IF(E41="Claim Tax Free Threshold",NEWPAYGW.TFT,NEWPAYGW.NOTFT),5))/(1-VLOOKUP(ROUNDDOWN(F44/2,0),IF(E41="Claim Tax Free Threshold",NEWPAYGW.TFT,NEWPAYGW.NOTFT),4)),0))*2,0) -> 0 | G46: =IF(E41<>"Select",(ROUND((ROUNDDOWN(G44/2,0)+(0.99*VLOOKUP(ROUNDDOWN(G44/2,0),IF(E41="Claim Tax Free Threshold",NEWPAYGW.TFT,NEWPAYGW.NOTFT),4))-VLOOKUP(ROUNDDOWN(G44/2,0),IF(E41="Claim Tax Free Threshold",NEWPAYGW.TFT,NEWPAYGW.NOTFT),5))/(1-VLOOKUP(ROUNDDOWN(G44/2,0),IF(E41="Claim Tax Free Threshold",NEWPAYGW.TFT,NEWPAYGW.NOTFT),4)),0))*2,0) -> 0 | H46: =IF(E41<>"Select",(ROUND((ROUNDDOWN(H44/2,0)+(0.99*VLOOKUP(ROUNDDOWN(H44/2,0),IF(E41="Claim Tax Free Threshold",NEWPAYGW.TFT,NEWPAYGW.NOTFT),4))-VLOOKUP(ROUNDDOWN(H44/2,0),IF(E41="Claim Tax Free Threshold",NEWPAYGW.TFT,NEWPAYGW.NOTFT),5))/(1-VLOOKUP(ROUNDDOWN(H44/2,0),IF(E41="Claim Tax Free Threshold",NEWPAYGW.TFT,NEWPAYGW.NOTFT),4)),0))*2,0) -> 0 | I46: =IF(E41<>"Select",(ROUND((ROUNDDOWN(I44/2,0)+(0.99*VLOOKUP(ROUNDDOWN(I44/2,0),IF(E41="Claim Tax Free Threshold",NEWPAYGW.TFT,NEWPAYGW.NOTFT),4))-VLOOKUP(ROUNDDOWN(I44/2,0),IF(E41="Claim Tax Free Threshold",NEWPAYGW.TFT,NEWPAYGW.NOTFT),5))/(1-VLOOKUP(ROUNDDOWN(I44/2,0),IF(E41="Claim Tax Free Threshold",NEWPAYGW.TFT,NEWPAYGW.NOTFT),4)),0))*2,0) -> 0 | J46: =IF(E41<>"Select",(ROUND((ROUNDDOWN(J44/2,0)+(0.99*VLOOKUP(ROUNDDOWN(J44/2,0),IF(E41="Claim Tax Free Threshold",NEWPAYGW.TFT,NEWPAYGW.NOTFT),4))-VLOOKUP(ROUNDDOWN(J44/2,0),IF(E41="Claim Tax Free Threshold",NEWPAYGW.TFT,NEWPAYGW.NOTFT),5))/(1-VLOOKUP(ROUNDDOWN(J44/2,0),IF(E41="Claim Tax Free Threshold",NEWPAYGW.TFT,NEWPAYGW.NOTFT),4)),0))*2,0) -> 0 | K46: =SUM(F46:J46) -> 0 | O46: blank
O47: blank
C48: 6 | E48: =Summary!E16 -> Employee 6 Name | O48: =IF(OR(K50<>0,K51<>0,K52<>0,K53<>0,K54<>0),0,"blank") -> blank
E49: Select | O49: =O48 -> blank
E50: Wages Paid from Accounting Records | K50: =SUM(F50:J50) -> 0 | O50: =O49 -> blank
E51: Less PAYG Withholding Payments to the ATO (if incl above) | K51: =SUM(F51:J51) -> 0 | O51: blank
E52: Net Wages | F52: =F50-F51 -> 0 | G52: =G50-G51 -> 0 | H52: 0 | I52: 0 | J52: 0 | K52: =SUM(F52:J52) -> 0 | O52: blank
E53: Add PAYG Withholding | F53: =IF(E49<>"Select",F54-F52,0) -> 0 | G53: =IF(E49<>"Select",G54-G52,0) -> 0 | H53: =IF(E49<>"Select",H54-H52,0) -> 0 | I53: =IF(E49<>"Select",I54-I52,0) -> 0 | J53: =IF(E49<>"Select",J54-J52,0) -> 0 | K53: =SUM(F53:J53) -> 0 | O53: blank
E54: Gross Wages | F54: =IF(E49<>"Select",(ROUND((ROUNDDOWN(F52/2,0)+(0.99*VLOOKUP(ROUNDDOWN(F52/2,0),IF(E49="Claim Tax Free Threshold",NEWPAYGW.TFT,NEWPAYGW.NOTFT),4))-VLOOKUP(ROUNDDOWN(F52/2,0),IF(E49="Claim Tax Free Threshold",NEWPAYGW.TFT,NEWPAYGW.NOTFT),5))/(1-VLOOKUP(ROUNDDOWN(F52/2,0),IF(E49="Claim Tax Free Threshold",NEWPAYGW.TFT,NEWPAYGW.NOTFT),4)),0))*2,0) -> 0 | G54: =IF(E49<>"Select",(ROUND((ROUNDDOWN(G52/2,0)+(0.99*VLOOKUP(ROUNDDOWN(G52/2,0),IF(E49="Claim Tax Free Threshold",NEWPAYGW.TFT,NEWPAYGW.NOTFT),4))-VLOOKUP(ROUNDDOWN(G52/2,0),IF(E49="Claim Tax Free Threshold",NEWPAYGW.TFT,NEWPAYGW.NOTFT),5))/(1-VLOOKUP(ROUNDDOWN(G52/2,0),IF(E49="Claim Tax Free Threshold",NEWPAYGW.TFT,NEWPAYGW.NOTFT),4)),0))*2,0) -> 0 | H54: =IF(E49<>"Select",(ROUND((ROUNDDOWN(H52/2,0)+(0.99*VLOOKUP(ROUNDDOWN(H52/2,0),IF(E49="Claim Tax Free Threshold",NEWPAYGW.TFT,NEWPAYGW.NOTFT),4))-VLOOKUP(ROUNDDOWN(H52/2,0),IF(E49="Claim Tax Free Threshold",NEWPAYGW.TFT,NEWPAYGW.NOTFT),5))/(1-VLOOKUP(ROUNDDOWN(H52/2,0),IF(E49="Claim Tax Free Threshold",NEWPAYGW.TFT,NEWPAYGW.NOTFT),4)),0))*2,0) -> 0 | I54: =IF(E49<>"Select",(ROUND((ROUNDDOWN(I52/2,0)+(0.99*VLOOKUP(ROUNDDOWN(I52/2,0),IF(E49="Claim Tax Free Threshold",NEWPAYGW.TFT,NEWPAYGW.NOTFT),4))-VLOOKUP(ROUNDDOWN(I52/2,0),IF(E49="Claim Tax Free Threshold",NEWPAYGW.TFT,NEWPAYGW.NOTFT),5))/(1-VLOOKUP(ROUNDDOWN(I52/2,0),IF(E49="Claim Tax Free Threshold",NEWPAYGW.TFT,NEWPAYGW.NOTFT),4)),0))*2,0) -> 0 | J54: =IF(E49<>"Select",(ROUND((ROUNDDOWN(J52/2,0)+(0.99*VLOOKUP(ROUNDDOWN(J52/2,0),IF(E49="Claim Tax Free Threshold",NEWPAYGW.TFT,NEWPAYGW.NOTFT),4))-VLOOKUP(ROUNDDOWN(J52/2,0),IF(E49="Claim Tax Free Threshold",NEWPAYGW.TFT,NEWPAYGW.NOTFT),5))/(1-VLOOKUP(ROUNDDOWN(J52/2,0),IF(E49="Claim Tax Free Threshold",NEWPAYGW.TFT,NEWPAYGW.NOTFT),4)),0))*2,0) -> 0 | K54: =SUM(F54:J54) -> 0 | O54: blank
O55: blank
C56: 7 | E56: =Summary!E17 -> Employee 7 Name | O56: =IF(OR(K58<>0,K59<>0,K60<>0,K61<>0,K62<>0),0,"blank") -> blank
E57: Select | O57: =O56 -> blank
E58: Wages Paid from Accounting Records | K58: =SUM(F58:J58) -> 0 | O58: =O57 -> blank
E59: Less PAYG Withholding Payments to the ATO (if incl above) | K59: =SUM(F59:J59) -> 0 | O59: blank
E60: Net Wages | F60: =F58-F59 -> 0 | G60: =G58-G59 -> 0 | H60: 0 | I60: 0 | J60: 0 | K60: =SUM(F60:J60) -> 0 | O60: blank
E61: Add PAYG Withholding | F61: =IF(E57<>"Select",F62-F60,0) -> 0 | G61: =IF(E57<>"Select",G62-G60,0) -> 0 | H61: =IF(E57<>"Select",H62-H60,0) -> 0 | I61: =IF(E57<>"Select",I62-I60,0) -> 0 | J61: =IF(E57<>"Select",J62-J60,0) -> 0 | K61: =SUM(F61:J61) -> 0 | O61: blank
E62: Gross Wages | F62: =IF(E57<>"Select",(ROUND((ROUNDDOWN(F60/2,0)+(0.99*VLOOKUP(ROUNDDOWN(F60/2,0),IF(E57="Claim Tax Free Threshold",NEWPAYGW.TFT,NEWPAYGW.NOTFT),4))-VLOOKUP(ROUNDDOWN(F60/2,0),IF(E57="Claim Tax Free Threshold",NEWPAYGW.TFT,NEWPAYGW.NOTFT),5))/(1-VLOOKUP(ROUNDDOWN(F60/2,0),IF(E57="Claim Tax Free Threshold",NEWPAYGW.TFT,NEWPAYGW.NOTFT),4)),0))*2,0) -> 0 | G62: =IF(E57<>"Select",(ROUND((ROUNDDOWN(G60/2,0)+(0.99*VLOOKUP(ROUNDDOWN(G60/2,0),IF(E57="Claim Tax Free Threshold",NEWPAYGW.TFT,NEWPAYGW.NOTFT),4))-VLOOKUP(ROUNDDOWN(G60/2,0),IF(E57="Claim Tax Free Threshold",NEWPAYGW.TFT,NEWPAYGW.NOTFT),5))/(1-VLOOKUP(ROUNDDOWN(G60/2,0),IF(E57="Claim Tax Free Threshold",NEWPAYGW.TFT,NEWPAYGW.NOTFT),4)),0))*2,0) -> 0 | H62: =IF(E57<>"Select",(ROUND((ROUNDDOWN(H60/2,0)+(0.99*VLOOKUP(ROUNDDOWN(H60/2,0),IF(E57="Claim Tax Free Threshold",NEWPAYGW.TFT,NEWPAYGW.NOTFT),4))-VLOOKUP(ROUNDDOWN(H60/2,0),IF(E57="Claim Tax Free Threshold",NEWPAYGW.TFT,NEWPAYGW.NOTFT),5))/(1-VLOOKUP(ROUNDDOWN(H60/2,0),IF(E57="Claim Tax Free Threshold",NEWPAYGW.TFT,NEWPAYGW.NOTFT),4)),0))*2,0) -> 0 | I62: =IF(E57<>"Select",(ROUND((ROUNDDOWN(I60/2,0)+(0.99*VLOOKUP(ROUNDDOWN(I60/2,0),IF(E57="Claim Tax Free Threshold",NEWPAYGW.TFT,NEWPAYGW.NOTFT),4))-VLOOKUP(ROUNDDOWN(I60/2,0),IF(E57="Claim Tax Free Threshold",NEWPAYGW.TFT,NEWPAYGW.NOTFT),5))/(1-VLOOKUP(ROUNDDOWN(I60/2,0),IF(E57="Claim Tax Free Threshold",NEWPAYGW.TFT,NEWPAYGW.NOTFT),4)),0))*2,0) -> 0 | J62: =IF(E57<>"Select",(ROUND((ROUNDDOWN(J60/2,0)+(0.99*VLOOKUP(ROUNDDOWN(J60/2,0),IF(E57="Claim Tax Free Threshold",NEWPAYGW.TFT,NEWPAYGW.NOTFT),4))-VLOOKUP(ROUNDDOWN(J60/2,0),IF(E57="Claim Tax Free Threshold",NEWPAYGW.TFT,NEWPAYGW.NOTFT),5))/(1-VLOOKUP(ROUNDDOWN(J60/2,0),IF(E57="Claim Tax Free Threshold",NEWPAYGW.TFT,NEWPAYGW.NOTFT),4)),0))*2,0) -> 0 | K62: =SUM(F62:J62) -> 0 | O62: blank
O63: blank
C64: 8 | E64: =Summary!E18 -> Employee 8 Name | O64: =IF(OR(K66<>0,K67<>0,K68<>0,K69<>0,K70<>0),0,"blank") -> blank
E65: Select | O65: =O64 -> blank
E66: Wages Paid from Accounting Records | K66: =SUM(F66:J66) -> 0 | O66: =O65 -> blank
E67: Less PAYG Withholding Payments to the ATO (if incl above) | K67: =SUM(F67:J67) -> 0 | O67: blank
E68: Net Wages | F68: =F66-F67 -> 0 | G68: =G66-G67 -> 0 | H68: 0 | I68: 0 | J68: 0 | K68: =SUM(F68:J68) -> 0 | O68: blank
E69: Add PAYG Withholding | F69: =IF(E65<>"Select",F70-F68,0) -> 0 | G69: =IF(E65<>"Select",G70-G68,0) -> 0 | H69: =IF(E65<>"Select",H70-H68,0) -> 0 | I69: =IF(E65<>"Select",I70-I68,0) -> 0 | J69: =IF(E65<>"Select",J70-J68,0) -> 0 | K69: =SUM(F69:J69) -> 0 | O69: blank
E70: Gross Wages | F70: =IF(E65<>"Select",(ROUND((ROUNDDOWN(F68/2,0)+(0.99*VLOOKUP(ROUNDDOWN(F68/2,0),IF(E65="Claim Tax Free Threshold",NEWPAYGW.TFT,NEWPAYGW.NOTFT),4))-VLOOKUP(ROUNDDOWN(F68/2,0),IF(E65="Claim Tax Free Threshold",NEWPAYGW.TFT,NEWPAYGW.NOTFT),5))/(1-VLOOKUP(ROUNDDOWN(F68/2,0),IF(E65="Claim Tax Free Threshold",NEWPAYGW.TFT,NEWPAYGW.NOTFT),4)),0))*2,0) -> 0 | G70: =IF(E65<>"Select",(ROUND((ROUNDDOWN(G68/2,0)+(0.99*VLOOKUP(ROUNDDOWN(G68/2,0),IF(E65="Claim Tax Free Threshold",NEWPAYGW.TFT,NEWPAYGW.NOTFT),4))-VLOOKUP(ROUNDDOWN(G68/2,0),IF(E65="Claim Tax Free Threshold",NEWPAYGW.TFT,NEWPAYGW.NOTFT),5))/(1-VLOOKUP(ROUNDDOWN(G68/2,0),IF(E65="Claim Tax Free Threshold",NEWPAYGW.TFT,NEWPAYGW.NOTFT),4)),0))*2,0) -> 0 | H70: =IF(E65<>"Select",(ROUND((ROUNDDOWN(H68/2,0)+(0.99*VLOOKUP(ROUNDDOWN(H68/2,0),IF(E65="Claim Tax Free Threshold",NEWPAYGW.TFT,NEWPAYGW.NOTFT),4))-VLOOKUP(ROUNDDOWN(H68/2,0),IF(E65="Claim Tax Free Threshold",NEWPAYGW.TFT,NEWPAYGW.NOTFT),5))/(1-VLOOKUP(ROUNDDOWN(H68/2,0),IF(E65="Claim Tax Free Threshold",NEWPAYGW.TFT,NEWPAYGW.NOTFT),4)),0))*2,0) -> 0 | I70: =IF(E65<>"Select",(ROUND((ROUNDDOWN(I68/2,0)+(0.99*VLOOKUP(ROUNDDOWN(I68/2,0),IF(E65="Claim Tax Free Threshold",NEWPAYGW.TFT,NEWPAYGW.NOTFT),4))-VLOOKUP(ROUNDDOWN(I68/2,0),IF(E65="Claim Tax Free Threshold",NEWPAYGW.TFT,NEWPAYGW.NOTFT),5))/(1-VLOOKUP(ROUNDDOWN(I68/2,0),IF(E65="Claim Tax Free Threshold",NEWPAYGW.TFT,NEWPAYGW.NOTFT),4)),0))*2,0) -> 0 | J70: =IF(E65<>"Select",(ROUND((ROUNDDOWN(J68/2,0)+(0.99*VLOOKUP(ROUNDDOWN(J68/2,0),IF(E65="Claim Tax Free Threshold",NEWPAYGW.TFT,NEWPAYGW.NOTFT),4))-VLOOKUP(ROUNDDOWN(J68/2,0),IF(E65="Claim Tax Free Threshold",NEWPAYGW.TFT,NEWPAYGW.NOTFT),5))/(1-VLOOKUP(ROUNDDOWN(J68/2,0),IF(E65="Claim Tax Free Threshold",NEWPAYGW.TFT,NEWPAYGW.NOTFT),4)),0))*2,0) -> 0 | K70: =SUM(F70:J70) -> 0 | O70: blank
O71: blank
C72: 9 | E72: =Summary!E19 -> Employee 9 Name | O72: =IF(OR(K74<>0,K75<>0,K76<>0,K77<>0,K78<>0),0,"blank") -> blank
E73: Select | O73: =O72 -> blank
E74: Wages Paid from Accounting Records | K74: =SUM(F74:J74) -> 0 | O74: =O73 -> blank
E75: Less PAYG Withholding Payments to the ATO (if incl above) | K75: =SUM(F75:J75) -> 0 | O75: blank
E76: Net Wages | F76: =F74-F75 -> 0 | G76: =G74-G75 -> 0 | H76: 0 | I76: 0 | J76: 0 | K76: =SUM(F76:J76) -> 0 | O76: blank
E77: Add PAYG Withholding | F77: =IF(E73<>"Select",F78-F76,0) -> 0 | G77: =IF(E73<>"Select",G78-G76,0) -> 0 | H77: =IF(E73<>"Select",H78-H76,0) -> 0 | I77: =IF(E73<>"Select",I78-I76,0) -> 0 | J77: =IF(E73<>"Select",J78-J76,0) -> 0 | K77: =SUM(F77:J77) -> 0 | O77: blank
E78: Gross Wages | F78: =IF(E73<>"Select",(ROUND((ROUNDDOWN(F76/2,0)+(0.99*VLOOKUP(ROUNDDOWN(F76/2,0),IF(E73="Claim Tax Free Threshold",NEWPAYGW.TFT,NEWPAYGW.NOTFT),4))-VLOOKUP(ROUNDDOWN(F76/2,0),IF(E73="Claim Tax Free Threshold",NEWPAYGW.TFT,NEWPAYGW.NOTFT),5))/(1-VLOOKUP(ROUNDDOWN(F76/2,0),IF(E73="Claim Tax Free Threshold",NEWPAYGW.TFT,NEWPAYGW.NOTFT),4)),0))*2,0) -> 0 | G78: =IF(E73<>"Select",(ROUND((ROUNDDOWN(G76/2,0)+(0.99*VLOOKUP(ROUNDDOWN(G76/2,0),IF(E73="Claim Tax Free Threshold",NEWPAYGW.TFT,NEWPAYGW.NOTFT),4))-VLOOKUP(ROUNDDOWN(G76/2,0),IF(E73="Claim Tax Free Threshold",NEWPAYGW.TFT,NEWPAYGW.NOTFT),5))/(1-VLOOKUP(ROUNDDOWN(G76/2,0),IF(E73="Claim Tax Free Threshold",NEWPAYGW.TFT,NEWPAYGW.NOTFT),4)),0))*2,0) -> 0 | H78: =IF(E73<>"Select",(ROUND((ROUNDDOWN(H76/2,0)+(0.99*VLOOKUP(ROUNDDOWN(H76/2,0),IF(E73="Claim Tax Free Threshold",NEWPAYGW.TFT,NEWPAYGW.NOTFT),4))-VLOOKUP(ROUNDDOWN(H76/2,0),IF(E73="Claim Tax Free Threshold",NEWPAYGW.TFT,NEWPAYGW.NOTFT),5))/(1-VLOOKUP(ROUNDDOWN(H76/2,0),IF(E73="Claim Tax Free Threshold",NEWPAYGW.TFT,NEWPAYGW.NOTFT),4)),0))*2,0) -> 0 | I78: =IF(E73<>"Select",(ROUND((ROUNDDOWN(I76/2,0)+(0.99*VLOOKUP(ROUNDDOWN(I76/2,0),IF(E73="Claim Tax Free Threshold",NEWPAYGW.TFT,NEWPAYGW.NOTFT),4))-VLOOKUP(ROUNDDOWN(I76/2,0),IF(E73="Claim Tax Free Threshold",NEWPAYGW.TFT,NEWPAYGW.NOTFT),5))/(1-VLOOKUP(ROUNDDOWN(I76/2,0),IF(E73="Claim Tax Free Threshold",NEWPAYGW.TFT,NEWPAYGW.NOTFT),4)),0))*2,0) -> 0 | J78: =IF(E73<>"Select",(ROUND((ROUNDDOWN(J76/2,0)+(0.99*VLOOKUP(ROUNDDOWN(J76/2,0),IF(E73="Claim Tax Free Threshold",NEWPAYGW.TFT,NEWPAYGW.NOTFT),4))-VLOOKUP(ROUNDDOWN(J76/2,0),IF(E73="Claim Tax Free Threshold",NEWPAYGW.TFT,NEWPAYGW.NOTFT),5))/(1-VLOOKUP(ROUNDDOWN(J76/2,0),IF(E73="Claim Tax Free Threshold",NEWPAYGW.TFT,NEWPAYGW.NOTFT),4)),0))*2,0) -> 0 | K78: =SUM(F78:J78) -> 0 | O78: blank
O79: blank
C80: 10 | E80: =Summary!E20 -> Employee 10 Name | O80: =IF(OR(K82<>0,K83<>0,K84<>0,K85<>0,K86<>0),0,"blank") -> blank
E81: Select | O81: =O80 -> blank
E82: Wages Paid from Accounting Records | K82: =SUM(F82:J82) -> 0 | O82: =O81 -> blank
E83: Less PAYG Withholding Payments to the ATO (if incl above) | K83: =SUM(F83:J83) -> 0 | O83: blank
E84: Net Wages | F84: =F82-F83 -> 0 | G84: =G82-G83 -> 0 | H84: 0 | I84: 0 | J84: 0 | K84: =SUM(F84:J84) -> 0 | O84: blank
E85: Add PAYG Withholding | F85: =IF(E81<>"Select",F86-F84,0) -> 0 | G85: =IF(E81<>"Select",G86-G84,0) -> 0 | H85: =IF(E81<>"Select",H86-H84,0) -> 0 | I85: =IF(E81<>"Select",I86-I84,0) -> 0 | J85: =IF(E81<>"Select",J86-J84,0) -> 0 | K85: =SUM(F85:J85) -> 0 | O85: blank
E86: Gross Wages | F86: =IF(E81<>"Select",(ROUND((ROUNDDOWN(F84/2,0)+(0.99*VLOOKUP(ROUNDDOWN(F84/2,0),IF(E81="Claim Tax Free Threshold",NEWPAYGW.TFT,NEWPAYGW.NOTFT),4))-VLOOKUP(ROUNDDOWN(F84/2,0),IF(E81="Claim Tax Free Threshold",NEWPAYGW.TFT,NEWPAYGW.NOTFT),5))/(1-VLOOKUP(ROUNDDOWN(F84/2,0),IF(E81="Claim Tax Free Threshold",NEWPAYGW.TFT,NEWPAYGW.NOTFT),4)),0))*2,0) -> 0 | G86: =IF(E81<>"Select",(ROUND((ROUNDDOWN(G84/2,0)+(0.99*VLOOKUP(ROUNDDOWN(G84/2,0),IF(E81="Claim Tax Free Threshold",NEWPAYGW.TFT,NEWPAYGW.NOTFT),4))-VLOOKUP(ROUNDDOWN(G84/2,0),IF(E81="Claim Tax Free Threshold",NEWPAYGW.TFT,NEWPAYGW.NOTFT),5))/(1-VLOOKUP(ROUNDDOWN(G84/2,0),IF(E81="Claim Tax Free Threshold",NEWPAYGW.TFT,NEWPAYGW.NOTFT),4)),0))*2,0) -> 0 | H86: =IF(E81<>"Select",(ROUND((ROUNDDOWN(H84/2,0)+(0.99*VLOOKUP(ROUNDDOWN(H84/2,0),IF(E81="Claim Tax Free Threshold",NEWPAYGW.TFT,NEWPAYGW.NOTFT),4))-VLOOKUP(ROUNDDOWN(H84/2,0),IF(E81="Claim Tax Free Threshold",NEWPAYGW.TFT,NEWPAYGW.NOTFT),5))/(1-VLOOKUP(ROUNDDOWN(H84/2,0),IF(E81="Claim Tax Free Threshold",NEWPAYGW.TFT,NEWPAYGW.NOTFT),4)),0))*2,0) -> 0 | I86: =IF(E81<>"Select",(ROUND((ROUNDDOWN(I84/2,0)+(0.99*VLOOKUP(ROUNDDOWN(I84/2,0),IF(E81="Claim Tax Free Threshold",NEWPAYGW.TFT,NEWPAYGW.NOTFT),4))-VLOOKUP(ROUNDDOWN(I84/2,0),IF(E81="Claim Tax Free Threshold",NEWPAYGW.TFT,NEWPAYGW.NOTFT),5))/(1-VLOOKUP(ROUNDDOWN(I84/2,0),IF(E81="Claim Tax Free Threshold",NEWPAYGW.TFT,NEWPAYGW.NOTFT),4)),0))*2,0) -> 0 | J86: =IF(E81<>"Select",(ROUND((ROUNDDOWN(J84/2,0)+(0.99*VLOOKUP(ROUNDDOWN(J84/2,0),IF(E81="Claim Tax Free Threshold",NEWPAYGW.TFT,NEWPAYGW.NOTFT),4))-VLOOKUP(ROUNDDOWN(J84/2,0),IF(E81="Claim Tax Free Threshold",NEWPAYGW.TFT,NEWPAYGW.NOTFT),5))/(1-VLOOKUP(ROUNDDOWN(J84/2,0),IF(E81="Claim Tax Free Threshold",NEWPAYGW.TFT,NEWPAYGW.NOTFT),4)),0))*2,0) -> 0 | K86: =SUM(F86:J86) -> 0 | O86: blank
O87: blank
E89: Monthly Summary
E90: Gross Wages | F90: =F14+F22+F30+F38+F46+F54+F62+F70+F78+F86 -> 0 | G90: =G14+G22+G30+G38+G46+G54+G62+G70+G78+G86 -> 0 | H90: 0 | I90: 0 | J90: 0 | K90: =SUM(F90:J90) -> 0
E91: PAYG Withholding | F91: =F13+F21+F29+F37+F45+F53+F61+F69+F77+F85 -> 0 | G91: =G13+G21+G29+G37+G45+G53+G61+G69+G77+G85 -> 0 | H91: 0 | I91: 0 | J91: 0 | K91: =SUM(F91:J91) -> 0
E92: Net Wages | F92: =F90-F91 -> 0 | G92: =G90-G91 -> 0 | H92: 0 | I92: 0 | J92: 0 | K92: 0
E95: PAYG withholding calculations are for payments of fortnightly wages to resident individuals who have quoted their TFN and are not claiming any Medicare Levy reduction
O96: ="blank" -> blank

Sheet Mar
E1: Gross Pay Estimate - Weekly Wages | K1: =Summary!O2 -> Entity Name | O1: HIDE
E2: =CONCATENATE("Wages for ",TEXT(Month9End,"mmmm yyyy")) -> Wages for March 2018 | K2: =Summary!O3 -> Preparer Name
F5: Wages for Fortnight Ended
K7: Total
C8: 1 | E8: =Summary!E11 -> Employee 1 Name | O8: =IF(OR(K10<>0,K11<>0,K12<>0,K13<>0,K14<>0),0,"blank") -> blank
E9: Select | O9: =O8 -> blank
E10: Wages Paid from Accounting Records | K10: =SUM(F10:J10) -> 0 | O10: =O9 -> blank
E11: Less PAYG Withholding Payments to the ATO (if incl above) | K11: =SUM(F11:J11) -> 0 | O11: blank
E12: Net Wages | F12: =F10-F11 -> 0 | G12: =G10-G11 -> 0 | H12: 0 | I12: 0 | J12: 0 | K12: =SUM(F12:J12) -> 0 | O12: blank
E13: Add PAYG Withholding | F13: =IF(E9<>"Select",F14-F12,0) -> 0 | G13: =IF(E9<>"Select",G14-G12,0) -> 0 | H13: =IF(E9<>"Select",H14-H12,0) -> 0 | I13: =IF(E9<>"Select",I14-I12,0) -> 0 | J13: =IF(E9<>"Select",J14-J12,0) -> 0 | K13: =SUM(F13:J13) -> 0 | O13: blank
E14: Gross Wages | F14: =IF(E9<>"Select",(ROUND((ROUNDDOWN(F12/2,0)+(0.99*VLOOKUP(ROUNDDOWN(F12/2,0),IF(E9="Claim Tax Free Threshold",NEWPAYGW.TFT,NEWPAYGW.NOTFT),4))-VLOOKUP(ROUNDDOWN(F12/2,0),IF(E9="Claim Tax Free Threshold",NEWPAYGW.TFT,NEWPAYGW.NOTFT),5))/(1-VLOOKUP(ROUNDDOWN(F12/2,0),IF(E9="Claim Tax Free Threshold",NEWPAYGW.TFT,NEWPAYGW.NOTFT),4)),0))*2,0) -> 0 | G14: =IF(E9<>"Select",(ROUND((ROUNDDOWN(G12/2,0)+(0.99*VLOOKUP(ROUNDDOWN(G12/2,0),IF(E9="Claim Tax Free Threshold",NEWPAYGW.TFT,NEWPAYGW.NOTFT),4))-VLOOKUP(ROUNDDOWN(G12/2,0),IF(E9="Claim Tax Free Threshold",NEWPAYGW.TFT,NEWPAYGW.NOTFT),5))/(1-VLOOKUP(ROUNDDOWN(G12/2,0),IF(E9="Claim Tax Free Threshold",NEWPAYGW.TFT,NEWPAYGW.NOTFT),4)),0))*2,0) -> 0 | H14: =IF(E9<>"Select",(ROUND((ROUNDDOWN(H12/2,0)+(0.99*VLOOKUP(ROUNDDOWN(H12/2,0),IF(E9="Claim Tax Free Threshold",NEWPAYGW.TFT,NEWPAYGW.NOTFT),4))-VLOOKUP(ROUNDDOWN(H12/2,0),IF(E9="Claim Tax Free Threshold",NEWPAYGW.TFT,NEWPAYGW.NOTFT),5))/(1-VLOOKUP(ROUNDDOWN(H12/2,0),IF(E9="Claim Tax Free Threshold",NEWPAYGW.TFT,NEWPAYGW.NOTFT),4)),0))*2,0) -> 0 | I14: =IF(E9<>"Select",(ROUND((ROUNDDOWN(I12/2,0)+(0.99*VLOOKUP(ROUNDDOWN(I12/2,0),IF(E9="Claim Tax Free Threshold",NEWPAYGW.TFT,NEWPAYGW.NOTFT),4))-VLOOKUP(ROUNDDOWN(I12/2,0),IF(E9="Claim Tax Free Threshold",NEWPAYGW.TFT,NEWPAYGW.NOTFT),5))/(1-VLOOKUP(ROUNDDOWN(I12/2,0),IF(E9="Claim Tax Free Threshold",NEWPAYGW.TFT,NEWPAYGW.NOTFT),4)),0))*2,0) -> 0 | J14: =IF(E9<>"Select",(ROUND((ROUNDDOWN(J12/2,0)+(0.99*VLOOKUP(ROUNDDOWN(J12/2,0),IF(E9="Claim Tax Free Threshold",NEWPAYGW.TFT,NEWPAYGW.NOTFT),4))-VLOOKUP(ROUNDDOWN(J12/2,0),IF(E9="Claim Tax Free Threshold",NEWPAYGW.TFT,NEWPAYGW.NOTFT),5))/(1-VLOOKUP(ROUNDDOWN(J12/2,0),IF(E9="Claim Tax Free Threshold",NEWPAYGW.TFT,NEWPAYGW.NOTFT),4)),0))*2,0) -> 0 | K14: =SUM(F14:J14) -> 0 | O14: blank
O15: blank
C16: 2 | E16: =Summary!E12 -> Employee 2 Name | O16: =IF(OR(K18<>0,K19<>0,K20<>0,K21<>0,K22<>0),0,"blank") -> blank
E17: Select | O17: =O16 -> blank
E18: Wages Paid from Accounting Records | K18: =SUM(F18:J18) -> 0 | O18: =O17 -> blank
E19: Less PAYG Withholding Payments to the ATO (if incl above) | K19: =SUM(F19:J19) -> 0 | O19: blank
E20: Net Wages | F20: =F18-F19 -> 0 | G20: =G18-G19 -> 0 | H20: 0 | I20: 0 | J20: 0 | K20: =SUM(F20:J20) -> 0 | O20: blank
E21: Add PAYG Withholding | F21: =IF(E17<>"Select",F22-F20,0) -> 0 | G21: =IF(E17<>"Select",G22-G20,0) -> 0 | H21: =IF(E17<>"Select",H22-H20,0) -> 0 | I21: =IF(E17<>"Select",I22-I20,0) -> 0 | J21: =IF(E17<>"Select",J22-J20,0) -> 0 | K21: =SUM(F21:J21) -> 0 | O21: blank
E22: Gross Wages | F22: =IF(E17<>"Select",(ROUND((ROUNDDOWN(F20/2,0)+(0.99*VLOOKUP(ROUNDDOWN(F20/2,0),IF(E17="Claim Tax Free Threshold",NEWPAYGW.TFT,NEWPAYGW.NOTFT),4))-VLOOKUP(ROUNDDOWN(F20/2,0),IF(E17="Claim Tax Free Threshold",NEWPAYGW.TFT,NEWPAYGW.NOTFT),5))/(1-VLOOKUP(ROUNDDOWN(F20/2,0),IF(E17="Claim Tax Free Threshold",NEWPAYGW.TFT,NEWPAYGW.NOTFT),4)),0))*2,0) -> 0 | G22: =IF(E17<>"Select",(ROUND((ROUNDDOWN(G20/2,0)+(0.99*VLOOKUP(ROUNDDOWN(G20/2,0),IF(E17="Claim Tax Free Threshold",NEWPAYGW.TFT,NEWPAYGW.NOTFT),4))-VLOOKUP(ROUNDDOWN(G20/2,0),IF(E17="Claim Tax Free Threshold",NEWPAYGW.TFT,NEWPAYGW.NOTFT),5))/(1-VLOOKUP(ROUNDDOWN(G20/2,0),IF(E17="Claim Tax Free Threshold",NEWPAYGW.TFT,NEWPAYGW.NOTFT),4)),0))*2,0) -> 0 | H22: =IF(E17<>"Select",(ROUND((ROUNDDOWN(H20/2,0)+(0.99*VLOOKUP(ROUNDDOWN(H20/2,0),IF(E17="Claim Tax Free Threshold",NEWPAYGW.TFT,NEWPAYGW.NOTFT),4))-VLOOKUP(ROUNDDOWN(H20/2,0),IF(E17="Claim Tax Free Threshold",NEWPAYGW.TFT,NEWPAYGW.NOTFT),5))/(1-VLOOKUP(ROUNDDOWN(H20/2,0),IF(E17="Claim Tax Free Threshold",NEWPAYGW.TFT,NEWPAYGW.NOTFT),4)),0))*2,0) -> 0 | I22: =IF(E17<>"Select",(ROUND((ROUNDDOWN(I20/2,0)+(0.99*VLOOKUP(ROUNDDOWN(I20/2,0),IF(E17="Claim Tax Free Threshold",NEWPAYGW.TFT,NEWPAYGW.NOTFT),4))-VLOOKUP(ROUNDDOWN(I20/2,0),IF(E17="Claim Tax Free Threshold",NEWPAYGW.TFT,NEWPAYGW.NOTFT),5))/(1-VLOOKUP(ROUNDDOWN(I20/2,0),IF(E17="Claim Tax Free Threshold",NEWPAYGW.TFT,NEWPAYGW.NOTFT),4)),0))*2,0) -> 0 | J22: =IF(E17<>"Select",(ROUND((ROUNDDOWN(J20/2,0)+(0.99*VLOOKUP(ROUNDDOWN(J20/2,0),IF(E17="Claim Tax Free Threshold",NEWPAYGW.TFT,NEWPAYGW.NOTFT),4))-VLOOKUP(ROUNDDOWN(J20/2,0),IF(E17="Claim Tax Free Threshold",NEWPAYGW.TFT,NEWPAYGW.NOTFT),5))/(1-VLOOKUP(ROUNDDOWN(J20/2,0),IF(E17="Claim Tax Free Threshold",NEWPAYGW.TFT,NEWPAYGW.NOTFT),4)),0))*2,0) -> 0 | K22: =SUM(F22:J22) -> 0 | O22: blank
O23: blank
C24: 3 | E24: =Summary!E13 -> Employee 3 Name | O24: =IF(OR(K26<>0,K27<>0,K28<>0,K29<>0,K30<>0),0,"blank") -> blank
E25: Select | O25: =O24 -> blank
E26: Wages Paid from Accounting Records | K26: =SUM(F26:J26) -> 0 | O26: =O25 -> blank
E27: Less PAYG Withholding Payments to the ATO (if incl above) | K27: =SUM(F27:J27) -> 0 | O27: blank
E28: Net Wages | F28: =F26-F27 -> 0 | G28: =G26-G27 -> 0 | H28: 0 | I28: 0 | J28: 0 | K28: =SUM(F28:J28) -> 0 | O28: blank
E29: Add PAYG Withholding | F29: =IF(E25<>"Select",F30-F28,0) -> 0 | G29: =IF(E25<>"Select",G30-G28,0) -> 0 | H29: =IF(E25<>"Select",H30-H28,0) -> 0 | I29: =IF(E25<>"Select",I30-I28,0) -> 0 | J29: =IF(E25<>"Select",J30-J28,0) -> 0 | K29: =SUM(F29:J29) -> 0 | O29: blank
E30: Gross Wages | F30: =IF(E25<>"Select",(ROUND((ROUNDDOWN(F28/2,0)+(0.99*VLOOKUP(ROUNDDOWN(F28/2,0),IF(E25="Claim Tax Free Threshold",NEWPAYGW.TFT,NEWPAYGW.NOTFT),4))-VLOOKUP(ROUNDDOWN(F28/2,0),IF(E25="Claim Tax Free Threshold",NEWPAYGW.TFT,NEWPAYGW.NOTFT),5))/(1-VLOOKUP(ROUNDDOWN(F28/2,0),IF(E25="Claim Tax Free Threshold",NEWPAYGW.TFT,NEWPAYGW.NOTFT),4)),0))*2,0) -> 0 | G30: =IF(E25<>"Select",(ROUND((ROUNDDOWN(G28/2,0)+(0.99*VLOOKUP(ROUNDDOWN(G28/2,0),IF(E25="Claim Tax Free Threshold",NEWPAYGW.TFT,NEWPAYGW.NOTFT),4))-VLOOKUP(ROUNDDOWN(G28/2,0),IF(E25="Claim Tax Free Threshold",NEWPAYGW.TFT,NEWPAYGW.NOTFT),5))/(1-VLOOKUP(ROUNDDOWN(G28/2,0),IF(E25="Claim Tax Free Threshold",NEWPAYGW.TFT,NEWPAYGW.NOTFT),4)),0))*2,0) -> 0 | H30: =IF(E25<>"Select",(ROUND((ROUNDDOWN(H28/2,0)+(0.99*VLOOKUP(ROUNDDOWN(H28/2,0),IF(E25="Claim Tax Free Threshold",NEWPAYGW.TFT,NEWPAYGW.NOTFT),4))-VLOOKUP(ROUNDDOWN(H28/2,0),IF(E25="Claim Tax Free Threshold",NEWPAYGW.TFT,NEWPAYGW.NOTFT),5))/(1-VLOOKUP(ROUNDDOWN(H28/2,0),IF(E25="Claim Tax Free Threshold",NEWPAYGW.TFT,NEWPAYGW.NOTFT),4)),0))*2,0) -> 0 | I30: =IF(E25<>"Select",(ROUND((ROUNDDOWN(I28/2,0)+(0.99*VLOOKUP(ROUNDDOWN(I28/2,0),IF(E25="Claim Tax Free Threshold",NEWPAYGW.TFT,NEWPAYGW.NOTFT),4))-VLOOKUP(ROUNDDOWN(I28/2,0),IF(E25="Claim Tax Free Threshold",NEWPAYGW.TFT,NEWPAYGW.NOTFT),5))/(1-VLOOKUP(ROUNDDOWN(I28/2,0),IF(E25="Claim Tax Free Threshold",NEWPAYGW.TFT,NEWPAYGW.NOTFT),4)),0))*2,0) -> 0 | J30: =IF(E25<>"Select",(ROUND((ROUNDDOWN(J28/2,0)+(0.99*VLOOKUP(ROUNDDOWN(J28/2,0),IF(E25="Claim Tax Free Threshold",NEWPAYGW.TFT,NEWPAYGW.NOTFT),4))-VLOOKUP(ROUNDDOWN(J28/2,0),IF(E25="Claim Tax Free Threshold",NEWPAYGW.TFT,NEWPAYGW.NOTFT),5))/(1-VLOOKUP(ROUNDDOWN(J28/2,0),IF(E25="Claim Tax Free Threshold",NEWPAYGW.TFT,NEWPAYGW.NOTFT),4)),0))*2,0) -> 0 | K30: =SUM(F30:J30) -> 0 | O30: blank
O31: blank
C32: 4 | E32: =Summary!E14 -> Employee 4 Name | O32: =IF(OR(K34<>0,K35<>0,K36<>0,K37<>0,K38<>0),0,"blank") -> blank
E33: Select | O33: =O32 -> blank
E34: Wages Paid from Accounting Records | K34: =SUM(F34:J34) -> 0 | O34: =O33 -> blank
E35: Less PAYG Withholding Payments to the ATO (if incl above) | K35: =SUM(F35:J35) -> 0 | O35: blank
E36: Net Wages | F36: =F34-F35 -> 0 | G36: =G34-G35 -> 0 | H36: 0 | I36: 0 | J36: 0 | K36: =SUM(F36:J36) -> 0 | O36: blank
E37: Add PAYG Withholding | F37: =IF(E33<>"Select",F38-F36,0) -> 0 | G37: =IF(E33<>"Select",G38-G36,0) -> 0 | H37: =IF(E33<>"Select",H38-H36,0) -> 0 | I37: =IF(E33<>"Select",I38-I36,0) -> 0 | J37: =IF(E33<>"Select",J38-J36,0) -> 0 | K37: =SUM(F37:J37) -> 0 | O37: blank
E38: Gross Wages | F38: =IF(E33<>"Select",(ROUND((ROUNDDOWN(F36/2,0)+(0.99*VLOOKUP(ROUNDDOWN(F36/2,0),IF(E33="Claim Tax Free Threshold",NEWPAYGW.TFT,NEWPAYGW.NOTFT),4))-VLOOKUP(ROUNDDOWN(F36/2,0),IF(E33="Claim Tax Free Threshold",NEWPAYGW.TFT,NEWPAYGW.NOTFT),5))/(1-VLOOKUP(ROUNDDOWN(F36/2,0),IF(E33="Claim Tax Free Threshold",NEWPAYGW.TFT,NEWPAYGW.NOTFT),4)),0))*2,0) -> 0 | G38: =IF(E33<>"Select",(ROUND((ROUNDDOWN(G36/2,0)+(0.99*VLOOKUP(ROUNDDOWN(G36/2,0),IF(E33="Claim Tax Free Threshold",NEWPAYGW.TFT,NEWPAYGW.NOTFT),4))-VLOOKUP(ROUNDDOWN(G36/2,0),IF(E33="Claim Tax Free Threshold",NEWPAYGW.TFT,NEWPAYGW.NOTFT),5))/(1-VLOOKUP(ROUNDDOWN(G36/2,0),IF(E33="Claim Tax Free Threshold",NEWPAYGW.TFT,NEWPAYGW.NOTFT),4)),0))*2,0) -> 0 | H38: =IF(E33<>"Select",(ROUND((ROUNDDOWN(H36/2,0)+(0.99*VLOOKUP(ROUNDDOWN(H36/2,0),IF(E33="Claim Tax Free Threshold",NEWPAYGW.TFT,NEWPAYGW.NOTFT),4))-VLOOKUP(ROUNDDOWN(H36/2,0),IF(E33="Claim Tax Free Threshold",NEWPAYGW.TFT,NEWPAYGW.NOTFT),5))/(1-VLOOKUP(ROUNDDOWN(H36/2,0),IF(E33="Claim Tax Free Threshold",NEWPAYGW.TFT,NEWPAYGW.NOTFT),4)),0))*2,0) -> 0 | I38: =IF(E33<>"Select",(ROUND((ROUNDDOWN(I36/2,0)+(0.99*VLOOKUP(ROUNDDOWN(I36/2,0),IF(E33="Claim Tax Free Threshold",NEWPAYGW.TFT,NEWPAYGW.NOTFT),4))-VLOOKUP(ROUNDDOWN(I36/2,0),IF(E33="Claim Tax Free Threshold",NEWPAYGW.TFT,NEWPAYGW.NOTFT),5))/(1-VLOOKUP(ROUNDDOWN(I36/2,0),IF(E33="Claim Tax Free Threshold",NEWPAYGW.TFT,NEWPAYGW.NOTFT),4)),0))*2,0) -> 0 | J38: =IF(E33<>"Select",(ROUND((ROUNDDOWN(J36/2,0)+(0.99*VLOOKUP(ROUNDDOWN(J36/2,0),IF(E33="Claim Tax Free Threshold",NEWPAYGW.TFT,NEWPAYGW.NOTFT),4))-VLOOKUP(ROUNDDOWN(J36/2,0),IF(E33="Claim Tax Free Threshold",NEWPAYGW.TFT,NEWPAYGW.NOTFT),5))/(1-VLOOKUP(ROUNDDOWN(J36/2,0),IF(E33="Claim Tax Free Threshold",NEWPAYGW.TFT,NEWPAYGW.NOTFT),4)),0))*2,0) -> 0 | K38: =SUM(F38:J38) -> 0 | O38: blank
O39: blank
C40: 5 | E40: =Summary!E15 -> Employee 5 Name | O40: =IF(OR(K42<>0,K43<>0,K44<>0,K45<>0,K46<>0),0,"blank") -> blank
E41: Select | O41: =O40 -> blank
E42: Wages Paid from Accounting Records | K42: =SUM(F42:J42) -> 0 | O42: =O41 -> blank
E43: Less PAYG Withholding Payments to the ATO (if incl above) | K43: =SUM(F43:J43) -> 0 | O43: blank
E44: Net Wages | F44: =F42-F43 -> 0 | G44: =G42-G43 -> 0 | H44: 0 | I44: 0 | J44: 0 | K44: =SUM(F44:J44) -> 0 | O44: blank
E45: Add PAYG Withholding | F45: =IF(E41<>"Select",F46-F44,0) -> 0 | G45: =IF(E41<>"Select",G46-G44,0) -> 0 | H45: =IF(E41<>"Select",H46-H44,0) -> 0 | I45: =IF(E41<>"Select",I46-I44,0) -> 0 | J45: =IF(E41<>"Select",J46-J44,0) -> 0 | K45: =SUM(F45:J45) -> 0 | O45: blank
E46: Gross Wages | F46: =IF(E41<>"Select",(ROUND((ROUNDDOWN(F44/2,0)+(0.99*VLOOKUP(ROUNDDOWN(F44/2,0),IF(E41="Claim Tax Free Threshold",NEWPAYGW.TFT,NEWPAYGW.NOTFT),4))-VLOOKUP(ROUNDDOWN(F44/2,0),IF(E41="Claim Tax Free Threshold",NEWPAYGW.TFT,NEWPAYGW.NOTFT),5))/(1-VLOOKUP(ROUNDDOWN(F44/2,0),IF(E41="Claim Tax Free Threshold",NEWPAYGW.TFT,NEWPAYGW.NOTFT),4)),0))*2,0) -> 0 | G46: =IF(E41<>"Select",(ROUND((ROUNDDOWN(G44/2,0)+(0.99*VLOOKUP(ROUNDDOWN(G44/2,0),IF(E41="Claim Tax Free Threshold",NEWPAYGW.TFT,NEWPAYGW.NOTFT),4))-VLOOKUP(ROUNDDOWN(G44/2,0),IF(E41="Claim Tax Free Threshold",NEWPAYGW.TFT,NEWPAYGW.NOTFT),5))/(1-VLOOKUP(ROUNDDOWN(G44/2,0),IF(E41="Claim Tax Free Threshold",NEWPAYGW.TFT,NEWPAYGW.NOTFT),4)),0))*2,0) -> 0 | H46: =IF(E41<>"Select",(ROUND((ROUNDDOWN(H44/2,0)+(0.99*VLOOKUP(ROUNDDOWN(H44/2,0),IF(E41="Claim Tax Free Threshold",NEWPAYGW.TFT,NEWPAYGW.NOTFT),4))-VLOOKUP(ROUNDDOWN(H44/2,0),IF(E41="Claim Tax Free Threshold",NEWPAYGW.TFT,NEWPAYGW.NOTFT),5))/(1-VLOOKUP(ROUNDDOWN(H44/2,0),IF(E41="Claim Tax Free Threshold",NEWPAYGW.TFT,NEWPAYGW.NOTFT),4)),0))*2,0) -> 0 | I46: =IF(E41<>"Select",(ROUND((ROUNDDOWN(I44/2,0)+(0.99*VLOOKUP(ROUNDDOWN(I44/2,0),IF(E41="Claim Tax Free Threshold",NEWPAYGW.TFT,NEWPAYGW.NOTFT),4))-VLOOKUP(ROUNDDOWN(I44/2,0),IF(E41="Claim Tax Free Threshold",NEWPAYGW.TFT,NEWPAYGW.NOTFT),5))/(1-VLOOKUP(ROUNDDOWN(I44/2,0),IF(E41="Claim Tax Free Threshold",NEWPAYGW.TFT,NEWPAYGW.NOTFT),4)),0))*2,0) -> 0 | J46: =IF(E41<>"Select",(ROUND((ROUNDDOWN(J44/2,0)+(0.99*VLOOKUP(ROUNDDOWN(J44/2,0),IF(E41="Claim Tax Free Threshold",NEWPAYGW.TFT,NEWPAYGW.NOTFT),4))-VLOOKUP(ROUNDDOWN(J44/2,0),IF(E41="Claim Tax Free Threshold",NEWPAYGW.TFT,NEWPAYGW.NOTFT),5))/(1-VLOOKUP(ROUNDDOWN(J44/2,0),IF(E41="Claim Tax Free Threshold",NEWPAYGW.TFT,NEWPAYGW.NOTFT),4)),0))*2,0) -> 0 | K46: =SUM(F46:J46) -> 0 | O46: blank
O47: blank
C48: 6 | E48: =Summary!E16 -> Employee 6 Name | O48: =IF(OR(K50<>0,K51<>0,K52<>0,K53<>0,K54<>0),0,"blank") -> blank
E49: Select | O49: =O48 -> blank
E50: Wages Paid from Accounting Records | K50: =SUM(F50:J50) -> 0 | O50: =O49 -> blank
E51: Less PAYG Withholding Payments to the ATO (if incl above) | K51: =SUM(F51:J51) -> 0 | O51: blank
E52: Net Wages | F52: =F50-F51 -> 0 | G52: =G50-G51 -> 0 | H52: 0 | I52: 0 | J52: 0 | K52: =SUM(F52:J52) -> 0 | O52: blank
E53: Add PAYG Withholding | F53: =IF(E49<>"Select",F54-F52,0) -> 0 | G53: =IF(E49<>"Select",G54-G52,0) -> 0 | H53: =IF(E49<>"Select",H54-H52,0) -> 0 | I53: =IF(E49<>"Select",I54-I52,0) -> 0 | J53: =IF(E49<>"Select",J54-J52,0) -> 0 | K53: =SUM(F53:J53) -> 0 | O53: blank
E54: Gross Wages | F54: =IF(E49<>"Select",(ROUND((ROUNDDOWN(F52/2,0)+(0.99*VLOOKUP(ROUNDDOWN(F52/2,0),IF(E49="Claim Tax Free Threshold",NEWPAYGW.TFT,NEWPAYGW.NOTFT),4))-VLOOKUP(ROUNDDOWN(F52/2,0),IF(E49="Claim Tax Free Threshold",NEWPAYGW.TFT,NEWPAYGW.NOTFT),5))/(1-VLOOKUP(ROUNDDOWN(F52/2,0),IF(E49="Claim Tax Free Threshold",NEWPAYGW.TFT,NEWPAYGW.NOTFT),4)),0))*2,0) -> 0 | G54: =IF(E49<>"Select",(ROUND((ROUNDDOWN(G52/2,0)+(0.99*VLOOKUP(ROUNDDOWN(G52/2,0),IF(E49="Claim Tax Free Threshold",NEWPAYGW.TFT,NEWPAYGW.NOTFT),4))-VLOOKUP(ROUNDDOWN(G52/2,0),IF(E49="Claim Tax Free Threshold",NEWPAYGW.TFT,NEWPAYGW.NOTFT),5))/(1-VLOOKUP(ROUNDDOWN(G52/2,0),IF(E49="Claim Tax Free Threshold",NEWPAYGW.TFT,NEWPAYGW.NOTFT),4)),0))*2,0) -> 0 | H54: =IF(E49<>"Select",(ROUND((ROUNDDOWN(H52/2,0)+(0.99*VLOOKUP(ROUNDDOWN(H52/2,0),IF(E49="Claim Tax Free Threshold",NEWPAYGW.TFT,NEWPAYGW.NOTFT),4))-VLOOKUP(ROUNDDOWN(H52/2,0),IF(E49="Claim Tax Free Threshold",NEWPAYGW.TFT,NEWPAYGW.NOTFT),5))/(1-VLOOKUP(ROUNDDOWN(H52/2,0),IF(E49="Claim Tax Free Threshold",NEWPAYGW.TFT,NEWPAYGW.NOTFT),4)),0))*2,0) -> 0 | I54: =IF(E49<>"Select",(ROUND((ROUNDDOWN(I52/2,0)+(0.99*VLOOKUP(ROUNDDOWN(I52/2,0),IF(E49="Claim Tax Free Threshold",NEWPAYGW.TFT,NEWPAYGW.NOTFT),4))-VLOOKUP(ROUNDDOWN(I52/2,0),IF(E49="Claim Tax Free Threshold",NEWPAYGW.TFT,NEWPAYGW.NOTFT),5))/(1-VLOOKUP(ROUNDDOWN(I52/2,0),IF(E49="Claim Tax Free Threshold",NEWPAYGW.TFT,NEWPAYGW.NOTFT),4)),0))*2,0) -> 0 | J54: =IF(E49<>"Select",(ROUND((ROUNDDOWN(J52/2,0)+(0.99*VLOOKUP(ROUNDDOWN(J52/2,0),IF(E49="Claim Tax Free Threshold",NEWPAYGW.TFT,NEWPAYGW.NOTFT),4))-VLOOKUP(ROUNDDOWN(J52/2,0),IF(E49="Claim Tax Free Threshold",NEWPAYGW.TFT,NEWPAYGW.NOTFT),5))/(1-VLOOKUP(ROUNDDOWN(J52/2,0),IF(E49="Claim Tax Free Threshold",NEWPAYGW.TFT,NEWPAYGW.NOTFT),4)),0))*2,0) -> 0 | K54: =SUM(F54:J54) -> 0 | O54: blank
O55: blank
C56: 7 | E56: =Summary!E17 -> Employee 7 Name | O56: =IF(OR(K58<>0,K59<>0,K60<>0,K61<>0,K62<>0),0,"blank") -> blank
E57: Select | O57: =O56 -> blank
E58: Wages Paid from Accounting Records | K58: =SUM(F58:J58) -> 0 | O58: =O57 -> blank
E59: Less PAYG Withholding Payments to the ATO (if incl above) | K59: =SUM(F59:J59) -> 0 | O59: blank
E60: Net Wages | F60: =F58-F59 -> 0 | G60: =G58-G59 -> 0 | H60: 0 | I60: 0 | J60: 0 | K60: =SUM(F60:J60) -> 0 | O60: blank
E61: Add PAYG Withholding | F61: =IF(E57<>"Select",F62-F60,0) -> 0 | G61: =IF(E57<>"Select",G62-G60,0) -> 0 | H61: =IF(E57<>"Select",H62-H60,0) -> 0 | I61: =IF(E57<>"Select",I62-I60,0) -> 0 | J61: =IF(E57<>"Select",J62-J60,0) -> 0 | K61: =SUM(F61:J61) -> 0 | O61: blank
E62: Gross Wages | F62: =IF(E57<>"Select",(ROUND((ROUNDDOWN(F60/2,0)+(0.99*VLOOKUP(ROUNDDOWN(F60/2,0),IF(E57="Claim Tax Free Threshold",NEWPAYGW.TFT,NEWPAYGW.NOTFT),4))-VLOOKUP(ROUNDDOWN(F60/2,0),IF(E57="Claim Tax Free Threshold",NEWPAYGW.TFT,NEWPAYGW.NOTFT),5))/(1-VLOOKUP(ROUNDDOWN(F60/2,0),IF(E57="Claim Tax Free Threshold",NEWPAYGW.TFT,NEWPAYGW.NOTFT),4)),0))*2,0) -> 0 | G62: =IF(E57<>"Select",(ROUND((ROUNDDOWN(G60/2,0)+(0.99*VLOOKUP(ROUNDDOWN(G60/2,0),IF(E57="Claim Tax Free Threshold",NEWPAYGW.TFT,NEWPAYGW.NOTFT),4))-VLOOKUP(ROUNDDOWN(G60/2,0),IF(E57="Claim Tax Free Threshold",NEWPAYGW.TFT,NEWPAYGW.NOTFT),5))/(1-VLOOKUP(ROUNDDOWN(G60/2,0),IF(E57="Claim Tax Free Threshold",NEWPAYGW.TFT,NEWPAYGW.NOTFT),4)),0))*2,0) -> 0 | H62: =IF(E57<>"Select",(ROUND((ROUNDDOWN(H60/2,0)+(0.99*VLOOKUP(ROUNDDOWN(H60/2,0),IF(E57="Claim Tax Free Threshold",NEWPAYGW.TFT,NEWPAYGW.NOTFT),4))-VLOOKUP(ROUNDDOWN(H60/2,0),IF(E57="Claim Tax Free Threshold",NEWPAYGW.TFT,NEWPAYGW.NOTFT),5))/(1-VLOOKUP(ROUNDDOWN(H60/2,0),IF(E57="Claim Tax Free Threshold",NEWPAYGW.TFT,NEWPAYGW.NOTFT),4)),0))*2,0) -> 0 | I62: =IF(E57<>"Select",(ROUND((ROUNDDOWN(I60/2,0)+(0.99*VLOOKUP(ROUNDDOWN(I60/2,0),IF(E57="Claim Tax Free Threshold",NEWPAYGW.TFT,NEWPAYGW.NOTFT),4))-VLOOKUP(ROUNDDOWN(I60/2,0),IF(E57="Claim Tax Free Threshold",NEWPAYGW.TFT,NEWPAYGW.NOTFT),5))/(1-VLOOKUP(ROUNDDOWN(I60/2,0),IF(E57="Claim Tax Free Threshold",NEWPAYGW.TFT,NEWPAYGW.NOTFT),4)),0))*2,0) -> 0 | J62: =IF(E57<>"Select",(ROUND((ROUNDDOWN(J60/2,0)+(0.99*VLOOKUP(ROUNDDOWN(J60/2,0),IF(E57="Claim Tax Free Threshold",NEWPAYGW.TFT,NEWPAYGW.NOTFT),4))-VLOOKUP(ROUNDDOWN(J60/2,0),IF(E57="Claim Tax Free Threshold",NEWPAYGW.TFT,NEWPAYGW.NOTFT),5))/(1-VLOOKUP(ROUNDDOWN(J60/2,0),IF(E57="Claim Tax Free Threshold",NEWPAYGW.TFT,NEWPAYGW.NOTFT),4)),0))*2,0) -> 0 | K62: =SUM(F62:J62) -> 0 | O62: blank
O63: blank
C64: 8 | E64: =Summary!E18 -> Employee 8 Name | O64: =IF(OR(K66<>0,K67<>0,K68<>0,K69<>0,K70<>0),0,"blank") -> blank
E65: Select | O65: =O64 -> blank
E66: Wages Paid from Accounting Records | K66: =SUM(F66:J66) -> 0 | O66: =O65 -> blank
E67: Less PAYG Withholding Payments to the ATO (if incl above) | K67: =SUM(F67:J67) -> 0 | O67: blank
E68: Net Wages | F68: =F66-F67 -> 0 | G68: =G66-G67 -> 0 | H68: 0 | I68: 0 | J68: 0 | K68: =SUM(F68:J68) -> 0 | O68: blank
E69: Add PAYG Withholding | F69: =IF(E65<>"Select",F70-F68,0) -> 0 | G69: =IF(E65<>"Select",G70-G68,0) -> 0 | H69: =IF(E65<>"Select",H70-H68,0) -> 0 | I69: =IF(E65<>"Select",I70-I68,0) -> 0 | J69: =IF(E65<>"Select",J70-J68,0) -> 0 | K69: =SUM(F69:J69) -> 0 | O69: blank
E70: Gross Wages | F70: =IF(E65<>"Select",(ROUND((ROUNDDOWN(F68/2,0)+(0.99*VLOOKUP(ROUNDDOWN(F68/2,0),IF(E65="Claim Tax Free Threshold",NEWPAYGW.TFT,NEWPAYGW.NOTFT),4))-VLOOKUP(ROUNDDOWN(F68/2,0),IF(E65="Claim Tax Free Threshold",NEWPAYGW.TFT,NEWPAYGW.NOTFT),5))/(1-VLOOKUP(ROUNDDOWN(F68/2,0),IF(E65="Claim Tax Free Threshold",NEWPAYGW.TFT,NEWPAYGW.NOTFT),4)),0))*2,0) -> 0 | G70: =IF(E65<>"Select",(ROUND((ROUNDDOWN(G68/2,0)+(0.99*VLOOKUP(ROUNDDOWN(G68/2,0),IF(E65="Claim Tax Free Threshold",NEWPAYGW.TFT,NEWPAYGW.NOTFT),4))-VLOOKUP(ROUNDDOWN(G68/2,0),IF(E65="Claim Tax Free Threshold",NEWPAYGW.TFT,NEWPAYGW.NOTFT),5))/(1-VLOOKUP(ROUNDDOWN(G68/2,0),IF(E65="Claim Tax Free Threshold",NEWPAYGW.TFT,NEWPAYGW.NOTFT),4)),0))*2,0) -> 0 | H70: =IF(E65<>"Select",(ROUND((ROUNDDOWN(H68/2,0)+(0.99*VLOOKUP(ROUNDDOWN(H68/2,0),IF(E65="Claim Tax Free Threshold",NEWPAYGW.TFT,NEWPAYGW.NOTFT),4))-VLOOKUP(ROUNDDOWN(H68/2,0),IF(E65="Claim Tax Free Threshold",NEWPAYGW.TFT,NEWPAYGW.NOTFT),5))/(1-VLOOKUP(ROUNDDOWN(H68/2,0),IF(E65="Claim Tax Free Threshold",NEWPAYGW.TFT,NEWPAYGW.NOTFT),4)),0))*2,0) -> 0 | I70: =IF(E65<>"Select",(ROUND((ROUNDDOWN(I68/2,0)+(0.99*VLOOKUP(ROUNDDOWN(I68/2,0),IF(E65="Claim Tax Free Threshold",NEWPAYGW.TFT,NEWPAYGW.NOTFT),4))-VLOOKUP(ROUNDDOWN(I68/2,0),IF(E65="Claim Tax Free Threshold",NEWPAYGW.TFT,NEWPAYGW.NOTFT),5))/(1-VLOOKUP(ROUNDDOWN(I68/2,0),IF(E65="Claim Tax Free Threshold",NEWPAYGW.TFT,NEWPAYGW.NOTFT),4)),0))*2,0) -> 0 | J70: =IF(E65<>"Select",(ROUND((ROUNDDOWN(J68/2,0)+(0.99*VLOOKUP(ROUNDDOWN(J68/2,0),IF(E65="Claim Tax Free Threshold",NEWPAYGW.TFT,NEWPAYGW.NOTFT),4))-VLOOKUP(ROUNDDOWN(J68/2,0),IF(E65="Claim Tax Free Threshold",NEWPAYGW.TFT,NEWPAYGW.NOTFT),5))/(1-VLOOKUP(ROUNDDOWN(J68/2,0),IF(E65="Claim Tax Free Threshold",NEWPAYGW.TFT,NEWPAYGW.NOTFT),4)),0))*2,0) -> 0 | K70: =SUM(F70:J70) -> 0 | O70: blank
O71: blank
C72: 9 | E72: =Summary!E19 -> Employee 9 Name | O72: =IF(OR(K74<>0,K75<>0,K76<>0,K77<>0,K78<>0),0,"blank") -> blank
E73: Select | O73: =O72 -> blank
E74: Wages Paid from Accounting Records | K74: =SUM(F74:J74) -> 0 | O74: =O73 -> blank
E75: Less PAYG Withholding Payments to the ATO (if incl above) | K75: =SUM(F75:J75) -> 0 | O75: blank
E76: Net Wages | F76: =F74-F75 -> 0 | G76: =G74-G75 -> 0 | H76: 0 | I76: 0 | J76: 0 | K76: =SUM(F76:J76) -> 0 | O76: blank
E77: Add PAYG Withholding | F77: =IF(E73<>"Select",F78-F76,0) -> 0 | G77: =IF(E73<>"Select",G78-G76,0) -> 0 | H77: =IF(E73<>"Select",H78-H76,0) -> 0 | I77: =IF(E73<>"Select",I78-I76,0) -> 0 | J77: =IF(E73<>"Select",J78-J76,0) -> 0 | K77: =SUM(F77:J77) -> 0 | O77: blank
E78: Gross Wages | F78: =IF(E73<>"Select",(ROUND((ROUNDDOWN(F76/2,0)+(0.99*VLOOKUP(ROUNDDOWN(F76/2,0),IF(E73="Claim Tax Free Threshold",NEWPAYGW.TFT,NEWPAYGW.NOTFT),4))-VLOOKUP(ROUNDDOWN(F76/2,0),IF(E73="Claim Tax Free Threshold",NEWPAYGW.TFT,NEWPAYGW.NOTFT),5))/(1-VLOOKUP(ROUNDDOWN(F76/2,0),IF(E73="Claim Tax Free Threshold",NEWPAYGW.TFT,NEWPAYGW.NOTFT),4)),0))*2,0) -> 0 | G78: =IF(E73<>"Select",(ROUND((ROUNDDOWN(G76/2,0)+(0.99*VLOOKUP(ROUNDDOWN(G76/2,0),IF(E73="Claim Tax Free Threshold",NEWPAYGW.TFT,NEWPAYGW.NOTFT),4))-VLOOKUP(ROUNDDOWN(G76/2,0),IF(E73="Claim Tax Free Threshold",NEWPAYGW.TFT,NEWPAYGW.NOTFT),5))/(1-VLOOKUP(ROUNDDOWN(G76/2,0),IF(E73="Claim Tax Free Threshold",NEWPAYGW.TFT,NEWPAYGW.NOTFT),4)),0))*2,0) -> 0 | H78: =IF(E73<>"Select",(ROUND((ROUNDDOWN(H76/2,0)+(0.99*VLOOKUP(ROUNDDOWN(H76/2,0),IF(E73="Claim Tax Free Threshold",NEWPAYGW.TFT,NEWPAYGW.NOTFT),4))-VLOOKUP(ROUNDDOWN(H76/2,0),IF(E73="Claim Tax Free Threshold",NEWPAYGW.TFT,NEWPAYGW.NOTFT),5))/(1-VLOOKUP(ROUNDDOWN(H76/2,0),IF(E73="Claim Tax Free Threshold",NEWPAYGW.TFT,NEWPAYGW.NOTFT),4)),0))*2,0) -> 0 | I78: =IF(E73<>"Select",(ROUND((ROUNDDOWN(I76/2,0)+(0.99*VLOOKUP(ROUNDDOWN(I76/2,0),IF(E73="Claim Tax Free Threshold",NEWPAYGW.TFT,NEWPAYGW.NOTFT),4))-VLOOKUP(ROUNDDOWN(I76/2,0),IF(E73="Claim Tax Free Threshold",NEWPAYGW.TFT,NEWPAYGW.NOTFT),5))/(1-VLOOKUP(ROUNDDOWN(I76/2,0),IF(E73="Claim Tax Free Threshold",NEWPAYGW.TFT,NEWPAYGW.NOTFT),4)),0))*2,0) -> 0 | J78: =IF(E73<>"Select",(ROUND((ROUNDDOWN(J76/2,0)+(0.99*VLOOKUP(ROUNDDOWN(J76/2,0),IF(E73="Claim Tax Free Threshold",NEWPAYGW.TFT,NEWPAYGW.NOTFT),4))-VLOOKUP(ROUNDDOWN(J76/2,0),IF(E73="Claim Tax Free Threshold",NEWPAYGW.TFT,NEWPAYGW.NOTFT),5))/(1-VLOOKUP(ROUNDDOWN(J76/2,0),IF(E73="Claim Tax Free Threshold",NEWPAYGW.TFT,NEWPAYGW.NOTFT),4)),0))*2,0) -> 0 | K78: =SUM(F78:J78) -> 0 | O78: blank
O79: blank
C80: 10 | E80: =Summary!E20 -> Employee 10 Name | O80: =IF(OR(K82<>0,K83<>0,K84<>0,K85<>0,K86<>0),0,"blank") -> blank
E81: Select | O81: =O80 -> blank
E82: Wages Paid from Accounting Records | K82: =SUM(F82:J82) -> 0 | O82: =O81 -> blank
E83: Less PAYG Withholding Payments to the ATO (if incl above) | K83: =SUM(F83:J83) -> 0 | O83: blank
E84: Net Wages | F84: =F82-F83 -> 0 | G84: =G82-G83 -> 0 | H84: 0 | I84: 0 | J84: 0 | K84: =SUM(F84:J84) -> 0 | O84: blank
E85: Add PAYG Withholding | F85: =IF(E81<>"Select",F86-F84,0) -> 0 | G85: =IF(E81<>"Select",G86-G84,0) -> 0 | H85: =IF(E81<>"Select",H86-H84,0) -> 0 | I85: =IF(E81<>"Select",I86-I84,0) -> 0 | J85: =IF(E81<>"Select",J86-J84,0) -> 0 | K85: =SUM(F85:J85) -> 0 | O85: blank
E86: Gross Wages | F86: =IF(E81<>"Select",(ROUND((ROUNDDOWN(F84/2,0)+(0.99*VLOOKUP(ROUNDDOWN(F84/2,0),IF(E81="Claim Tax Free Threshold",NEWPAYGW.TFT,NEWPAYGW.NOTFT),4))-VLOOKUP(ROUNDDOWN(F84/2,0),IF(E81="Claim Tax Free Threshold",NEWPAYGW.TFT,NEWPAYGW.NOTFT),5))/(1-VLOOKUP(ROUNDDOWN(F84/2,0),IF(E81="Claim Tax Free Threshold",NEWPAYGW.TFT,NEWPAYGW.NOTFT),4)),0))*2,0) -> 0 | G86: =IF(E81<>"Select",(ROUND((ROUNDDOWN(G84/2,0)+(0.99*VLOOKUP(ROUNDDOWN(G84/2,0),IF(E81="Claim Tax Free Threshold",NEWPAYGW.TFT,NEWPAYGW.NOTFT),4))-VLOOKUP(ROUNDDOWN(G84/2,0),IF(E81="Claim Tax Free Threshold",NEWPAYGW.TFT,NEWPAYGW.NOTFT),5))/(1-VLOOKUP(ROUNDDOWN(G84/2,0),IF(E81="Claim Tax Free Threshold",NEWPAYGW.TFT,NEWPAYGW.NOTFT),4)),0))*2,0) -> 0 | H86: =IF(E81<>"Select",(ROUND((ROUNDDOWN(H84/2,0)+(0.99*VLOOKUP(ROUNDDOWN(H84/2,0),IF(E81="Claim Tax Free Threshold",NEWPAYGW.TFT,NEWPAYGW.NOTFT),4))-VLOOKUP(ROUNDDOWN(H84/2,0),IF(E81="Claim Tax Free Threshold",NEWPAYGW.TFT,NEWPAYGW.NOTFT),5))/(1-VLOOKUP(ROUNDDOWN(H84/2,0),IF(E81="Claim Tax Free Threshold",NEWPAYGW.TFT,NEWPAYGW.NOTFT),4)),0))*2,0) -> 0 | I86: =IF(E81<>"Select",(ROUND((ROUNDDOWN(I84/2,0)+(0.99*VLOOKUP(ROUNDDOWN(I84/2,0),IF(E81="Claim Tax Free Threshold",NEWPAYGW.TFT,NEWPAYGW.NOTFT),4))-VLOOKUP(ROUNDDOWN(I84/2,0),IF(E81="Claim Tax Free Threshold",NEWPAYGW.TFT,NEWPAYGW.NOTFT),5))/(1-VLOOKUP(ROUNDDOWN(I84/2,0),IF(E81="Claim Tax Free Threshold",NEWPAYGW.TFT,NEWPAYGW.NOTFT),4)),0))*2,0) -> 0 | J86: =IF(E81<>"Select",(ROUND((ROUNDDOWN(J84/2,0)+(0.99*VLOOKUP(ROUNDDOWN(J84/2,0),IF(E81="Claim Tax Free Threshold",NEWPAYGW.TFT,NEWPAYGW.NOTFT),4))-VLOOKUP(ROUNDDOWN(J84/2,0),IF(E81="Claim Tax Free Threshold",NEWPAYGW.TFT,NEWPAYGW.NOTFT),5))/(1-VLOOKUP(ROUNDDOWN(J84/2,0),IF(E81="Claim Tax Free Threshold",NEWPAYGW.TFT,NEWPAYGW.NOTFT),4)),0))*2,0) -> 0 | K86: =SUM(F86:J86) -> 0 | O86: blank
O87: blank
E89: Monthly Summary
E90: Gross Wages | F90: =F14+F22+F30+F38+F46+F54+F62+F70+F78+F86 -> 0 | G90: =G14+G22+G30+G38+G46+G54+G62+G70+G78+G86 -> 0 | H90: 0 | I90: 0 | J90: 0 | K90: =SUM(F90:J90) -> 0
E91: PAYG Withholding | F91: =F13+F21+F29+F37+F45+F53+F61+F69+F77+F85 -> 0 | G91: =G13+G21+G29+G37+G45+G53+G61+G69+G77+G85 -> 0 | H91: 0 | I91: 0 | J91: 0 | K91: =SUM(F91:J91) -> 0
E92: Net Wages | F92: =F90-F91 -> 0 | G92: =G90-G91 -> 0 | H92: 0 | I92: 0 | J92: 0 | K92: 0
E95: PAYG withholding calculations are for payments of fortnightly wages to resident individuals who have quoted their TFN and are not claiming any Medicare Levy reduction
O96: ="blank" -> blank

Sheet Apr
E1: Gross Pay Estimate - Weekly Wages | K1: =Summary!O2 -> Entity Name | O1: HIDE
E2: =CONCATENATE("Wages for ",TEXT(Month10End,"mmmm yyyy")) -> Wages for April 2018 | K2: =Summary!O3 -> Preparer Name
F5: Wages for Fortnight Ended
K7: Total
C8: 1 | E8: =Summary!E11 -> Employee 1 Name | O8: =IF(OR(K10<>0,K11<>0,K12<>0,K13<>0,K14<>0),0,"blank") -> blank
E9: Select | O9: =O8 -> blank
E10: Wages Paid from Accounting Records | K10: =SUM(F10:J10) -> 0 | O10: =O9 -> blank
E11: Less PAYG Withholding Payments to the ATO (if incl above) | K11: =SUM(F11:J11) -> 0 | O11: blank
E12: Net Wages | F12: =F10-F11 -> 0 | G12: =G10-G11 -> 0 | H12: 0 | I12: 0 | J12: 0 | K12: =SUM(F12:J12) -> 0 | O12: blank
E13: Add PAYG Withholding | F13: =IF(E9<>"Select",F14-F12,0) -> 0 | G13: =IF(E9<>"Select",G14-G12,0) -> 0 | H13: =IF(E9<>"Select",H14-H12,0) -> 0 | I13: =IF(E9<>"Select",I14-I12,0) -> 0 | J13: =IF(E9<>"Select",J14-J12,0) -> 0 | K13: =SUM(F13:J13) -> 0 | O13: blank
E14: Gross Wages | F14: =IF(E9<>"Select",(ROUND((ROUNDDOWN(F12/2,0)+(0.99*VLOOKUP(ROUNDDOWN(F12/2,0),IF(E9="Claim Tax Free Threshold",NEWPAYGW.TFT,NEWPAYGW.NOTFT),4))-VLOOKUP(ROUNDDOWN(F12/2,0),IF(E9="Claim Tax Free Threshold",NEWPAYGW.TFT,NEWPAYGW.NOTFT),5))/(1-VLOOKUP(ROUNDDOWN(F12/2,0),IF(E9="Claim Tax Free Threshold",NEWPAYGW.TFT,NEWPAYGW.NOTFT),4)),0))*2,0) -> 0 | G14: =IF(E9<>"Select",(ROUND((ROUNDDOWN(G12/2,0)+(0.99*VLOOKUP(ROUNDDOWN(G12/2,0),IF(E9="Claim Tax Free Threshold",NEWPAYGW.TFT,NEWPAYGW.NOTFT),4))-VLOOKUP(ROUNDDOWN(G12/2,0),IF(E9="Claim Tax Free Threshold",NEWPAYGW.TFT,NEWPAYGW.NOTFT),5))/(1-VLOOKUP(ROUNDDOWN(G12/2,0),IF(E9="Claim Tax Free Threshold",NEWPAYGW.TFT,NEWPAYGW.NOTFT),4)),0))*2,0) -> 0 | H14: =IF(E9<>"Select",(ROUND((ROUNDDOWN(H12/2,0)+(0.99*VLOOKUP(ROUNDDOWN(H12/2,0),IF(E9="Claim Tax Free Threshold",NEWPAYGW.TFT,NEWPAYGW.NOTFT),4))-VLOOKUP(ROUNDDOWN(H12/2,0),IF(E9="Claim Tax Free Threshold",NEWPAYGW.TFT,NEWPAYGW.NOTFT),5))/(1-VLOOKUP(ROUNDDOWN(H12/2,0),IF(E9="Claim Tax Free Threshold",NEWPAYGW.TFT,NEWPAYGW.NOTFT),4)),0))*2,0) -> 0 | I14: =IF(E9<>"Select",(ROUND((ROUNDDOWN(I12/2,0)+(0.99*VLOOKUP(ROUNDDOWN(I12/2,0),IF(E9="Claim Tax Free Threshold",NEWPAYGW.TFT,NEWPAYGW.NOTFT),4))-VLOOKUP(ROUNDDOWN(I12/2,0),IF(E9="Claim Tax Free Threshold",NEWPAYGW.TFT,NEWPAYGW.NOTFT),5))/(1-VLOOKUP(ROUNDDOWN(I12/2,0),IF(E9="Claim Tax Free Threshold",NEWPAYGW.TFT,NEWPAYGW.NOTFT),4)),0))*2,0) -> 0 | J14: =IF(E9<>"Select",(ROUND((ROUNDDOWN(J12/2,0)+(0.99*VLOOKUP(ROUNDDOWN(J12/2,0),IF(E9="Claim Tax Free Threshold",NEWPAYGW.TFT,NEWPAYGW.NOTFT),4))-VLOOKUP(ROUNDDOWN(J12/2,0),IF(E9="Claim Tax Free Threshold",NEWPAYGW.TFT,NEWPAYGW.NOTFT),5))/(1-VLOOKUP(ROUNDDOWN(J12/2,0),IF(E9="Claim Tax Free Threshold",NEWPAYGW.TFT,NEWPAYGW.NOTFT),4)),0))*2,0) -> 0 | K14: =SUM(F14:J14) -> 0 | O14: blank
O15: blank
C16: 2 | E16: =Summary!E12 -> Employee 2 Name | O16: =IF(OR(K18<>0,K19<>0,K20<>0,K21<>0,K22<>0),0,"blank") -> blank
E17: Select | O17: =O16 -> blank
E18: Wages Paid from Accounting Records | K18: =SUM(F18:J18) -> 0 | O18: =O17 -> blank
E19: Less PAYG Withholding Payments to the ATO (if incl above) | K19: =SUM(F19:J19) -> 0 | O19: blank
E20: Net Wages | F20: =F18-F19 -> 0 | G20: =G18-G19 -> 0 | H20: 0 | I20: 0 | J20: 0 | K20: =SUM(F20:J20) -> 0 | O20: blank
E21: Add PAYG Withholding | F21: =IF(E17<>"Select",F22-F20,0) -> 0 | G21: =IF(E17<>"Select",G22-G20,0) -> 0 | H21: =IF(E17<>"Select",H22-H20,0) -> 0 | I21: =IF(E17<>"Select",I22-I20,0) -> 0 | J21: =IF(E17<>"Select",J22-J20,0) -> 0 | K21: =SUM(F21:J21) -> 0 | O21: blank
E22: Gross Wages | F22: =IF(E17<>"Select",(ROUND((ROUNDDOWN(F20/2,0)+(0.99*VLOOKUP(ROUNDDOWN(F20/2,0),IF(E17="Claim Tax Free Threshold",NEWPAYGW.TFT,NEWPAYGW.NOTFT),4))-VLOOKUP(ROUNDDOWN(F20/2,0),IF(E17="Claim Tax Free Threshold",NEWPAYGW.TFT,NEWPAYGW.NOTFT),5))/(1-VLOOKUP(ROUNDDOWN(F20/2,0),IF(E17="Claim Tax Free Threshold",NEWPAYGW.TFT,NEWPAYGW.NOTFT),4)),0))*2,0) -> 0 | G22: =IF(E17<>"Select",(ROUND((ROUNDDOWN(G20/2,0)+(0.99*VLOOKUP(ROUNDDOWN(G20/2,0),IF(E17="Claim Tax Free Threshold",NEWPAYGW.TFT,NEWPAYGW.NOTFT),4))-VLOOKUP(ROUNDDOWN(G20/2,0),IF(E17="Claim Tax Free Threshold",NEWPAYGW.TFT,NEWPAYGW.NOTFT),5))/(1-VLOOKUP(ROUNDDOWN(G20/2,0),IF(E17="Claim Tax Free Threshold",NEWPAYGW.TFT,NEWPAYGW.NOTFT),4)),0))*2,0) -> 0 | H22: =IF(E17<>"Select",(ROUND((ROUNDDOWN(H20/2,0)+(0.99*VLOOKUP(ROUNDDOWN(H20/2,0),IF(E17="Claim Tax Free Threshold",NEWPAYGW.TFT,NEWPAYGW.NOTFT),4))-VLOOKUP(ROUNDDOWN(H20/2,0),IF(E17="Claim Tax Free Threshold",NEWPAYGW.TFT,NEWPAYGW.NOTFT),5))/(1-VLOOKUP(ROUNDDOWN(H20/2,0),IF(E17="Claim Tax Free Threshold",NEWPAYGW.TFT,NEWPAYGW.NOTFT),4)),0))*2,0) -> 0 | I22: =IF(E17<>"Select",(ROUND((ROUNDDOWN(I20/2,0)+(0.99*VLOOKUP(ROUNDDOWN(I20/2,0),IF(E17="Claim Tax Free Threshold",NEWPAYGW.TFT,NEWPAYGW.NOTFT),4))-VLOOKUP(ROUNDDOWN(I20/2,0),IF(E17="Claim Tax Free Threshold",NEWPAYGW.TFT,NEWPAYGW.NOTFT),5))/(1-VLOOKUP(ROUNDDOWN(I20/2,0),IF(E17="Claim Tax Free Threshold",NEWPAYGW.TFT,NEWPAYGW.NOTFT),4)),0))*2,0) -> 0 | J22: =IF(E17<>"Select",(ROUND((ROUNDDOWN(J20/2,0)+(0.99*VLOOKUP(ROUNDDOWN(J20/2,0),IF(E17="Claim Tax Free Threshold",NEWPAYGW.TFT,NEWPAYGW.NOTFT),4))-VLOOKUP(ROUNDDOWN(J20/2,0),IF(E17="Claim Tax Free Threshold",NEWPAYGW.TFT,NEWPAYGW.NOTFT),5))/(1-VLOOKUP(ROUNDDOWN(J20/2,0),IF(E17="Claim Tax Free Threshold",NEWPAYGW.TFT,NEWPAYGW.NOTFT),4)),0))*2,0) -> 0 | K22: =SUM(F22:J22) -> 0 | O22: blank
O23: blank
C24: 3 | E24: =Summary!E13 -> Employee 3 Name | O24: =IF(OR(K26<>0,K27<>0,K28<>0,K29<>0,K30<>0),0,"blank") -> blank
E25: Select | O25: =O24 -> blank
E26: Wages Paid from Accounting Records | K26: =SUM(F26:J26) -> 0 | O26: =O25 -> blank
E27: Less PAYG Withholding Payments to the ATO (if incl above) | K27: =SUM(F27:J27) -> 0 | O27: blank
E28: Net Wages | F28: =F26-F27 -> 0 | G28: =G26-G27 -> 0 | H28: 0 | I28: 0 | J28: 0 | K28: =SUM(F28:J28) -> 0 | O28: blank
E29: Add PAYG Withholding | F29: =IF(E25<>"Select",F30-F28,0) -> 0 | G29: =IF(E25<>"Select",G30-G28,0) -> 0 | H29: =IF(E25<>"Select",H30-H28,0) -> 0 | I29: =IF(E25<>"Select",I30-I28,0) -> 0 | J29: =IF(E25<>"Select",J30-J28,0) -> 0 | K29: =SUM(F29:J29) -> 0 | O29: blank
E30: Gross Wages | F30: =IF(E25<>"Select",(ROUND((ROUNDDOWN(F28/2,0)+(0.99*VLOOKUP(ROUNDDOWN(F28/2,0),IF(E25="Claim Tax Free Threshold",NEWPAYGW.TFT,NEWPAYGW.NOTFT),4))-VLOOKUP(ROUNDDOWN(F28/2,0),IF(E25="Claim Tax Free Threshold",NEWPAYGW.TFT,NEWPAYGW.NOTFT),5))/(1-VLOOKUP(ROUNDDOWN(F28/2,0),IF(E25="Claim Tax Free Threshold",NEWPAYGW.TFT,NEWPAYGW.NOTFT),4)),0))*2,0) -> 0 | G30: =IF(E25<>"Select",(ROUND((ROUNDDOWN(G28/2,0)+(0.99*VLOOKUP(ROUNDDOWN(G28/2,0),IF(E25="Claim Tax Free Threshold",NEWPAYGW.TFT,NEWPAYGW.NOTFT),4))-VLOOKUP(ROUNDDOWN(G28/2,0),IF(E25="Claim Tax Free Threshold",NEWPAYGW.TFT,NEWPAYGW.NOTFT),5))/(1-VLOOKUP(ROUNDDOWN(G28/2,0),IF(E25="Claim Tax Free Threshold",NEWPAYGW.TFT,NEWPAYGW.NOTFT),4)),0))*2,0) -> 0 | H30: =IF(E25<>"Select",(ROUND((ROUNDDOWN(H28/2,0)+(0.99*VLOOKUP(ROUNDDOWN(H28/2,0),IF(E25="Claim Tax Free Threshold",NEWPAYGW.TFT,NEWPAYGW.NOTFT),4))-VLOOKUP(ROUNDDOWN(H28/2,0),IF(E25="Claim Tax Free Threshold",NEWPAYGW.TFT,NEWPAYGW.NOTFT),5))/(1-VLOOKUP(ROUNDDOWN(H28/2,0),IF(E25="Claim Tax Free Threshold",NEWPAYGW.TFT,NEWPAYGW.NOTFT),4)),0))*2,0) -> 0 | I30: =IF(E25<>"Select",(ROUND((ROUNDDOWN(I28/2,0)+(0.99*VLOOKUP(ROUNDDOWN(I28/2,0),IF(E25="Claim Tax Free Threshold",NEWPAYGW.TFT,NEWPAYGW.NOTFT),4))-VLOOKUP(ROUNDDOWN(I28/2,0),IF(E25="Claim Tax Free Threshold",NEWPAYGW.TFT,NEWPAYGW.NOTFT),5))/(1-VLOOKUP(ROUNDDOWN(I28/2,0),IF(E25="Claim Tax Free Threshold",NEWPAYGW.TFT,NEWPAYGW.NOTFT),4)),0))*2,0) -> 0 | J30: =IF(E25<>"Select",(ROUND((ROUNDDOWN(J28/2,0)+(0.99*VLOOKUP(ROUNDDOWN(J28/2,0),IF(E25="Claim Tax Free Threshold",NEWPAYGW.TFT,NEWPAYGW.NOTFT),4))-VLOOKUP(ROUNDDOWN(J28/2,0),IF(E25="Claim Tax Free Threshold",NEWPAYGW.TFT,NEWPAYGW.NOTFT),5))/(1-VLOOKUP(ROUNDDOWN(J28/2,0),IF(E25="Claim Tax Free Threshold",NEWPAYGW.TFT,NEWPAYGW.NOTFT),4)),0))*2,0) -> 0 | K30: =SUM(F30:J30) -> 0 | O30: blank
O31: blank
C32: 4 | E32: =Summary!E14 -> Employee 4 Name | O32: =IF(OR(K34<>0,K35<>0,K36<>0,K37<>0,K38<>0),0,"blank") -> blank
E33: Select | O33: =O32 -> blank
E34: Wages Paid from Accounting Records | K34: =SUM(F34:J34) -> 0 | O34: =O33 -> blank
E35: Less PAYG Withholding Payments to the ATO (if incl above) | K35: =SUM(F35:J35) -> 0 | O35: blank
E36: Net Wages | F36: =F34-F35 -> 0 | G36: =G34-G35 -> 0 | H36: 0 | I36: 0 | J36: 0 | K36: =SUM(F36:J36) -> 0 | O36: blank
E37: Add PAYG Withholding | F37: =IF(E33<>"Select",F38-F36,0) -> 0 | G37: =IF(E33<>"Select",G38-G36,0) -> 0 | H37: =IF(E33<>"Select",H38-H36,0) -> 0 | I37: =IF(E33<>"Select",I38-I36,0) -> 0 | J37: =IF(E33<>"Select",J38-J36,0) -> 0 | K37: =SUM(F37:J37) -> 0 | O37: blank
E38: Gross Wages | F38: =IF(E33<>"Select",(ROUND((ROUNDDOWN(F36/2,0)+(0.99*VLOOKUP(ROUNDDOWN(F36/2,0),IF(E33="Claim Tax Free Threshold",NEWPAYGW.TFT,NEWPAYGW.NOTFT),4))-VLOOKUP(ROUNDDOWN(F36/2,0),IF(E33="Claim Tax Free Threshold",NEWPAYGW.TFT,NEWPAYGW.NOTFT),5))/(1-VLOOKUP(ROUNDDOWN(F36/2,0),IF(E33="Claim Tax Free Threshold",NEWPAYGW.TFT,NEWPAYGW.NOTFT),4)),0))*2,0) -> 0 | G38: =IF(E33<>"Select",(ROUND((ROUNDDOWN(G36/2,0)+(0.99*VLOOKUP(ROUNDDOWN(G36/2,0),IF(E33="Claim Tax Free Threshold",NEWPAYGW.TFT,NEWPAYGW.NOTFT),4))-VLOOKUP(ROUNDDOWN(G36/2,0),IF(E33="Claim Tax Free Threshold",NEWPAYGW.TFT,NEWPAYGW.NOTFT),5))/(1-VLOOKUP(ROUNDDOWN(G36/2,0),IF(E33="Claim Tax Free Threshold",NEWPAYGW.TFT,NEWPAYGW.NOTFT),4)),0))*2,0) -> 0 | H38: =IF(E33<>"Select",(ROUND((ROUNDDOWN(H36/2,0)+(0.99*VLOOKUP(ROUNDDOWN(H36/2,0),IF(E33="Claim Tax Free Threshold",NEWPAYGW.TFT,NEWPAYGW.NOTFT),4))-VLOOKUP(ROUNDDOWN(H36/2,0),IF(E33="Claim Tax Free Threshold",NEWPAYGW.TFT,NEWPAYGW.NOTFT),5))/(1-VLOOKUP(ROUNDDOWN(H36/2,0),IF(E33="Claim Tax Free Threshold",NEWPAYGW.TFT,NEWPAYGW.NOTFT),4)),0))*2,0) -> 0 | I38: =IF(E33<>"Select",(ROUND((ROUNDDOWN(I36/2,0)+(0.99*VLOOKUP(ROUNDDOWN(I36/2,0),IF(E33="Claim Tax Free Threshold",NEWPAYGW.TFT,NEWPAYGW.NOTFT),4))-VLOOKUP(ROUNDDOWN(I36/2,0),IF(E33="Claim Tax Free Threshold",NEWPAYGW.TFT,NEWPAYGW.NOTFT),5))/(1-VLOOKUP(ROUNDDOWN(I36/2,0),IF(E33="Claim Tax Free Threshold",NEWPAYGW.TFT,NEWPAYGW.NOTFT),4)),0))*2,0) -> 0 | J38: =IF(E33<>"Select",(ROUND((ROUNDDOWN(J36/2,0)+(0.99*VLOOKUP(ROUNDDOWN(J36/2,0),IF(E33="Claim Tax Free Threshold",NEWPAYGW.TFT,NEWPAYGW.NOTFT),4))-VLOOKUP(ROUNDDOWN(J36/2,0),IF(E33="Claim Tax Free Threshold",NEWPAYGW.TFT,NEWPAYGW.NOTFT),5))/(1-VLOOKUP(ROUNDDOWN(J36/2,0),IF(E33="Claim Tax Free Threshold",NEWPAYGW.TFT,NEWPAYGW.NOTFT),4)),0))*2,0) -> 0 | K38: =SUM(F38:J38) -> 0 | O38: blank
O39: blank
C40: 5 | E40: =Summary!E15 -> Employee 5 Name | O40: =IF(OR(K42<>0,K43<>0,K44<>0,K45<>0,K46<>0),0,"blank") -> blank
E41: Select | O41: =O40 -> blank
E42: Wages Paid from Accounting Records | K42: =SUM(F42:J42) -> 0 | O42: =O41 -> blank
E43: Less PAYG Withholding Payments to the ATO (if incl above) | K43: =SUM(F43:J43) -> 0 | O43: blank
E44: Net Wages | F44: =F42-F43 -> 0 | G44: =G42-G43 -> 0 | H44: 0 | I44: 0 | J44: 0 | K44: =SUM(F44:J44) -> 0 | O44: blank
E45: Add PAYG Withholding | F45: =IF(E41<>"Select",F46-F44,0) -> 0 | G45: =IF(E41<>"Select",G46-G44,0) -> 0 | H45: =IF(E41<>"Select",H46-H44,0) -> 0 | I45: =IF(E41<>"Select",I46-I44,0) -> 0 | J45: =IF(E41<>"Select",J46-J44,0) -> 0 | K45: =SUM(F45:J45) -> 0 | O45: blank
E46: Gross Wages | F46: =IF(E41<>"Select",(ROUND((ROUNDDOWN(F44/2,0)+(0.99*VLOOKUP(ROUNDDOWN(F44/2,0),IF(E41="Claim Tax Free Threshold",NEWPAYGW.TFT,NEWPAYGW.NOTFT),4))-VLOOKUP(ROUNDDOWN(F44/2,0),IF(E41="Claim Tax Free Threshold",NEWPAYGW.TFT,NEWPAYGW.NOTFT),5))/(1-VLOOKUP(ROUNDDOWN(F44/2,0),IF(E41="Claim Tax Free Threshold",NEWPAYGW.TFT,NEWPAYGW.NOTFT),4)),0))*2,0) -> 0 | G46: =IF(E41<>"Select",(ROUND((ROUNDDOWN(G44/2,0)+(0.99*VLOOKUP(ROUNDDOWN(G44/2,0),IF(E41="Claim Tax Free Threshold",NEWPAYGW.TFT,NEWPAYGW.NOTFT),4))-VLOOKUP(ROUNDDOWN(G44/2,0),IF(E41="Claim Tax Free Threshold",NEWPAYGW.TFT,NEWPAYGW.NOTFT),5))/(1-VLOOKUP(ROUNDDOWN(G44/2,0),IF(E41="Claim Tax Free Threshold",NEWPAYGW.TFT,NEWPAYGW.NOTFT),4)),0))*2,0) -> 0 | H46: =IF(E41<>"Select",(ROUND((ROUNDDOWN(H44/2,0)+(0.99*VLOOKUP(ROUNDDOWN(H44/2,0),IF(E41="Claim Tax Free Threshold",NEWPAYGW.TFT,NEWPAYGW.NOTFT),4))-VLOOKUP(ROUNDDOWN(H44/2,0),IF(E41="Claim Tax Free Threshold",NEWPAYGW.TFT,NEWPAYGW.NOTFT),5))/(1-VLOOKUP(ROUNDDOWN(H44/2,0),IF(E41="Claim Tax Free Threshold",NEWPAYGW.TFT,NEWPAYGW.NOTFT),4)),0))*2,0) -> 0 | I46: =IF(E41<>"Select",(ROUND((ROUNDDOWN(I44/2,0)+(0.99*VLOOKUP(ROUNDDOWN(I44/2,0),IF(E41="Claim Tax Free Threshold",NEWPAYGW.TFT,NEWPAYGW.NOTFT),4))-VLOOKUP(ROUNDDOWN(I44/2,0),IF(E41="Claim Tax Free Threshold",NEWPAYGW.TFT,NEWPAYGW.NOTFT),5))/(1-VLOOKUP(ROUNDDOWN(I44/2,0),IF(E41="Claim Tax Free Threshold",NEWPAYGW.TFT,NEWPAYGW.NOTFT),4)),0))*2,0) -> 0 | J46: =IF(E41<>"Select",(ROUND((ROUNDDOWN(J44/2,0)+(0.99*VLOOKUP(ROUNDDOWN(J44/2,0),IF(E41="Claim Tax Free Threshold",NEWPAYGW.TFT,NEWPAYGW.NOTFT),4))-VLOOKUP(ROUNDDOWN(J44/2,0),IF(E41="Claim Tax Free Threshold",NEWPAYGW.TFT,NEWPAYGW.NOTFT),5))/(1-VLOOKUP(ROUNDDOWN(J44/2,0),IF(E41="Claim Tax Free Threshold",NEWPAYGW.TFT,NEWPAYGW.NOTFT),4)),0))*2,0) -> 0 | K46: =SUM(F46:J46) -> 0 | O46: blank
O47: blank
C48: 6 | E48: =Summary!E16 -> Employee 6 Name | O48: =IF(OR(K50<>0,K51<>0,K52<>0,K53<>0,K54<>0),0,"blank") -> blank
E49: Select | O49: =O48 -> blank
E50: Wages Paid from Accounting Records | K50: =SUM(F50:J50) -> 0 | O50: =O49 -> blank
E51: Less PAYG Withholding Payments to the ATO (if incl above) | K51: =SUM(F51:J51) -> 0 | O51: blank
E52: Net Wages | F52: =F50-F51 -> 0 | G52: =G50-G51 -> 0 | H52: 0 | I52: 0 | J52: 0 | K52: =SUM(F52:J52) -> 0 | O52: blank
E53: Add PAYG Withholding | F53: =IF(E49<>"Select",F54-F52,0) -> 0 | G53: =IF(E49<>"Select",G54-G52,0) -> 0 | H53: =IF(E49<>"Select",H54-H52,0) -> 0 | I53: =IF(E49<>"Select",I54-I52,0) -> 0 | J53: =IF(E49<>"Select",J54-J52,0) -> 0 | K53: =SUM(F53:J53) -> 0 | O53: blank
E54: Gross Wages | F54: =IF(E49<>"Select",(ROUND((ROUNDDOWN(F52/2,0)+(0.99*VLOOKUP(ROUNDDOWN(F52/2,0),IF(E49="Claim Tax Free Threshold",NEWPAYGW.TFT,NEWPAYGW.NOTFT),4))-VLOOKUP(ROUNDDOWN(F52/2,0),IF(E49="Claim Tax Free Threshold",NEWPAYGW.TFT,NEWPAYGW.NOTFT),5))/(1-VLOOKUP(ROUNDDOWN(F52/2,0),IF(E49="Claim Tax Free Threshold",NEWPAYGW.TFT,NEWPAYGW.NOTFT),4)),0))*2,0) -> 0 | G54: =IF(E49<>"Select",(ROUND((ROUNDDOWN(G52/2,0)+(0.99*VLOOKUP(ROUNDDOWN(G52/2,0),IF(E49="Claim Tax Free Threshold",NEWPAYGW.TFT,NEWPAYGW.NOTFT),4))-VLOOKUP(ROUNDDOWN(G52/2,0),IF(E49="Claim Tax Free Threshold",NEWPAYGW.TFT,NEWPAYGW.NOTFT),5))/(1-VLOOKUP(ROUNDDOWN(G52/2,0),IF(E49="Claim Tax Free Threshold",NEWPAYGW.TFT,NEWPAYGW.NOTFT),4)),0))*2,0) -> 0 | H54: =IF(E49<>"Select",(ROUND((ROUNDDOWN(H52/2,0)+(0.99*VLOOKUP(ROUNDDOWN(H52/2,0),IF(E49="Claim Tax Free Threshold",NEWPAYGW.TFT,NEWPAYGW.NOTFT),4))-VLOOKUP(ROUNDDOWN(H52/2,0),IF(E49="Claim Tax Free Threshold",NEWPAYGW.TFT,NEWPAYGW.NOTFT),5))/(1-VLOOKUP(ROUNDDOWN(H52/2,0),IF(E49="Claim Tax Free Threshold",NEWPAYGW.TFT,NEWPAYGW.NOTFT),4)),0))*2,0) -> 0 | I54: =IF(E49<>"Select",(ROUND((ROUNDDOWN(I52/2,0)+(0.99*VLOOKUP(ROUNDDOWN(I52/2,0),IF(E49="Claim Tax Free Threshold",NEWPAYGW.TFT,NEWPAYGW.NOTFT),4))-VLOOKUP(ROUNDDOWN(I52/2,0),IF(E49="Claim Tax Free Threshold",NEWPAYGW.TFT,NEWPAYGW.NOTFT),5))/(1-VLOOKUP(ROUNDDOWN(I52/2,0),IF(E49="Claim Tax Free Threshold",NEWPAYGW.TFT,NEWPAYGW.NOTFT),4)),0))*2,0) -> 0 | J54: =IF(E49<>"Select",(ROUND((ROUNDDOWN(J52/2,0)+(0.99*VLOOKUP(ROUNDDOWN(J52/2,0),IF(E49="Claim Tax Free Threshold",NEWPAYGW.TFT,NEWPAYGW.NOTFT),4))-VLOOKUP(ROUNDDOWN(J52/2,0),IF(E49="Claim Tax Free Threshold",NEWPAYGW.TFT,NEWPAYGW.NOTFT),5))/(1-VLOOKUP(ROUNDDOWN(J52/2,0),IF(E49="Claim Tax Free Threshold",NEWPAYGW.TFT,NEWPAYGW.NOTFT),4)),0))*2,0) -> 0 | K54: =SUM(F54:J54) -> 0 | O54: blank
O55: blank
C56: 7 | E56: =Summary!E17 -> Employee 7 Name | O56: =IF(OR(K58<>0,K59<>0,K60<>0,K61<>0,K62<>0),0,"blank") -> blank
E57: Select | O57: =O56 -> blank
E58: Wages Paid from Accounting Records | K58: =SUM(F58:J58) -> 0 | O58: =O57 -> blank
E59: Less PAYG Withholding Payments to the ATO (if incl above) | K59: =SUM(F59:J59) -> 0 | O59: blank
E60: Net Wages | F60: =F58-F59 -> 0 | G60: =G58-G59 -> 0 | H60: 0 | I60: 0 | J60: 0 | K60: =SUM(F60:J60) -> 0 | O60: blank
E61: Add PAYG Withholding | F61: =IF(E57<>"Select",F62-F60,0) -> 0 | G61: =IF(E57<>"Select",G62-G60,0) -> 0 | H61: =IF(E57<>"Select",H62-H60,0) -> 0 | I61: =IF(E57<>"Select",I62-I60,0) -> 0 | J61: =IF(E57<>"Select",J62-J60,0) -> 0 | K61: =SUM(F61:J61) -> 0 | O61: blank
E62: Gross Wages | F62: =IF(E57<>"Select",(ROUND((ROUNDDOWN(F60/2,0)+(0.99*VLOOKUP(ROUNDDOWN(F60/2,0),IF(E57="Claim Tax Free Threshold",NEWPAYGW.TFT,NEWPAYGW.NOTFT),4))-VLOOKUP(ROUNDDOWN(F60/2,0),IF(E57="Claim Tax Free Threshold",NEWPAYGW.TFT,NEWPAYGW.NOTFT),5))/(1-VLOOKUP(ROUNDDOWN(F60/2,0),IF(E57="Claim Tax Free Threshold",NEWPAYGW.TFT,NEWPAYGW.NOTFT),4)),0))*2,0) -> 0 | G62: =IF(E57<>"Select",(ROUND((ROUNDDOWN(G60/2,0)+(0.99*VLOOKUP(ROUNDDOWN(G60/2,0),IF(E57="Claim Tax Free Threshold",NEWPAYGW.TFT,NEWPAYGW.NOTFT),4))-VLOOKUP(ROUNDDOWN(G60/2,0),IF(E57="Claim Tax Free Threshold",NEWPAYGW.TFT,NEWPAYGW.NOTFT),5))/(1-VLOOKUP(ROUNDDOWN(G60/2,0),IF(E57="Claim Tax Free Threshold",NEWPAYGW.TFT,NEWPAYGW.NOTFT),4)),0))*2,0) -> 0 | H62: =IF(E57<>"Select",(ROUND((ROUNDDOWN(H60/2,0)+(0.99*VLOOKUP(ROUNDDOWN(H60/2,0),IF(E57="Claim Tax Free Threshold",NEWPAYGW.TFT,NEWPAYGW.NOTFT),4))-VLOOKUP(ROUNDDOWN(H60/2,0),IF(E57="Claim Tax Free Threshold",NEWPAYGW.TFT,NEWPAYGW.NOTFT),5))/(1-VLOOKUP(ROUNDDOWN(H60/2,0),IF(E57="Claim Tax Free Threshold",NEWPAYGW.TFT,NEWPAYGW.NOTFT),4)),0))*2,0) -> 0 | I62: =IF(E57<>"Select",(ROUND((ROUNDDOWN(I60/2,0)+(0.99*VLOOKUP(ROUNDDOWN(I60/2,0),IF(E57="Claim Tax Free Threshold",NEWPAYGW.TFT,NEWPAYGW.NOTFT),4))-VLOOKUP(ROUNDDOWN(I60/2,0),IF(E57="Claim Tax Free Threshold",NEWPAYGW.TFT,NEWPAYGW.NOTFT),5))/(1-VLOOKUP(ROUNDDOWN(I60/2,0),IF(E57="Claim Tax Free Threshold",NEWPAYGW.TFT,NEWPAYGW.NOTFT),4)),0))*2,0) -> 0 | J62: =IF(E57<>"Select",(ROUND((ROUNDDOWN(J60/2,0)+(0.99*VLOOKUP(ROUNDDOWN(J60/2,0),IF(E57="Claim Tax Free Threshold",NEWPAYGW.TFT,NEWPAYGW.NOTFT),4))-VLOOKUP(ROUNDDOWN(J60/2,0),IF(E57="Claim Tax Free Threshold",NEWPAYGW.TFT,NEWPAYGW.NOTFT),5))/(1-VLOOKUP(ROUNDDOWN(J60/2,0),IF(E57="Claim Tax Free Threshold",NEWPAYGW.TFT,NEWPAYGW.NOTFT),4)),0))*2,0) -> 0 | K62: =SUM(F62:J62) -> 0 | O62: blank
O63: blank
C64: 8 | E64: =Summary!E18 -> Employee 8 Name | O64: =IF(OR(K66<>0,K67<>0,K68<>0,K69<>0,K70<>0),0,"blank") -> blank
E65: Select | O65: =O64 -> blank
E66: Wages Paid from Accounting Records | K66: =SUM(F66:J66) -> 0 | O66: =O65 -> blank
E67: Less PAYG Withholding Payments to the ATO (if incl above) | K67: =SUM(F67:J67) -> 0 | O67: blank
E68: Net Wages | F68: =F66-F67 -> 0 | G68: =G66-G67 -> 0 | H68: 0 | I68: 0 | J68: 0 | K68: =SUM(F68:J68) -> 0 | O68: blank
E69: Add PAYG Withholding | F69: =IF(E65<>"Select",F70-F68,0) -> 0 | G69: =IF(E65<>"Select",G70-G68,0) -> 0 | H69: =IF(E65<>"Select",H70-H68,0) -> 0 | I69: =IF(E65<>"Select",I70-I68,0) -> 0 | J69: =IF(E65<>"Select",J70-J68,0) -> 0 | K69: =SUM(F69:J69) -> 0 | O69: blank
E70: Gross Wages | F70: =IF(E65<>"Select",(ROUND((ROUNDDOWN(F68/2,0)+(0.99*VLOOKUP(ROUNDDOWN(F68/2,0),IF(E65="Claim Tax Free Threshold",NEWPAYGW.TFT,NEWPAYGW.NOTFT),4))-VLOOKUP(ROUNDDOWN(F68/2,0),IF(E65="Claim Tax Free Threshold",NEWPAYGW.TFT,NEWPAYGW.NOTFT),5))/(1-VLOOKUP(ROUNDDOWN(F68/2,0),IF(E65="Claim Tax Free Threshold",NEWPAYGW.TFT,NEWPAYGW.NOTFT),4)),0))*2,0) -> 0 | G70: =IF(E65<>"Select",(ROUND((ROUNDDOWN(G68/2,0)+(0.99*VLOOKUP(ROUNDDOWN(G68/2,0),IF(E65="Claim Tax Free Threshold",NEWPAYGW.TFT,NEWPAYGW.NOTFT),4))-VLOOKUP(ROUNDDOWN(G68/2,0),IF(E65="Claim Tax Free Threshold",NEWPAYGW.TFT,NEWPAYGW.NOTFT),5))/(1-VLOOKUP(ROUNDDOWN(G68/2,0),IF(E65="Claim Tax Free Threshold",NEWPAYGW.TFT,NEWPAYGW.NOTFT),4)),0))*2,0) -> 0 | H70: =IF(E65<>"Select",(ROUND((ROUNDDOWN(H68/2,0)+(0.99*VLOOKUP(ROUNDDOWN(H68/2,0),IF(E65="Claim Tax Free Threshold",NEWPAYGW.TFT,NEWPAYGW.NOTFT),4))-VLOOKUP(ROUNDDOWN(H68/2,0),IF(E65="Claim Tax Free Threshold",NEWPAYGW.TFT,NEWPAYGW.NOTFT),5))/(1-VLOOKUP(ROUNDDOWN(H68/2,0),IF(E65="Claim Tax Free Threshold",NEWPAYGW.TFT,NEWPAYGW.NOTFT),4)),0))*2,0) -> 0 | I70: =IF(E65<>"Select",(ROUND((ROUNDDOWN(I68/2,0)+(0.99*VLOOKUP(ROUNDDOWN(I68/2,0),IF(E65="Claim Tax Free Threshold",NEWPAYGW.TFT,NEWPAYGW.NOTFT),4))-VLOOKUP(ROUNDDOWN(I68/2,0),IF(E65="Claim Tax Free Threshold",NEWPAYGW.TFT,NEWPAYGW.NOTFT),5))/(1-VLOOKUP(ROUNDDOWN(I68/2,0),IF(E65="Claim Tax Free Threshold",NEWPAYGW.TFT,NEWPAYGW.NOTFT),4)),0))*2,0) -> 0 | J70: =IF(E65<>"Select",(ROUND((ROUNDDOWN(J68/2,0)+(0.99*VLOOKUP(ROUNDDOWN(J68/2,0),IF(E65="Claim Tax Free Threshold",NEWPAYGW.TFT,NEWPAYGW.NOTFT),4))-VLOOKUP(ROUNDDOWN(J68/2,0),IF(E65="Claim Tax Free Threshold",NEWPAYGW.TFT,NEWPAYGW.NOTFT),5))/(1-VLOOKUP(ROUNDDOWN(J68/2,0),IF(E65="Claim Tax Free Threshold",NEWPAYGW.TFT,NEWPAYGW.NOTFT),4)),0))*2,0) -> 0 | K70: =SUM(F70:J70) -> 0 | O70: blank
O71: blank
C72: 9 | E72: =Summary!E19 -> Employee 9 Name | O72: =IF(OR(K74<>0,K75<>0,K76<>0,K77<>0,K78<>0),0,"blank") -> blank
E73: Select | O73: =O72 -> blank
E74: Wages Paid from Accounting Records | K74: =SUM(F74:J74) -> 0 | O74: =O73 -> blank
E75: Less PAYG Withholding Payments to the ATO (if incl above) | K75: =SUM(F75:J75) -> 0 | O75: blank
E76: Net Wages | F76: =F74-F75 -> 0 | G76: =G74-G75 -> 0 | H76: 0 | I76: 0 | J76: 0 | K76: =SUM(F76:J76) -> 0 | O76: blank
E77: Add PAYG Withholding | F77: =IF(E73<>"Select",F78-F76,0) -> 0 | G77: =IF(E73<>"Select",G78-G76,0) -> 0 | H77: =IF(E73<>"Select",H78-H76,0) -> 0 | I77: =IF(E73<>"Select",I78-I76,0) -> 0 | J77: =IF(E73<>"Select",J78-J76,0) -> 0 | K77: =SUM(F77:J77) -> 0 | O77: blank
E78: Gross Wages | F78: =IF(E73<>"Select",(ROUND((ROUNDDOWN(F76/2,0)+(0.99*VLOOKUP(ROUNDDOWN(F76/2,0),IF(E73="Claim Tax Free Threshold",NEWPAYGW.TFT,NEWPAYGW.NOTFT),4))-VLOOKUP(ROUNDDOWN(F76/2,0),IF(E73="Claim Tax Free Threshold",NEWPAYGW.TFT,NEWPAYGW.NOTFT),5))/(1-VLOOKUP(ROUNDDOWN(F76/2,0),IF(E73="Claim Tax Free Threshold",NEWPAYGW.TFT,NEWPAYGW.NOTFT),4)),0))*2,0) -> 0 | G78: =IF(E73<>"Select",(ROUND((ROUNDDOWN(G76/2,0)+(0.99*VLOOKUP(ROUNDDOWN(G76/2,0),IF(E73="Claim Tax Free Threshold",NEWPAYGW.TFT,NEWPAYGW.NOTFT),4))-VLOOKUP(ROUNDDOWN(G76/2,0),IF(E73="Claim Tax Free Threshold",NEWPAYGW.TFT,NEWPAYGW.NOTFT),5))/(1-VLOOKUP(ROUNDDOWN(G76/2,0),IF(E73="Claim Tax Free Threshold",NEWPAYGW.TFT,NEWPAYGW.NOTFT),4)),0))*2,0) -> 0 | H78: =IF(E73<>"Select",(ROUND((ROUNDDOWN(H76/2,0)+(0.99*VLOOKUP(ROUNDDOWN(H76/2,0),IF(E73="Claim Tax Free Threshold",NEWPAYGW.TFT,NEWPAYGW.NOTFT),4))-VLOOKUP(ROUNDDOWN(H76/2,0),IF(E73="Claim Tax Free Threshold",NEWPAYGW.TFT,NEWPAYGW.NOTFT),5))/(1-VLOOKUP(ROUNDDOWN(H76/2,0),IF(E73="Claim Tax Free Threshold",NEWPAYGW.TFT,NEWPAYGW.NOTFT),4)),0))*2,0) -> 0 | I78: =IF(E73<>"Select",(ROUND((ROUNDDOWN(I76/2,0)+(0.99*VLOOKUP(ROUNDDOWN(I76/2,0),IF(E73="Claim Tax Free Threshold",NEWPAYGW.TFT,NEWPAYGW.NOTFT),4))-VLOOKUP(ROUNDDOWN(I76/2,0),IF(E73="Claim Tax Free Threshold",NEWPAYGW.TFT,NEWPAYGW.NOTFT),5))/(1-VLOOKUP(ROUNDDOWN(I76/2,0),IF(E73="Claim Tax Free Threshold",NEWPAYGW.TFT,NEWPAYGW.NOTFT),4)),0))*2,0) -> 0 | J78: =IF(E73<>"Select",(ROUND((ROUNDDOWN(J76/2,0)+(0.99*VLOOKUP(ROUNDDOWN(J76/2,0),IF(E73="Claim Tax Free Threshold",NEWPAYGW.TFT,NEWPAYGW.NOTFT),4))-VLOOKUP(ROUNDDOWN(J76/2,0),IF(E73="Claim Tax Free Threshold",NEWPAYGW.TFT,NEWPAYGW.NOTFT),5))/(1-VLOOKUP(ROUNDDOWN(J76/2,0),IF(E73="Claim Tax Free Threshold",NEWPAYGW.TFT,NEWPAYGW.NOTFT),4)),0))*2,0) -> 0 | K78: =SUM(F78:J78) -> 0 | O78: blank
O79: blank
C80: 10 | E80: =Summary!E20 -> Employee 10 Name | O80: =IF(OR(K82<>0,K83<>0,K84<>0,K85<>0,K86<>0),0,"blank") -> blank
E81: Select | O81: =O80 -> blank
E82: Wages Paid from Accounting Records | K82: =SUM(F82:J82) -> 0 | O82: =O81 -> blank
E83: Less PAYG Withholding Payments to the ATO (if incl above) | K83: =SUM(F83:J83) -> 0 | O83: blank
E84: Net Wages | F84: =F82-F83 -> 0 | G84: =G82-G83 -> 0 | H84: 0 | I84: 0 | J84: 0 | K84: =SUM(F84:J84) -> 0 | O84: blank
E85: Add PAYG Withholding | F85: =IF(E81<>"Select",F86-F84,0) -> 0 | G85: =IF(E81<>"Select",G86-G84,0) -> 0 | H85: =IF(E81<>"Select",H86-H84,0) -> 0 | I85: =IF(E81<>"Select",I86-I84,0) -> 0 | J85: =IF(E81<>"Select",J86-J84,0) -> 0 | K85: =SUM(F85:J85) -> 0 | O85: blank
E86: Gross Wages | F86: =IF(E81<>"Select",(ROUND((ROUNDDOWN(F84/2,0)+(0.99*VLOOKUP(ROUNDDOWN(F84/2,0),IF(E81="Claim Tax Free Threshold",NEWPAYGW.TFT,NEWPAYGW.NOTFT),4))-VLOOKUP(ROUNDDOWN(F84/2,0),IF(E81="Claim Tax Free Threshold",NEWPAYGW.TFT,NEWPAYGW.NOTFT),5))/(1-VLOOKUP(ROUNDDOWN(F84/2,0),IF(E81="Claim Tax Free Threshold",NEWPAYGW.TFT,NEWPAYGW.NOTFT),4)),0))*2,0) -> 0 | G86: =IF(E81<>"Select",(ROUND((ROUNDDOWN(G84/2,0)+(0.99*VLOOKUP(ROUNDDOWN(G84/2,0),IF(E81="Claim Tax Free Threshold",NEWPAYGW.TFT,NEWPAYGW.NOTFT),4))-VLOOKUP(ROUNDDOWN(G84/2,0),IF(E81="Claim Tax Free Threshold",NEWPAYGW.TFT,NEWPAYGW.NOTFT),5))/(1-VLOOKUP(ROUNDDOWN(G84/2,0),IF(E81="Claim Tax Free Threshold",NEWPAYGW.TFT,NEWPAYGW.NOTFT),4)),0))*2,0) -> 0 | H86: =IF(E81<>"Select",(ROUND((ROUNDDOWN(H84/2,0)+(0.99*VLOOKUP(ROUNDDOWN(H84/2,0),IF(E81="Claim Tax Free Threshold",NEWPAYGW.TFT,NEWPAYGW.NOTFT),4))-VLOOKUP(ROUNDDOWN(H84/2,0),IF(E81="Claim Tax Free Threshold",NEWPAYGW.TFT,NEWPAYGW.NOTFT),5))/(1-VLOOKUP(ROUNDDOWN(H84/2,0),IF(E81="Claim Tax Free Threshold",NEWPAYGW.TFT,NEWPAYGW.NOTFT),4)),0))*2,0) -> 0 | I86: =IF(E81<>"Select",(ROUND((ROUNDDOWN(I84/2,0)+(0.99*VLOOKUP(ROUNDDOWN(I84/2,0),IF(E81="Claim Tax Free Threshold",NEWPAYGW.TFT,NEWPAYGW.NOTFT),4))-VLOOKUP(ROUNDDOWN(I84/2,0),IF(E81="Claim Tax Free Threshold",NEWPAYGW.TFT,NEWPAYGW.NOTFT),5))/(1-VLOOKUP(ROUNDDOWN(I84/2,0),IF(E81="Claim Tax Free Threshold",NEWPAYGW.TFT,NEWPAYGW.NOTFT),4)),0))*2,0) -> 0 | J86: =IF(E81<>"Select",(ROUND((ROUNDDOWN(J84/2,0)+(0.99*VLOOKUP(ROUNDDOWN(J84/2,0),IF(E81="Claim Tax Free Threshold",NEWPAYGW.TFT,NEWPAYGW.NOTFT),4))-VLOOKUP(ROUNDDOWN(J84/2,0),IF(E81="Claim Tax Free Threshold",NEWPAYGW.TFT,NEWPAYGW.NOTFT),5))/(1-VLOOKUP(ROUNDDOWN(J84/2,0),IF(E81="Claim Tax Free Threshold",NEWPAYGW.TFT,NEWPAYGW.NOTFT),4)),0))*2,0) -> 0 | K86: =SUM(F86:J86) -> 0 | O86: blank
O87: blank
E89: Monthly Summary
E90: Gross Wages | F90: =F14+F22+F30+F38+F46+F54+F62+F70+F78+F86 -> 0 | G90: =G14+G22+G30+G38+G46+G54+G62+G70+G78+G86 -> 0 | H90: 0 | I90: 0 | J90: 0 | K90: =SUM(F90:J90) -> 0
E91: PAYG Withholding | F91: =F13+F21+F29+F37+F45+F53+F61+F69+F77+F85 -> 0 | G91: =G13+G21+G29+G37+G45+G53+G61+G69+G77+G85 -> 0 | H91: 0 | I91: 0 | J91: 0 | K91: =SUM(F91:J91) -> 0
E92: Net Wages | F92: =F90-F91 -> 0 | G92: =G90-G91 -> 0 | H92: 0 | I92: 0 | J92: 0 | K92: 0
E95: PAYG withholding calculations are for payments of fortnightly wages to resident individuals who have quoted their TFN and are not claiming any Medicare Levy reduction
O96: ="blank" -> blank

Sheet May
E1: Gross Pay Estimate - Weekly Wages | K1: =Summary!O2 -> Entity Name | O1: HIDE
E2: =CONCATENATE("Wages for ",TEXT(Month11End,"mmmm yyyy")) -> Wages for May 2018 | K2: =Summary!O3 -> Preparer Name
F5: Wages for Fortnight Ended
K7: Total
C8: 1 | E8: =Summary!E11 -> Employee 1 Name | O8: =IF(OR(K10<>0,K11<>0,K12<>0,K13<>0,K14<>0),0,"blank") -> blank
E9: Select | O9: =O8 -> blank
E10: Wages Paid from Accounting Records | K10: =SUM(F10:J10) -> 0 | O10: =O9 -> blank
E11: Less PAYG Withholding Payments to the ATO (if incl above) | K11: =SUM(F11:J11) -> 0 | O11: blank
E12: Net Wages | F12: =F10-F11 -> 0 | G12: =G10-G11 -> 0 | H12: 0 | I12: 0 | J12: 0 | K12: =SUM(F12:J12) -> 0 | O12: blank
E13: Add PAYG Withholding | F13: =IF(E9<>"Select",F14-F12,0) -> 0 | G13: =IF(E9<>"Select",G14-G12,0) -> 0 | H13: =IF(E9<>"Select",H14-H12,0) -> 0 | I13: =IF(E9<>"Select",I14-I12,0) -> 0 | J13: =IF(E9<>"Select",J14-J12,0) -> 0 | K13: =SUM(F13:J13) -> 0 | O13: blank
E14: Gross Wages | F14: =IF(E9<>"Select",(ROUND((ROUNDDOWN(F12/2,0)+(0.99*VLOOKUP(ROUNDDOWN(F12/2,0),IF(E9="Claim Tax Free Threshold",NEWPAYGW.TFT,NEWPAYGW.NOTFT),4))-VLOOKUP(ROUNDDOWN(F12/2,0),IF(E9="Claim Tax Free Threshold",NEWPAYGW.TFT,NEWPAYGW.NOTFT),5))/(1-VLOOKUP(ROUNDDOWN(F12/2,0),IF(E9="Claim Tax Free Threshold",NEWPAYGW.TFT,NEWPAYGW.NOTFT),4)),0))*2,0) -> 0 | G14: =IF(E9<>"Select",(ROUND((ROUNDDOWN(G12/2,0)+(0.99*VLOOKUP(ROUNDDOWN(G12/2,0),IF(E9="Claim Tax Free Threshold",NEWPAYGW.TFT,NEWPAYGW.NOTFT),4))-VLOOKUP(ROUNDDOWN(G12/2,0),IF(E9="Claim Tax Free Threshold",NEWPAYGW.TFT,NEWPAYGW.NOTFT),5))/(1-VLOOKUP(ROUNDDOWN(G12/2,0),IF(E9="Claim Tax Free Threshold",NEWPAYGW.TFT,NEWPAYGW.NOTFT),4)),0))*2,0) -> 0 | H14: =IF(E9<>"Select",(ROUND((ROUNDDOWN(H12/2,0)+(0.99*VLOOKUP(ROUNDDOWN(H12/2,0),IF(E9="Claim Tax Free Threshold",NEWPAYGW.TFT,NEWPAYGW.NOTFT),4))-VLOOKUP(ROUNDDOWN(H12/2,0),IF(E9="Claim Tax Free Threshold",NEWPAYGW.TFT,NEWPAYGW.NOTFT),5))/(1-VLOOKUP(ROUNDDOWN(H12/2,0),IF(E9="Claim Tax Free Threshold",NEWPAYGW.TFT,NEWPAYGW.NOTFT),4)),0))*2,0) -> 0 | I14: =IF(E9<>"Select",(ROUND((ROUNDDOWN(I12/2,0)+(0.99*VLOOKUP(ROUNDDOWN(I12/2,0),IF(E9="Claim Tax Free Threshold",NEWPAYGW.TFT,NEWPAYGW.NOTFT),4))-VLOOKUP(ROUNDDOWN(I12/2,0),IF(E9="Claim Tax Free Threshold",NEWPAYGW.TFT,NEWPAYGW.NOTFT),5))/(1-VLOOKUP(ROUNDDOWN(I12/2,0),IF(E9="Claim Tax Free Threshold",NEWPAYGW.TFT,NEWPAYGW.NOTFT),4)),0))*2,0) -> 0 | J14: =IF(E9<>"Select",(ROUND((ROUNDDOWN(J12/2,0)+(0.99*VLOOKUP(ROUNDDOWN(J12/2,0),IF(E9="Claim Tax Free Threshold",NEWPAYGW.TFT,NEWPAYGW.NOTFT),4))-VLOOKUP(ROUNDDOWN(J12/2,0),IF(E9="Claim Tax Free Threshold",NEWPAYGW.TFT,NEWPAYGW.NOTFT),5))/(1-VLOOKUP(ROUNDDOWN(J12/2,0),IF(E9="Claim Tax Free Threshold",NEWPAYGW.TFT,NEWPAYGW.NOTFT),4)),0))*2,0) -> 0 | K14: =SUM(F14:J14) -> 0 | O14: blank
O15: blank
C16: 2 | E16: =Summary!E12 -> Employee 2 Name | O16: =IF(OR(K18<>0,K19<>0,K20<>0,K21<>0,K22<>0),0,"blank") -> blank
E17: Select | O17: =O16 -> blank
E18: Wages Paid from Accounting Records | K18: =SUM(F18:J18) -> 0 | O18: =O17 -> blank
E19: Less PAYG Withholding Payments to the ATO (if incl above) | K19: =SUM(F19:J19) -> 0 | O19: blank
E20: Net Wages | F20: =F18-F19 -> 0 | G20: =G18-G19 -> 0 | H20: 0 | I20: 0 | J20: 0 | K20: =SUM(F20:J20) -> 0 | O20: blank
E21: Add PAYG Withholding | F21: =IF(E17<>"Select",F22-F20,0) -> 0 | G21: =IF(E17<>"Select",G22-G20,0) -> 0 | H21: =IF(E17<>"Select",H22-H20,0) -> 0 | I21: =IF(E17<>"Select",I22-I20,0) -> 0 | J21: =IF(E17<>"Select",J22-J20,0) -> 0 | K21: =SUM(F21:J21) -> 0 | O21: blank
E22: Gross Wages | F22: =IF(E17<>"Select",(ROUND((ROUNDDOWN(F20/2,0)+(0.99*VLOOKUP(ROUNDDOWN(F20/2,0),IF(E17="Claim Tax Free Threshold",NEWPAYGW.TFT,NEWPAYGW.NOTFT),4))-VLOOKUP(ROUNDDOWN(F20/2,0),IF(E17="Claim Tax Free Threshold",NEWPAYGW.TFT,NEWPAYGW.NOTFT),5))/(1-VLOOKUP(ROUNDDOWN(F20/2,0),IF(E17="Claim Tax Free Threshold",NEWPAYGW.TFT,NEWPAYGW.NOTFT),4)),0))*2,0) -> 0 | G22: =IF(E17<>"Select",(ROUND((ROUNDDOWN(G20/2,0)+(0.99*VLOOKUP(ROUNDDOWN(G20/2,0),IF(E17="Claim Tax Free Threshold",NEWPAYGW.TFT,NEWPAYGW.NOTFT),4))-VLOOKUP(ROUNDDOWN(G20/2,0),IF(E17="Claim Tax Free Threshold",NEWPAYGW.TFT,NEWPAYGW.NOTFT),5))/(1-VLOOKUP(ROUNDDOWN(G20/2,0),IF(E17="Claim Tax Free Threshold",NEWPAYGW.TFT,NEWPAYGW.NOTFT),4)),0))*2,0) -> 0 | H22: =IF(E17<>"Select",(ROUND((ROUNDDOWN(H20/2,0)+(0.99*VLOOKUP(ROUNDDOWN(H20/2,0),IF(E17="Claim Tax Free Threshold",NEWPAYGW.TFT,NEWPAYGW.NOTFT),4))-VLOOKUP(ROUNDDOWN(H20/2,0),IF(E17="Claim Tax Free Threshold",NEWPAYGW.TFT,NEWPAYGW.NOTFT),5))/(1-VLOOKUP(ROUNDDOWN(H20/2,0),IF(E17="Claim Tax Free Threshold",NEWPAYGW.TFT,NEWPAYGW.NOTFT),4)),0))*2,0) -> 0 | I22: =IF(E17<>"Select",(ROUND((ROUNDDOWN(I20/2,0)+(0.99*VLOOKUP(ROUNDDOWN(I20/2,0),IF(E17="Claim Tax Free Threshold",NEWPAYGW.TFT,NEWPAYGW.NOTFT),4))-VLOOKUP(ROUNDDOWN(I20/2,0),IF(E17="Claim Tax Free Threshold",NEWPAYGW.TFT,NEWPAYGW.NOTFT),5))/(1-VLOOKUP(ROUNDDOWN(I20/2,0),IF(E17="Claim Tax Free Threshold",NEWPAYGW.TFT,NEWPAYGW.NOTFT),4)),0))*2,0) -> 0 | J22: =IF(E17<>"Select",(ROUND((ROUNDDOWN(J20/2,0)+(0.99*VLOOKUP(ROUNDDOWN(J20/2,0),IF(E17="Claim Tax Free Threshold",NEWPAYGW.TFT,NEWPAYGW.NOTFT),4))-VLOOKUP(ROUNDDOWN(J20/2,0),IF(E17="Claim Tax Free Threshold",NEWPAYGW.TFT,NEWPAYGW.NOTFT),5))/(1-VLOOKUP(ROUNDDOWN(J20/2,0),IF(E17="Claim Tax Free Threshold",NEWPAYGW.TFT,NEWPAYGW.NOTFT),4)),0))*2,0) -> 0 | K22: =SUM(F22:J22) -> 0 | O22: blank
O23: blank
C24: 3 | E24: =Summary!E13 -> Employee 3 Name | O24: =IF(OR(K26<>0,K27<>0,K28<>0,K29<>0,K30<>0),0,"blank") -> blank
E25: Select | O25: =O24 -> blank
E26: Wages Paid from Accounting Records | K26: =SUM(F26:J26) -> 0 | O26: =O25 -> blank
E27: Less PAYG Withholding Payments to the ATO (if incl above) | K27: =SUM(F27:J27) -> 0 | O27: blank
E28: Net Wages | F28: =F26-F27 -> 0 | G28: =G26-G27 -> 0 | H28: 0 | I28: 0 | J28: 0 | K28: =SUM(F28:J28) -> 0 | O28: blank
E29: Add PAYG Withholding | F29: =IF(E25<>"Select",F30-F28,0) -> 0 | G29: =IF(E25<>"Select",G30-G28,0) -> 0 | H29: =IF(E25<>"Select",H30-H28,0) -> 0 | I29: =IF(E25<>"Select",I30-I28,0) -> 0 | J29: =IF(E25<>"Select",J30-J28,0) -> 0 | K29: =SUM(F29:J29) -> 0 | O29: blank
E30: Gross Wages | F30: =IF(E25<>"Select",(ROUND((ROUNDDOWN(F28/2,0)+(0.99*VLOOKUP(ROUNDDOWN(F28/2,0),IF(E25="Claim Tax Free Threshold",NEWPAYGW.TFT,NEWPAYGW.NOTFT),4))-VLOOKUP(ROUNDDOWN(F28/2,0),IF(E25="Claim Tax Free Threshold",NEWPAYGW.TFT,NEWPAYGW.NOTFT),5))/(1-VLOOKUP(ROUNDDOWN(F28/2,0),IF(E25="Claim Tax Free Threshold",NEWPAYGW.TFT,NEWPAYGW.NOTFT),4)),0))*2,0) -> 0 | G30: =IF(E25<>"Select",(ROUND((ROUNDDOWN(G28/2,0)+(0.99*VLOOKUP(ROUNDDOWN(G28/2,0),IF(E25="Claim Tax Free Threshold",NEWPAYGW.TFT,NEWPAYGW.NOTFT),4))-VLOOKUP(ROUNDDOWN(G28/2,0),IF(E25="Claim Tax Free Threshold",NEWPAYGW.TFT,NEWPAYGW.NOTFT),5))/(1-VLOOKUP(ROUNDDOWN(G28/2,0),IF(E25="Claim Tax Free Threshold",NEWPAYGW.TFT,NEWPAYGW.NOTFT),4)),0))*2,0) -> 0 | H30: =IF(E25<>"Select",(ROUND((ROUNDDOWN(H28/2,0)+(0.99*VLOOKUP(ROUNDDOWN(H28/2,0),IF(E25="Claim Tax Free Threshold",NEWPAYGW.TFT,NEWPAYGW.NOTFT),4))-VLOOKUP(ROUNDDOWN(H28/2,0),IF(E25="Claim Tax Free Threshold",NEWPAYGW.TFT,NEWPAYGW.NOTFT),5))/(1-VLOOKUP(ROUNDDOWN(H28/2,0),IF(E25="Claim Tax Free Threshold",NEWPAYGW.TFT,NEWPAYGW.NOTFT),4)),0))*2,0) -> 0 | I30: =IF(E25<>"Select",(ROUND((ROUNDDOWN(I28/2,0)+(0.99*VLOOKUP(ROUNDDOWN(I28/2,0),IF(E25="Claim Tax Free Threshold",NEWPAYGW.TFT,NEWPAYGW.NOTFT),4))-VLOOKUP(ROUNDDOWN(I28/2,0),IF(E25="Claim Tax Free Threshold",NEWPAYGW.TFT,NEWPAYGW.NOTFT),5))/(1-VLOOKUP(ROUNDDOWN(I28/2,0),IF(E25="Claim Tax Free Threshold",NEWPAYGW.TFT,NEWPAYGW.NOTFT),4)),0))*2,0) -> 0 | J30: =IF(E25<>"Select",(ROUND((ROUNDDOWN(J28/2,0)+(0.99*VLOOKUP(ROUNDDOWN(J28/2,0),IF(E25="Claim Tax Free Threshold",NEWPAYGW.TFT,NEWPAYGW.NOTFT),4))-VLOOKUP(ROUNDDOWN(J28/2,0),IF(E25="Claim Tax Free Threshold",NEWPAYGW.TFT,NEWPAYGW.NOTFT),5))/(1-VLOOKUP(ROUNDDOWN(J28/2,0),IF(E25="Claim Tax Free Threshold",NEWPAYGW.TFT,NEWPAYGW.NOTFT),4)),0))*2,0) -> 0 | K30: =SUM(F30:J30) -> 0 | O30: blank
O31: blank
C32: 4 | E32: =Summary!E14 -> Employee 4 Name | O32: =IF(OR(K34<>0,K35<>0,K36<>0,K37<>0,K38<>0),0,"blank") -> blank
E33: Select | O33: =O32 -> blank
E34: Wages Paid from Accounting Records | K34: =SUM(F34:J34) -> 0 | O34: =O33 -> blank
E35: Less PAYG Withholding Payments to the ATO (if incl above) | K35: =SUM(F35:J35) -> 0 | O35: blank
E36: Net Wages | F36: =F34-F35 -> 0 | G36: =G34-G35 -> 0 | H36: 0 | I36: 0 | J36: 0 | K36: =SUM(F36:J36) -> 0 | O36: blank
E37: Add PAYG Withholding | F37: =IF(E33<>"Select",F38-F36,0) -> 0 | G37: =IF(E33<>"Select",G38-G36,0) -> 0 | H37: =IF(E33<>"Select",H38-H36,0) -> 0 | I37: =IF(E33<>"Select",I38-I36,0) -> 0 | J37: =IF(E33<>"Select",J38-J36,0) -> 0 | K37: =SUM(F37:J37) -> 0 | O37: blank
E38: Gross Wages | F38: =IF(E33<>"Select",(ROUND((ROUNDDOWN(F36/2,0)+(0.99*VLOOKUP(ROUNDDOWN(F36/2,0),IF(E33="Claim Tax Free Threshold",NEWPAYGW.TFT,NEWPAYGW.NOTFT),4))-VLOOKUP(ROUNDDOWN(F36/2,0),IF(E33="Claim Tax Free Threshold",NEWPAYGW.TFT,NEWPAYGW.NOTFT),5))/(1-VLOOKUP(ROUNDDOWN(F36/2,0),IF(E33="Claim Tax Free Threshold",NEWPAYGW.TFT,NEWPAYGW.NOTFT),4)),0))*2,0) -> 0 | G38: =IF(E33<>"Select",(ROUND((ROUNDDOWN(G36/2,0)+(0.99*VLOOKUP(ROUNDDOWN(G36/2,0),IF(E33="Claim Tax Free Threshold",NEWPAYGW.TFT,NEWPAYGW.NOTFT),4))-VLOOKUP(ROUNDDOWN(G36/2,0),IF(E33="Claim Tax Free Threshold",NEWPAYGW.TFT,NEWPAYGW.NOTFT),5))/(1-VLOOKUP(ROUNDDOWN(G36/2,0),IF(E33="Claim Tax Free Threshold",NEWPAYGW.TFT,NEWPAYGW.NOTFT),4)),0))*2,0) -> 0 | H38: =IF(E33<>"Select",(ROUND((ROUNDDOWN(H36/2,0)+(0.99*VLOOKUP(ROUNDDOWN(H36/2,0),IF(E33="Claim Tax Free Threshold",NEWPAYGW.TFT,NEWPAYGW.NOTFT),4))-VLOOKUP(ROUNDDOWN(H36/2,0),IF(E33="Claim Tax Free Threshold",NEWPAYGW.TFT,NEWPAYGW.NOTFT),5))/(1-VLOOKUP(ROUNDDOWN(H36/2,0),IF(E33="Claim Tax Free Threshold",NEWPAYGW.TFT,NEWPAYGW.NOTFT),4)),0))*2,0) -> 0 | I38: =IF(E33<>"Select",(ROUND((ROUNDDOWN(I36/2,0)+(0.99*VLOOKUP(ROUNDDOWN(I36/2,0),IF(E33="Claim Tax Free Threshold",NEWPAYGW.TFT,NEWPAYGW.NOTFT),4))-VLOOKUP(ROUNDDOWN(I36/2,0),IF(E33="Claim Tax Free Threshold",NEWPAYGW.TFT,NEWPAYGW.NOTFT),5))/(1-VLOOKUP(ROUNDDOWN(I36/2,0),IF(E33="Claim Tax Free Threshold",NEWPAYGW.TFT,NEWPAYGW.NOTFT),4)),0))*2,0) -> 0 | J38: =IF(E33<>"Select",(ROUND((ROUNDDOWN(J36/2,0)+(0.99*VLOOKUP(ROUNDDOWN(J36/2,0),IF(E33="Claim Tax Free Threshold",NEWPAYGW.TFT,NEWPAYGW.NOTFT),4))-VLOOKUP(ROUNDDOWN(J36/2,0),IF(E33="Claim Tax Free Threshold",NEWPAYGW.TFT,NEWPAYGW.NOTFT),5))/(1-VLOOKUP(ROUNDDOWN(J36/2,0),IF(E33="Claim Tax Free Threshold",NEWPAYGW.TFT,NEWPAYGW.NOTFT),4)),0))*2,0) -> 0 | K38: =SUM(F38:J38) -> 0 | O38: blank
O39: blank
C40: 5 | E40: =Summary!E15 -> Employee 5 Name | O40: =IF(OR(K42<>0,K43<>0,K44<>0,K45<>0,K46<>0),0,"blank") -> blank
E41: Select | O41: =O40 -> blank
E42: Wages Paid from Accounting Records | K42: =SUM(F42:J42) -> 0 | O42: =O41 -> blank
E43: Less PAYG Withholding Payments to the ATO (if incl above) | K43: =SUM(F43:J43) -> 0 | O43: blank
E44: Net Wages | F44: =F42-F43 -> 0 | G44: =G42-G43 -> 0 | H44: 0 | I44: 0 | J44: 0 | K44: =SUM(F44:J44) -> 0 | O44: blank
E45: Add PAYG Withholding | F45: =IF(E41<>"Select",F46-F44,0) -> 0 | G45: =IF(E41<>"Select",G46-G44,0) -> 0 | H45: =IF(E41<>"Select",H46-H44,0) -> 0 | I45: =IF(E41<>"Select",I46-I44,0) -> 0 | J45: =IF(E41<>"Select",J46-J44,0) -> 0 | K45: =SUM(F45:J45) -> 0 | O45: blank
E46: Gross Wages | F46: =IF(E41<>"Select",(ROUND((ROUNDDOWN(F44/2,0)+(0.99*VLOOKUP(ROUNDDOWN(F44/2,0),IF(E41="Claim Tax Free Threshold",NEWPAYGW.TFT,NEWPAYGW.NOTFT),4))-VLOOKUP(ROUNDDOWN(F44/2,0),IF(E41="Claim Tax Free Threshold",NEWPAYGW.TFT,NEWPAYGW.NOTFT),5))/(1-VLOOKUP(ROUNDDOWN(F44/2,0),IF(E41="Claim Tax Free Threshold",NEWPAYGW.TFT,NEWPAYGW.NOTFT),4)),0))*2,0) -> 0 | G46: =IF(E41<>"Select",(ROUND((ROUNDDOWN(G44/2,0)+(0.99*VLOOKUP(ROUNDDOWN(G44/2,0),IF(E41="Claim Tax Free Threshold",NEWPAYGW.TFT,NEWPAYGW.NOTFT),4))-VLOOKUP(ROUNDDOWN(G44/2,0),IF(E41="Claim Tax Free Threshold",NEWPAYGW.TFT,NEWPAYGW.NOTFT),5))/(1-VLOOKUP(ROUNDDOWN(G44/2,0),IF(E41="Claim Tax Free Threshold",NEWPAYGW.TFT,NEWPAYGW.NOTFT),4)),0))*2,0) -> 0 | H46: =IF(E41<>"Select",(ROUND((ROUNDDOWN(H44/2,0)+(0.99*VLOOKUP(ROUNDDOWN(H44/2,0),IF(E41="Claim Tax Free Threshold",NEWPAYGW.TFT,NEWPAYGW.NOTFT),4))-VLOOKUP(ROUNDDOWN(H44/2,0),IF(E41="Claim Tax Free Threshold",NEWPAYGW.TFT,NEWPAYGW.NOTFT),5))/(1-VLOOKUP(ROUNDDOWN(H44/2,0),IF(E41="Claim Tax Free Threshold",NEWPAYGW.TFT,NEWPAYGW.NOTFT),4)),0))*2,0) -> 0 | I46: =IF(E41<>"Select",(ROUND((ROUNDDOWN(I44/2,0)+(0.99*VLOOKUP(ROUNDDOWN(I44/2,0),IF(E41="Claim Tax Free Threshold",NEWPAYGW.TFT,NEWPAYGW.NOTFT),4))-VLOOKUP(ROUNDDOWN(I44/2,0),IF(E41="Claim Tax Free Threshold",NEWPAYGW.TFT,NEWPAYGW.NOTFT),5))/(1-VLOOKUP(ROUNDDOWN(I44/2,0),IF(E41="Claim Tax Free Threshold",NEWPAYGW.TFT,NEWPAYGW.NOTFT),4)),0))*2,0) -> 0 | J46: =IF(E41<>"Select",(ROUND((ROUNDDOWN(J44/2,0)+(0.99*VLOOKUP(ROUNDDOWN(J44/2,0),IF(E41="Claim Tax Free Threshold",NEWPAYGW.TFT,NEWPAYGW.NOTFT),4))-VLOOKUP(ROUNDDOWN(J44/2,0),IF(E41="Claim Tax Free Threshold",NEWPAYGW.TFT,NEWPAYGW.NOTFT),5))/(1-VLOOKUP(ROUNDDOWN(J44/2,0),IF(E41="Claim Tax Free Threshold",NEWPAYGW.TFT,NEWPAYGW.NOTFT),4)),0))*2,0) -> 0 | K46: =SUM(F46:J46) -> 0 | O46: blank
O47: blank
C48: 6 | E48: =Summary!E16 -> Employee 6 Name | O48: =IF(OR(K50<>0,K51<>0,K52<>0,K53<>0,K54<>0),0,"blank") -> blank
E49: Select | O49: =O48 -> blank
E50: Wages Paid from Accounting Records | K50: =SUM(F50:J50) -> 0 | O50: =O49 -> blank
E51: Less PAYG Withholding Payments to the ATO (if incl above) | K51: =SUM(F51:J51) -> 0 | O51: blank
E52: Net Wages | F52: =F50-F51 -> 0 | G52: =G50-G51 -> 0 | H52: 0 | I52: 0 | J52: 0 | K52: =SUM(F52:J52) -> 0 | O52: blank
E53: Add PAYG Withholding | F53: =IF(E49<>"Select",F54-F52,0) -> 0 | G53: =IF(E49<>"Select",G54-G52,0) -> 0 | H53: =IF(E49<>"Select",H54-H52,0) -> 0 | I53: =IF(E49<>"Select",I54-I52,0) -> 0 | J53: =IF(E49<>"Select",J54-J52,0) -> 0 | K53: =SUM(F53:J53) -> 0 | O53: blank
